Workbook

Sheet Prielaidos
C2: Ūkio subjektų išlaidų peržiūros skaičiuoklė su Profesinio mokymo įstaigų išlaidų peržiūros pavyzdžiu. Parengta remiantis BGI Consulting parengta ataskaita ir mokymų medžiaga (žr. apačioje Šaltinis)
C4: Žingsniai ir prielaidos:
B5: 1. | C5: Duomenų surinkimas ir rodiklių formavimas.
B6: 1.1. | C6: Pagrindinis efektyvumą atspindintis rodiklis - pagrindinės veiklos sąnaudos 1 paslaugos gavėjui (mokiniui, ligoniui ir t.t.). Renkant duomenis apie išlaidas rekomenduojama surinkti 5 metų laikotarpio. Pateiktame pavyzdyje duomenys panaudoti 4 metų laikotarpio. (žr. Pastabos 2 punktas).
B7: 1.1.1. | C7: Profesinio mokymo įstaigų atveju - pagrindinis efektyvumą atspindintis rodiklis (priklausomas kintamasis (Y)) - Pagrindinės veiklos sąnaudos (FV1008) iš VSAKIS sistemos, naudoti 2016-2019 metų laikotarpio duomenys.
B8: 1.2. | C8: Duomenų, kurie įtakoja pagrindinį efektyvumą atspindinti rodiklį, surinkimas. Renkant duomenis apie išlaidas, rekomenduojama surinkti 5 metų laikotarpio. Pateiktame pavyzdyje duomenys panaudoti 4 metų laikotarpio. (žr. Pastabos 2 punktas).
B9: 1.2.1 | C9: Profesinio mokymo įstaigų atveju rodikliai (nepriklausomi kintamieji (Xi, i=1,2,3,...)) - klientų skaičius, darbuotojų skaičius ir t.t. iš skirtingų duomenų šaltinių surinkti 2016-2019 metų duomenys.
B10: 1.3. | C10: Patikrinti surinktų duomenų kokybę - ar nėra akivaizdžių klaidų, išskirčių, tuščių langelių ir t.t., esant reikalui pakoreguoti, suvienodinti laikotarpius.
B11: 1.3.1. | C11: Profesinio mokymo įstaigų atveju - Kiekvienos PMĮ kiekvienų metų mokinių skaičius buvo perskaičiuotas ankstesnių metų skaičių proporcingai priskiriant 8 metų mėnesiams, o einamųjų metų skaičių proporcingai priskiriant likusiems 4 metų mėnesiams (pvz.: perskaičiuojant 2016 m. konkrečios PMĮ mokinių skaičių į jį įskaičiuojamas aštuoniems 2015 m. mėnesiams proporcingai tenkantis PMĮ mokinių skaičius ir keturiems 2016 m. mėnesiams proporcingai tenkantis PMĮ mokinių skaičius).
B12: 1.4. | C12: Apskaičiuoti surinkto laikotarpio duomenų vidurkius ir suformuoti rodiklius.
B13: 1.4.1. | C13: Profesinio mokymo įstaigų atveju - panaudoti 2016 - 2019 m. vidurkiai.
B14: 1.5. | C14: Suformuotais rodikliais užpildomas "1.Duomenys" lapas
B15: 2. | C15: Paspaudus lape "2.KoreliacijaY" mygtuką pagal lape "1.Duomenys" apskaičiuotas kiekvieno rodiklio koreliacijas su pagrindinėmis veiklos sąnaudomis vienam paslaugos gavėjui (Profesinio mokymo įstaigų atveju - vienam mokiniui), atrenkami rodikliai, kurių koreliacijos koeficientas pakankamai aukštas, t.y. > 0,4 arba < -0,4 (pažymėti geltona spalva).
B16: 2.1. | C16: Jei yra poreikis, galima pridėti kintamuosius, kuriuos norima įtraukti į tolimesnę analizę, nors pagal koreliacijos koeficiento reikšmę, jie nebuvo įtraukti.
B17: 2.1.1 | C17: Profesinio mokymo įstaigų atveju buvo papildomai įtrauktas tolimesnei analizei kintamasis - Pirminio mokymo mokinių su spec. poreikiais dalis (žr. Pastabos 3 punktas)
B18: 3. | C18: Lape "3.Tipai" pagal lape "2.KoreliacijaY" atrinktus rodiklius, suformuojami tipai, kuriems priskiriamos nagrinėjamos įstaigos.
B19: 3.1. | C19: Profesinio mokymo įstaigų atveju:
C20: Ieškant kintamųjų, kurie galėtų tapti pagrindu analizuojamų PMĮ suskirstymui į tam tikrus tipus, buvo remiamasi tokiais kriterijais:
C21: • Kintamojo koreliacija su PMĮ pagrindinės veiklos sąnaudomis vienam mokiniui turi būti aukšta;
C22: • Analizuojamų PMĮ pasiskirstymas (dispersija) pagal konkretų kintamąjį turi būti pakankamai didelė;
C23: • Jeigu pasirenkama keletas kintamųjų, pagal kuriuos formuojami tipai, šių kintamųjų koreliacijos su PMĮ pagrindinės veiklos sąnaudomis vienam mokiniui kryptis turi būti priešinga (t. y. jeigu vienam kintamajam didėjant PMĮ pagrindinės veiklos sąnaudos vienam mokiniui didėja, tai kitas kintamasis turi būti pasirenkamas toks, kuriam didėjant PMĮ pagrindinės veiklos sąnaudos vienam mokiniui mažėja);
C24: • Pasirinkti kintamieji pagal kuriuos PMĮ išskirstomos į tipus turi būti išlaidų požiūriu objektyvūs (t. y. tipų sudarymui negali būti pasirinkti kintamieji, kurie vėliau gali būti susieti su rekomendacijomis dėl išlaidų mažinimo).
C25: • Nustatant, kuriose PMĮ dominuoja kiekvienam iš tipų priskiriami požymiai, buvo siekiama pasirinkti tokias procentines ribas, kad į kiekvieną iš tipų patenkantis PMĮ skaičius būtų kuo vienodesnis.
B26: 4. | C26: Lape "4.Korel_matrica" paspaudus mygtuką, sugeneruojama koreliacijų matrica - kintamųjų Xi tarpusavio koreliacijos. Pasirinkus vieną rodiklį Xi, kurį planuojame įtraukti į regresijos analizę (įprastai tai paslaugos gavėjų, kuriems teikiama paslauga, skaičius), atmetame kitus rodiklius, kurių koreliacijos koef. reikšmės >0,4 arba <-0,4 (pažymėti geltona spalva) (žr. Pastabos punktas 5).
B27: 4.1. | C27: Taip pat atmetami tokie kintamieji, kurių koreliacija su Xi yra vienoda, tik su priešingais ženklais. Tuomet vieną iš tų kintamųjų atmetame.
B28: 4.2. | C28: Atmetami kintamieji, kurie išlaidų požiūriu nėra objektyvūs (t.y. tie kintamieji, kurių apimtis vėliau būtų siūloma sumažinti)
B29: 4.3. | C29: Taip pat atmetami kintamieji, kurių dispersija pagal konkretų kintamąjį yra didelė.
B30: 4.4.1. | C30: Lape "4.Korel_matrica" raudonai pažymėti tie rodikliai, kurie Profesinio mokymo įstaigų atveju buvo atrinkti regresijos modeliui sudaryti.
B31: 5. | C31: Lape "5. Rod_regr" sukelti rodiklius, kurie bus naudojami regresijos lygčiai sudaryti (kurie buvo atrinkti lape 4. Korel_matrica).
B32: 6. | C32: Lape "6.Regresija" regresijos lygtis su reikšmingumo ir kitais rodikliais. Data ->Data Analysis -> Regression (žr. Pastabos 6 punktas).
B33: 6.1. | C33: Jei Data meniu juostoje nėra Data Analysis pasirinkimo, jį reiktų suaktyvinti pasirinkus File->Options->Add-ins->Analysis Toolpak->Go->Analysis Toolpak (pavyzdys https://www.excel-easy.com/data-analysis/analysis-toolpak.html)
B34: 7.1. | C34: Iš "3.Tipai" lapo atrinkti 1 tipo profesinio mokymo įstaigas ir jas sukelti į 7.1. lapą su rodikliais, naudojamais regresijoje.
B35: 7.2. | C35: Iš "3.Tipai" lapo atrinkti 2 tipo profesinio mokymo įstaigas ir jas sukelti į 7.2. lapą su rodikliais, naudojamais regresijoje.
B36: 7.3. | C36: Iš "3.Tipai" lapo atrinkti 3 tipo profesinio mokymo įstaigas ir jas sukelti į 7.3. lapą su rodikliais, naudojamais regresijoje.
C39: Pastabos
B40: 1. | C40: Kadangi surinkti išlaidų peržiūrai visus reikalingus duomenis, dažnai tenka naudotis skirtingais duomenų šaltiniais, geriausia naudoti įstaigų, kurių duomenys yra renkami, įmonės kodus, kadangi renkant pagal įstaigų pavadinimą, pastarieji skirtinguose duomenų šaltiniuose gali skirtis, o įmonės kodas visada išliktų toks pats, todėl būtų išvengta galimų klaidų.
B41: 2. | C41: Ne konkrečių metų, o viso laikotarpio vidurkių duomenis naudoti buvo pasirinkta siekiant išvengti atskirų metų atsitiktinių duomenų nuokrypių įtakos. Dėl tos pačios priežasties vidutiniai analizuojamo laikotarpio dydžiai buvo apskaičiuoti ir tolesnėje analizėje naudoti ir kitų aktualių rodiklių atžvilgiu.
B42: 3. | C42: Nors rodiklio "Pirminio mokymo mokinių su spec. poreikiais dalis" koreliacijos su pagrindiniu efektyvumo rodikliu – PMĮ pagrindinės veiklos sąnaudomis, tenkančiomis vienam mokiniui – koeficientas yra šiek tiek mažesnis (lygus 0,33), šį rodiklį nuspręsta vis tiek įtraukti į analizę dėl jo teorinės svarbos – PM pritaikymas specialių poreikių mokiniams yra šiek tiek brangesnis, nei tų mokinių, kurie neturi specialių poreikių, atveju. Šis santykinis brangumas koreliacijos koeficiente gali neatsispindėti dėl nedidelio specialiųjų mokinių skaičiaus analizuojamose PMĮ, tačiau, atsižvelgiant į teorinę šio rodiklio svarbą, jis įtrauktas į tolesnę analizę.
B43: 4. | C43: Išskyrus PMĮ tipus, papildomai buvo įvertinta kiekvieno tipo koreliacija su PMĮ pagrindinės veiklos sąnaudomis vienam mokiniui, kuri parodė, kad pirmojo tipo charakteristikomis pasižyminčiose PMĮ pagrindinės veiklos sąnaudos vienam mokiniui yra santykinai didesnės, trečiojo tipo charakteristikomis pasižyminčiose PMĮ pagrindinės veiklos sąnaudos vienam mokiniui yra santykinai mažesnės, o antrojo tipo charakteristikomis pasižyminčios PMĮ pagrindinės veiklos sąnaudų vienam mokiniui prasme yra neutralios – jų charakteristikos nei didina, nei mažina pagrindinės veiklos sąnaudų vienam mokiniui.
B44: 5. | C44: Regresijos modelio sudarymo tikslais buvo svarbu žinoti ne tik atrinktų kintamųjų koreliacijos su PMĮ pagrindinės veiklos sąnaudomis vienam mokiniui koeficientus, tačiau ir įvertinti jų multikolinearumą (tarpusavio koreliacijos stiprumą), kadangi į regresijos modelį įtraukus stiprią tarpusavio koreliaciją turinčius kintamuosius, gauti regresijos rezultatai gali būti netikslūs arba statistiškai nereikšmingi. Siekiant įvertinti analizuojamų kintamųjų multikolinearumą buvo sukonstruota šių kintamųjų koreliacijų matrica. Iš šios matricos pašalinus aukštus tarpusavio koreliacijos koeficientus (šiuo atveju >0,4 arba <-0,4) turinčius kintamuosius, iš potencialiai į regresiją galimų įtraukti nepriklausomų kintamųjų liko 3, kurie ir buvo įtraukti į regresijos modelį.
B45: 6. | C45: Regresijos parametrai:
C46: R square - Šiuo atveju geriau R kvadratas iki 0,6, nes nereikia modelio, kuris labai tiksliai paaiškintų ir tada jau būtų galima galvoti apie išlaidų mažinimą konkretaus kintamojo, bet dabar pasirinkti objektyvūs kintamieji, todėl ir R kvadratas toks yra pakankamas
C47: p-value- kad reikšmingas statistinis ryšys, p turi būti <0,05, t.y. su 95% tikimybe kintamasis yra statistiškai reikšmingas, o ne atsitiktinis.
C48: standart error - naudinga lyginant kelis modelius, kai Y nekinta, nes standart error priklauso nuo Y dydžio.
C49: t Stat=coeficients/standart error - santykinis dydis, todėl kuo mažesnis, tuo mažesnės paklaidos
C50: lower, upper 95 % - 95% pasikliovimo intervalai, su 95% tikimybe Y bus iš šių intervalų
C51: Coefficients - koeficientai, naudojami regresijos lygčiai sudaryti
AD52: .
C53: Šaltinis
C54: Visi šioje skaičiuoklėje naudojami paaiškinimai ir skaičiai yra paimti iš BGI Consulting parengto dokumento "Profesinio mokymo įstaigų išlaidų peržiūra. Gautinė ataskaita" bei BGI Consulting video mokymų medžiagos. Tačiau skaičiai nebūtinai sutampa su BGI Consulting galutine ataskaita, nes čia naudoti jų surinkti duomenys prieš patikslinimą, naudojant klausimynus.

Sheet 1.Duomenys
A1: 1. Rodiklių atnaujinimas | W1: Pirminio mokymo mokinių skaičius 2019 m. | X1: Pirminio mokymo mokinių skaičius 2019 m. | Y1: Pirminio mokymo mokinių skaičius 2019 m. | Z1: Pirminio mokymo mokinių skaičius 2019 m. | AA1: Pirminio mokymo mokinių skaičius 2019 m. | AB1: Pirminio mokymo mokinių skaičius 2019 m. | AC1: Pirminio mokymo mokinių skaičius 2019 m. | AD1: Pirminio mokymo mokinių skaičius 2019 m. | AE1: Pirminio mokymo mokinių skaičius 2019 m. | AF1: Pirminio mokymo mokinių skaičius 2019 m. | AG1: Pirminio mokymo mokinių skaičius 2019 m. | AH1: Pirminio mokymo mokinių skaičius 2019 m. | AI1: Pirminio mokymo mokinių skaičius 2019 m. | AJ1: Pirminio mokymo mokinių skaičius 2019 m. | AK1: Pirminio mokymo mokinių skaičius 2019 m. | AL1: Tęstinio mokymo mokinių skaičius 2019 m. | AM1: Tęstinio mokymo mokinių skaičius 2019 m. | AN1: Tęstinio mokymo mokinių skaičius 2019 m. | AO1: Tęstinio mokymo mokinių skaičius 2019 m. | AP1: Tęstinio mokymo mokinių skaičius 2019 m. | AQ1: Tęstinio mokymo mokinių skaičius 2019 m. | AR1: Tęstinio mokymo mokinių skaičius 2019 m. | AS1: Tęstinio mokymo mokinių skaičius 2019 m. | AT1: Tęstinio mokymo mokinių skaičius 2019 m. | AU1: Tęstinio mokymo mokinių skaičius 2019 m. | AV1: Tęstinio mokymo mokinių skaičius 2019 m. | AW1: Tęstinio mokymo mokinių skaičius 2019 m. | AX1: Tęstinio mokymo mokinių skaičius 2019 m. | AY1: Tęstinio mokymo mokinių skaičius 2019 m. | AZ1: Tęstinio mokymo mokinių skaičius 2019 m. | BA1: Tęstinio mokymo mokinių skaičius 2019 m. | BB1: Tęstinio mokymo mokinių skaičius 2019 m. | CC1: Pirminio mokymo mokinių skaičiaus dalis 2019 m. nuo bendro mokinių sk. | CD1: Pirminio mokymo mokinių skaičiaus dalis 2019 m. nuo bendro mokinių sk. | CE1: Pirminio mokymo mokinių skaičiaus dalis 2019 m. nuo bendro mokinių sk. | CF1: Pirminio mokymo mokinių skaičiaus dalis 2019 m. nuo bendro mokinių sk. | CG1: Pirminio mokymo mokinių skaičiaus dalis 2019 m. nuo bendro mokinių sk. | CH1: Pirminio mokymo mokinių skaičiaus dalis 2019 m. nuo bendro mokinių sk. | CI1: Pirminio mokymo mokinių skaičiaus dalis 2019 m. nuo bendro mokinių sk. | CJ1: Pirminio mokymo mokinių skaičiaus dalis 2019 m. nuo bendro mokinių sk. | CK1: Pirminio mokymo mokinių skaičiaus dalis 2019 m. nuo bendro mokinių sk. | CL1: Pirminio mokymo mokinių skaičiaus dalis 2019 m. nuo bendro mokinių sk. | CM1: Pirminio mokymo mokinių skaičiaus dalis 2019 m. nuo bendro mokinių sk. | CN1: Pirminio mokymo mokinių skaičiaus dalis 2019 m. nuo bendro mokinių sk. | CO1: Pirminio mokymo mokinių skaičiaus dalis 2019 m. nuo bendro mokinių sk. | CP1: Pirminio mokymo mokinių skaičiaus dalis 2019 m. nuo bendro mokinių sk. | CQ1: Pirminio mokymo mokinių skaičiaus dalis 2019 m. nuo bendro mokinių sk. | CR1: Tęstinio mokymo mokinių skaičiaus dalis 2019 m. nuo bendro mokinių sk. | CS1: Tęstinio mokymo mokinių skaičiaus dalis 2019 m. nuo bendro mokinių sk. | CT1: Tęstinio mokymo mokinių skaičiaus dalis 2019 m. nuo bendro mokinių sk. | CU1: Tęstinio mokymo mokinių skaičiaus dalis 2019 m. nuo bendro mokinių sk. | CV1: Tęstinio mokymo mokinių skaičiaus dalis 2019 m. nuo bendro mokinių sk. | CW1: Tęstinio mokymo mokinių skaičiaus dalis 2019 m. nuo bendro mokinių sk. | CX1: Tęstinio mokymo mokinių skaičiaus dalis 2019 m. nuo bendro mokinių sk. | CY1: Tęstinio mokymo mokinių skaičiaus dalis 2019 m. nuo bendro mokinių sk. | CZ1: Tęstinio mokymo mokinių skaičiaus dalis 2019 m. nuo bendro mokinių sk. | DA1: Tęstinio mokymo mokinių skaičiaus dalis 2019 m. nuo bendro mokinių sk. | DB1: Tęstinio mokymo mokinių skaičiaus dalis 2019 m. nuo bendro mokinių sk. | DC1: Tęstinio mokymo mokinių skaičiaus dalis 2019 m. nuo bendro mokinių sk. | DD1: Tęstinio mokymo mokinių skaičiaus dalis 2019 m. nuo bendro mokinių sk. | DE1: Tęstinio mokymo mokinių skaičiaus dalis 2019 m. nuo bendro mokinių sk. | DF1: Tęstinio mokymo mokinių skaičiaus dalis 2019 m. nuo bendro mokinių sk. | DG1: Tęstinio mokymo mokinių skaičiaus dalis 2019 m. nuo bendro mokinių sk. | DH1: Tęstinio mokymo mokinių skaičiaus dalis 2019 m. nuo bendro mokinių sk.
W2: 2 | X2: 2 | Y2: 2 | Z2: 2 | AA2: 2 | AB2: 3 | AC2: 3 | AD2: 3 | AE2: 3 | AF2: 3 | AG2: 3 | AH2: 3 | AI2: 4 | AJ2: 4 | AK2: 4 | CC2: 2 | CD2: 2 | CE2: 2 | CF2: 2 | CG2: 2 | CH2: 3 | CI2: 3 | CJ2: 3 | CK2: 3 | CL2: 3 | CM2: 3 | CN2: 3 | CO2: 4 | CP2: 4 | CQ2: 4
W3: Pirminio profesinio mokymo programos, skirtos asmenims, neturintiems pagrindinio išsilavinimo | X3: Pirminio profesinio mokymo programos, skirtos asmenims, neturintiems pagrindinio išsilavinimo, bet suteikiančios galimybę jį įgyti | Y3: Pirminio profesinio mokymo programos, skirtos asmenims, neturintiems pagrindinio išsilavinimo, bet suteikiančios galimybę jį įgyti | Z3: Pirminio profesinio mokymo programos, skirtos specialiųjų poreikių asmenims, neturintiems pagrindinio išsilavinimo | AA3: Pirminio profesinio mokymo programos, skirtos specialiųjų poreikių asmenims, neturintiems pagrindinio išsilavinimo | AB3: Pirminio profesinio mokymo programos, skirtos asmenims, turintiems pagrindinį išsilavinimą | AC3: Pirminio profesinio mokymo programos, skirtos asmenims, turintiems pagrindinį išsilavinimą | AD3: Pirminio profesinio modulinės mokymo programos, skirtos asmenims, turintiems pagrindinį išsilavinimą, ir suteikiančios galimybę įgyti vidurinį išsilavinimą | AE3: Pirminio profesinio modulinės mokymo programos, skirtos asmenims, turintiems pagrindinį išsilavinimą, ir suteikiančios galimybę įgyti vidurinį išsilavinimą | AF3: Pirminio profesinio modulinės mokymo programos, skirtos asmenims, turintiems pagrindinį išsilavinimą, ir suteikiančios galimybę įgyti vidurinį išsilavinimą | AG3: Pirminio profesinio mokymo programos, skirtos specialiųjų poreikių asmenims, turintiems pagrindinį išsilavinimą | AH3: Pirminio profesinio mokymo programos, skirtos specialiųjų poreikių asmenims, turintiems pagrindinį išsilavinimą ir suteikiančios galimybę įgyti vidurinį išsilavinimą | AI3: Pirminio profesinio mokymo programos, skirtos asmenims, turintiems vidurinį išsilavinimą | AJ3: Pirminio profesinio mokymo programos, skirtos asmenims, turintiems vidurinį išsilavinimą | AK3: Pirminio profesinio mokymo programos, skirtos specialiųjų poreikių asmenims, turintiems vidurinį išsilavinimą | AL3: Tęstinio profesinio mokymo programos suaugusiems asmenims, turintiems vidurinį išsilavinimą, skirtos profesinei kvalifikacijai įgyti per ilgesnį nei trijų mėnesių laikotarpį | AM3: Tęstinio profesinio mokymo programos suaugusiems asmenims, turintiems pradinį išsilavinimą, skirtos profesinei kvalifikacijai arba teisei atlikti darbą ar funkciją įgyti per trumpesnį nei trijų mėnesių laikotarpį | AN3: Tęstinio profesinio mokymo programos suaugusiems asmenims, turintiems pagrindinį išsilavinimą, skirtos profesinei kvalifikacijai įgyti per ilgesnį nei trijų mėnesių laikotarpį | AO3: Tęstinio profesinio mokymo programos suaugusiems asmenims, turintiems aukštesnįjį išsilavinimą, skirtos teisei atlikti darbą ar funkciją įgyti | AP3: Tęstinio profesinio mokymo programos suaugusiems specialiųjų poreikių asmenims, turintiems pagrindinį išsilavinimą, skirtos profesinei kvalifikacijai įgyti | AQ3: Tęstinio profesinio mokymo programos suaugusiems asmenims, turintiems vidurinį išsilavinimą, skirtos teisei atlikti darbą ar funkciją įgyti | AR3: Tęstinio profesinio mokymo programos suaugusiems asmenims, turintiems pagrindinį išsilavinimą, skirtos profesinei kvalifikacijai įgyti per trumpesnį nei trijų mėnesių laikotarpį | AS3: Tęstinio profesinio mokymo programos suaugusiems asmenims, turintiems pagrindinį išsilavinimą, skirtos teisei atlikti darbą ar funkciją įgyti | AT3: Tęstinio profesinio mokymo programos suaugusiems asmenims, turintiems vidurinį išsilavinimą, skirtos profesinei kvalifikacijai įgyti per trumpesnį nei trijų mėnesių laikotarpį | AU3: Tęstinio profesinio mokymo programos suaugusiems asmenims, turintiems pradinį išsilavinimą, skirtos profesinei kvalifikacijai įgyti per ilgesnį nei trijų mėnesių laikotarpį | AV3: Tęstinio profesinio mokymo programos suaugusiems specialiųjų poreikių asmenims, turintiems vidurinį išsilavinimą, skirtos profesinei kvalifikacijai įgyti | AW3: Tęstinio profesinio mokymo programos suaugusiems asmenims, turintiems pagrindinį išsilavinimą, skirtos papildomai profesinei kvalifikacijai įgyti | AX3: Tęstinio profesinio mokymo programos suaugusiems specialiųjų poreikių asmenims, turintiems pradinį išsilavinimą, skirtos profesinei kvalifikacijai įgyti | AY3: Tęstinio profesinio mokymo programos suaugusiems asmenims, turintiems vidurinį išsilavinimą, skirtos papildomai profesinei kvalifikacijai įgyti | AZ3: Tęstinio profesinio modulinės mokymo programos, skirtos asmenims, turintiems vidurinį išsilavinimą | BA3: Tęstinio profesinio modulinės mokymo programos, skirtos asmenims, turintiems pagrindinį išsilavinimą | BB3: Tęstinio profesinio modulinės mokymo programos, skirtos asmenims, neturintiems pagrindinio išsilavinimo, bet suteikiančios galimybę jį įgyti | CC3: Pirminio profesinio mokymo programos, skirtos asmenims, neturintiems pagrindinio išsilavinimo | CD3: Pirminio profesinio mokymo programos, skirtos asmenims, neturintiems pagrindinio išsilavinimo, bet suteikiančios galimybę jį įgyti | CE3: Pirminio profesinio mokymo programos, skirtos asmenims, neturintiems pagrindinio išsilavinimo, bet suteikiančios galimybę jį įgyti | CF3: Pirminio profesinio mokymo programos, skirtos specialiųjų poreikių asmenims, neturintiems pagrindinio išsilavinimo | CG3: Pirminio profesinio mokymo programos, skirtos specialiųjų poreikių asmenims, neturintiems pagrindinio išsilavinimo | CH3: Pirminio profesinio mokymo programos, skirtos asmenims, turintiems pagrindinį išsilavinimą | CI3: Pirminio profesinio mokymo programos, skirtos asmenims, turintiems pagrindinį išsilavinimą | CJ3: Pirminio profesinio modulinės mokymo programos, skirtos asmenims, turintiems pagrindinį išsilavinimą, ir suteikiančios galimybę įgyti vidurinį išsilavinimą | CK3: Pirminio profesinio modulinės mokymo programos, skirtos asmenims, turintiems pagrindinį išsilavinimą, ir suteikiančios galimybę įgyti vidurinį išsilavinimą | CL3: Pirminio profesinio modulinės mokymo programos, skirtos asmenims, turintiems pagrindinį išsilavinimą, ir suteikiančios galimybę įgyti vidurinį išsilavinimą | CM3: Pirminio profesinio mokymo programos, skirtos specialiųjų poreikių asmenims, turintiems pagrindinį išsilavinimą | CN3: Pirminio profesinio mokymo programos, skirtos specialiųjų poreikių asmenims, turintiems pagrindinį išsilavinimą ir suteikiančios galimybę įgyti vidurinį išsilavinimą | CO3: Pirminio profesinio mokymo programos, skirtos asmenims, turintiems vidurinį išsilavinimą | CP3: Pirminio profesinio mokymo programos, skirtos asmenims, turintiems vidurinį išsilavinimą | CQ3: Pirminio profesinio mokymo programos, skirtos specialiųjų poreikių asmenims, turintiems vidurinį išsilavinimą | CR3: Tęstinio profesinio mokymo programos suaugusiems asmenims, turintiems vidurinį išsilavinimą, skirtos profesinei kvalifikacijai įgyti per ilgesnį nei trijų mėnesių laikotarpį | CS3: Tęstinio profesinio mokymo programos suaugusiems asmenims, turintiems pradinį išsilavinimą, skirtos profesinei kvalifikacijai arba teisei atlikti darbą ar funkciją įgyti per trumpesnį nei trijų mėnesių laikotarpį | CT3: Tęstinio profesinio mokymo programos suaugusiems asmenims, turintiems pagrindinį išsilavinimą, skirtos profesinei kvalifikacijai įgyti per ilgesnį nei trijų mėnesių laikotarpį | CU3: Tęstinio profesinio mokymo programos suaugusiems asmenims, turintiems aukštesnįjį išsilavinimą, skirtos teisei atlikti darbą ar funkciją įgyti | CV3: Tęstinio profesinio mokymo programos suaugusiems specialiųjų poreikių asmenims, turintiems pagrindinį išsilavinimą, skirtos profesinei kvalifikacijai įgyti | CW3: Tęstinio profesinio mokymo programos suaugusiems asmenims, turintiems vidurinį išsilavinimą, skirtos teisei atlikti darbą ar funkciją įgyti | CX3: Tęstinio profesinio mokymo programos suaugusiems asmenims, turintiems pagrindinį išsilavinimą, skirtos profesinei kvalifikacijai įgyti per trumpesnį nei trijų mėnesių laikotarpį | CY3: Tęstinio profesinio mokymo programos suaugusiems asmenims, turintiems pagrindinį išsilavinimą, skirtos teisei atlikti darbą ar funkciją įgyti | CZ3: Tęstinio profesinio mokymo programos suaugusiems asmenims, turintiems vidurinį išsilavinimą, skirtos profesinei kvalifikacijai įgyti per trumpesnį nei trijų mėnesių laikotarpį | DA3: Tęstinio profesinio mokymo programos suaugusiems asmenims, turintiems pradinį išsilavinimą, skirtos profesinei kvalifikacijai įgyti per ilgesnį nei trijų mėnesių laikotarpį | DB3: Tęstinio profesinio mokymo programos suaugusiems specialiųjų poreikių asmenims, turintiems vidurinį išsilavinimą, skirtos profesinei kvalifikacijai įgyti | DC3: Tęstinio profesinio mokymo programos suaugusiems asmenims, turintiems pagrindinį išsilavinimą, skirtos papildomai profesinei kvalifikacijai įgyti | DD3: Tęstinio profesinio mokymo programos suaugusiems specialiųjų poreikių asmenims, turintiems pradinį išsilavinimą, skirtos profesinei kvalifikacijai įgyti | DE3: Tęstinio profesinio mokymo programos suaugusiems asmenims, turintiems vidurinį išsilavinimą, skirtos papildomai profesinei kvalifikacijai įgyti | DF3: Tęstinio profesinio modulinės mokymo programos, skirtos asmenims, turintiems vidurinį išsilavinimą | DG3: Tęstinio profesinio modulinės mokymo programos, skirtos asmenims, turintiems pagrindinį išsilavinimą | DH3: Tęstinio profesinio modulinės mokymo programos, skirtos asmenims, neturintiems pagrindinio išsilavinimo, bet suteikiančios galimybę jį įgyti
W4: Profesinio mokymo programos kartu su pagrindinio ugdymo programomis | X4: Profesinio mokymo programos kartu su pagrindinio ugdymo programomis | Y4: Profesinio mokymo programos kartu su pagrindinio ugdymo programomis | Z4: Profesinio mokymo programos kartu su pagrindinio ugdymo programomis | AA4: Profesinio mokymo programos kartu su pagrindinio ugdymo programomis | AB4: Profesinio mokymo programos kartu su vidurinio ugdymo programomis | AC4: Profesinio mokymo programos kartu su vidurinio ugdymo programomis | AD4: Profesinio mokymo programos kartu su vidurinio ugdymo programomis | AE4: Profesinio mokymo programos kartu su vidurinio ugdymo programomis | AF4: Profesinio mokymo programos turint vidurinį išsilavinimą | AG4: Profesinio mokymo programos kartu su vidurinio ugdymo programomis | AH4: Profesinio mokymo programos kartu su vidurinio ugdymo programomis | AI4: Profesinio mokymo programos turint vidurinį išsilavinimą | AJ4: Profesinio mokymo programos kartu su vidurinio ugdymo programomis | AK4: Profesinio mokymo programos turint vidurinį išsilavinimą | BC4: Pirminio mokymo mokinių skaičius pagal specialybes 2019 m. | BD4: Pirminio mokymo mokinių skaičius pagal specialybes 2019 m. | BE4: Pirminio mokymo mokinių skaičius pagal specialybes 2019 m. | BF4: Pirminio mokymo mokinių skaičius pagal specialybes 2019 m. | BG4: Pirminio mokymo mokinių skaičius pagal specialybes 2019 m. | BH4: Pirminio mokymo mokinių skaičius pagal specialybes 2019 m. | BI4: Pirminio mokymo mokinių skaičius pagal specialybes 2019 m. | BJ4: Pirminio mokymo mokinių skaičius pagal specialybes 2019 m. | BK4: Pirminio mokymo mokinių skaičius pagal specialybes 2019 m. | BL4: Pirminio mokymo mokinių skaičius pagal specialybes 2019 m. | BM4: Pirminio mokymo mokinių skaičius pagal specialybes 2019 m. | BN4: Pirminio mokymo mokinių skaičius pagal specialybes 2019 m. | BO4: Pirminio mokymo mokinių skaičius pagal specialybes 2019 m. | BP4: Tęstinio mokymo mokinių skaičius pagal specialybes 2019 m. | BQ4: Tęstinio mokymo mokinių skaičius pagal specialybes 2019 m. | BR4: Tęstinio mokymo mokinių skaičius pagal specialybes 2019 m. | BS4: Tęstinio mokymo mokinių skaičius pagal specialybes 2019 m. | BT4: Tęstinio mokymo mokinių skaičius pagal specialybes 2019 m. | BU4: Tęstinio mokymo mokinių skaičius pagal specialybes 2019 m. | BV4: Tęstinio mokymo mokinių skaičius pagal specialybes 2019 m. | BW4: Tęstinio mokymo mokinių skaičius pagal specialybes 2019 m. | BX4: Tęstinio mokymo mokinių skaičius pagal specialybes 2019 m. | BY4: Tęstinio mokymo mokinių skaičius pagal specialybes 2019 m. | BZ4: Tęstinio mokymo mokinių skaičius pagal specialybes 2019 m. | CA4: Tęstinio mokymo mokinių skaičius pagal specialybes 2019 m. | CB4: Tęstinio mokymo mokinių skaičius pagal specialybes 2019 m. | CC4: Profesinio mokymo programos kartu su pagrindinio ugdymo programomis | CD4: Profesinio mokymo programos kartu su pagrindinio ugdymo programomis | CE4: Profesinio mokymo programos kartu su pagrindinio ugdymo programomis | CF4: Profesinio mokymo programos kartu su pagrindinio ugdymo programomis | CG4: Profesinio mokymo programos kartu su pagrindinio ugdymo programomis | CH4: Profesinio mokymo programos kartu su vidurinio ugdymo programomis | CI4: Profesinio mokymo programos kartu su vidurinio ugdymo programomis | CJ4: Profesinio mokymo programos kartu su vidurinio ugdymo programomis | CK4: Profesinio mokymo programos kartu su vidurinio ugdymo programomis | CL4: Profesinio mokymo programos turint vidurinį išsilavinimą | CM4: Profesinio mokymo programos kartu su vidurinio ugdymo programomis | CN4: Profesinio mokymo programos kartu su vidurinio ugdymo programomis | CO4: Profesinio mokymo programos turint vidurinį išsilavinimą | CP4: Profesinio mokymo programos kartu su vidurinio ugdymo programomis | CQ4: Profesinio mokymo programos turint vidurinį išsilavinimą | DI4: Pirminio mokymo mokinių skaičiaus dalis bendrame mokinių sk. pagal specialybes 2019 m. | DJ4: Pirminio mokymo mokinių skaičiaus dalis bendrame mokinių sk. pagal specialybes 2019 m. | DK4: Pirminio mokymo mokinių skaičiaus dalis bendrame mokinių sk. pagal specialybes 2019 m. | DL4: Pirminio mokymo mokinių skaičiaus dalis bendrame mokinių sk. pagal specialybes 2019 m. | DM4: Pirminio mokymo mokinių skaičiaus dalis bendrame mokinių sk. pagal specialybes 2019 m. | DN4: Pirminio mokymo mokinių skaičiaus dalis bendrame mokinių sk. pagal specialybes 2019 m. | DO4: Pirminio mokymo mokinių skaičiaus dalis bendrame mokinių sk. pagal specialybes 2019 m. | DP4: Pirminio mokymo mokinių skaičiaus dalis bendrame mokinių sk. pagal specialybes 2019 m. | DQ4: Pirminio mokymo mokinių skaičiaus dalis bendrame mokinių sk. pagal specialybes 2019 m. | DR4: Pirminio mokymo mokinių skaičiaus dalis bendrame mokinių sk. pagal specialybes 2019 m. | DS4: Pirminio mokymo mokinių skaičiaus dalis bendrame mokinių sk. pagal specialybes 2019 m. | DT4: Pirminio mokymo mokinių skaičiaus dalis bendrame mokinių sk. pagal specialybes 2019 m. | DU4: Pirminio mokymo mokinių skaičiaus dalis bendrame mokinių sk. pagal specialybes 2019 m. | DV4: Tęstinio mokymo mokinių skaičiaus dalis bendrame mokinių sk. pagal specialybes 2019 m. | DW4: Tęstinio mokymo mokinių skaičiaus dalis bendrame mokinių sk. pagal specialybes 2019 m. | DX4: Tęstinio mokymo mokinių skaičiaus dalis bendrame mokinių sk. pagal specialybes 2019 m. | DY4: Tęstinio mokymo mokinių skaičiaus dalis bendrame mokinių sk. pagal specialybes 2019 m. | DZ4: Tęstinio mokymo mokinių skaičiaus dalis bendrame mokinių sk. pagal specialybes 2019 m. | EA4: Tęstinio mokymo mokinių skaičiaus dalis bendrame mokinių sk. pagal specialybes 2019 m. | EB4: Tęstinio mokymo mokinių skaičiaus dalis bendrame mokinių sk. pagal specialybes 2019 m. | EC4: Tęstinio mokymo mokinių skaičiaus dalis bendrame mokinių sk. pagal specialybes 2019 m. | ED4: Tęstinio mokymo mokinių skaičiaus dalis bendrame mokinių sk. pagal specialybes 2019 m. | EE4: Tęstinio mokymo mokinių skaičiaus dalis bendrame mokinių sk. pagal specialybes 2019 m. | EF4: Tęstinio mokymo mokinių skaičiaus dalis bendrame mokinių sk. pagal specialybes 2019 m. | EG4: Tęstinio mokymo mokinių skaičiaus dalis bendrame mokinių sk. pagal specialybes 2019 m. | EH4: Tęstinio mokymo mokinių skaičiaus dalis bendrame mokinių sk. pagal specialybes 2019 m.
C5: Pagrindinės veiklos sąnaudos 1-m mokiniui | D5: Pagrindinės veiklos sąnaudos | E5: Bendras paslaugos gavėjų skaičius (mokinių skaičius (pirminis + tęstinis)) | F5: Mokinių skaičius (pirminio mokymo) | G5: Be spec poreikių mok skaičius (pirminio) | H5: Mokinių skaičius tęstinio mokymo) | I5: Mokinių skaičius su spec. poreikiais | J5: Mokinių skaičius su spec, poreikiais [dideli ir labai dideli] | K5: Pirminio mokymo (ISCED 2) mokinių skaičius | L5: Pirminio mokymo (ISCED 3) mokinių skaičius | M5: Pirminio mokymo (ISCED 4) mokinių skaičius | N5: Mokinių skaičiaus dalis (pirminio mokymo) bendrame mokinių skaičiuje | O5: Be spec poreikių mok skaičiaus dalis (pirminio) bendrame mokinių sk. | P5: Mokinių skaičiaus dalis (tęstinio mokymo) bendrame mokinių sk. | Q5: Mokinių skaičiaus su spec. poreikiais dalis bendrame mokinių sk. | R5: Mokinių skaičius su spec. poreikiais dalis [dideli ir labai dideli] bendrame mokinių sk. | S5: Pirminio mokymo mokinių su spec. poreikiais dalis | T5: Pirminio mokymo (ISCED 2) mokinių skaičiaus dalis bendrame mokinių sk. | U5: Pirminio mokymo (ISCED 3) mokinių skaičiaus dalis bendrame mokinių sk. | V5: Pirminio mokymo (ISCED 4) mokinių skaičiaus dalis bendrame mokinių sk. | W5: Profesinio mokymo programos, neįgyjant pagrindinio išsilavinimo | X5: Profesinio mokymo programos kartu su pagrindinio ugdymo programomis | Y5: Profesinio mokymo programos, neįgyjant pagrindinio išsilavinimo | Z5: Profesinio mokymo programos, neįgyjant pagrindinio išsilavinimo | AA5: Profesinio mokymo programos kartu su pagrindinio ugdymo individualizuotomis programomis | AB5: Profesinio mokymo programos kartu su vidurinio ugdymo programomis | AC5: Profesinio mokymo programos, neįgyjant vidurinio išsilavinimo | AD5: Profesinio mokymo programos kartu su vidurinio ugdymo programomis | AE5: Profesinio mokymo programos, neįgyjant vidurinio išsilavinimo | AF5: Profesinio mokymo programos turint vidurinį išsilavinimą | AG5: Profesinio mokymo programos kartu su socialinių įgūdžių ugdymo programomis | AH5: Profesinio mokymo programos kartu su vidurinio ugdymo programomis | AI5: Profesinio mokymo programos turint vidurinį išsilavinimą | AJ5: Profesinio mokymo programos kartu su vidurinio ugdymo programomis | AK5: Profesinio mokymo programos turint vidurinį išsilavinimą | BC5: Menas | BD5: Paslaugos asmenims | BE5: Verslas ir administravimas | BF5: Žemės ūkis, miškininkystė ir žuvininkystė | BG5: Architektūra ir statyba | BH5: Inžinerija ir inžinerinės profesijos | BI5: Kompiuterija | BJ5: Socialinės paslaugos | BK5: Gamyba ir perdirbimas | BL5: Transporto paslaugos | BM5: Aplinkosauga | BN5: Saugos paslaugos | BO5: Sveikatos priežiūra | BP5: Menas | BQ5: Paslaugos asmenims | BR5: Verslas ir administravimas | BS5: Žemės ūkis, miškininkystė ir žuvininkystė | BT5: Architektūra ir statyba | BU5: Inžinerija ir inžinerinės profesijos | BV5: Kompiuterija | BW5: Socialinės paslaugos | BX5: Gamyba ir perdirbimas | BY5: Transporto paslaugos | BZ5: Aplinkosauga | CA5: Saugos paslaugos | CB5: Sveikatos priežiūra | CC5: Profesinio mokymo programos, neįgyjant pagrindinio išsilavinimo | CD5: Profesinio mokymo programos kartu su pagrindinio ugdymo programomis | CE5: Profesinio mokymo programos, neįgyjant pagrindinio išsilavinimo | CF5: Profesinio mokymo programos, neįgyjant pagrindinio išsilavinimo | CG5: Profesinio mokymo programos kartu su pagrindinio ugdymo individualizuoto-mis programomis | CH5: Profesinio mokymo programos kartu su vidurinio ugdymo programomis | CI5: Profesinio mokymo programos, neįgyjant vidurinio išsilavinimo | CJ5: Profesinio mokymo programos kartu su vidurinio ugdymo programomis | CK5: Profesinio mokymo programos, neįgyjant vidurinio išsilavinimo | CL5: Profesinio mokymo programos turint vidurinį išsilavinimą | CM5: Profesinio mokymo programos kartu su socialinių įgūdžių ugdymo programomis | CN5: Profesinio mokymo programos kartu su vidurinio ugdymo programomis | CO5: Profesinio mokymo programos turint vidurinį išsilavinimą | CP5: Profesinio mokymo programos kartu su vidurinio ugdymo programomis | CQ5: Profesinio mokymo programos turint vidurinį išsilavinimą | DI5: Menas | DJ5: Paslaugos asmenims | DK5: Verslas ir administravimas | DL5: Žemės ūkis, miškininkystė ir žuvininkystė | DM5: Architektūra ir statyba | DN5: Inžinerija ir inžinerinės profesijos | DO5: Kompiuterija | DP5: Socialinės paslaugos | DQ5: Gamyba ir perdirbimas | DR5: Transporto paslaugos | DS5: Aplinkosauga | DT5: Saugos paslaugos | DU5: Sveikatos priežiūra | DV5: Menas | DW5: Paslaugos asmenims | DX5: Verslas ir administravimas | DY5: Žemės ūkis, miškininkystė ir žuvininkystė | DZ5: Architektūra ir statyba | EA5: Inžinerija ir inžinerinės profesijos | EB5: Kompiuterija | EC5: Socialinės paslaugos | ED5: Gamyba ir perdirbimas | EE5: Transporto paslaugos | EF5: Aplinkosauga | EG5: Saugos paslaugos | EH5: Sveikatos priežiūra | EI5: Lėšos skirtos aplinkai (Eur) (ataskaitinių metų planas) | EJ5: Institucijų skaičius (su padaliniais) | EK5: Netuščių padalinių skaičius | EL5: Vietų skaičius mokyklos bendrabučiuose | EM5: Bendras patalpų plotas (kv. m.) | EN5: Mokymo patalpų bendras plotas (kv. m) | EO5: Pedagoginiai darbuotojai | EP5: Administracijos darbuotojai [Direktoriaus pavaduotojas praktiniam mokymui, Direktoriaus pavaduotojas ugdymui, Direktorius, Padalinio, susijusio su ugdymu, vedėjas, Laikinasis direktorius] | EQ5: Kiti administracijos darbuotojai [Vidutinis sąlyginis darbuotojų skaičius] | ER5: Nepedagoginiai darbuotojai, teikiantis sveikatos priežiūrą [Vidutinis sąlyginis darbuotojų skaičius] | ES5: Nepedagoginiai darbuotojai, teikiantys pagalbą (išskyrus mokytojų padėjėjus ir asistentus, darbuotojus teikiančius sveikatos priežiūrą)i [Vidutinis sąlyginis darbuotojų skaičius] | ET5: Pagalbinis personalas [Vidutinis sąlyginis darbuotojų skaičius] | EU5: Lėšos skirtos aplinkai (Eur) (ataskaitinių metų planas) 1-am mokiniui | EV5: Institucijų skaičius (su padaliniais) 1-am mokiniui | EW5: Netuščių padalinių skaičius 1-am mokiniui | EX5: Vietų skaičius mokyklos bendrabučiuose 1-am mokiniui | EY5: Bendras patalpų plotas (kv. m.) 1-am mokiniui | EZ5: Mokymo patalpų bendras plotas (kv. m) 1-am mokiniui | FA5: Pedagoginiai darbuotojai 1-am mokiniui | FB5: Administracijos darbuotojai [Direktoriaus pavaduotojas praktiniam mokymui, Direktoriaus pavaduotojas ugdymui, Direktorius, Padalinio, susijusio su ugdymu, vedėjas, Laikinasis direktorius] 1-am mokiniui | FC5: Kiti administracijos darbuotojai [Vidutinis sąlyginis darbuotojų skaičius] 1-am mokiniui | FD5: Nepedagoginiai darbuotojai, teikiantis sveikatos priežiūrą [Vidutinis sąlyginis darbuotojų skaičius] 1-am mokiniui | FE5: Nepedagoginiai darbuotojai, teikiantys pagalbą (išskyrus mokytojų padėjėjus ir asistentus, darbuotojus teikiančius sveikatos priežiūrą)i [Vidutinis sąlyginis darbuotojų skaičius] 1-am mokiniui | FF5: Pagalbinis personalas [Vidutinis sąlyginis darbuotojų skaičius] 1-am mokiniui | FG5: Mokymo patalpu dalis bendrame patalpu plote | FH5: Pedagoginių darbuotojų dalis bendrame darbuotojų sk. | FI5: Administracijos darbuotojai [Direktoriaus pavaduotojas praktiniam mokymui, Direktoriaus pavaduotojas ugdymui, Direktorius, Padalinio, susijusio su ugdymu, vedėjas, Laikinasis direktorius] dalis bendrame darbuotojų sk. | FJ5: Kiti administracijos darbuotojai [Vidutinis sąlyginis darbuotojų skaičius] dalis bendrame darbuotojų sk. | FK5: Nepedagoginiai darbuotojai, teikiantis sveikatos priežiūrą [Vidutinis sąlyginis darbuotojų skaičius] dalis bendrame darbuotojų sk. | FL5: Nepedagoginiai darbuotojai, teikiantys pagalbą (išskyrus mokytojų padėjėjus ir asistentus, darbuotojus teikiančius sveikatos priežiūrą)i [Vidutinis sąlyginis darbuotojų skaičius] dalis bendrame darbuotojų sk. | FM5: Pagalbinis personalas [Vidutinis sąlyginis darbuotojų skaičius] dalis bendrame darbuotojų sk.
A6: Kodas | B6: Pavadinimas | C6: Y | D6: X1 | E6: X2 | F6: X3 | G6: X4 | H6: X5 | I6: X6 | J6: X7 | K6: X8 | L6: X9 | M6: X10 | N6: X11 | O6: X12 | P6: X13 | Q6: X14 | R6: X15 | S6: X16 | T6: X17 | U6: X18 | V6: X19 | W6: X20 | X6: X21 | Y6: X22 | Z6: X23 | AA6: X24 | AB6: X25 | AC6: X26 | AD6: X27 | AE6: X28 | AF6: X29 | AG6: X30 | AH6: X31 | AI6: X32 | AJ6: X33 | AK6: X34 | AL6: X35 | AM6: X36 | AN6: X37 | AO6: X38 | AP6: X39 | AQ6: X40 | AR6: X41 | AS6: X42 | AT6: X43 | AU6: X44 | AV6: X45 | AW6: X46 | AX6: X47 | AY6: X48 | AZ6: X49 | BA6: X50 | BB6: X51 | BC6: X52 | BD6: X53 | BE6: X54 | BF6: X55 | BG6: X56 | BH6: X57 | BI6: X58 | BJ6: X59 | BK6: X60 | BL6: X61 | BM6: X62 | BN6: X63 | BO6: X64 | BP6: X65 | BQ6: X66 | BR6: X67 | BS6: X68 | BT6: X69 | BU6: X70 | BV6: X71 | BW6: X72 | BX6: X73 | BY6: X74 | BZ6: X75 | CA6: X76 | CB6: X77 | CC6: X78 | CD6: X79 | CE6: X80 | CF6: X81 | CG6: X82 | CH6: X83 | CI6: X84 | CJ6: X85 | CK6: X86 | CL6: X87 | CM6: X88 | CN6: X89 | CO6: X90 | CP6: X91 | CQ6: X92 | CR6: X93 | CS6: X94 | CT6: X95 | CU6: X96 | CV6: X97 | CW6: X98 | CX6: X99 | CY6: X100 | CZ6: X101 | DA6: X102 | DB6: X103 | DC6: X104 | DD6: X105 | DE6: X106 | DF6: X107 | DG6: X108 | DH6: X109 | DI6: X110 | DJ6: X111 | DK6: X112 | DL6: X113 | DM6: X114 | DN6: X115 | DO6: X116 | DP6: X117 | DQ6: X118 | DR6: X119 | DS6: X120 | DT6: X121 | DU6: X122 | DV6: X123 | DW6: X124 | DX6: X125 | DY6: X126 | DZ6: X127 | EA6: X128 | EB6: X129 | EC6: X130 | ED6: X131 | EE6: X132 | EF6: X133 | EG6: X134 | EH6: X135 | EI6: X136 | EJ6: X137 | EK6: X138 | EL6: X139 | EM6: X140 | EN6: X141 | EO6: X142 | EP6: X143 | EQ6: X144 | ER6: X145 | ES6: X146 | ET6: X147 | EU6: X148 | EV6: X149 | EW6: X150 | EX6: X151 | EY6: X152 | EZ6: X153 | FA6: X154 | FB6: X155 | FC6: X156 | FD6: X157 | FE6: X158 | FF6: X159 | FG6: X160 | FH6: X161 | FI6: X162 | FJ6: X163 | FK6: X164 | FL6: X165 | FM6: X166
A7: 300039337 | B7: Alytaus profesinio rengimo centras | C7: 2130.336802 | D7: 4347564.497 | E7: 2074.166667 | F7: 1154.333333 | G7: 1145 | H7: 650 | I7: 9.333333333 | J7: 0 | K7: 302 | L7: 637 | M7: 215.3333333 | N7: 0.6397561426 | O7: 0.6345834103 | P7: 0.3261347698 | Q7: 0.005172732311 | R7: 0 | S7: 0.009632291518 | T7: 0.1673748384 | U7: 0.3530389802 | V7: 0.119342324 | W7: 192.3333333 | X7: 42.66666667 | Y7: 4 | Z7: 63 | AB7: 40 | AC7: 47 | AD7: 550 | AE7: 0 | AF7: 0 | AG7: 0 | AH7: 0 | AI7: 215.3333333 | AJ7: 0 | AK7: 0 | AL7: 28.66666667 | AM7: 16 | AN7: 153 | AO7: 3.333333333 | AP7: 0 | AQ7: 0 | AR7: 47.33333333 | AS7: 101.3333333 | AT7: 82 | AU7: 0 | AV7: 0 | AW7: 37.33333333 | AX7: 0 | AY7: 0 | AZ7: 112 | BA7: 50.33333333 | BB7: 0 | BC7: 166 | BD7: 292.6666667 | BE7: 22 | BF7: 16.33333333 | BG7: 165.3333333 | BH7: 150.3333333 | BI7: 190.6666667 | BJ7: 32.66666667 | BK7: 85.33333333 | BL7: 15 | BM7: 5.333333333 | BN7: 0 | BO7: 12.66666667 | BP7: 4 | BQ7: 46.66666667 | BR7: 48 | BS7: 40.33333333 | BT7: 18.66666667 | BU7: 107.6666667 | BV7: 0 | BW7: 20.66666667 | BX7: 72 | BY7: 154.6666667 | BZ7: 0 | CA7: 88.66666667 | CB7: 48.66666667 | CC7: 0.1065952337 | CD7: 0.02364677628 | CE7: 0.002216885276 | CF7: 0.0349159431 | CG7: 0 | CH7: 0.02216885276 | CI7: 0.026048402 | CJ7: 0.3048217255 | CK7: 0 | CL7: 0 | CM7: 0 | CN7: 0 | CO7: 0.119342324 | CP7: 0 | CQ7: 0 | CR7: 0.01588767781 | CS7: 0.008867541105 | CT7: 0.08479586181 | CU7: 0.001847404397 | CV7: 0 | CW7: 0 | CX7: 0.02623314243 | CY7: 0.05616109366 | CZ7: 0.04544614816 | DA7: 0 | DB7: 0 | DC7: 0.02069092924 | DD7: 0 | DE7: 0 | DF7: 0.06207278773 | DG7: 0.02789580639 | DH7: 0 | DI7: 0.09200073896 | DJ7: 0.162202106 | DK7: 0.01219286902 | DL7: 0.009052281544 | DM7: 0.09163125808 | DN7: 0.0833179383 | DO7: 0.1056715315 | DP7: 0.01810456309 | DQ7: 0.04729355256 | DR7: 0.008313319786 | DS7: 0.002955847035 | DT7: 0 | DU7: 0.007020136708 | DV7: 0.002216885276 | DW7: 0.02586366156 | DX7: 0.02660262331 | DY7: 0.0223535932 | DZ7: 0.01034546462 | EA7: 0.05967116202 | EB7: 0 | EC7: 0.01145390726 | ED7: 0.03990393497 | EE7: 0.08571956401 | EF7: 0 | EG7: 0.04914095696 | EH7: 0.02697210419 | EI7: 1776781 | EJ7: 5 | EK7: 2 | EL7: 306 | EM7: 32817.56 | EN7: 21328.74 | EO7: 127 | EP7: 8 | EQ7: 30.07 | ER7: 0 | ES7: 0 | ET7: 90 | EU7: 984.7299095 | EV7: 0.002771106595 | EW7: 0.001108442638 | EX7: 0.1695917236 | EY7: 18.18819139 | EZ7: 11.82084242 | FA7: 0.07038610752 | FB7: 0.004433770552 | FC7: 0.01666543506 | FD7: 0 | FE7: 0 | FF7: 0.04987991871 | FG7: 0.6499185192 | FH7: 0.4979025366 | FI7: 0.03136393931 | FJ7: 0.1178892069 | FK7: 0 | FL7: 0 | FM7: 0.3528443172
A8: 190961010 | B8: Viešoji įstaiga Daugų technologijos ir verslo mokykla | C8: 2965.24826 | D8: 895965.0475 | E8: 308.5833333 | F8: 202.3333333 | G8: 202.3333333 | H8: 79 | I8: 0 | J8: 0 | K8: 0 | L8: 95 | M8: 107.3333333 | N8: 0.7191943128 | O8: 0.7191943128 | P8: 0.08271582522 | Q8: 0 | R8: 0 | S8: 0 | T8: 0 | U8: 0.3376777251 | V8: 0.3815165877 | W8: 0 | X8: 0 | Y8: 0 | Z8: 0 | AB8: 32 | AC8: 0 | AD8: 63 | AE8: 0 | AF8: 0 | AG8: 0 | AH8: 0 | AI8: 107.3333333 | AJ8: 0 | AK8: 0 | AL8: 0 | AM8: 0 | AN8: 2 | AO8: 0 | AP8: 0 | AQ8: 0 | AR8: 9.666666667 | AS8: 0 | AT8: 0 | AU8: 0 | AV8: 0 | AW8: 0 | AX8: 0 | AY8: 0 | AZ8: 58.66666667 | BA8: 0 | BB8: 0 | BC8: 0 | BD8: 24 | BE8: 3.333333333 | BF8: 0 | BG8: 32 | BH8: 34.66666667 | BI8: 48.66666667 | BJ8: 15 | BK8: 0 | BL8: 0 | BM8: 18 | BN8: 0 | BO8: 26.66666667 | BP8: 0 | BQ8: 0 | BR8: 7 | BS8: 47.33333333 | BT8: 0 | BU8: 14.33333333 | BV8: 0 | BW8: 10.33333333 | BX8: 0 | BY8: 0 | BZ8: 0 | CA8: 0 | CB8: 0 | CC8: 0 | CD8: 0 | CE8: 0 | CF8: 0 | CG8: 0 | CH8: 0.1137440758 | CI8: 0 | CJ8: 0.2239336493 | CK8: 0 | CL8: 0 | CM8: 0 | CN8: 0 | CO8: 0.3815165877 | CP8: 0 | CQ8: 0 | CR8: 0 | CS8: 0 | CT8: 0.007109004739 | CU8: 0 | CV8: 0 | CW8: 0 | CX8: 0.03436018957 | CY8: 0 | CZ8: 0 | DA8: 0 | DB8: 0 | DC8: 0 | DD8: 0 | DE8: 0 | DF8: 0.2085308057 | DG8: 0 | DH8: 0 | DI8: 0 | DJ8: 0.08530805687 | DK8: 0.01184834123 | DL8: 0 | DM8: 0.1137440758 | DN8: 0.1232227488 | DO8: 0.172985782 | DP8: 0.05331753555 | DQ8: 0 | DR8: 0 | DS8: 0.06398104265 | DT8: 0 | DU8: 0.09478672986 | DV8: 0 | DW8: 0 | DX8: 0.02488151659 | DY8: 0.1682464455 | DZ8: 0 | EA8: 0.0509478673 | EB8: 0 | EC8: 0.03672985782 | ED8: 0 | EE8: 0 | EF8: 0 | EG8: 0 | EH8: 0 | EI8: 845000 | EJ8: 1 | EK8: 1 | EL8: 185 | EM8: 6427.38 | EN8: 2723.53 | EO8: 21 | EP8: 4 | EQ8: 9.84 | ER8: 0 | ES8: 0 | ET8: 30.83 | EU8: 3003.554502 | EV8: 0.00355450237 | EW8: 0.00355450237 | EX8: 0.6575829384 | EY8: 22.84613744 | EZ8: 9.680793839 | FA8: 0.07464454976 | FB8: 0.01421800948 | FC8: 0.03497630332 | FD8: 0 | FE8: 0 | FF8: 0.1095853081 | FG8: 0.4237387551 | FH8: 0.3197807218 | FI8: 0.06091061367 | FJ8: 0.1498401096 | FK8: 0 | FL8: 0 | FM8: 0.4694685549
A9: 302643724 | B9: Biržų technologijų ir verslo mokymo centras | C9: 2422.414976 | D9: 2219351.74 | E9: 942.25 | F9: 627.3333333 | G9: 579 | H9: 134 | I9: 48.33333333 | J9: 0.3333333333 | K9: 39 | L9: 370 | M9: 218.3333333 | N9: 0.8239929947 | O9: 0.7605078809 | P9: 0.2127416995 | Q9: 0.06348511384 | R9: 0.0004378283713 | S9: 0.05313501542 | T9: 0.05122591944 | U9: 0.4859894921 | V9: 0.2867775832 | W9: 0 | X9: 0 | Y9: 0 | Z9: 39 | AB9: 16 | AC9: 0 | AD9: 354 | AE9: 0 | AF9: 0 | AG9: 0 | AH9: 0 | AI9: 218.3333333 | AJ9: 0 | AK9: 0 | AL9: 2.666666667 | AM9: 32.66666667 | AN9: 65.33333333 | AO9: 0 | AP9: 0 | AQ9: 0 | AR9: 34 | AS9: 0 | AT9: 27.33333333 | AU9: 0 | AV9: 0 | AW9: 0 | AX9: 0 | AY9: 0 | AZ9: 11.33333333 | BA9: 0 | BB9: 0 | BC9: 15 | BD9: 76.66666667 | BE9: 26 | BF9: 14.33333333 | BG9: 147 | BH9: 152.3333333 | BI9: 140.6666667 | BJ9: 17.33333333 | BK9: 0 | BL9: 0 | BM9: 0 | BN9: 0 | BO9: 38 | BP9: 0 | BQ9: 14 | BR9: 1.333333333 | BS9: 34 | BT9: 0 | BU9: 11 | BV9: 0 | BW9: 8 | BX9: 8.333333333 | BY9: 57.33333333 | BZ9: 0 | CA9: 0 | CB9: 0 | CC9: 0 | CD9: 0 | CE9: 0 | CF9: 0.05122591944 | CG9: 0 | CH9: 0.02101576182 | CI9: 0 | CJ9: 0.4649737303 | CK9: 0 | CL9: 0 | CM9: 0 | CN9: 0 | CO9: 0.2867775832 | CP9: 0 | CQ9: 0 | CR9: 0.00350262697 | CS9: 0.04290718039 | CT9: 0.08581436077 | CU9: 0 | CV9: 0 | CW9: 0 | CX9: 0.04465849387 | CY9: 0 | CZ9: 0.03590192644 | DA9: 0 | DB9: 0 | DC9: 0 | DD9: 0 | DE9: 0 | DF9: 0.01488616462 | DG9: 0 | DH9: 0 | DI9: 0.01970227671 | DJ9: 0.1007005254 | DK9: 0.03415061296 | DL9: 0.01882661996 | DM9: 0.1930823117 | DN9: 0.2000875657 | DO9: 0.1847635727 | DP9: 0.02276707531 | DQ9: 0 | DR9: 0 | DS9: 0 | DT9: 0 | DU9: 0.04991243433 | DV9: 0 | DW9: 0.01838879159 | DX9: 0.001751313485 | DY9: 0.04465849387 | DZ9: 0 | EA9: 0.01444833625 | EB9: 0 | EC9: 0.01050788091 | ED9: 0.01094570928 | EE9: 0.07530647986 | EF9: 0 | EG9: 0 | EH9: 0 | EI9: 904441.5 | EJ9: 2 | EK9: 2 | EL9: 364 | EM9: 18034 | EN9: 13072 | EO9: 59 | EP9: 4 | EQ9: 17.05 | ER9: 0 | ES9: 5.34 | ET9: 46.7 | EU9: 1187.970447 | EV9: 0.002626970228 | EW9: 0.002626970228 | EX9: 0.4781085814 | EY9: 23.68739054 | EZ9: 17.16987741 | FA9: 0.07749562172 | FB9: 0.005253940455 | FC9: 0.02239492119 | FD9: 0 | FE9: 0.007014010508 | FF9: 0.06133975482 | FG9: 0.7248530553 | FH9: 0.4466651525 | FI9: 0.03028238322 | FJ9: 0.1290786585 | FK9: 0 | FL9: 0.0404269816 | FM9: 0.3535468241
A10: 190976966 | B10: Viešoji įstaiga Elektrėnų profesinio mokymo centras | C10: 2147.158551 | D10: 2236405.047 | E10: 1069.166667 | F10: 759 | G10: 758 | H10: 124 | I10: 1 | J10: 0 | K10: 90.33333333 | L10: 376.6666667 | M10: 292 | N10: 0.8595696489 | O10: 0.8584371461 | P10: 0.06039313885 | Q10: 0.001132502831 | R10: 0 | S10: 0.0003632025816 | T10: 0.1023027558 | U10: 0.4265760664 | V10: 0.3306908267 | W10: 85.66666667 | X10: 0 | Y10: 4.666666667 | Z10: 0 | AB10: 40 | AC10: 15 | AD10: 321.6666667 | AE10: 0 | AF10: 0 | AG10: 0 | AH10: 0 | AI10: 292 | AJ10: 0 | AK10: 0 | AL10: 7.333333333 | AM10: 0 | AN10: 9.333333333 | AO10: 0 | AP10: 0 | AQ10: 0 | AR10: 0 | AS10: 0 | AT10: 0 | AU10: 0 | AV10: 0 | AW10: 0 | AX10: 0.6666666667 | AY10: 0 | AZ10: 65.66666667 | BA10: 0.6666666667 | BB10: 0.3333333333 | BC10: 107 | BD10: 114.3333333 | BE10: 58.33333333 | BF10: 15.66666667 | BG10: 207.3333333 | BH10: 88.33333333 | BI10: 133 | BJ10: 19.66666667 | BK10: 5 | BL10: 0 | BM10: 0 | BN10: 0 | BO10: 10.33333333 | BP10: 20 | BQ10: 14 | BR10: 18.66666667 | BS10: 0 | BT10: 1.333333333 | BU10: 42.66666667 | BV10: 9.666666667 | BW10: 7.333333333 | BX10: 5.333333333 | BY10: 5 | BZ10: 0 | CA10: 0 | CB10: 0 | CC10: 0.09701774254 | CD10: 0 | CE10: 0.005285013213 | CF10: 0 | CG10: 0 | CH10: 0.04530011325 | CI10: 0.01698754247 | CJ10: 0.3642884107 | CK10: 0 | CL10: 0 | CM10: 0 | CN10: 0 | CO10: 0.3306908267 | CP10: 0 | CQ10: 0 | CR10: 0.008305020763 | CS10: 0 | CT10: 0.01057002643 | CU10: 0 | CV10: 0 | CW10: 0 | CX10: 0 | CY10: 0 | CZ10: 0 | DA10: 0 | DB10: 0 | DC10: 0 | DD10: 0.0007550018875 | DE10: 0 | DF10: 0.07436768592 | DG10: 0.0007550018875 | DH10: 0.0003775009438 | DI10: 0.1211778029 | DJ10: 0.1294828237 | DK10: 0.06606266516 | DL10: 0.01774254436 | DM10: 0.234805587 | DN10: 0.1000377501 | DO10: 0.1506228766 | DP10: 0.02227255568 | DQ10: 0.005662514156 | DR10: 0 | DS10: 0 | DT10: 0 | DU10: 0.01170252926 | DV10: 0.02265005663 | DW10: 0.01585503964 | DX10: 0.02114005285 | DY10: 0 | DZ10: 0.001510003775 | EA10: 0.0483201208 | EB10: 0.01094752737 | EC10: 0.008305020763 | ED10: 0.0060400151 | EE10: 0.005662514156 | EF10: 0 | EG10: 0 | EH10: 0 | EI10: 425363 | EJ10: 3 | EK10: 3 | EL10: 289 | EM10: 13781.608 | EN10: 7285.828 | EO10: 89 | EP10: 4 | EQ10: 23 | ER10: 0 | ES10: 0 | ET10: 50 | EU10: 481.7248018 | EV10: 0.003397508494 | EW10: 0.003397508494 | EX10: 0.3272933182 | EY10: 15.60771008 | EZ10: 8.251220838 | FA10: 0.100792752 | FB10: 0.004530011325 | FC10: 0.02604756512 | FD10: 0 | FE10: 0 | FF10: 0.05662514156 | FG10: 0.5286631284 | FH10: 0.5361445783 | FI10: 0.02409638554 | FJ10: 0.1385542169 | FK10: 0 | FL10: 0 | FM10: 0.3012048193
A11: 111964563 | B11: Jonavos politechnikos mokykla | C11: 2021.762516 | D11: 1143183.58 | E11: 574.6666667 | F11: 370.6666667 | G11: 370.6666667 | H11: 121 | I11: 0 | J11: 0 | K11: 0 | L11: 198.6666667 | M11: 172 | N11: 0.7538983051 | O11: 0.7538983051 | P11: 0.1749915065 | Q11: 0 | R11: 0 | S11: 0 | T11: 0 | U11: 0.4040677966 | V11: 0.3498305085 | W11: 0 | X11: 0 | Y11: 0 | Z11: 0 | AB11: 0 | AC11: 0 | AD11: 198.6666667 | AE11: 0 | AF11: 0 | AG11: 0 | AH11: 0 | AI11: 172 | AJ11: 0 | AK11: 0 | AL11: 0 | AM11: 10.66666667 | AN11: 38 | AO11: 0 | AP11: 0 | AQ11: 0 | AR11: 0 | AS11: 0 | AT11: 0 | AU11: 0 | AV11: 0 | AW11: 0 | AX11: 0 | AY11: 0 | AZ11: 37.66666667 | BA11: 5.333333333 | BB11: 0 | BC11: 0 | BD11: 98 | BE11: 4 | BF11: 0 | BG11: 120.6666667 | BH11: 51 | BI11: 93.33333333 | BJ11: 0 | BK11: 3.666666667 | BL11: 0 | BM11: 0 | BN11: 0 | BO11: 0 | BP11: 37.33333333 | BQ11: 33.33333333 | BR11: 0 | BS11: 0 | BT11: 0 | BU11: 34.66666667 | BV11: 5 | BW11: 0 | BX11: 10.66666667 | BY11: 0 | BZ11: 0 | CA11: 0 | CB11: 0 | CC11: 0 | CD11: 0 | CE11: 0 | CF11: 0 | CG11: 0 | CH11: 0 | CI11: 0 | CJ11: 0.4040677966 | CK11: 0 | CL11: 0 | CM11: 0 | CN11: 0 | CO11: 0.3498305085 | CP11: 0 | CQ11: 0 | CR11: 0 | CS11: 0.02169491525 | CT11: 0.07728813559 | CU11: 0 | CV11: 0 | CW11: 0 | CX11: 0 | CY11: 0 | CZ11: 0 | DA11: 0 | DB11: 0 | DC11: 0 | DD11: 0 | DE11: 0 | DF11: 0.07661016949 | DG11: 0.01084745763 | DH11: 0 | DI11: 0 | DJ11: 0.1993220339 | DK11: 0.00813559322 | DL11: 0 | DM11: 0.2454237288 | DN11: 0.1037288136 | DO11: 0.1898305085 | DP11: 0 | DQ11: 0.007457627119 | DR11: 0 | DS11: 0 | DT11: 0 | DU11: 0 | DV11: 0.07593220339 | DW11: 0.06779661017 | DX11: 0 | DY11: 0 | DZ11: 0 | EA11: 0.07050847458 | EB11: 0.01016949153 | EC11: 0 | ED11: 0.02169491525 | EE11: 0 | EF11: 0 | EG11: 0 | EH11: 0 | EI11: 834000 | EJ11: 1 | EK11: 1 | EL11: 0 | EM11: 6512.41 | EN11: 5460.63 | EO11: 33 | EP11: 4 | EQ11: 14 | ER11: 0 | ES11: 0 | ET11: 17 | EU11: 1696.271186 | EV11: 0.002033898305 | EW11: 0.002033898305 | EX11: 0 | EY11: 13.24557966 | EZ11: 11.1063661 | FA11: 0.06711864407 | FB11: 0.00813559322 | FC11: 0.02847457627 | FD11: 0 | FE11: 0 | FF11: 0.03457627119 | FG11: 0.8384960406 | FH11: 0.4852941176 | FI11: 0.05882352941 | FJ11: 0.2058823529 | FK11: 0 | FL11: 0 | FM11: 0.25
A12: 190804219 | B12: Joniškio žemės ūkio mokykla | C12: 5038.863812 | D12: 1812325.597 | E12: 378 | F12: 236 | G12: 236 | H12: 76.33333333 | I12: 0 | J12: 0 | K12: 3.333333333 | L12: 228.3333333 | M12: 4.333333333 | N12: 0.7556029883 | O12: 0.7556029883 | P12: 0.2225420481 | Q12: 0 | R12: 0 | S12: 0 | T12: 0.01067235859 | U12: 0.7310565635 | V12: 0.01387406617 | W12: 0 | X12: 0 | Y12: 3.333333333 | Z12: 0 | AB12: 29.33333333 | AC12: 0 | AD12: 199 | AE12: 0 | AF12: 0 | AG12: 0 | AH12: 0 | AI12: 4.333333333 | AJ12: 0 | AK12: 0 | AL12: 0 | AM12: 0 | AN12: 12 | AO12: 0 | AP12: 0 | AQ12: 0 | AR12: 32 | AS12: 0 | AT12: 0 | AU12: 0 | AV12: 0 | AW12: 0 | AX12: 0 | AY12: 0 | AZ12: 11.66666667 | BA12: 0 | BB12: 0 | BC12: 0 | BD12: 45.66666667 | BE12: 31 | BF12: 16.33333333 | BG12: 18.66666667 | BH12: 53.66666667 | BI12: 45.33333333 | BJ12: 8 | BK12: 0 | BL12: 17.33333333 | BM12: 0 | BN12: 0 | BO12: 0 | BP12: 0 | BQ12: 0 | BR12: 14.33333333 | BS12: 41.33333333 | BT12: 0 | BU12: 0 | BV12: 12.66666667 | BW12: 0 | BX12: 0 | BY12: 8 | BZ12: 0 | CA12: 0 | CB12: 0 | CC12: 0 | CD12: 0 | CE12: 0.01067235859 | CF12: 0 | CG12: 0 | CH12: 0.0939167556 | CI12: 0 | CJ12: 0.6371398079 | CK12: 0 | CL12: 0 | CM12: 0 | CN12: 0 | CO12: 0.01387406617 | CP12: 0 | CQ12: 0 | CR12: 0 | CS12: 0 | CT12: 0.03842049093 | CU12: 0 | CV12: 0 | CW12: 0 | CX12: 0.1024546425 | CY12: 0 | CZ12: 0 | DA12: 0 | DB12: 0 | DC12: 0 | DD12: 0 | DE12: 0 | DF12: 0.03735325507 | DG12: 0 | DH12: 0 | DI12: 0 | DJ12: 0.1462113127 | DK12: 0.0992529349 | DL12: 0.0522945571 | DM12: 0.05976520811 | DN12: 0.1718249733 | DO12: 0.1451440768 | DP12: 0.02561366062 | DQ12: 0 | DR12: 0.05549626467 | DS12: 0 | DT12: 0 | DU12: 0 | DV12: 0 | DW12: 0 | DX12: 0.04589114194 | DY12: 0.1323372465 | DZ12: 0 | EA12: 0 | EB12: 0.04055496265 | EC12: 0 | ED12: 0 | EE12: 0.02561366062 | EF12: 0 | EG12: 0 | EH12: 0 | EI12: 101000 | EJ12: 3 | EK12: 2 | EL12: 540 | EM12: 29782.14 | EN12: 10385.48 | EO12: 45 | EP12: 3 | EQ12: 26 | ER12: 0.3 | ES12: 4 | ET12: 63 | EU12: 323.3724653 | EV12: 0.009605122732 | EW12: 0.006403415155 | EX12: 1.728922092 | EY12: 95.35370331 | EZ12: 33.25127001 | FA12: 0.144076841 | FB12: 0.009605122732 | FC12: 0.08324439701 | FD12: 0.0009605122732 | FE12: 0.01280683031 | FF12: 0.2017075774 | FG12: 0.3487150353 | FH12: 0.3184713376 | FI12: 0.02123142251 | FJ12: 0.1840056617 | FK12: 0.002123142251 | FL12: 0.02830856334 | FM12: 0.4458598726
A13: 191425670 | B13: Smalininkų technologijų ir verslo mokykla | C13: 2983.985183 | D13: 1342106.397 | E13: 462.5833333 | F13: 231 | G13: 228 | H13: 138.6666667 | I13: 3 | J13: 3 | K13: 3 | L13: 136 | M13: 92 | N13: 0.6248872858 | O13: 0.6167718665 | P13: 0.2596477919 | Q13: 0.008115419297 | R13: 0.008115419297 | S13: 0.02234546285 | T13: 0.008115419297 | U13: 0.3678990081 | V13: 0.2488728584 | W13: 0 | X13: 0 | Y13: 3 | Z13: 0 | AB13: 0 | AC13: 9.333333333 | AD13: 126.6666667 | AE13: 0 | AF13: 0 | AG13: 0 | AH13: 0 | AI13: 92 | AJ13: 0 | AK13: 0 | AL13: 4 | AM13: 0 | AN13: 58.66666667 | AO13: 0 | AP13: 0 | AQ13: 0 | AR13: 3.333333333 | AS13: 11.33333333 | AT13: 0 | AU13: 0.6666666667 | AV13: 0 | AW13: 0.6666666667 | AX13: 0 | AY13: 0 | AZ13: 26.66666667 | BA13: 10 | BB13: 0 | BC13: 26 | BD13: 31 | BE13: 8.333333333 | BF13: 0 | BG13: 53.33333333 | BH13: 24 | BI13: 70.66666667 | BJ13: 5 | BK13: 2 | BL13: 3.333333333 | BM13: 0 | BN13: 0 | BO13: 7.333333333 | BP13: 0 | BQ13: 10 | BR13: 23.66666667 | BS13: 2.666666667 | BT13: 0 | BU13: 17 | BV13: 0 | BW13: 8 | BX13: 20.66666667 | BY13: 56.66666667 | BZ13: 0 | CA13: 0 | CB13: 0 | CC13: 0 | CD13: 0 | CE13: 0.008115419297 | CF13: 0 | CG13: 0 | CH13: 0 | CI13: 0.02524797115 | CJ13: 0.342651037 | CK13: 0 | CL13: 0 | CM13: 0 | CN13: 0 | CO13: 0.2488728584 | CP13: 0 | CQ13: 0 | CR13: 0.01082055906 | CS13: 0 | CT13: 0.1587015329 | CU13: 0 | CV13: 0 | CW13: 0 | CX13: 0.009017132552 | CY13: 0.03065825068 | CZ13: 0 | DA13: 0.00180342651 | DB13: 0 | DC13: 0.00180342651 | DD13: 0 | DE13: 0 | DF13: 0.07213706041 | DG13: 0.02705139766 | DH13: 0 | DI13: 0.0703336339 | DJ13: 0.08385933273 | DK13: 0.02254283138 | DL13: 0 | DM13: 0.1442741208 | DN13: 0.06492335437 | DO13: 0.1911632101 | DP13: 0.01352569883 | DQ13: 0.005410279531 | DR13: 0.009017132552 | DS13: 0 | DT13: 0 | DU13: 0.01983769161 | DV13: 0 | DW13: 0.02705139766 | DX13: 0.06402164112 | DY13: 0.007213706041 | DZ13: 0 | EA13: 0.04598737601 | EB13: 0 | EC13: 0.02164111812 | ED13: 0.05590622182 | EE13: 0.1532912534 | EF13: 0 | EG13: 0 | EH13: 0 | EI13: 775800 | EJ13: 2 | EK13: 1 | EL13: 386 | EM13: 26290 | EN13: 12502 | EO13: 49 | EP13: 5 | EQ13: 14.8478 | ER13: 0 | ES13: 1.9172 | ET13: 24.3408 | EU13: 2098.64743 | EV13: 0.005410279531 | EW13: 0.002705139766 | EX13: 1.04418395 | EY13: 71.11812444 | EZ13: 33.81965735 | FA13: 0.1325518485 | FB13: 0.01352569883 | FC13: 0.04016537421 | FD13: 0 | FE13: 0.005186293959 | FF13: 0.06584526601 | FG13: 0.4755420312 | FH13: 0.5152156861 | FI13: 0.05257302919 | FJ13: 0.1561187646 | FK13: 0 | FL13: 0.02015860231 | FM13: 0.2559339178
A14: 190804361 | B14: Kaišiadorių technologijų ir verslo mokykla | C14: 1532.777703 | D14: 1051560.39 | E14: 692 | F14: 294.3333333 | G14: 294.3333333 | H14: 340.3333333 | I14: 0 | J14: 0 | K14: 120.3333333 | L14: 140.3333333 | M14: 33.66666667 | N14: 0.4637605042 | O14: 0.4637605042 | P14: 0.4316351792 | Q14: 0 | R14: 0 | S14: 0 | T14: 0.1896008403 | U14: 0.2211134454 | V14: 0.05304621849 | W14: 120.3333333 | X14: 0 | Y14: 0 | Z14: 0 | AB14: 26 | AC14: 0 | AD14: 114.3333333 | AE14: 0 | AF14: 0 | AG14: 0 | AH14: 0 | AI14: 33.66666667 | AJ14: 0 | AK14: 0 | AL14: 0 | AM14: 0 | AN14: 171 | AO14: 0 | AP14: 0 | AQ14: 0 | AR14: 37.66666667 | AS14: 0 | AT14: 0 | AU14: 0 | AV14: 0 | AW14: 0 | AX14: 0 | AY14: 0 | AZ14: 35.33333333 | BA14: 0.6666666667 | BB14: 1.666666667 | BC14: 32.66666667 | BD14: 90.66666667 | BE14: 12.33333333 | BF14: 19.66666667 | BG14: 39.33333333 | BH14: 55.33333333 | BI14: 21.33333333 | BJ14: 0 | BK14: 8.333333333 | BL14: 14.66666667 | BM14: 0 | BN14: 0 | BO14: 0 | BP14: 0 | BQ14: 29 | BR14: 13.33333333 | BS14: 51 | BT14: 15.33333333 | BU14: 12 | BV14: 0 | BW14: 0 | BX14: 10 | BY14: 209.6666667 | BZ14: 0 | CA14: 0 | CB14: 0 | CC14: 0.1896008403 | CD14: 0 | CE14: 0 | CF14: 0 | CG14: 0 | CH14: 0.04096638655 | CI14: 0 | CJ14: 0.1801470588 | CK14: 0 | CL14: 0 | CM14: 0 | CN14: 0 | CO14: 0.05304621849 | CP14: 0 | CQ14: 0 | CR14: 0 | CS14: 0 | CT14: 0.2694327731 | CU14: 0 | CV14: 0 | CW14: 0 | CX14: 0.0593487395 | CY14: 0 | CZ14: 0 | DA14: 0 | DB14: 0 | DC14: 0 | DD14: 0 | DE14: 0 | DF14: 0.05567226891 | DG14: 0.001050420168 | DH14: 0.00262605042 | DI14: 0.05147058824 | DJ14: 0.1428571429 | DK14: 0.01943277311 | DL14: 0.03098739496 | DM14: 0.06197478992 | DN14: 0.08718487395 | DO14: 0.03361344538 | DP14: 0 | DQ14: 0.0131302521 | DR14: 0.0231092437 | DS14: 0 | DT14: 0 | DU14: 0 | DV14: 0 | DW14: 0.04569327731 | DX14: 0.02100840336 | DY14: 0.08035714286 | DZ14: 0.02415966387 | EA14: 0.01890756303 | EB14: 0 | EC14: 0 | ED14: 0.01575630252 | EE14: 0.3303571429 | EF14: 0 | EG14: 0 | EH14: 0 | EI14: 125900 | EJ14: 1 | EK14: 1 | EL14: 100 | EM14: 11217.89 | EN14: 3013.74 | EO14: 33 | EP14: 1 | EQ14: 5.75 | ER14: 0 | ES14: 0 | ET14: 14.6 | EU14: 198.3718487 | EV14: 0.001575630252 | EW14: 0.001575630252 | EX14: 0.1575630252 | EY14: 17.67524685 | EZ14: 4.748539916 | FA14: 0.05199579832 | FB14: 0.001575630252 | FC14: 0.00905987395 | FD14: 0 | FE14: 0 | FF14: 0.02300420168 | FG14: 0.2686548005 | FH14: 0.607175713 | FI14: 0.01839926403 | FJ14: 0.1057957682 | FK14: 0 | FL14: 0 | FM14: 0.2686292548
A15: 111961453 | B15: Karaliaus Mindaugo profesinio mokymo centras | C15: 1982.707339 | D15: 7390964.205 | E15: 3757.166667 | F15: 2691.666667 | G15: 2689.666667 | H15: 450.6666667 | I15: 2 | J15: 1 | K15: 54 | L15: 709.3333333 | M15: 1928.333333 | N15: 0.8565821576 | O15: 0.8559456879 | P15: 0.06637785855 | Q15: 0.0006364697146 | R15: 0.0003182348573 | S15: 0.002322391179 | T15: 0.0171846823 | U15: 0.2257345921 | V15: 0.6136628832 | W15: 54 | X15: 0 | Y15: 0 | Z15: 0 | AB15: 178 | AC15: 13.66666667 | AD15: 512.3333333 | AE15: 0 | AF15: 5.333333333 | AG15: 0 | AH15: 0 | AI15: 1928.333333 | AJ15: 0 | AK15: 0 | AL15: 23.33333333 | AM15: 1.333333333 | AN15: 8.666666667 | AO15: 0 | AP15: 1.333333333 | AQ15: 0 | AR15: 0 | AS15: 0 | AT15: 16.66666667 | AU15: 0 | AV15: 0 | AW15: 0 | AX15: 0 | AY15: 0 | AZ15: 146.6666667 | BA15: 16.66666667 | BB15: 0 | BC15: 129.3333333 | BD15: 646.6666667 | BE15: 174 | BF15: 191.3333333 | BG15: 493.3333333 | BH15: 0 | BI15: 544 | BJ15: 75.33333333 | BK15: 17 | BL15: 14 | BM15: 76 | BN15: 22.33333333 | BO15: 308.3333333 | BP15: 55.33333333 | BQ15: 113.3333333 | BR15: 3.333333333 | BS15: 55 | BT15: 0 | BU15: 0 | BV15: 0 | BW15: 107.3333333 | BX15: 77.33333333 | BY15: 0 | BZ15: 0 | CA15: 0 | CB15: 39 | CC15: 0.0171846823 | CD15: 0 | CE15: 0 | CF15: 0 | CG15: 0 | CH15: 0.0566458046 | CI15: 0.004349209717 | CJ15: 0.1630423252 | CK15: 0 | CL15: 0.001697252572 | CM15: 0 | CN15: 0 | CO15: 0.6136628832 | CP15: 0 | CQ15: 0 | CR15: 0.007425480004 | CS15: 0.0004243131431 | CT15: 0.00275803543 | CU15: 0 | CV15: 0.0004243131431 | CW15: 0 | CX15: 0 | CY15: 0 | CZ15: 0.005303914289 | DA15: 0 | DB15: 0 | DC15: 0 | DD15: 0 | DE15: 0 | DF15: 0.04667444574 | DG15: 0.005303914289 | DH15: 0 | DI15: 0.04115837488 | DJ15: 0.2057918744 | DK15: 0.05537286517 | DL15: 0.06088893603 | DM15: 0.1569958629 | DN15: 0 | DO15: 0.1731197624 | DP15: 0.02397369259 | DQ15: 0.005409992575 | DR15: 0.004455288003 | DS15: 0.02418584916 | DT15: 0.007107245147 | DU15: 0.09812241434 | DV15: 0.01760899544 | DW15: 0.03606661716 | DX15: 0.001060782858 | DY15: 0.01750291715 | DZ15: 0 | EA15: 0 | EB15: 0 | EC15: 0.03415720802 | ED15: 0.0246101623 | EE15: 0 | EF15: 0 | EG15: 0 | EH15: 0.01241115944 | EI15: 1003000 | EJ15: 4 | EK15: 2 | EL15: 264 | EM15: 14433.1 | EN15: 9142.71 | EO15: 229 | EP15: 12 | EQ15: 46 | ER15: 1 | ES15: 0 | ET15: 62 | EU15: 319.1895619 | EV15: 0.001272939429 | EW15: 0.0006364697146 | EX15: 0.08401400233 | EY15: 4.593115519 | EZ15: 2.909529012 | FA15: 0.07287578233 | FB15: 0.003818818288 | FC15: 0.01463880344 | FD15: 0.0003182348573 | FE15: 0 | FF15: 0.01973056115 | FG15: 0.6334543515 | FH15: 0.6542857143 | FI15: 0.03428571429 | FJ15: 0.1314285714 | FK15: 0.002857142857 | FL15: 0 | FM15: 0.1771428571
A16: 111964378 | B16: Kauno buitinių paslaugų ir verslo mokykla | C16: 2484.079182 | D16: 1517211.805 | E16: 646.0833333 | F16: 363 | G16: 363 | H16: 98.33333333 | I16: 0 | J16: 0 | K16: 0 | L16: 125.6666667 | M16: 237.3333333 | N16: 0.786849711 | O16: 0.786849711 | P16: 0.07563841869 | Q16: 0 | R16: 0 | S16: 0 | T16: 0 | U16: 0.2723988439 | V16: 0.5144508671 | W16: 0 | X16: 0 | Y16: 0 | Z16: 0 | AB16: 0 | AC16: 0 | AD16: 125.6666667 | AE16: 0 | AF16: 0 | AG16: 0 | AH16: 0 | AI16: 237.3333333 | AJ16: 0 | AK16: 0 | AL16: 6.666666667 | AM16: 0 | AN16: 0.6666666667 | AO16: 0 | AP16: 0 | AQ16: 0 | AR16: 0 | AS16: 0 | AT16: 0 | AU16: 0 | AV16: 0 | AW16: 2 | AX16: 0 | AY16: 0 | AZ16: 23 | BA16: 0 | BB16: 0 | BC16: 12.33333333 | BD16: 74 | BE16: 48.33333333 | BF16: 0 | BG16: 44 | BH16: 0 | BI16: 117.3333333 | BJ16: 25.66666667 | BK16: 12.66666667 | BL16: 0 | BM16: 0 | BN16: 0 | BO16: 28.66666667 | BP16: 0 | BQ16: 0 | BR16: 0 | BS16: 0 | BT16: 0 | BU16: 0 | BV16: 0 | BW16: 7.333333333 | BX16: 91 | BY16: 0 | BZ16: 0 | CA16: 0 | CB16: 0 | CC16: 0 | CD16: 0 | CE16: 0 | CF16: 0 | CG16: 0 | CH16: 0 | CI16: 0 | CJ16: 0.2723988439 | CK16: 0 | CL16: 0 | CM16: 0 | CN16: 0 | CO16: 0.5144508671 | CP16: 0 | CQ16: 0 | CR16: 0.01445086705 | CS16: 0 | CT16: 0.001445086705 | CU16: 0 | CV16: 0 | CW16: 0 | CX16: 0 | CY16: 0 | CZ16: 0 | DA16: 0 | DB16: 0 | DC16: 0.004335260116 | DD16: 0 | DE16: 0 | DF16: 0.04985549133 | DG16: 0 | DH16: 0 | DI16: 0.02673410405 | DJ16: 0.1604046243 | DK16: 0.1047687861 | DL16: 0 | DM16: 0.09537572254 | DN16: 0 | DO16: 0.2543352601 | DP16: 0.05563583815 | DQ16: 0.0274566474 | DR16: 0 | DS16: 0 | DT16: 0 | DU16: 0.06213872832 | DV16: 0 | DW16: 0 | DX16: 0 | DY16: 0 | DZ16: 0 | EA16: 0 | EB16: 0 | EC16: 0.01589595376 | ED16: 0.1972543353 | EE16: 0 | EF16: 0 | EG16: 0 | EH16: 0 | EI16: 181163 | EJ16: 1 | EK16: 1 | EL16: 148 | EM16: 7519 | EN16: 2517 | EO16: 54 | EP16: 5 | EQ16: 12.893 | ER16: 0 | ES16: 1.851 | ET16: 31.89 | EU16: 392.6943642 | EV16: 0.002167630058 | EW16: 0.002167630058 | EX16: 0.3208092486 | EY16: 16.2984104 | EZ16: 5.455924855 | FA16: 0.1170520231 | FB16: 0.01083815029 | FC16: 0.02794725434 | FD16: 0 | FE16: 0.004012283237 | FF16: 0.06912572254 | FG16: 0.3347519617 | FH16: 0.5111990458 | FI16: 0.04733324498 | FJ16: 0.1220535055 | FK16: 0 | FL16: 0.01752276729 | FM16: 0.3018914365
A17: 190804742 | B17: Kauno maisto pramonės ir prekybos mokymo centras | C17: 3169.035009 | D17: 2898072.243 | E17: 926.9166667 | F17: 581 | G17: 520 | H17: 242 | I17: 61 | J17: 52.33333333 | K17: 61 | L17: 297.3333333 | M17: 222.6666667 | N17: 0.7059538275 | O17: 0.6318347509 | P17: 0.1681713565 | Q17: 0.07411907655 | R17: 0.06358849737 | S17: 0.04136778953 | T17: 0.07411907655 | U17: 0.3612798704 | V17: 0.2705548805 | W17: 0 | X17: 0 | Y17: 9.666666667 | Z17: 51.33333333 | AB17: 100 | AC17: 16.66666667 | AD17: 180.6666667 | AE17: 0 | AF17: 0 | AG17: 0 | AH17: 0 | AI17: 222.6666667 | AJ17: 0 | AK17: 0 | AL17: 9.333333333 | AM17: 6 | AN17: 32 | AO17: 0 | AP17: 0 | AQ17: 0 | AR17: 0 | AS17: 0 | AT17: 0 | AU17: 0.6666666667 | AV17: 0 | AW17: 0 | AX17: 0 | AY17: 0 | AZ17: 45.66666667 | BA17: 14.33333333 | BB17: 0 | BC17: 52 | BD17: 260.6666667 | BE17: 39.33333333 | BF17: 0 | BG17: 124.6666667 | BH17: 0 | BI17: 18.66666667 | BJ17: 0 | BK17: 11.66666667 | BL17: 0 | BM17: 74 | BN17: 0 | BO17: 0 | BP17: 0 | BQ17: 141.6666667 | BR17: 69 | BS17: 0 | BT17: 0 | BU17: 0 | BV17: 0 | BW17: 0 | BX17: 31.33333333 | BY17: 0 | BZ17: 0 | CA17: 0 | CB17: 0 | CC17: 0 | CD17: 0 | CE17: 0.01174564601 | CF17: 0.06237343054 | CG17: 0 | CH17: 0.1215066829 | CI17: 0.02025111381 | CJ17: 0.2195220737 | CK17: 0 | CL17: 0 | CM17: 0 | CN17: 0 | CO17: 0.2705548805 | CP17: 0 | CQ17: 0 | CR17: 0.01134062373 | CS17: 0.007290400972 | CT17: 0.03888213852 | CU17: 0 | CV17: 0 | CW17: 0 | CX17: 0 | CY17: 0 | CZ17: 0 | DA17: 0.0008100445525 | DB17: 0 | DC17: 0 | DD17: 0 | DE17: 0 | DF17: 0.05548805184 | DG17: 0.01741595788 | DH17: 0 | DI17: 0.06318347509 | DJ17: 0.31672742 | DK17: 0.04779262859 | DL17: 0 | DM17: 0.1514783313 | DN17: 0 | DO17: 0.02268124747 | DP17: 0 | DQ17: 0.01417577967 | DR17: 0 | DS17: 0.08991494532 | DT17: 0 | DU17: 0 | DV17: 0 | DW17: 0.1721344674 | DX17: 0.08383961118 | DY17: 0 | DZ17: 0 | EA17: 0 | EB17: 0 | EC17: 0 | ED17: 0.03807209397 | EE17: 0 | EF17: 0 | EG17: 0 | EH17: 0 | EI17: 403000 | EJ17: 2 | EK17: 2 | EL17: 276 | EM17: 11089.22 | EN17: 4736 | EO17: 67 | EP17: 6 | EQ17: 20 | ER17: 0 | ES17: 5 | ET17: 64 | EU17: 489.671932 | EV17: 0.002430133657 | EW17: 0.002430133657 | EX17: 0.3353584447 | EY17: 13.47414338 | EZ17: 5.754556501 | FA17: 0.08140947752 | FB17: 0.007290400972 | FC17: 0.02430133657 | FD17: 0 | FE17: 0.006075334143 | FF17: 0.07776427704 | FG17: 0.4270814358 | FH17: 0.4135802469 | FI17: 0.03703703704 | FJ17: 0.1234567901 | FK17: 0 | FL17: 0.03086419753 | FM17: 0.3950617284
A18: 190972373 | B18: Kauno statybos ir paslaugų mokymo centras | C18: 2031.366325 | D18: 4203691.067 | E18: 2087.416667 | F18: 1281 | G18: 1091 | H18: 600.6666667 | I18: 192 | J18: 169.6666667 | K18: 241.3333333 | L18: 309 | M18: 732.6666667 | N18: 0.6807794508 | O18: 0.5798051373 | P18: 0.2040387891 | Q18: 0.1020372011 | R18: 0.09016829052 | S18: 0.0674430277 | T18: 0.128255093 | U18: 0.1642161205 | V18: 0.3893711249 | W18: 30.66666667 | X18: 0 | Y18: 10.33333333 | Z18: 200.3333333 | AB18: 11 | AC18: 0 | AD18: 298 | AE18: 0 | AF18: 0 | AG18: 0 | AH18: 0 | AI18: 732.6666667 | AJ18: 0 | AK18: 0 | AL18: 11.33333333 | AM18: 4 | AN18: 45.33333333 | AO18: 0 | AP18: 0 | AQ18: 0 | AR18: 30 | AS18: 19.66666667 | AT18: 22.66666667 | AU18: 3.333333333 | AV18: 0 | AW18: 1.333333333 | AX18: 0 | AY18: 0 | AZ18: 151.3333333 | BA18: 7.666666667 | BB18: 0 | BC18: 93.33333333 | BD18: 43.33333333 | BE18: 65 | BF18: 0 | BG18: 534 | BH18: 177.3333333 | BI18: 270.6666667 | BJ18: 0 | BK18: 57 | BL18: 0 | BM18: 0 | BN18: 0 | BO18: 42.33333333 | BP18: 0.6666666667 | BQ18: 4.666666667 | BR18: 6.666666667 | BS18: 0 | BT18: 274 | BU18: 101.3333333 | BV18: 1.333333333 | BW18: 9.333333333 | BX18: 11.33333333 | BY18: 39.66666667 | BZ18: 0 | CA18: 15 | CB18: 136.6666667 | CC18: 0.0162976085 | CD18: 0 | CE18: 0.005491585474 | CF18: 0.106465899 | CG18: 0 | CH18: 0.005845881311 | CI18: 0 | CJ18: 0.1583702391 | CK18: 0 | CL18: 0 | CM18: 0 | CN18: 0 | CO18: 0.3893711249 | CP18: 0 | CQ18: 0 | CR18: 0.006023029229 | CS18: 0.002125775022 | CT18: 0.02409211692 | CU18: 0 | CV18: 0 | CW18: 0 | CX18: 0.01594331267 | CY18: 0.01045172719 | CZ18: 0.01204605846 | DA18: 0.001771479185 | DB18: 0 | DC18: 0.000708591674 | DD18: 0 | DE18: 0 | DF18: 0.080425155 | DG18: 0.004074402126 | DH18: 0 | DI18: 0.04960141718 | DJ18: 0.02302922941 | DK18: 0.03454384411 | DL18: 0 | DM18: 0.2837909655 | DN18: 0.09424269265 | DO18: 0.1438441098 | DP18: 0 | DQ18: 0.03029229407 | DR18: 0 | DS18: 0 | DT18: 0 | DU18: 0.02249778565 | DV18: 0.000354295837 | DW18: 0.002480070859 | DX18: 0.00354295837 | DY18: 0 | DZ18: 0.145615589 | EA18: 0.05385296723 | EB18: 0.000708591674 | EC18: 0.004960141718 | ED18: 0.006023029229 | EE18: 0.0210806023 | EF18: 0 | EG18: 0.007971656333 | EH18: 0.07263064659 | EI18: 123210 | EJ18: 6 | EK18: 2 | EL18: 145 | EM18: 13486.77 | EN18: 4852 | EO18: 106 | EP18: 6 | EQ18: 13 | ER18: 2 | ES18: 16 | ET18: 86.4 | EU18: 65.47918512 | EV18: 0.003188662533 | EW18: 0.001062887511 | EX18: 0.07705934455 | EY18: 7.167459699 | EZ18: 2.578565102 | FA18: 0.05633303809 | FB18: 0.003188662533 | FC18: 0.006908768822 | FD18: 0.001062887511 | FE18: 0.008503100089 | FF18: 0.04591674048 | FG18: 0.3597599722 | FH18: 0.4620749782 | FI18: 0.02615518745 | FJ18: 0.0566695728 | FK18: 0.008718395815 | FL18: 0.06974716652 | FM18: 0.3766346992
A19: 190973322 | B19: Kauno taikomosios dailės mokykla | C19: 2779.882159 | D19: 1556576.665 | E19: 564.3333333 | F19: 418.6666667 | G19: 365.6666667 | H19: 129 | I19: 53 | J19: 29.66666667 | K19: 38.33333333 | L19: 134 | M19: 246.3333333 | N19: 0.7644552648 | O19: 0.6676810712 | P19: 0.07961406387 | Q19: 0.09677419355 | R19: 0.05416920268 | S19: 0.07187402008 | T19: 0.06999391357 | U19: 0.2446743761 | V19: 0.449786975 | W19: 0 | X19: 0 | Y19: 3 | Z19: 35.33333333 | AB19: 38 | AC19: 0 | AD19: 89.33333333 | AE19: 0 | AF19: 0 | AG19: 6.666666667 | AH19: 0 | AI19: 246.3333333 | AJ19: 0 | AK19: 0 | AL19: 0 | AM19: 0 | AN19: 0.6666666667 | AO19: 0 | AP19: 0 | AQ19: 0 | AR19: 0 | AS19: 0 | AT19: 0 | AU19: 0 | AV19: 0 | AW19: 0 | AX19: 0 | AY19: 0 | AZ19: 44.33333333 | BA19: 0 | BB19: 0 | BC19: 107.6666667 | BD19: 132.6666667 | BE19: 28.33333333 | BF19: 0 | BG19: 51.33333333 | BH19: 31.33333333 | BI19: 61 | BJ19: 0 | BK19: 3 | BL19: 2 | BM19: 0 | BN19: 1.333333333 | BO19: 0 | BP19: 90.33333333 | BQ19: 0 | BR19: 34 | BS19: 0 | BT19: 4.666666667 | BU19: 0 | BV19: 0 | BW19: 0 | BX19: 0 | BY19: 0 | BZ19: 0 | CA19: 0 | CB19: 0 | CC19: 0 | CD19: 0 | CE19: 0.00547778454 | CF19: 0.06451612903 | CG19: 0 | CH19: 0.06938527085 | CI19: 0 | CJ19: 0.1631162508 | CK19: 0 | CL19: 0 | CM19: 0.01217285453 | CN19: 0 | CO19: 0.449786975 | CP19: 0 | CQ19: 0 | CR19: 0 | CS19: 0 | CT19: 0.001217285453 | CU19: 0 | CV19: 0 | CW19: 0 | CX19: 0 | CY19: 0 | CZ19: 0 | DA19: 0 | DB19: 0 | DC19: 0 | DD19: 0 | DE19: 0 | DF19: 0.08094948265 | DG19: 0 | DH19: 0 | DI19: 0.1965916007 | DJ19: 0.2422398052 | DK19: 0.05173463177 | DL19: 0 | DM19: 0.09373097991 | DN19: 0.05721241631 | DO19: 0.111381619 | DP19: 0 | DQ19: 0.00547778454 | DR19: 0.00365185636 | DS19: 0 | DT19: 0.002434570907 | DU19: 0 | DV19: 0.1649421789 | DW19: 0 | DX19: 0.06208155813 | DY19: 0 | DZ19: 0.008520998174 | EA19: 0 | EB19: 0 | EC19: 0 | ED19: 0 | EE19: 0 | EF19: 0 | EG19: 0 | EH19: 0 | EI19: 812652 | EJ19: 2 | EK19: 2 | EL19: 416 | EM19: 9306.88 | EN19: 3844.24 | EO19: 65 | EP19: 6 | EQ19: 12.75 | ER19: 0 | ES19: 1.75 | ET19: 32 | EU19: 1483.844187 | EV19: 0.00365185636 | EW19: 0.00365185636 | EX19: 0.7595861229 | EY19: 16.99369446 | EZ19: 7.019306147 | FA19: 0.1186853317 | FB19: 0.01095556908 | FC19: 0.0232805843 | FD19: 0 | FE19: 0.003195374315 | FF19: 0.05842970177 | FG19: 0.413053569 | FH19: 0.5531914894 | FI19: 0.05106382979 | FJ19: 0.1085106383 | FK19: 0 | FL19: 0.01489361702 | FM19: 0.2723404255
A20: 290972940 | B20: Kauno informacinių technologijų mokykla | C20: 2508.663344 | D20: 1419894.53 | E20: 567.4166667 | F20: 396.3333333 | G20: 395.3333333 | H20: 157.6666667 | I20: 1 | J20: 0 | K20: 0 | L20: 308.6666667 | M20: 87.66666667 | N20: 0.7154031288 | O20: 0.7135980746 | P20: 0.1713179936 | Q20: 0.001805054152 | R20: 0 | S20: 0.0006013235619 | T20: 0 | U20: 0.5571600481 | V20: 0.1582430806 | W20: 0 | X20: 0 | Y20: 0 | Z20: 0 | AB20: 89.66666667 | AC20: 0 | AD20: 219 | AE20: 0 | AF20: 0 | AG20: 0 | AH20: 0 | AI20: 87.66666667 | AJ20: 0 | AK20: 0 | AL20: 29.33333333 | AM20: 0 | AN20: 0 | AO20: 0 | AP20: 0 | AQ20: 0 | AR20: 0 | AS20: 0 | AT20: 2 | AU20: 0 | AV20: 0 | AW20: 0 | AX20: 0 | AY20: 0 | AZ20: 50.33333333 | BA20: 0 | BB20: 0 | BC20: 0 | BD20: 60 | BE20: 10 | BF20: 0 | BG20: 69.33333333 | BH20: 0 | BI20: 125.6666667 | BJ20: 130.6666667 | BK20: 0.6666666667 | BL20: 0 | BM20: 0 | BN20: 0 | BO20: 0 | BP20: 0 | BQ20: 0 | BR20: 42 | BS20: 0 | BT20: 0 | BU20: 4 | BV20: 111.6666667 | BW20: 0 | BX20: 0 | BY20: 0 | BZ20: 0 | CA20: 0 | CB20: 0 | CC20: 0 | CD20: 0 | CE20: 0 | CF20: 0 | CG20: 0 | CH20: 0.1618531889 | CI20: 0 | CJ20: 0.3953068592 | CK20: 0 | CL20: 0 | CM20: 0 | CN20: 0 | CO20: 0.1582430806 | CP20: 0 | CQ20: 0 | CR20: 0.05294825511 | CS20: 0 | CT20: 0 | CU20: 0 | CV20: 0 | CW20: 0 | CX20: 0 | CY20: 0 | CZ20: 0.003610108303 | DA20: 0 | DB20: 0 | DC20: 0 | DD20: 0 | DE20: 0 | DF20: 0.0908543923 | DG20: 0 | DH20: 0 | DI20: 0 | DJ20: 0.1083032491 | DK20: 0.01805054152 | DL20: 0 | DM20: 0.1251504212 | DN20: 0 | DO20: 0.2268351384 | DP20: 0.2358604091 | DQ20: 0.001203369434 | DR20: 0 | DS20: 0 | DT20: 0 | DU20: 0 | DV20: 0 | DW20: 0 | DX20: 0.07581227437 | DY20: 0 | DZ20: 0 | EA20: 0.007220216606 | EB20: 0.2015643803 | EC20: 0 | ED20: 0 | EE20: 0 | EF20: 0 | EG20: 0 | EH20: 0 | EI20: 85800 | EJ20: 1 | EK20: 1 | EL20: 0 | EM20: 2365.57 | EN20: 1536.9 | EO20: 37 | EP20: 2 | EQ20: 11.23 | ER20: 0 | ES20: 1.84 | ET20: 11.01 | EU20: 154.8736462 | EV20: 0.001805054152 | EW20: 0.001805054152 | EX20: 0 | EY20: 4.269981949 | EZ20: 2.774187726 | FA20: 0.06678700361 | FB20: 0.003610108303 | FC20: 0.02027075812 | FD20: 0 | FE20: 0.003321299639 | FF20: 0.01987364621 | FG20: 0.6496954222 | FH20: 0.5865567533 | FI20: 0.03170577045 | FJ20: 0.1780279011 | FK20: 0 | FL20: 0.02916930881 | FM20: 0.1745402663
A21: 304311642 | B21: Kauno technikos profesinio mokymo centras | C21: 2193.828012 | D21: 3033364.123 | E21: 1361.916667 | F21: 1345.333333 | G21: 1344.666667 | H21: 274.6666667 | I21: 0.6666666667 | J21: 0.6666666667 | K21: 10.33333333 | L21: 777.3333333 | M21: 557.6666667 | N21: 0.8304526749 | O21: 0.8300411523 | P21: 0.0803678894 | Q21: 0.0004115226337 | R21: 0.0004115226337 | S21: 0.0001552366794 | T21: 0.006378600823 | U21: 0.4798353909 | V21: 0.3442386831 | W21: 10.33333333 | X21: 0 | Y21: 0 | Z21: 0 | AB21: 9.333333333 | AC21: 0 | AD21: 768 | AE21: 0 | AF21: 0 | AG21: 0 | AH21: 0 | AI21: 557.6666667 | AJ21: 0 | AK21: 0 | AL21: 2 | AM21: 0 | AN21: 28 | AO21: 0 | AP21: 0 | AQ21: 0 | AR21: 0 | AS21: 10.33333333 | AT21: 0 | AU21: 0 | AV21: 0 | AW21: 0 | AX21: 0 | AY21: 0 | AZ21: 87.33333333 | BA21: 4.333333333 | BB21: 0 | BC21: 24 | BD21: 15.33333333 | BE21: 61.33333333 | BF21: 0 | BG21: 370.6666667 | BH21: 373.6666667 | BI21: 473.6666667 | BJ21: 0 | BK21: 15 | BL21: 11.66666667 | BM21: 0 | BN21: 0 | BO21: 0 | BP21: 0 | BQ21: 0 | BR21: 18.66666667 | BS21: 0 | BT21: 58 | BU21: 142 | BV21: 4.666666667 | BW21: 0 | BX21: 14.66666667 | BY21: 36.66666667 | BZ21: 0 | CA21: 0 | CB21: 0 | CC21: 0.006378600823 | CD21: 0 | CE21: 0 | CF21: 0 | CG21: 0 | CH21: 0.005761316872 | CI21: 0 | CJ21: 0.4740740741 | CK21: 0 | CL21: 0 | CM21: 0 | CN21: 0 | CO21: 0.3442386831 | CP21: 0 | CQ21: 0 | CR21: 0.001234567901 | CS21: 0 | CT21: 0.01728395062 | CU21: 0 | CV21: 0 | CW21: 0 | CX21: 0 | CY21: 0.006378600823 | CZ21: 0 | DA21: 0 | DB21: 0 | DC21: 0 | DD21: 0 | DE21: 0 | DF21: 0.05390946502 | DG21: 0.002674897119 | DH21: 0 | DI21: 0.01481481481 | DJ21: 0.009465020576 | DK21: 0.0378600823 | DL21: 0 | DM21: 0.2288065844 | DN21: 0.2306584362 | DO21: 0.2923868313 | DP21: 0 | DQ21: 0.009259259259 | DR21: 0.007201646091 | DS21: 0 | DT21: 0 | DU21: 0 | DV21: 0 | DW21: 0 | DX21: 0.01152263374 | DY21: 0 | DZ21: 0.03580246914 | EA21: 0.08765432099 | EB21: 0.002880658436 | EC21: 0 | ED21: 0.009053497942 | EE21: 0.02263374486 | EF21: 0 | EG21: 0 | EH21: 0 | EI21: 23670 | EJ21: 1 | EK21: 1 | EL21: 190 | EM21: 29452.73 | EN21: 16447.09 | EO21: 120 | EP21: 7 | EQ21: 31.45 | ER21: 0 | ES21: 8.7 | ET21: 65.91 | EU21: 14.61111111 | EV21: 0.0006172839506 | EW21: 0.0006172839506 | EX21: 0.1172839506 | EY21: 18.18069753 | EZ21: 10.15252469 | FA21: 0.07407407407 | FB21: 0.004320987654 | FC21: 0.01941358025 | FD21: 0 | FE21: 0.00537037037 | FF21: 0.04068518519 | FG21: 0.5584232769 | FH21: 0.5148888698 | FI21: 0.03003518407 | FJ21: 0.1349437913 | FK21: 0 | FL21: 0.03732944306 | FM21: 0.2828027117
A22: 190808616 | B22: Vilkijos žemės ūkio mokykla | C22: 1898.731937 | D22: 939618.9325 | E22: 504.0833333 | F22: 347 | G22: 347 | H22: 113.3333333 | I22: 0 | J22: 0 | K22: 44.33333333 | L22: 98.66666667 | M22: 204 | N22: 0.753801593 | O22: 0.753801593 | P22: 0.3152261876 | Q22: 0 | R22: 0 | S22: 0.0002875215641 | T22: 0.0963070239 | U22: 0.2143374366 | V22: 0.4431571325 | W22: 44.33333333 | X22: 0 | Y22: 0 | Z22: 0 | AB22: 0 | AC22: 0 | AD22: 98.66666667 | AE22: 0 | AF22: 0 | AG22: 0 | AH22: 0 | AI22: 204 | AJ22: 0 | AK22: 0 | AL22: 0 | AM22: 0 | AN22: 77.66666667 | AO22: 0 | AP22: 0 | AQ22: 0 | AR22: 39.33333333 | AS22: 0 | AT22: 0 | AU22: 0 | AV22: 0 | AW22: 0 | AX22: 0 | AY22: 0 | AZ22: 20.33333333 | BA22: 0 | BB22: 0 | BC22: 0 | BD22: 83.66666667 | BE22: 3.666666667 | BF22: 0 | BG22: 70.66666667 | BH22: 53 | BI22: 82 | BJ22: 17.66666667 | BK22: 0 | BL22: 0 | BM22: 0 | BN22: 0 | BO22: 36.33333333 | BP22: 0 | BQ22: 0 | BR22: 0 | BS22: 67.66666667 | BT22: 0 | BU22: 0 | BV22: 0 | BW22: 0 | BX22: 0 | BY22: 45.66666667 | BZ22: 0 | CA22: 0 | CB22: 0 | CC22: 0.0963070239 | CD22: 0 | CE22: 0 | CF22: 0 | CG22: 0 | CH22: 0 | CI22: 0 | CJ22: 0.2143374366 | CK22: 0 | CL22: 0 | CM22: 0 | CN22: 0 | CO22: 0.4431571325 | CP22: 0 | CQ22: 0 | CR22: 0 | CS22: 0 | CT22: 0.1687183201 | CU22: 0 | CV22: 0 | CW22: 0 | CX22: 0.08544532947 | CY22: 0 | CZ22: 0 | DA22: 0 | DB22: 0 | DC22: 0 | DD22: 0 | DE22: 0 | DF22: 0.04417089066 | DG22: 0 | DH22: 0 | DI22: 0 | DJ22: 0.1817523534 | DK22: 0.007965242578 | DL22: 0 | DM22: 0.1535119479 | DN22: 0.1151339609 | DO22: 0.1781317886 | DP22: 0.03837798697 | DQ22: 0 | DR22: 0 | DS22: 0 | DT22: 0 | DU22: 0.07892831282 | DV22: 0 | DW22: 0 | DX22: 0 | DY22: 0.1469949312 | DZ22: 0 | EA22: 0 | EB22: 0 | EC22: 0 | ED22: 0 | EE22: 0.09920347574 | EF22: 0 | EG22: 0 | EH22: 0 | EI22: 446401 | EJ22: 1 | EK22: 1 | EL22: 200 | EM22: 17060.38 | EN22: 1816.68 | EO22: 37 | EP22: 2 | EQ22: 14.68 | ER22: 0 | ES22: 0 | ET22: 24 | EU22: 969.7342505 | EV22: 0.002172338885 | EW22: 0.002172338885 | EX22: 0.434467777 | EY22: 37.06092686 | EZ22: 3.946444605 | FA22: 0.08037653874 | FB22: 0.00434467777 | FC22: 0.03188993483 | FD22: 0 | FE22: 0 | FF22: 0.05213613324 | FG22: 0.1064853186 | FH22: 0.4763130793 | FI22: 0.02574665294 | FJ22: 0.1889804325 | FK22: 0 | FL22: 0 | FM22: 0.3089598352
A23: 111966767 | B23: Kėdainių profesinio rengimo centras | C23: 2866.376062 | D23: 2067381.538 | E23: 779.0833333 | F23: 349 | G23: 305.3333333 | H23: 161.6666667 | I23: 43.66666667 | J23: 42.66666667 | K23: 48.66666667 | L23: 211 | M23: 89.33333333 | N23: 0.6834203655 | O23: 0.5979112272 | P23: 0.3169162295 | Q23: 0.08550913838 | R23: 0.08355091384 | S23: 0.05533702028 | T23: 0.0953002611 | U23: 0.4131853786 | V23: 0.1749347258 | W23: 0 | X23: 0 | Y23: 3.666666667 | Z23: 45 | AB23: 4.666666667 | AC23: 10 | AD23: 196.3333333 | AE23: 0 | AF23: 0 | AG23: 0 | AH23: 0 | AI23: 89.33333333 | AJ23: 0 | AK23: 0 | AL23: 5.333333333 | AM23: 0 | AN23: 52.66666667 | AO23: 0 | AP23: 0 | AQ23: 0 | AR23: 19.33333333 | AS23: 19 | AT23: 0 | AU23: 2.666666667 | AV23: 0 | AW23: 10 | AX23: 0 | AY23: 0 | AZ23: 24.66666667 | BA23: 14 | BB23: 0 | BC23: 23.33333333 | BD23: 77.66666667 | BE23: 8.666666667 | BF23: 0 | BG23: 61.33333333 | BH23: 64.33333333 | BI23: 92.33333333 | BJ23: 0 | BK23: 21.33333333 | BL23: 0 | BM23: 0 | BN23: 0 | BO23: 0 | BP23: 0 | BQ23: 12.33333333 | BR23: 21.33333333 | BS23: 6 | BT23: 6 | BU23: 30.33333333 | BV23: 2.666666667 | BW23: 2 | BX23: 30.33333333 | BY23: 50.66666667 | BZ23: 0 | CA23: 0 | CB23: 0 | CC23: 0 | CD23: 0 | CE23: 0.007180156658 | CF23: 0.08812010444 | CG23: 0 | CH23: 0.009138381201 | CI23: 0.01958224543 | CJ23: 0.384464752 | CK23: 0 | CL23: 0 | CM23: 0 | CN23: 0 | CO23: 0.1749347258 | CP23: 0 | CQ23: 0 | CR23: 0.01044386423 | CS23: 0 | CT23: 0.1031331593 | CU23: 0 | CV23: 0 | CW23: 0 | CX23: 0.03785900783 | CY23: 0.03720626632 | CZ23: 0 | DA23: 0.005221932115 | DB23: 0 | DC23: 0.01958224543 | DD23: 0 | DE23: 0 | DF23: 0.04830287206 | DG23: 0.0274151436 | DH23: 0 | DI23: 0.04569190601 | DJ23: 0.1520887728 | DK23: 0.01697127937 | DL23: 0 | DM23: 0.1201044386 | DN23: 0.1259791123 | DO23: 0.1808093995 | DP23: 0 | DQ23: 0.04177545692 | DR23: 0 | DS23: 0 | DT23: 0 | DU23: 0 | DV23: 0 | DW23: 0.02415143603 | DX23: 0.04177545692 | DY23: 0.01174934726 | DZ23: 0.01174934726 | EA23: 0.05939947781 | EB23: 0.005221932115 | EC23: 0.003916449086 | ED23: 0.05939947781 | EE23: 0.09921671018 | EF23: 0 | EG23: 0 | EH23: 0 | EI23: 671300 | EJ23: 2 | EK23: 1 | EL23: 180 | EM23: 17341.89 | EN23: 8102.84 | EO23: 47 | EP23: 4 | EQ23: 19 | ER23: 1 | ES23: 2.5 | ET23: 34 | EU23: 1314.556136 | EV23: 0.003916449086 | EW23: 0.001958224543 | EX23: 0.3524804178 | EY23: 33.95931462 | EZ23: 15.86718016 | FA23: 0.09203655352 | FB23: 0.007832898172 | FC23: 0.03720626632 | FD23: 0.001958224543 | FE23: 0.004895561358 | FF23: 0.06657963446 | FG23: 0.4672408832 | FH23: 0.4372093023 | FI23: 0.03720930233 | FJ23: 0.176744186 | FK23: 0.009302325581 | FL23: 0.02325581395 | FM23: 0.3162790698
A24: 111964759 | B24: Viešoji įstaiga Kelmės profesinio rengimo centras | C24: 3107.804726 | D24: 1504521.153 | E24: 503.9166667 | F24: 351.3333333 | G24: 351.3333333 | H24: 38.66666667 | I24: 0 | J24: 0 | K24: 0 | L24: 263.6666667 | M24: 87.66666667 | N24: 0.9008547009 | O24: 0.9008547009 | P24: 0.1387045721 | Q24: 0 | R24: 0 | S24: 0.0002853881279 | T24: 0 | U24: 0.6760683761 | V24: 0.2247863248 | W24: 0 | X24: 0 | Y24: 0 | Z24: 0 | AB24: 21.66666667 | AC24: 0 | AD24: 242 | AE24: 0 | AF24: 0 | AG24: 0 | AH24: 0 | AI24: 87.66666667 | AJ24: 0 | AK24: 0 | AL24: 21.33333333 | AM24: 0 | AN24: 31.33333333 | AO24: 0 | AP24: 0 | AQ24: 0 | AR24: 0 | AS24: 0 | AT24: 31.33333333 | AU24: 0 | AV24: 0 | AW24: 0 | AX24: 0 | AY24: 0 | AZ24: 25.66666667 | BA24: 4.333333333 | BB24: 0 | BC24: 14.33333333 | BD24: 67.66666667 | BE24: 5.666666667 | BF24: 0 | BG24: 65.66666667 | BH24: 94 | BI24: 95.33333333 | BJ24: 0 | BK24: 0 | BL24: 0 | BM24: 8.666666667 | BN24: 0 | BO24: 0 | BP24: 4.666666667 | BQ24: 16 | BR24: 9 | BS24: 0 | BT24: 4.333333333 | BU24: 0 | BV24: 4.666666667 | BW24: 0 | BX24: 0 | BY24: 0 | BZ24: 0 | CA24: 0 | CB24: 0 | CC24: 0 | CD24: 0 | CE24: 0 | CF24: 0 | CG24: 0 | CH24: 0.05555555556 | CI24: 0 | CJ24: 0.6205128205 | CK24: 0 | CL24: 0 | CM24: 0 | CN24: 0 | CO24: 0.2247863248 | CP24: 0 | CQ24: 0 | CR24: 0.0547008547 | CS24: 0 | CT24: 0.08034188034 | CU24: 0 | CV24: 0 | CW24: 0 | CX24: 0 | CY24: 0 | CZ24: 0.08034188034 | DA24: 0 | DB24: 0 | DC24: 0 | DD24: 0 | DE24: 0 | DF24: 0.06581196581 | DG24: 0.01111111111 | DH24: 0 | DI24: 0.03675213675 | DJ24: 0.1735042735 | DK24: 0.01452991453 | DL24: 0 | DM24: 0.1683760684 | DN24: 0.241025641 | DO24: 0.2444444444 | DP24: 0 | DQ24: 0 | DR24: 0 | DS24: 0.02222222222 | DT24: 0 | DU24: 0 | DV24: 0.01196581197 | DW24: 0.04102564103 | DX24: 0.02307692308 | DY24: 0 | DZ24: 0.01111111111 | EA24: 0 | EB24: 0.01196581197 | EC24: 0 | ED24: 0 | EE24: 0 | EF24: 0 | EG24: 0 | EH24: 0 | EI24: 193000 | EJ24: 2 | EK24: 2 | EL24: 422 | EM24: 24264.64 | EN24: 15421 | EO24: 52 | EP24: 4 | EQ24: 13.5 | ER24: 0 | ES24: 0 | ET24: 35.2 | EU24: 494.8717949 | EV24: 0.005128205128 | EW24: 0.005128205128 | EX24: 1.082051282 | EY24: 62.21702564 | EZ24: 39.54102564 | FA24: 0.1333333333 | FB24: 0.01025641026 | FC24: 0.03461538462 | FD24: 0 | FE24: 0 | FF24: 0.09025641026 | FG24: 0.6355338468 | FH24: 0.4966571156 | FI24: 0.03820439351 | FJ24: 0.1289398281 | FK24: 0 | FL24: 0 | FM24: 0.3361986628
A25: 111964225 | B25: Klaipėdos paslaugų ir verslo mokykla | C25: 2514.128914 | D25: 2384386.835 | E25: 962.6666667 | F25: 833.6666667 | G25: 833.6666667 | H25: 10.66666667 | I25: 0 | J25: 0 | K25: 0 | L25: 574 | M25: 259.6666667 | N25: 0.9873667588 | O25: 0.9873667588 | P25: 0.003158310304 | Q25: 0 | R25: 0 | S25: 0 | T25: 0 | U25: 0.6798262929 | V25: 0.3075404659 | W25: 0 | X25: 0 | Y25: 0 | Z25: 0 | AB25: 79.66666667 | AC25: 0 | AD25: 494.3333333 | AE25: 0 | AF25: 0 | AG25: 0 | AH25: 0 | AI25: 259.6666667 | AJ25: 0 | AK25: 0 | AL25: 0 | AM25: 0 | AN25: 0 | AO25: 0 | AP25: 0 | AQ25: 0 | AR25: 0 | AS25: 0 | AT25: 0 | AU25: 0 | AV25: 0 | AW25: 0 | AX25: 0 | AY25: 0 | AZ25: 10.66666667 | BA25: 0 | BB25: 0 | BC25: 9.333333333 | BD25: 184.3333333 | BE25: 16 | BF25: 0 | BG25: 188 | BH25: 154 | BI25: 266.6666667 | BJ25: 0 | BK25: 0 | BL25: 0 | BM25: 15.33333333 | BN25: 0 | BO25: 0 | BP25: 3 | BQ25: 0 | BR25: 0 | BS25: 0 | BT25: 0 | BU25: 4 | BV25: 3.666666667 | BW25: 0 | BX25: 0 | BY25: 0 | BZ25: 0 | CA25: 0 | CB25: 0 | CC25: 0 | CD25: 0 | CE25: 0 | CF25: 0 | CG25: 0 | CH25: 0.09435452033 | CI25: 0 | CJ25: 0.5854717726 | CK25: 0 | CL25: 0 | CM25: 0 | CN25: 0 | CO25: 0.3075404659 | CP25: 0 | CQ25: 0 | CR25: 0 | CS25: 0 | CT25: 0 | CU25: 0 | CV25: 0 | CW25: 0 | CX25: 0 | CY25: 0 | CZ25: 0 | DA25: 0 | DB25: 0 | DC25: 0 | DD25: 0 | DE25: 0 | DF25: 0.01263324122 | DG25: 0 | DH25: 0 | DI25: 0.01105408606 | DJ25: 0.2183181998 | DK25: 0.01894986182 | DL25: 0 | DM25: 0.2226608764 | DN25: 0.1823924201 | DO25: 0.3158310304 | DP25: 0 | DQ25: 0 | DR25: 0 | DS25: 0.01816028425 | DT25: 0 | DU25: 0 | DV25: 0.003553099092 | DW25: 0 | DX25: 0 | DY25: 0 | DZ25: 0 | EA25: 0.004737465456 | EB25: 0.004342676668 | EC25: 0 | ED25: 0 | EE25: 0 | EF25: 0 | EG25: 0 | EH25: 0 | EI25: 972000 | EJ25: 1 | EK25: 1 | EL25: 288 | EM25: 14594.45 | EN25: 8885.1 | EO25: 60 | EP25: 6 | EQ25: 17.28 | ER25: 1.96 | ES25: 0 | ET25: 44.18 | EU25: 1151.204106 | EV25: 0.001184366364 | EW25: 0.001184366364 | EX25: 0.3410975128 | EY25: 17.28517568 | EZ25: 10.52321358 | FA25: 0.07106198184 | FB25: 0.007106198184 | FC25: 0.02046585077 | FD25: 0.002321358073 | FE25: 0 | FF25: 0.05232530596 | FG25: 0.6087999205 | FH25: 0.4636068614 | FI25: 0.04636068614 | FJ25: 0.1335187761 | FK25: 0.01514449081 | FL25: 0 | FM25: 0.3413691856
A26: 140199874 | B26: Klaipėdos Ernesto Galvanausko profesinio mokymo centras | C26: 1279.663973 | D26: 2713856.81 | E26: 2116.666667 | F26: 406.3333333 | G26: 333.6666667 | H26: 1818.666667 | I26: 74.33333333 | J26: 53.33333333 | K26: 83 | L26: 183 | M26: 142 | N26: 0.1826217228 | O26: 0.1499625468 | P26: 0.8043397365 | Q26: 0.0334082397 | R26: 0.02397003745 | S26: 0.03757931337 | T26: 0.03730337079 | U26: 0.08224719101 | V26: 0.06382022472 | W26: 0 | X26: 8 | Y26: 0 | Z26: 75 | AB26: 0 | AC26: 12 | AD26: 171 | AE26: 0 | AF26: 0 | AG26: 0 | AH26: 0 | AI26: 142 | AJ26: 0 | AK26: 0 | AL26: 136.6666667 | AM26: 29.33333333 | AN26: 78 | AO26: 0 | AP26: 3.666666667 | AQ26: 0 | AR26: 168 | AS26: 513.6666667 | AT26: 186.6666667 | AU26: 2 | AV26: 0 | AW26: 247.3333333 | AX26: 0 | AY26: 0 | AZ26: 113.3333333 | BA26: 213.6666667 | BB26: 1 | BC26: 39.33333333 | BD26: 15.66666667 | BE26: 45.66666667 | BF26: 0 | BG26: 106 | BH26: 78.66666667 | BI26: 66.33333333 | BJ26: 0 | BK26: 30 | BL26: 2 | BM26: 0 | BN26: 0 | BO26: 24.33333333 | BP26: 32.33333333 | BQ26: 32 | BR26: 57.66666667 | BS26: 2 | BT26: 34 | BU26: 35 | BV26: 14.33333333 | BW26: 137 | BX26: 10 | BY26: 1321.666667 | BZ26: 0 | CA26: 0 | CB26: 142.6666667 | CC26: 0 | CD26: 0.003595505618 | CE26: 0 | CF26: 0.03370786517 | CG26: 0 | CH26: 0 | CI26: 0.005393258427 | CJ26: 0.07685393258 | CK26: 0 | CL26: 0 | CM26: 0 | CN26: 0 | CO26: 0.06382022472 | CP26: 0 | CQ26: 0 | CR26: 0.06142322097 | CS26: 0.0131835206 | CT26: 0.03505617978 | CU26: 0 | CV26: 0.001647940075 | CW26: 0 | CX26: 0.07550561798 | CY26: 0.2308614232 | CZ26: 0.08389513109 | DA26: 0.0008988764045 | DB26: 0 | DC26: 0.1111610487 | DD26: 0 | DE26: 0 | DF26: 0.05093632959 | DG26: 0.09602996255 | DH26: 0.0004494382022 | DI26: 0.01767790262 | DJ26: 0.007041198502 | DK26: 0.02052434457 | DL26: 0 | DM26: 0.04764044944 | DN26: 0.03535580524 | DO26: 0.02981273408 | DP26: 0 | DQ26: 0.01348314607 | DR26: 0.0008988764045 | DS26: 0 | DT26: 0 | DU26: 0.01093632959 | DV26: 0.01453183521 | DW26: 0.01438202247 | DX26: 0.025917603 | DY26: 0.0008988764045 | DZ26: 0.01528089888 | EA26: 0.01573033708 | EB26: 0.006441947566 | EC26: 0.06157303371 | ED26: 0.004494382022 | EE26: 0.5940074906 | EF26: 0 | EG26: 0 | EH26: 0.06411985019 | EI26: 152000 | EJ26: 1 | EK26: 1 | EL26: 425 | EM26: 25970.09 | EN26: 17211.47 | EO26: 69 | EP26: 7 | EQ26: 19.8 | ER26: 2.5 | ES26: 1 | ET26: 37.7 | EU26: 68.31460674 | EV26: 0.0004494382022 | EW26: 0.0004494382022 | EX26: 0.191011236 | EY26: 11.67195056 | EZ26: 7.735492135 | FA26: 0.03101123596 | FB26: 0.003146067416 | FC26: 0.008898876404 | FD26: 0.001123595506 | FE26: 0.0004494382022 | FF26: 0.01694382022 | FG26: 0.6627420236 | FH26: 0.503649635 | FI26: 0.05109489051 | FJ26: 0.1445255474 | FK26: 0.01824817518 | FL26: 0.007299270073 | FM26: 0.2751824818
A27: 190973856 | B27: Klaipėdos laivininkų mokykla | C27: 3700.571085 | D27: 828467.2575 | E27: 231.1666667 | F27: 177.3333333 | G27: 177.3333333 | H27: 6.333333333 | I27: 0 | J27: 0 | K27: 0 | L27: 149.6666667 | M27: 27.66666667 | N27: 0.9655172414 | O27: 0.9655172414 | P27: 0.008620689655 | Q27: 0 | R27: 0 | S27: 0 | T27: 0 | U27: 0.8148820327 | V27: 0.1506352087 | W27: 0 | X27: 0 | Y27: 0 | Z27: 0 | AB27: 0 | AC27: 0 | AD27: 149.6666667 | AE27: 0 | AF27: 0 | AG27: 0 | AH27: 0 | AI27: 27.66666667 | AJ27: 0 | AK27: 0 | AL27: 0 | AM27: 0 | AN27: 0 | AO27: 0 | AP27: 0 | AQ27: 0 | AR27: 0 | AS27: 0 | AT27: 0 | AU27: 0 | AV27: 0 | AW27: 0 | AX27: 0 | AY27: 0 | AZ27: 6.333333333 | BA27: 0 | BB27: 0 | BC27: 12.66666667 | BD27: 0 | BE27: 7.666666667 | BF27: 0 | BG27: 11.33333333 | BH27: 6 | BI27: 22.66666667 | BJ27: 0 | BK27: 79.33333333 | BL27: 37.66666667 | BM27: 0 | BN27: 0 | BO27: 0 | BP27: 0 | BQ27: 0 | BR27: 1 | BS27: 0 | BT27: 0 | BU27: 0 | BV27: 0 | BW27: 0 | BX27: 0 | BY27: 5.333333333 | BZ27: 0 | CA27: 0 | CB27: 0 | CC27: 0 | CD27: 0 | CE27: 0 | CF27: 0 | CG27: 0 | CH27: 0 | CI27: 0 | CJ27: 0.8148820327 | CK27: 0 | CL27: 0 | CM27: 0 | CN27: 0 | CO27: 0.1506352087 | CP27: 0 | CQ27: 0 | CR27: 0 | CS27: 0 | CT27: 0 | CU27: 0 | CV27: 0 | CW27: 0 | CX27: 0 | CY27: 0 | CZ27: 0 | DA27: 0 | DB27: 0 | DC27: 0 | DD27: 0 | DE27: 0 | DF27: 0.03448275862 | DG27: 0 | DH27: 0 | DI27: 0.06896551724 | DJ27: 0 | DK27: 0.04174228675 | DL27: 0 | DM27: 0.06170598911 | DN27: 0.03266787659 | DO27: 0.1234119782 | DP27: 0 | DQ27: 0.4319419238 | DR27: 0.2050816697 | DS27: 0 | DT27: 0 | DU27: 0 | DV27: 0 | DW27: 0 | DX27: 0.005444646098 | DY27: 0 | DZ27: 0 | EA27: 0 | EB27: 0 | EC27: 0 | ED27: 0 | EE27: 0.02903811252 | EF27: 0 | EG27: 0 | EH27: 0 | EI27: 141200 | EJ27: 1 | EK27: 1 | EL27: 100 | EM27: 5122.52 | EN27: 1628.13 | EO27: 24 | EP27: 2 | EQ27: 12 | ER27: 0 | ES27: 0 | ET27: 24.25 | EU27: 768.784029 | EV27: 0.005444646098 | EW27: 0.005444646098 | EX27: 0.5444646098 | EY27: 27.89030853 | EZ27: 8.864591652 | FA27: 0.1306715064 | FB27: 0.0108892922 | FC27: 0.06533575318 | FD27: 0 | FE27: 0 | FF27: 0.1320326679 | FG27: 0.3178377049 | FH27: 0.3855421687 | FI27: 0.03212851406 | FJ27: 0.1927710843 | FK27: 0 | FL27: 0 | FM27: 0.3895582329
A28: 190974424 | B28: Klaipėdos technologijų mokymo centras | C28: 2938.393733 | D28: 1674875.8 | E28: 573 | F28: 459.3333333 | G28: 442.6666667 | H28: 78 | I28: 17.66666667 | J28: 10.66666667 | K28: 0 | L28: 321.3333333 | M28: 139 | N28: 0.8548387097 | O28: 0.82382134 | P28: 0.0837977298 | Q28: 0.03287841191 | R28: 0.01985111663 | S28: 0.02865893529 | T28: 0 | U28: 0.5980148883 | V28: 0.2586848635 | W28: 0 | X28: 0 | Y28: 0 | Z28: 0 | AB28: 144 | AC28: 0 | AD28: 170 | AE28: 0 | AF28: 0 | AG28: 0 | AH28: 7.333333333 | AI28: 139 | AJ28: 0 | AK28: 0 | AL28: 2 | AM28: 0 | AN28: 25.33333333 | AO28: 0 | AP28: 0 | AQ28: 0 | AR28: 0 | AS28: 0 | AT28: 0 | AU28: 0 | AV28: 0 | AW28: 0 | AX28: 0 | AY28: 0 | AZ28: 25 | BA28: 3 | BB28: 1.333333333 | BC28: 77.33333333 | BD28: 103 | BE28: 8.666666667 | BF28: 0 | BG28: 72 | BH28: 0.6666666667 | BI28: 66 | BJ28: 63.33333333 | BK28: 10.66666667 | BL28: 0.6666666667 | BM28: 58 | BN28: 0 | BO28: 0 | BP28: 8.666666667 | BQ28: 6.333333333 | BR28: 0 | BS28: 0 | BT28: 0 | BU28: 0 | BV28: 3 | BW28: 0 | BX28: 60 | BY28: 0 | BZ28: 0 | CA28: 0 | CB28: 0 | CC28: 0 | CD28: 0 | CE28: 0 | CF28: 0 | CG28: 0 | CH28: 0.2679900744 | CI28: 0 | CJ28: 0.3163771712 | CK28: 0 | CL28: 0 | CM28: 0 | CN28: 0.01364764268 | CO28: 0.2586848635 | CP28: 0 | CQ28: 0 | CR28: 0.003722084367 | CS28: 0 | CT28: 0.04714640199 | CU28: 0 | CV28: 0 | CW28: 0 | CX28: 0 | CY28: 0 | CZ28: 0 | DA28: 0 | DB28: 0 | DC28: 0 | DD28: 0 | DE28: 0 | DF28: 0.04652605459 | DG28: 0.005583126551 | DH28: 0.002481389578 | DI28: 0.1439205955 | DJ28: 0.1916873449 | DK28: 0.01612903226 | DL28: 0 | DM28: 0.1339950372 | DN28: 0.001240694789 | DO28: 0.1228287841 | DP28: 0.117866005 | DQ28: 0.01985111663 | DR28: 0.001240694789 | DS28: 0.1079404467 | DT28: 0 | DU28: 0 | DV28: 0.01612903226 | DW28: 0.0117866005 | DX28: 0 | DY28: 0 | DZ28: 0 | EA28: 0 | EB28: 0.005583126551 | EC28: 0 | ED28: 0.111662531 | EE28: 0 | EF28: 0 | EG28: 0 | EH28: 0 | EI28: 674237 | EJ28: 1 | EK28: 1 | EL28: 405 | EM28: 5474.21 | EN28: 2727.45 | EO28: 54 | EP28: 5 | EQ28: 13.1 | ER28: 0 | ES28: 0 | ET28: 32.5 | EU28: 1254.783499 | EV28: 0.001861042184 | EW28: 0.001861042184 | EX28: 0.7537220844 | EY28: 10.18773573 | EZ28: 5.075899504 | FA28: 0.1004962779 | FB28: 0.009305210918 | FC28: 0.02437965261 | FD28: 0 | FE28: 0 | FF28: 0.06048387097 | FG28: 0.4982362752 | FH28: 0.5162523901 | FI28: 0.04780114723 | FJ28: 0.1252390057 | FK28: 0 | FL28: 0 | FM28: 0.310707457
A29: 190974577 | B29: Klaipėdos turizmo mokykla | C29: 3554.294694 | D29: 2055138.627 | E29: 585.1666667 | F29: 489 | G29: 489 | H29: 37 | I29: 0 | J29: 0 | K29: 0 | L29: 387 | M29: 102 | N29: 0.9296577947 | O29: 0.9296577947 | P29: 0.0719740679 | Q29: 0 | R29: 0 | S29: 0.0006785598138 | T29: 0 | U29: 0.7357414449 | V29: 0.1939163498 | W29: 0 | X29: 0 | Y29: 0 | Z29: 0 | AB29: 53.66666667 | AC29: 0 | AD29: 333.3333333 | AE29: 0 | AF29: 0 | AG29: 0 | AH29: 0 | AI29: 102 | AJ29: 0 | AK29: 0 | AL29: 0 | AM29: 0 | AN29: 27.33333333 | AO29: 0 | AP29: 0 | AQ29: 0 | AR29: 0 | AS29: 0 | AT29: 0 | AU29: 0 | AV29: 0 | AW29: 0 | AX29: 0 | AY29: 0 | AZ29: 6.333333333 | BA29: 2 | BB29: 0 | BC29: 0 | BD29: 263 | BE29: 42.66666667 | BF29: 0 | BG29: 122.6666667 | BH29: 0 | BI29: 26.66666667 | BJ29: 0 | BK29: 0 | BL29: 0 | BM29: 34 | BN29: 0 | BO29: 0 | BP29: 0 | BQ29: 29.66666667 | BR29: 0 | BS29: 0 | BT29: 0 | BU29: 0 | BV29: 0 | BW29: 0 | BX29: 7.333333333 | BY29: 0 | BZ29: 0 | CA29: 0 | CB29: 0 | CC29: 0 | CD29: 0 | CE29: 0 | CF29: 0 | CG29: 0 | CH29: 0.1020278834 | CI29: 0 | CJ29: 0.6337135615 | CK29: 0 | CL29: 0 | CM29: 0 | CN29: 0 | CO29: 0.1939163498 | CP29: 0 | CQ29: 0 | CR29: 0 | CS29: 0 | CT29: 0.05196451204 | CU29: 0 | CV29: 0 | CW29: 0 | CX29: 0 | CY29: 0 | CZ29: 0 | DA29: 0 | DB29: 0 | DC29: 0 | DD29: 0 | DE29: 0 | DF29: 0.01204055767 | DG29: 0.003802281369 | DH29: 0 | DI29: 0 | DJ29: 0.5 | DK29: 0.08111533587 | DL29: 0 | DM29: 0.2332065906 | DN29: 0 | DO29: 0.05069708492 | DP29: 0 | DQ29: 0 | DR29: 0 | DS29: 0.06463878327 | DT29: 0 | DU29: 0 | DV29: 0 | DW29: 0.05640050697 | DX29: 0 | DY29: 0 | DZ29: 0 | EA29: 0 | EB29: 0 | EC29: 0 | ED29: 0.01394169835 | EE29: 0 | EF29: 0 | EG29: 0 | EH29: 0 | EI29: 213074.51 | EJ29: 1 | EK29: 1 | EL29: 250 | EM29: 9000.31 | EN29: 3494.72 | EO29: 59 | EP29: 5 | EQ29: 22.1 | ER29: 0 | ES29: 0 | ET29: 26.5 | EU29: 405.0846198 | EV29: 0.001901140684 | EW29: 0.001901140684 | EX29: 0.4752851711 | EY29: 17.11085551 | EZ29: 6.643954373 | FA29: 0.1121673004 | FB29: 0.009505703422 | FC29: 0.04201520913 | FD29: 0 | FE29: 0 | FF29: 0.05038022814 | FG29: 0.3882888478 | FH29: 0.5239786856 | FI29: 0.04440497336 | FJ29: 0.1962699822 | FK29: 0 | FL29: 0 | FM29: 0.2353463588
A30: 193180433 | B30: Viešoji įstaiga Klaipėdos laivų statybos ir remonto mokykla | C30: 2991.769196 | D30: 1214271.005 | E30: 412.5 | F30: 298.3333333 | G30: 298.3333333 | H30: 58 | I30: 0 | J30: 0 | K30: 0 | L30: 242.3333333 | M30: 56 | N30: 0.8372310571 | O30: 0.8372310571 | P30: 0.2088559225 | Q30: 0 | R30: 0 | S30: 0 | T30: 0 | U30: 0.6800748363 | V30: 0.1571562208 | W30: 0 | X30: 0 | Y30: 0 | Z30: 0 | AB30: 3 | AC30: 0 | AD30: 239.3333333 | AE30: 0 | AF30: 0 | AG30: 0 | AH30: 0 | AI30: 56 | AJ30: 0 | AK30: 0 | AL30: 0 | AM30: 0 | AN30: 42.66666667 | AO30: 0 | AP30: 0 | AQ30: 0 | AR30: 20 | AS30: 0 | AT30: 0 | AU30: 0 | AV30: 0 | AW30: 0 | AX30: 0 | AY30: 0 | AZ30: 9.333333333 | BA30: 0 | BB30: 0 | BC30: 0 | BD30: 0 | BE30: 14 | BF30: 0 | BG30: 67.66666667 | BH30: 78 | BI30: 138.6666667 | BJ30: 0 | BK30: 0 | BL30: 0 | BM30: 0 | BN30: 0 | BO30: 0 | BP30: 0 | BQ30: 0 | BR30: 0 | BS30: 0 | BT30: 15 | BU30: 43 | BV30: 0 | BW30: 0 | BX30: 0 | BY30: 0 | BZ30: 0 | CA30: 0 | CB30: 0 | CC30: 0 | CD30: 0 | CE30: 0 | CF30: 0 | CG30: 0 | CH30: 0.008419083255 | CI30: 0 | CJ30: 0.671655753 | CK30: 0 | CL30: 0 | CM30: 0 | CN30: 0 | CO30: 0.1571562208 | CP30: 0 | CQ30: 0 | CR30: 0 | CS30: 0 | CT30: 0.119738073 | CU30: 0 | CV30: 0 | CW30: 0 | CX30: 0.0561272217 | CY30: 0 | CZ30: 0 | DA30: 0 | DB30: 0 | DC30: 0 | DD30: 0 | DE30: 0 | DF30: 0.02619270346 | DG30: 0 | DH30: 0 | DI30: 0 | DJ30: 0 | DK30: 0.03928905519 | DL30: 0 | DM30: 0.1898971001 | DN30: 0.2188961646 | DO30: 0.3891487371 | DP30: 0 | DQ30: 0 | DR30: 0 | DS30: 0 | DT30: 0 | DU30: 0 | DV30: 0 | DW30: 0 | DX30: 0 | DY30: 0 | DZ30: 0.04209541628 | EA30: 0.1206735267 | EB30: 0 | EC30: 0 | ED30: 0 | EE30: 0 | EF30: 0 | EG30: 0 | EH30: 0 | EI30: 114900 | EJ30: 1 | EK30: 1 | EL30: 180 | EM30: 7615.29 | EN30: 5699.1 | EO30: 31 | EP30: 4 | EQ30: 15 | ER30: 0 | ES30: 0.25 | ET30: 24.5 | EU30: 322.4508887 | EV30: 0.002806361085 | EW30: 0.002806361085 | EX30: 0.5051449953 | EY30: 21.37125351 | EZ30: 15.99373246 | FA30: 0.08699719364 | FB30: 0.01122544434 | FC30: 0.04209541628 | FD30: 0 | FE30: 0.0007015902713 | FF30: 0.06875584659 | FG30: 0.7483759647 | FH30: 0.4147157191 | FI30: 0.05351170569 | FJ30: 0.2006688963 | FK30: 0 | FL30: 0.003344481605 | FM30: 0.3277591973
A31: 190804938 | B31: Viešoji įstaiga Kretingos technologijos ir verslo mokykla | C31: 3111.402373 | D31: 942877.0575 | E31: 323.0833333 | F31: 205 | G31: 187 | H31: 21.33333333 | I31: 18 | J31: 9 | K31: 17.33333333 | L31: 174.6666667 | M31: 13 | N31: 0.9057437408 | O31: 0.8262150221 | P31: 0.06904401439 | Q31: 0.0795287187 | R31: 0.03976435935 | S31: 0.06919807595 | T31: 0.0765832106 | U31: 0.7717231222 | V31: 0.05743740795 | W31: 0 | X31: 0 | Y31: 2 | Z31: 15.33333333 | AB31: 0 | AC31: 0 | AD31: 174.6666667 | AE31: 0 | AF31: 0 | AG31: 0 | AH31: 0 | AI31: 13 | AJ31: 0 | AK31: 0 | AL31: 0 | AM31: 0 | AN31: 6.666666667 | AO31: 0 | AP31: 0 | AQ31: 0 | AR31: 0 | AS31: 0 | AT31: 0 | AU31: 0 | AV31: 0 | AW31: 0 | AX31: 0 | AY31: 0 | AZ31: 12 | BA31: 0 | BB31: 0 | BC31: 10.66666667 | BD31: 37 | BE31: 2.333333333 | BF31: 0 | BG31: 0 | BH31: 43 | BI31: 112 | BJ31: 0 | BK31: 0 | BL31: 0 | BM31: 0 | BN31: 0 | BO31: 0 | BP31: 0 | BQ31: 0 | BR31: 6 | BS31: 0 | BT31: 0 | BU31: 0 | BV31: 0 | BW31: 0 | BX31: 0 | BY31: 15.33333333 | BZ31: 0 | CA31: 0 | CB31: 0 | CC31: 0 | CD31: 0 | CE31: 0.0088365243 | CF31: 0.0677466863 | CG31: 0 | CH31: 0 | CI31: 0 | CJ31: 0.7717231222 | CK31: 0 | CL31: 0 | CM31: 0 | CN31: 0 | CO31: 0.05743740795 | CP31: 0 | CQ31: 0 | CR31: 0 | CS31: 0 | CT31: 0.029455081 | CU31: 0 | CV31: 0 | CW31: 0 | CX31: 0 | CY31: 0 | CZ31: 0 | DA31: 0 | DB31: 0 | DC31: 0 | DD31: 0 | DE31: 0 | DF31: 0.0530191458 | DG31: 0 | DH31: 0 | DI31: 0.0471281296 | DJ31: 0.1634756996 | DK31: 0.01030927835 | DL31: 0 | DM31: 0 | DN31: 0.1899852725 | DO31: 0.4948453608 | DP31: 0 | DQ31: 0 | DR31: 0 | DS31: 0 | DT31: 0 | DU31: 0 | DV31: 0 | DW31: 0 | DX31: 0.0265095729 | DY31: 0 | DZ31: 0 | EA31: 0 | EB31: 0 | EC31: 0 | ED31: 0 | EE31: 0.0677466863 | EF31: 0 | EG31: 0 | EH31: 0 | EI31: 51800 | EJ31: 1 | EK31: 1 | EL31: 214 | EM31: 13819.46 | EN31: 7175 | EO31: 26 | EP31: 4 | EQ31: 14.3 | ER31: 0 | ES31: 0 | ET31: 25.79 | EU31: 228.8659794 | EV31: 0.00441826215 | EW31: 0.00441826215 | EX31: 0.9455081001 | EY31: 61.05799705 | EZ31: 31.70103093 | FA31: 0.1148748159 | FB31: 0.0176730486 | FC31: 0.06318114875 | FD31: 0 | FE31: 0 | FF31: 0.1139469809 | FG31: 0.5191953955 | FH31: 0.3709516336 | FI31: 0.05706948209 | FJ31: 0.2040233985 | FK31: 0 | FL31: 0 | FM31: 0.3679554858
A32: 190805125 | B32: Kupiškio technologijos ir verslo mokykla | C32: 2881.256651 | D32: 1447875.81 | E32: 537.3333333 | F32: 334.3333333 | G32: 296.6666667 | H32: 65 | I32: 37.66666667 | J32: 3 | K32: 0 | L32: 238.3333333 | M32: 96 | N32: 0.8372287145 | O32: 0.7429048414 | P32: 0.200044274 | Q32: 0.09432387312 | R32: 0.007512520868 | S32: 0.06910108005 | T32: 0 | U32: 0.5968280467 | V32: 0.2404006678 | W32: 0 | X32: 0 | Y32: 0 | Z32: 0 | AB32: 17.66666667 | AC32: 0 | AD32: 220.6666667 | AE32: 0 | AF32: 0 | AG32: 0 | AH32: 0 | AI32: 96 | AJ32: 0 | AK32: 0 | AL32: 0 | AM32: 5.333333333 | AN32: 25.33333333 | AO32: 0 | AP32: 0 | AQ32: 0 | AR32: 0 | AS32: 0 | AT32: 6 | AU32: 0 | AV32: 0 | AW32: 0 | AX32: 0 | AY32: 0 | AZ32: 12.33333333 | BA32: 1.333333333 | BB32: 0 | BC32: 0 | BD32: 54.66666667 | BE32: 22.66666667 | BF32: 0 | BG32: 74.66666667 | BH32: 77.66666667 | BI32: 53.33333333 | BJ32: 8.666666667 | BK32: 0 | BL32: 0 | BM32: 0 | BN32: 0 | BO32: 42.66666667 | BP32: 0 | BQ32: 8 | BR32: 9.333333333 | BS32: 0 | BT32: 7.333333333 | BU32: 6 | BV32: 0 | BW32: 28.33333333 | BX32: 6 | BY32: 0 | BZ32: 0 | CA32: 0 | CB32: 0 | CC32: 0 | CD32: 0 | CE32: 0 | CF32: 0 | CG32: 0 | CH32: 0.04424040067 | CI32: 0 | CJ32: 0.5525876461 | CK32: 0 | CL32: 0 | CM32: 0 | CN32: 0 | CO32: 0.2404006678 | CP32: 0 | CQ32: 0 | CR32: 0 | CS32: 0.01335559265 | CT32: 0.06343906511 | CU32: 0 | CV32: 0 | CW32: 0 | CX32: 0 | CY32: 0 | CZ32: 0.01502504174 | DA32: 0 | DB32: 0 | DC32: 0 | DD32: 0 | DE32: 0 | DF32: 0.03088480801 | DG32: 0.003338898164 | DH32: 0 | DI32: 0 | DJ32: 0.1368948247 | DK32: 0.05676126878 | DL32: 0 | DM32: 0.1869782972 | DN32: 0.194490818 | DO32: 0.1335559265 | DP32: 0.02170283806 | DQ32: 0 | DR32: 0 | DS32: 0 | DT32: 0 | DU32: 0.1068447412 | DV32: 0 | DW32: 0.02003338898 | DX32: 0.02337228715 | DY32: 0 | DZ32: 0.0183639399 | EA32: 0.01502504174 | EB32: 0 | EC32: 0.07095158598 | ED32: 0.01502504174 | EE32: 0 | EF32: 0 | EG32: 0 | EH32: 0 | EI32: 390000 | EJ32: 1 | EK32: 1 | EL32: 200 | EM32: 11450 | EN32: 3485 | EO32: 18 | EP32: 4 | EQ32: 13.42 | ER32: 0 | ES32: 2.87 | ET32: 30.676 | EU32: 976.6277129 | EV32: 0.002504173623 | EW32: 0.002504173623 | EX32: 0.5008347245 | EY32: 28.67278798 | EZ32: 8.727045075 | FA32: 0.04507512521 | FB32: 0.01001669449 | FC32: 0.03360601002 | FD32: 0 | FE32: 0.007186978297 | FF32: 0.07681803005 | FG32: 0.3043668122 | FH32: 0.260998173 | FI32: 0.057999594 | FJ32: 0.1945886379 | FK32: 0 | FL32: 0.0416147087 | FM32: 0.4447988864
A33: 190807667 | B33: Veisiejų technologijos ir verslo mokykla | C33: 2808.83231 | D33: 1081120.73 | E33: 399.0833333 | F33: 264.6666667 | G33: 264.6666667 | H33: 45.33333333 | I33: 0 | J33: 0 | K33: 14 | L33: 118.6666667 | M33: 132 | N33: 0.8537634409 | O33: 0.8537634409 | P33: 0.125351345 | Q33: 0 | R33: 0 | S33: 0 | T33: 0.04516129032 | U33: 0.3827956989 | V33: 0.4258064516 | W33: 0 | X33: 14 | Y33: 0 | Z33: 0 | AB33: 0 | AC33: 0 | AD33: 118.6666667 | AE33: 0 | AF33: 0 | AG33: 0 | AH33: 0 | AI33: 132 | AJ33: 0 | AK33: 0 | AL33: 0.6666666667 | AM33: 0 | AN33: 3.333333333 | AO33: 0 | AP33: 0 | AQ33: 0 | AR33: 14 | AS33: 0 | AT33: 20.66666667 | AU33: 0 | AV33: 0 | AW33: 0 | AX33: 0 | AY33: 0 | AZ33: 23.33333333 | BA33: 2 | BB33: 0 | BC33: 0 | BD33: 79 | BE33: 6.333333333 | BF33: 13 | BG33: 58 | BH33: 39.33333333 | BI33: 15 | BJ33: 18.66666667 | BK33: 0 | BL33: 0 | BM33: 0 | BN33: 0 | BO33: 35.33333333 | BP33: 0 | BQ33: 11.66666667 | BR33: 0 | BS33: 10.66666667 | BT33: 3.666666667 | BU33: 0 | BV33: 7.666666667 | BW33: 4.666666667 | BX33: 2.666666667 | BY33: 2 | BZ33: 0 | CA33: 0 | CB33: 2.333333333 | CC33: 0 | CD33: 0.04516129032 | CE33: 0 | CF33: 0 | CG33: 0 | CH33: 0 | CI33: 0 | CJ33: 0.3827956989 | CK33: 0 | CL33: 0 | CM33: 0 | CN33: 0 | CO33: 0.4258064516 | CP33: 0 | CQ33: 0 | CR33: 0.002150537634 | CS33: 0 | CT33: 0.01075268817 | CU33: 0 | CV33: 0 | CW33: 0 | CX33: 0.04516129032 | CY33: 0 | CZ33: 0.06666666667 | DA33: 0 | DB33: 0 | DC33: 0 | DD33: 0 | DE33: 0 | DF33: 0.0752688172 | DG33: 0.006451612903 | DH33: 0 | DI33: 0 | DJ33: 0.2548387097 | DK33: 0.02043010753 | DL33: 0.04193548387 | DM33: 0.1870967742 | DN33: 0.1268817204 | DO33: 0.04838709677 | DP33: 0.06021505376 | DQ33: 0 | DR33: 0 | DS33: 0 | DT33: 0 | DU33: 0.1139784946 | DV33: 0 | DW33: 0.0376344086 | DX33: 0 | DY33: 0.03440860215 | DZ33: 0.01182795699 | EA33: 0 | EB33: 0.0247311828 | EC33: 0.01505376344 | ED33: 0.008602150538 | EE33: 0.006451612903 | EF33: 0 | EG33: 0 | EH33: 0.00752688172 | EI33: 198800 | EJ33: 1 | EK33: 1 | EL33: 120 | EM33: 5091 | EN33: 1691 | EO33: 39 | EP33: 3 | EQ33: 12 | ER33: 0 | ES33: 0 | ET33: 19 | EU33: 641.2903226 | EV33: 0.003225806452 | EW33: 0.003225806452 | EX33: 0.3870967742 | EY33: 16.42258065 | EZ33: 5.45483871 | FA33: 0.1258064516 | FB33: 0.009677419355 | FC33: 0.03870967742 | FD33: 0 | FE33: 0 | FF33: 0.06129032258 | FG33: 0.332154783 | FH33: 0.5342465753 | FI33: 0.04109589041 | FJ33: 0.1643835616 | FK33: 0 | FL33: 0 | FM33: 0.2602739726
A34: 111964944 | B34: Marijampolės profesinio rengimo centras | C34: 2507.133265 | D34: 4040331.462 | E34: 1639.666667 | F34: 1058.666667 | G34: 1011.666667 | H34: 370.6666667 | I34: 47 | J34: 31.33333333 | K34: 310.6666667 | L34: 650.3333333 | M34: 97.66666667 | N34: 0.7406716418 | O34: 0.7077891791 | P34: 0.1986828036 | Q34: 0.03288246269 | R34: 0.02192164179 | S34: 0.02412164243 | T34: 0.2173507463 | U34: 0.4549906716 | V34: 0.06833022388 | W34: 271 | X34: 1.666666667 | Y34: 9.666666667 | Z34: 28.33333333 | AB34: 22 | AC34: 42.33333333 | AD34: 586 | AE34: 0 | AF34: 0 | AG34: 0 | AH34: 0 | AI34: 97.66666667 | AJ34: 0 | AK34: 0 | AL34: 11.33333333 | AM34: 0 | AN34: 87.33333333 | AO34: 0 | AP34: 0 | AQ34: 0 | AR34: 41.33333333 | AS34: 19.66666667 | AT34: 0 | AU34: 0 | AV34: 0 | AW34: 25.66666667 | AX34: 0 | AY34: 0 | AZ34: 58.66666667 | BA34: 26 | BB34: 0 | BC34: 78.66666667 | BD34: 315.3333333 | BE34: 27.33333333 | BF34: 0 | BG34: 165 | BH34: 279.6666667 | BI34: 130 | BJ34: 6 | BK34: 23.33333333 | BL34: 22.66666667 | BM34: 0 | BN34: 0 | BO34: 10.66666667 | BP34: 6.666666667 | BQ34: 40.66666667 | BR34: 24 | BS34: 22.66666667 | BT34: 5.333333333 | BU34: 40 | BV34: 0 | BW34: 9.333333333 | BX34: 6.666666667 | BY34: 210.6666667 | BZ34: 0 | CA34: 0 | CB34: 4.666666667 | CC34: 0.1895988806 | CD34: 0.001166044776 | CE34: 0.006763059701 | CF34: 0.01982276119 | CG34: 0 | CH34: 0.01539179104 | CI34: 0.02961753731 | CJ34: 0.4099813433 | CK34: 0 | CL34: 0 | CM34: 0 | CN34: 0 | CO34: 0.06833022388 | CP34: 0 | CQ34: 0 | CR34: 0.007929104478 | CS34: 0 | CT34: 0.06110074627 | CU34: 0 | CV34: 0 | CW34: 0 | CX34: 0.02891791045 | CY34: 0.01375932836 | CZ34: 0 | DA34: 0 | DB34: 0 | DC34: 0.01795708955 | DD34: 0 | DE34: 0 | DF34: 0.04104477612 | DG34: 0.01819029851 | DH34: 0 | DI34: 0.05503731343 | DJ34: 0.2206156716 | DK34: 0.01912313433 | DL34: 0 | DM34: 0.1154384328 | DN34: 0.1956623134 | DO34: 0.09095149254 | DP34: 0.004197761194 | DQ34: 0.01632462687 | DR34: 0.01585820896 | DS34: 0 | DT34: 0 | DU34: 0.007462686567 | DV34: 0.004664179104 | DW34: 0.02845149254 | DX34: 0.01679104478 | DY34: 0.01585820896 | DZ34: 0.003731343284 | EA34: 0.02798507463 | EB34: 0 | EC34: 0.006529850746 | ED34: 0.004664179104 | EE34: 0.1473880597 | EF34: 0 | EG34: 0 | EH34: 0.003264925373 | EI34: 275081 | EJ34: 5 | EK34: 5 | EL34: 265 | EM34: 39195.5 | EN34: 24633.16 | EO34: 137 | EP34: 7 | EQ34: 25 | ER34: 1.25 | ES34: 0 | ET34: 110 | EU34: 192.4540578 | EV34: 0.003498134328 | EW34: 0.003498134328 | EX34: 0.1854011194 | EY34: 27.42222481 | EZ34: 17.23402052 | FA34: 0.0958488806 | FB34: 0.00489738806 | FC34: 0.01749067164 | FD34: 0.0008745335821 | FE34: 0 | FF34: 0.07695895522 | FG34: 0.6284690845 | FH34: 0.4888492417 | FI34: 0.02497769848 | FJ34: 0.08920606601 | FK34: 0.004460303301 | FL34: 0 | FM34: 0.3925066905
A35: 290977720 | B35: Mažeikių politechnikos mokykla | C35: 2526.117985 | D35: 2200801.23 | E35: 902.1666667 | F35: 561 | G35: 525.3333333 | H35: 136.6666667 | I35: 35.66666667 | J35: 15 | K35: 35.66666667 | L35: 423.6666667 | M35: 101.6666667 | N35: 0.8041089345 | O35: 0.7529861443 | P35: 0.1745045663 | Q35: 0.05112279025 | R35: 0.02150023889 | S35: 0.02872002658 | T35: 0.05112279025 | U35: 0.6072623029 | V35: 0.1457238414 | W35: 0 | X35: 0 | Y35: 0 | Z35: 35.66666667 | AB35: 13.66666667 | AC35: 0 | AD35: 410 | AE35: 0 | AF35: 0 | AG35: 0 | AH35: 0 | AI35: 101.6666667 | AJ35: 0 | AK35: 0 | AL35: 0 | AM35: 0 | AN35: 78.66666667 | AO35: 0 | AP35: 0 | AQ35: 0 | AR35: 19.33333333 | AS35: 0 | AT35: 0 | AU35: 0 | AV35: 0 | AW35: 0 | AX35: 0 | AY35: 0 | AZ35: 29.33333333 | BA35: 0 | BB35: 0 | BC35: 10.66666667 | BD35: 94.33333333 | BE35: 39.66666667 | BF35: 7 | BG35: 89.33333333 | BH35: 118 | BI35: 162.6666667 | BJ35: 0 | BK35: 20 | BL35: 16 | BM35: 3.333333333 | BN35: 0 | BO35: 0 | BP35: 0 | BQ35: 5.333333333 | BR35: 8.666666667 | BS35: 26.66666667 | BT35: 0 | BU35: 15.33333333 | BV35: 0 | BW35: 0 | BX35: 0 | BY35: 80.66666667 | BZ35: 0 | CA35: 0 | CB35: 0 | CC35: 0 | CD35: 0 | CE35: 0 | CF35: 0.05112279025 | CG35: 0 | CH35: 0.01958910655 | CI35: 0 | CJ35: 0.5876731964 | CK35: 0 | CL35: 0 | CM35: 0 | CN35: 0 | CO35: 0.1457238414 | CP35: 0 | CQ35: 0 | CR35: 0 | CS35: 0 | CT35: 0.1127568084 | CU35: 0 | CV35: 0 | CW35: 0 | CX35: 0.02771141902 | CY35: 0 | CZ35: 0 | DA35: 0 | DB35: 0 | DC35: 0 | DD35: 0 | DE35: 0 | DF35: 0.04204491161 | DG35: 0 | DH35: 0 | DI35: 0.01528905877 | DJ35: 0.1352126135 | DK35: 0.05685618729 | DL35: 0.01003344482 | DM35: 0.1280458672 | DN35: 0.1691352126 | DO35: 0.2331581462 | DP35: 0 | DQ35: 0.02866698519 | DR35: 0.02293358815 | DS35: 0.004777830865 | DT35: 0 | DU35: 0 | DV35: 0 | DW35: 0.007644529384 | DX35: 0.01242236025 | DY35: 0.03822264692 | DZ35: 0 | EA35: 0.02197802198 | EB35: 0 | EC35: 0 | ED35: 0 | EE35: 0.1156235069 | EF35: 0 | EG35: 0 | EH35: 0 | EI35: 797551 | EJ35: 2 | EK35: 2 | EL35: 300 | EM35: 22897.23 | EN35: 13900.24 | EO35: 64 | EP35: 4 | EQ35: 18.4999 | ER35: 0 | ES35: 0 | ET35: 78 | EU35: 1143.169135 | EV35: 0.002866698519 | EW35: 0.002866698519 | EX35: 0.4300047778 | EY35: 32.81972766 | EZ35: 19.92389871 | FA35: 0.0917343526 | FB35: 0.005733397038 | FC35: 0.02651681796 | FD35: 0 | FE35: 0 | FF35: 0.1118012422 | FG35: 0.6070708116 | FH35: 0.3890579873 | FI35: 0.0243161242 | FJ35: 0.1124614665 | FK35: 0 | FL35: 0 | FM35: 0.474164422
A36: 191176774 | B36: Viešoji įstaiga Alantos technologijos ir verslo mokykla | C36: 3290.876855 | D36: 1366869.583 | E36: 425.1666667 | F36: 275 | G36: 275 | H36: 122.6666667 | I36: 0 | J36: 0 | K36: 21.33333333 | L36: 106 | M36: 147.6666667 | N36: 0.691533948 | O36: 0.691533948 | P36: 0.2521628109 | Q36: 0 | R36: 0 | S36: 0 | T36: 0.05364626991 | U36: 0.2665549036 | V36: 0.3713327745 | W36: 0 | X36: 10 | Y36: 0 | Z36: 11.33333333 | AB36: 0 | AC36: 5.666666667 | AD36: 100.3333333 | AE36: 0 | AF36: 0 | AG36: 0 | AH36: 0 | AI36: 147.6666667 | AJ36: 0 | AK36: 0 | AL36: 3.333333333 | AM36: 0 | AN36: 24 | AO36: 0 | AP36: 12 | AQ36: 0 | AR36: 0 | AS36: 0 | AT36: 0 | AU36: 0 | AV36: 0 | AW36: 0 | AX36: 0 | AY36: 0 | AZ36: 44 | BA36: 0 | BB36: 2 | BC36: 0 | BD36: 91 | BE36: 0 | BF36: 65.33333333 | BG36: 14.66666667 | BH36: 33.33333333 | BI36: 40.33333333 | BJ36: 4.333333333 | BK36: 2.666666667 | BL36: 14 | BM36: 0 | BN36: 9.333333333 | BO36: 0 | BP36: 0 | BQ36: 12 | BR36: 7.333333333 | BS36: 55.33333333 | BT36: 9.333333333 | BU36: 0 | BV36: 0 | BW36: 26 | BX36: 4 | BY36: 8.666666667 | BZ36: 0 | CA36: 0 | CB36: 0 | CC36: 0 | CD36: 0.02514668902 | CE36: 0 | CF36: 0.02849958089 | CG36: 0 | CH36: 0 | CI36: 0.01424979044 | CJ36: 0.2523051132 | CK36: 0 | CL36: 0 | CM36: 0 | CN36: 0 | CO36: 0.3713327745 | CP36: 0 | CQ36: 0 | CR36: 0.008382229673 | CS36: 0 | CT36: 0.06035205365 | CU36: 0 | CV36: 0.03017602682 | CW36: 0 | CX36: 0 | CY36: 0 | CZ36: 0 | DA36: 0 | DB36: 0 | DC36: 0 | DD36: 0 | DE36: 0 | DF36: 0.1106454317 | DG36: 0 | DH36: 0.005029337804 | DI36: 0 | DJ36: 0.2288348701 | DK36: 0 | DL36: 0.1642917016 | DM36: 0.03688181056 | DN36: 0.08382229673 | DO36: 0.101424979 | DP36: 0.01089689858 | DQ36: 0.006705783738 | DR36: 0.03520536463 | DS36: 0 | DT36: 0.02347024308 | DU36: 0 | DV36: 0 | DW36: 0.03017602682 | DX36: 0.01844090528 | DY36: 0.1391450126 | DZ36: 0.02347024308 | EA36: 0 | EB36: 0 | EC36: 0.06538139145 | ED36: 0.01005867561 | EE36: 0.02179379715 | EF36: 0 | EG36: 0 | EH36: 0 | EI36: 151000 | EJ36: 2 | EK36: 2 | EL36: 243 | EM36: 23282.97 | EN36: 10280.73 | EO36: 52 | EP36: 4 | EQ36: 31.5 | ER36: 0 | ES36: 0 | ET36: 38.5 | EU36: 379.7150042 | EV36: 0.005029337804 | EW36: 0.005029337804 | EX36: 0.6110645432 | EY36: 58.5489606 | EZ36: 25.85263202 | FA36: 0.1307627829 | FB36: 0.01005867561 | FC36: 0.07921207041 | FD36: 0 | FE36: 0 | FF36: 0.09681475272 | FG36: 0.4415557809 | FH36: 0.4126984127 | FI36: 0.03174603175 | FJ36: 0.25 | FK36: 0 | FL36: 0 | FM36: 0.3055555556
A37: 111963995 | B37: Viešoji įstaiga Panevėžio profesinio rengimo centras | C37: 2381.800587 | D37: 2889520.453 | E37: 1271.25 | F37: 765 | G37: 765 | H37: 239.3333333 | I37: 0 | J37: 0 | K37: 79.66666667 | L37: 506.3333333 | M37: 179 | N37: 0.761699303 | O37: 0.761699303 | P37: 0.2663951987 | Q37: 0 | R37: 0 | S37: 0 | T37: 0.07932293395 | U37: 0.504148689 | V37: 0.1782276801 | W37: 76.33333333 | X37: 0 | Y37: 0 | Z37: 3.333333333 | AB37: 63.33333333 | AC37: 0 | AD37: 443 | AE37: 0 | AF37: 0 | AG37: 0 | AH37: 0 | AI37: 179 | AJ37: 0 | AK37: 0 | AL37: 17.33333333 | AM37: 4 | AN37: 162.6666667 | AO37: 0 | AP37: 0 | AQ37: 0 | AR37: 0 | AS37: 0 | AT37: 0 | AU37: 8 | AV37: 0 | AW37: 0 | AX37: 0 | AY37: 0 | AZ37: 58.33333333 | BA37: 12.33333333 | BB37: 0 | BC37: 26 | BD37: 134 | BE37: 22 | BF37: 40.66666667 | BG37: 137.3333333 | BH37: 172 | BI37: 187.3333333 | BJ37: 0 | BK37: 6.666666667 | BL37: 0 | BM37: 30.66666667 | BN37: 0 | BO37: 8.333333333 | BP37: 0 | BQ37: 11 | BR37: 0 | BS37: 61.33333333 | BT37: 33.66666667 | BU37: 74 | BV37: 0 | BW37: 0 | BX37: 11.33333333 | BY37: 45.33333333 | BZ37: 0 | CA37: 0 | CB37: 2.666666667 | CC37: 0.07600398274 | CD37: 0 | CE37: 0 | CF37: 0.003318951211 | CG37: 0 | CH37: 0.06306007302 | CI37: 0 | CJ37: 0.441088616 | CK37: 0 | CL37: 0 | CM37: 0 | CN37: 0 | CO37: 0.1782276801 | CP37: 0 | CQ37: 0 | CR37: 0.0172585463 | CS37: 0.003982741454 | CT37: 0.1619648191 | CU37: 0 | CV37: 0 | CW37: 0 | CX37: 0 | CY37: 0 | CZ37: 0 | DA37: 0.007965482907 | DB37: 0 | DC37: 0 | DD37: 0 | DE37: 0 | DF37: 0.0580816462 | DG37: 0.01228011948 | DH37: 0 | DI37: 0.02588781945 | DJ37: 0.1334218387 | DK37: 0.021905078 | DL37: 0.04049120478 | DM37: 0.1367407899 | DN37: 0.1712578825 | DO37: 0.1865250581 | DP37: 0 | DQ37: 0.006637902423 | DR37: 0 | DS37: 0.03053435115 | DT37: 0 | DU37: 0.008297378029 | DV37: 0 | DW37: 0.010952539 | DX37: 0 | DY37: 0.06106870229 | DZ37: 0.03352140724 | EA37: 0.07368071689 | EB37: 0 | EC37: 0 | ED37: 0.01128443412 | EE37: 0.04513773648 | EF37: 0 | EG37: 0 | EH37: 0.002655160969 | EI37: 483816.33 | EJ37: 2 | EK37: 1 | EL37: 1182 | EM37: 50376.35 | EN37: 23926.24 | EO37: 97 | EP37: 10 | EQ37: 12 | ER37: 0 | ES37: 2 | ET37: 49 | EU37: 481.7288384 | EV37: 0.001991370727 | EW37: 0.0009956853634 | EX37: 1.1769001 | EY37: 50.15899436 | EZ37: 23.82300697 | FA37: 0.09658148025 | FB37: 0.009956853634 | FC37: 0.01194822436 | FD37: 0 | FE37: 0.001991370727 | FF37: 0.04878858281 | FG37: 0.4749498525 | FH37: 0.5705882353 | FI37: 0.05882352941 | FJ37: 0.07058823529 | FK37: 0 | FL37: 0.01176470588 | FM37: 0.2882352941
A38: 147178142 | B38: Panevėžio darbo rinkos mokymo centras | C38: 1142.865529 | D38: 1273818.718 | E38: 1121.916667 | F38: 16.33333333 | G38: 16.33333333 | H38: 963.3333333 | I38: 0 | J38: 0 | K38: 0 | L38: 10 | M38: 6.333333333 | N38: 0.01667233753 | O38: 0.01667233753 | P38: 0.9958319156 | Q38: 0 | R38: 0 | S38: 0 | T38: 0 | U38: 0.01020755359 | V38: 0.00646478394 | W38: 0 | X38: 0 | Y38: 0 | Z38: 0 | AB38: 0 | AC38: 10 | AD38: 0 | AE38: 0 | AF38: 0 | AG38: 0 | AH38: 0 | AI38: 6.333333333 | AJ38: 0 | AK38: 0 | AL38: 52.66666667 | AM38: 12.66666667 | AN38: 94.66666667 | AO38: 0 | AP38: 2.666666667 | AQ38: 0 | AR38: 135.3333333 | AS38: 331.3333333 | AT38: 0 | AU38: 0 | AV38: 0 | AW38: 258.6666667 | AX38: 0 | AY38: 0 | AZ38: 105.6666667 | BA38: 89 | BB38: 5.333333333 | BC38: 0 | BD38: 2 | BE38: 1.666666667 | BF38: 0 | BG38: 0 | BH38: 0 | BI38: 0 | BJ38: 0 | BK38: 0 | BL38: 8 | BM38: 0 | BN38: 0 | BO38: 4.666666667 | BP38: 21 | BQ38: 79.66666667 | BR38: 40.66666667 | BS38: 0 | BT38: 0 | BU38: 26 | BV38: 2.666666667 | BW38: 0 | BX38: 62.66666667 | BY38: 677.3333333 | BZ38: 0 | CA38: 2.666666667 | CB38: 50.66666667 | CC38: 0 | CD38: 0 | CE38: 0 | CF38: 0 | CG38: 0 | CH38: 0 | CI38: 0.01020755359 | CJ38: 0 | CK38: 0 | CL38: 0 | CM38: 0 | CN38: 0 | CO38: 0.00646478394 | CP38: 0 | CQ38: 0 | CR38: 0.05375978224 | CS38: 0.01292956788 | CT38: 0.09663150732 | CU38: 0 | CV38: 0.002722014291 | CW38: 0 | CX38: 0.1381422252 | CY38: 0.3382102756 | CZ38: 0 | DA38: 0 | DB38: 0 | DC38: 0.2640353862 | DD38: 0 | DE38: 0 | DF38: 0.1078598163 | DG38: 0.09084722695 | DH38: 0.005444028581 | DI38: 0 | DJ38: 0.002041510718 | DK38: 0.001701258932 | DL38: 0 | DM38: 0 | DN38: 0 | DO38: 0 | DP38: 0 | DQ38: 0 | DR38: 0.008166042872 | DS38: 0 | DT38: 0 | DU38: 0.004763525009 | DV38: 0.02143586254 | DW38: 0.08132017693 | DX38: 0.04151071793 | DY38: 0 | DZ38: 0 | EA38: 0.02653963933 | EB38: 0.002722014291 | EC38: 0 | ED38: 0.06396733583 | EE38: 0.6913916298 | EF38: 0 | EG38: 0.002722014291 | EH38: 0.05171827152 | EI38: 0 | EJ38: 1 | EK38: 1 | EL38: 0 | EM38: 2719 | EN38: 1351 | EO38: 24 | EP38: 0 | EQ38: 5.5 | ER38: 0 | ES38: 0 | ET38: 2 | EU38: 0 | EV38: 0.001020755359 | EW38: 0.001020755359 | EX38: 0 | EY38: 2.775433821 | EZ38: 1.37904049 | FA38: 0.02449812862 | FB38: 0 | FC38: 0.005614154474 | FD38: 0 | FE38: 0 | FF38: 0.002041510718 | FG38: 0.4968738507 | FH38: 0.7619047619 | FI38: 0 | FJ38: 0.1746031746 | FK38: 0 | FL38: 0 | FM38: 0.06349206349
A39: 304384359 | B39: Panevėžio Margaritos Rimkevičaitės profesinio rengimo centras | C39: 4017.978771 | D39: 1469001.417 | E39: 379.25 | F39: 299.6666667 | G39: 232.6666667 | H39: 17.66666667 | I39: 67 | J39: 29 | K39: 36.66666667 | L39: 196.3333333 | M39: 66.66666667 | N39: 0.9443277311 | O39: 0.7331932773 | P39: 0.01391806723 | Q39: 0.2111344538 | R39: 0.09138655462 | S39: 0.1366509595 | T39: 0.1155462185 | U39: 0.618697479 | V39: 0.2100840336 | W39: 0 | X39: 0 | Y39: 10.66666667 | Z39: 26 | AB39: 6 | AC39: 0 | AD39: 190.3333333 | AE39: 0 | AF39: 0 | AG39: 0 | AH39: 0 | AI39: 66.66666667 | AJ39: 0 | AK39: 0 | AL39: 0 | AM39: 0 | AN39: 0 | AO39: 0 | AP39: 0 | AQ39: 0 | AR39: 0 | AS39: 0 | AT39: 0 | AU39: 0 | AV39: 0 | AW39: 0 | AX39: 0 | AY39: 0 | AZ39: 15.66666667 | BA39: 0 | BB39: 2 | BC39: 33.66666667 | BD39: 115 | BE39: 8.666666667 | BF39: 0 | BG39: 64.66666667 | BH39: 0 | BI39: 38.66666667 | BJ39: 28.66666667 | BK39: 10.33333333 | BL39: 0 | BM39: 0 | BN39: 0 | BO39: 0 | BP39: 3.666666667 | BQ39: 4.333333333 | BR39: 0 | BS39: 0 | BT39: 0 | BU39: 0 | BV39: 4 | BW39: 5.666666667 | BX39: 0 | BY39: 0 | BZ39: 0 | CA39: 0 | CB39: 0 | CC39: 0 | CD39: 0 | CE39: 0.03361344538 | CF39: 0.08193277311 | CG39: 0 | CH39: 0.01890756303 | CI39: 0 | CJ39: 0.599789916 | CK39: 0 | CL39: 0 | CM39: 0 | CN39: 0 | CO39: 0.2100840336 | CP39: 0 | CQ39: 0 | CR39: 0 | CS39: 0 | CT39: 0 | CU39: 0 | CV39: 0 | CW39: 0 | CX39: 0 | CY39: 0 | CZ39: 0 | DA39: 0 | DB39: 0 | DC39: 0 | DD39: 0 | DE39: 0 | DF39: 0.0493697479 | DG39: 0 | DH39: 0.006302521008 | DI39: 0.106092437 | DJ39: 0.362394958 | DK39: 0.02731092437 | DL39: 0 | DM39: 0.2037815126 | DN39: 0 | DO39: 0.1218487395 | DP39: 0.09033613445 | DQ39: 0.03256302521 | DR39: 0 | DS39: 0 | DT39: 0 | DU39: 0 | DV39: 0.01155462185 | DW39: 0.01365546218 | DX39: 0 | DY39: 0 | DZ39: 0 | EA39: 0 | EB39: 0.01260504202 | EC39: 0.01785714286 | ED39: 0 | EE39: 0 | EF39: 0 | EG39: 0 | EH39: 0 | EI39: 238205 | EJ39: 1 | EK39: 1 | EL39: 369 | EM39: 18231.64 | EN39: 10715.35 | EO39: 42 | EP39: 4 | EQ39: 19.19 | ER39: 0 | ES39: 0 | ET39: 43 | EU39: 750.6460084 | EV39: 0.003151260504 | EW39: 0.003151260504 | EX39: 1.162815126 | EY39: 57.45264706 | EZ39: 33.76685924 | FA39: 0.1323529412 | FB39: 0.01260504202 | FC39: 0.06047268908 | FD39: 0 | FE39: 0 | FF39: 0.1355042017 | FG39: 0.587733742 | FH39: 0.388205934 | FI39: 0.03697199371 | FJ39: 0.1773731398 | FK39: 0 | FL39: 0 | FM39: 0.3974489324
A40: 190805844 | B40: Plungės technologijų ir verslo mokykla | C40: 2847.837414 | D40: 2186552.26 | E40: 781.3333333 | F40: 353.3333333 | G40: 353.3333333 | H40: 306.3333333 | I40: 0 | J40: 0 | K40: 0 | L40: 335 | M40: 18.33333333 | N40: 0.5356240526 | O40: 0.5356240526 | P40: 0.3687192848 | Q40: 0 | R40: 0 | S40: 0 | T40: 0 | U40: 0.5078322385 | V40: 0.02779181405 | W40: 0 | X40: 0 | Y40: 0 | Z40: 0 | AB40: 56.66666667 | AC40: 0 | AD40: 278.3333333 | AE40: 0 | AF40: 0 | AG40: 0 | AH40: 0 | AI40: 18.33333333 | AJ40: 0 | AK40: 0 | AL40: 2.666666667 | AM40: 0 | AN40: 128.6666667 | AO40: 0 | AP40: 0 | AQ40: 0 | AR40: 6 | AS40: 31.66666667 | AT40: 12.66666667 | AU40: 2 | AV40: 0 | AW40: 18.33333333 | AX40: 0 | AY40: 0 | AZ40: 27 | BA40: 27.33333333 | BB40: 0 | BC40: 0 | BD40: 95 | BE40: 0 | BF40: 0 | BG40: 38.66666667 | BH40: 105 | BI40: 86.66666667 | BJ40: 0 | BK40: 0 | BL40: 0 | BM40: 28 | BN40: 0 | BO40: 0 | BP40: 0 | BQ40: 10.33333333 | BR40: 17.33333333 | BS40: 23.33333333 | BT40: 8.333333333 | BU40: 58.66666667 | BV40: 0 | BW40: 27.33333333 | BX40: 49.66666667 | BY40: 111.3333333 | BZ40: 0 | CA40: 0 | CB40: 0 | CC40: 0 | CD40: 0 | CE40: 0 | CF40: 0 | CG40: 0 | CH40: 0.08590197069 | CI40: 0 | CJ40: 0.4219302678 | CK40: 0 | CL40: 0 | CM40: 0 | CN40: 0 | CO40: 0.02779181405 | CP40: 0 | CQ40: 0 | CR40: 0.00404244568 | CS40: 0 | CT40: 0.195048004 | CU40: 0 | CV40: 0 | CW40: 0 | CX40: 0.009095502779 | CY40: 0.04800404245 | CZ40: 0.01920161698 | DA40: 0.00303183426 | DB40: 0 | DC40: 0.02779181405 | DD40: 0 | DE40: 0 | DF40: 0.04092976251 | DG40: 0.04143506822 | DH40: 0 | DI40: 0 | DJ40: 0.1440121273 | DK40: 0 | DL40: 0 | DM40: 0.05861546235 | DN40: 0.1591712986 | DO40: 0.1313794846 | DP40: 0 | DQ40: 0 | DR40: 0 | DS40: 0.04244567964 | DT40: 0 | DU40: 0 | DV40: 0 | DW40: 0.01566447701 | DX40: 0.02627589692 | DY40: 0.0353713997 | DZ40: 0.01263264275 | EA40: 0.08893380495 | EB40: 0 | EC40: 0.04143506822 | ED40: 0.07529055078 | EE40: 0.1687721071 | EF40: 0 | EG40: 0 | EH40: 0 | EI40: 375600 | EJ40: 2 | EK40: 2 | EL40: 771 | EM40: 28734.05 | EN40: 15182 | EO40: 62 | EP40: 5 | EQ40: 25.38 | ER40: 0.5 | ES40: 3.7 | ET40: 48.73 | EU40: 569.378474 | EV40: 0.00303183426 | EW40: 0.00303183426 | EX40: 1.168772107 | EY40: 43.55843861 | EZ40: 23.01465387 | FA40: 0.09398686205 | FB40: 0.007579585649 | FC40: 0.03847397676 | FD40: 0.0007579585649 | FE40: 0.00560889338 | FF40: 0.07387064174 | FG40: 0.5283626916 | FH40: 0.4266740073 | FI40: 0.03440919414 | FJ40: 0.1746610694 | FK40: 0.003440919414 | FL40: 0.02546280366 | FM40: 0.3353520061
A41: 190977872 | B41: Radviliškio technologijų ir verslo mokymo centras | C41: 3749.487738 | D41: 1980688.95 | E41: 543.8333333 | F41: 393.3333333 | G41: 239.6666667 | H41: 35.33333333 | I41: 153.6666667 | J41: 107.3333333 | K41: 179.6666667 | L41: 133 | M41: 80.66666667 | N41: 0.9175738725 | O41: 0.5590979782 | P41: 0.146706367 | Q41: 0.3584758942 | R41: 0.2503888025 | S41: 0.1947926666 | T41: 0.4191290824 | U41: 0.3102643857 | V41: 0.1881804044 | W41: 0 | X41: 0 | Y41: 19 | Z41: 160.6666667 | AB41: 7.666666667 | AC41: 46.33333333 | AD41: 79 | AE41: 0 | AF41: 0 | AG41: 0 | AH41: 0 | AI41: 80.66666667 | AJ41: 0 | AK41: 0 | AL41: 0 | AM41: 21.33333333 | AN41: 41.33333333 | AO41: 0 | AP41: 0 | AQ41: 0 | AR41: 10 | AS41: 0 | AT41: 0 | AU41: 0 | AV41: 0 | AW41: 0 | AX41: 0 | AY41: 0 | AZ41: 10.66666667 | BA41: 1.333333333 | BB41: 0.6666666667 | BC41: 64.33333333 | BD41: 24.33333333 | BE41: 64.66666667 | BF41: 36.33333333 | BG41: 38.66666667 | BH41: 71 | BI41: 46.66666667 | BJ41: 0 | BK41: 40 | BL41: 7.333333333 | BM41: 0 | BN41: 0 | BO41: 0 | BP41: 3 | BQ41: 10 | BR41: 0 | BS41: 0 | BT41: 2 | BU41: 12 | BV41: 0 | BW41: 0 | BX41: 8.333333333 | BY41: 0 | BZ41: 0 | CA41: 0 | CB41: 0 | CC41: 0 | CD41: 0 | CE41: 0.04432348367 | CF41: 0.3748055988 | CG41: 0 | CH41: 0.01788491446 | CI41: 0.1080870918 | CJ41: 0.1842923795 | CK41: 0 | CL41: 0 | CM41: 0 | CN41: 0 | CO41: 0.1881804044 | CP41: 0 | CQ41: 0 | CR41: 0 | CS41: 0.04976671851 | CT41: 0.09642301711 | CU41: 0 | CV41: 0 | CW41: 0 | CX41: 0.0233281493 | CY41: 0 | CZ41: 0 | DA41: 0 | DB41: 0 | DC41: 0 | DD41: 0 | DE41: 0 | DF41: 0.02488335925 | DG41: 0.003110419907 | DH41: 0.001555209953 | DI41: 0.1500777605 | DJ41: 0.0567651633 | DK41: 0.1508553655 | DL41: 0.08475894246 | DM41: 0.09020217729 | DN41: 0.16562986 | DO41: 0.1088646967 | DP41: 0 | DQ41: 0.0933125972 | DR41: 0.01710730949 | DS41: 0 | DT41: 0 | DU41: 0 | DV41: 0.00699844479 | DW41: 0.0233281493 | DX41: 0 | DY41: 0 | DZ41: 0.00466562986 | EA41: 0.02799377916 | EB41: 0 | EC41: 0 | ED41: 0.01944012442 | EE41: 0 | EF41: 0 | EG41: 0 | EH41: 0 | EI41: 90000 | EJ41: 2 | EK41: 2 | EL41: 360 | EM41: 19454.77 | EN41: 7071.4 | EO41: 62 | EP41: 4 | EQ41: 21.81 | ER41: 1.25 | ES41: 1 | ET41: 42.23 | EU41: 209.9533437 | EV41: 0.00466562986 | EW41: 0.00466562986 | EX41: 0.8398133748 | EY41: 45.38437792 | EZ41: 16.4962675 | FA41: 0.1446345257 | FB41: 0.00933125972 | FC41: 0.05087869362 | FD41: 0.002916018663 | FE41: 0.00233281493 | FF41: 0.09851477449 | FG41: 0.3634789823 | FH41: 0.4686673218 | FI41: 0.03023660141 | FJ41: 0.1648650692 | FK41: 0.009448937939 | FL41: 0.007559150352 | FM41: 0.3192229193
A42: 190805997 | B42: Viešoji įstaiga Raseinių technologijos ir verslo mokykla | C42: 2772.112996 | D42: 1112743.268 | E42: 425.0833333 | F42: 228.6666667 | G42: 228.6666667 | H42: 112 | I42: 0 | J42: 0 | K42: 0 | L42: 184.6666667 | M42: 44 | N42: 0.6712328767 | O42: 0.6712328767 | P42: 0.2847983009 | Q42: 0 | R42: 0 | S42: 0 | T42: 0 | U42: 0.542074364 | V42: 0.1291585127 | W42: 0 | X42: 0 | Y42: 0 | Z42: 0 | AB42: 0 | AC42: 11.66666667 | AD42: 173 | AE42: 0 | AF42: 0 | AG42: 0 | AH42: 0 | AI42: 44 | AJ42: 0 | AK42: 0 | AL42: 2.666666667 | AM42: 0 | AN42: 4 | AO42: 0 | AP42: 0 | AQ42: 0 | AR42: 0 | AS42: 7.333333333 | AT42: 0 | AU42: 0 | AV42: 0 | AW42: 16.33333333 | AX42: 0 | AY42: 0 | AZ42: 17.33333333 | BA42: 10.33333333 | BB42: 0 | BC42: 8.666666667 | BD42: 69.66666667 | BE42: 4.666666667 | BF42: 0 | BG42: 27.33333333 | BH42: 25.33333333 | BI42: 62 | BJ42: 0 | BK42: 20 | BL42: 11 | BM42: 0 | BN42: 0 | BO42: 0 | BP42: 0 | BQ42: 18.66666667 | BR42: 29.33333333 | BS42: 0 | BT42: 0 | BU42: 0 | BV42: 0 | BW42: 0 | BX42: 3.333333333 | BY42: 60.66666667 | BZ42: 0 | CA42: 0 | CB42: 0 | CC42: 0 | CD42: 0 | CE42: 0 | CF42: 0 | CG42: 0 | CH42: 0 | CI42: 0.03424657534 | CJ42: 0.5078277886 | CK42: 0 | CL42: 0 | CM42: 0 | CN42: 0 | CO42: 0.1291585127 | CP42: 0 | CQ42: 0 | CR42: 0.00782778865 | CS42: 0 | CT42: 0.01174168297 | CU42: 0 | CV42: 0 | CW42: 0 | CX42: 0 | CY42: 0.02152641879 | CZ42: 0 | DA42: 0 | DB42: 0 | DC42: 0.04794520548 | DD42: 0 | DE42: 0 | DF42: 0.05088062622 | DG42: 0.03033268102 | DH42: 0 | DI42: 0.02544031311 | DJ42: 0.2045009785 | DK42: 0.01369863014 | DL42: 0 | DM42: 0.08023483366 | DN42: 0.07436399217 | DO42: 0.1819960861 | DP42: 0 | DQ42: 0.05870841487 | DR42: 0.03228962818 | DS42: 0 | DT42: 0 | DU42: 0 | DV42: 0 | DW42: 0.05479452055 | DX42: 0.08610567515 | DY42: 0 | DZ42: 0 | EA42: 0 | EB42: 0 | EC42: 0 | ED42: 0.009784735812 | EE42: 0.1780821918 | EF42: 0 | EG42: 0 | EH42: 0 | EI42: 79000 | EJ42: 1 | EK42: 1 | EL42: 195 | EM42: 13341 | EN42: 7311.68 | EO42: 29 | EP42: 3 | EQ42: 7 | ER42: 0 | ES42: 0 | ET42: 27 | EU42: 231.8982387 | EV42: 0.002935420744 | EW42: 0.002935420744 | EX42: 0.572407045 | EY42: 39.16144814 | EZ42: 21.46285714 | FA42: 0.08512720157 | FB42: 0.008806262231 | FC42: 0.02054794521 | FD42: 0 | FE42: 0 | FF42: 0.07925636008 | FG42: 0.548060865 | FH42: 0.4393939394 | FI42: 0.04545454545 | FJ42: 0.1060606061 | FK42: 0 | FL42: 0 | FM42: 0.4090909091
A43: 190804895 | B43: Rokiškio technologijos, verslo ir žemės ūkio mokykla | C43: 1875.168273 | D43: 879078.76 | E43: 481.0833333 | F43: 305 | G43: 300 | H43: 103.6666667 | I43: 5 | J43: 5 | K43: 66 | L43: 71 | M43: 168 | N43: 0.7463295269 | O43: 0.7340946166 | P43: 0.3393844778 | Q43: 0.01223491028 | R43: 0.01223491028 | S43: 0.003058727569 | T43: 0.1615008157 | U43: 0.1737357259 | V43: 0.4110929853 | W43: 61 | X43: 0 | Y43: 5 | Z43: 0 | AB43: 0 | AC43: 0 | AD43: 71 | AE43: 0 | AF43: 0 | AG43: 0 | AH43: 0 | AI43: 168 | AJ43: 0 | AK43: 0 | AL43: 6.666666667 | AM43: 0 | AN43: 85.33333333 | AO43: 0 | AP43: 0 | AQ43: 0 | AR43: 24 | AS43: 0 | AT43: 0 | AU43: 0 | AV43: 0 | AW43: 0 | AX43: 0 | AY43: 0 | AZ43: 9 | BA43: 0 | BB43: 0 | BC43: 24 | BD43: 27.33333333 | BE43: 13.66666667 | BF43: 0 | BG43: 124.6666667 | BH43: 53.66666667 | BI43: 42.66666667 | BJ43: 7.666666667 | BK43: 11.33333333 | BL43: 0 | BM43: 0 | BN43: 0 | BO43: 0 | BP43: 0 | BQ43: 11.33333333 | BR43: 0 | BS43: 14.66666667 | BT43: 0 | BU43: 0 | BV43: 0 | BW43: 9 | BX43: 6 | BY43: 62.66666667 | BZ43: 0 | CA43: 0 | CB43: 0 | CC43: 0.1492659054 | CD43: 0 | CE43: 0.01223491028 | CF43: 0 | CG43: 0 | CH43: 0 | CI43: 0 | CJ43: 0.1737357259 | CK43: 0 | CL43: 0 | CM43: 0 | CN43: 0 | CO43: 0.4110929853 | CP43: 0 | CQ43: 0 | CR43: 0.0163132137 | CS43: 0 | CT43: 0.2088091354 | CU43: 0 | CV43: 0 | CW43: 0 | CX43: 0.05872756933 | CY43: 0 | CZ43: 0 | DA43: 0 | DB43: 0 | DC43: 0 | DD43: 0 | DE43: 0 | DF43: 0.0220228385 | DG43: 0 | DH43: 0 | DI43: 0.05872756933 | DJ43: 0.06688417618 | DK43: 0.03344208809 | DL43: 0 | DM43: 0.3050570962 | DN43: 0.1313213703 | DO43: 0.1044045677 | DP43: 0.01876019576 | DQ43: 0.0277324633 | DR43: 0 | DS43: 0 | DT43: 0 | DU43: 0 | DV43: 0 | DW43: 0.0277324633 | DX43: 0 | DY43: 0.03588907015 | DZ43: 0 | EA43: 0 | EB43: 0 | EC43: 0.0220228385 | ED43: 0.01468189233 | EE43: 0.1533442088 | EF43: 0 | EG43: 0 | EH43: 0 | EI43: 99000 | EJ43: 1 | EK43: 1 | EL43: 45 | EM43: 3847.81 | EN43: 2378.25 | EO43: 30 | EP43: 2 | EQ43: 6 | ER43: 0 | ES43: 1 | ET43: 18.25 | EU43: 242.2512235 | EV43: 0.002446982055 | EW43: 0.002446982055 | EX43: 0.1101141925 | EY43: 9.415522023 | EZ43: 5.819535073 | FA43: 0.07340946166 | FB43: 0.004893964111 | FC43: 0.01468189233 | FD43: 0 | FE43: 0.002446982055 | FF43: 0.04465742251 | FG43: 0.6180788552 | FH43: 0.5240174672 | FI43: 0.03493449782 | FJ43: 0.1048034934 | FK43: 0 | FL43: 0.01746724891 | FM43: 0.3187772926
A44: 190804176 | B44: Dieveniškių technologijų ir verslo mokykla | C44: 2792.957016 | D44: 606093.42 | E44: 239.0833333 | F44: 55.33333333 | G44: 55.33333333 | H44: 66 | I44: 0 | J44: 0 | K44: 0 | L44: 46 | M44: 9.333333333 | N44: 0.456043956 | O44: 0.456043956 | P44: 0.3156368845 | Q44: 0 | R44: 0 | S44: 0 | T44: 0 | U44: 0.3791208791 | V44: 0.07692307692 | W44: 0 | X44: 0 | Y44: 0 | Z44: 0 | AB44: 4 | AC44: 0 | AD44: 42 | AE44: 0 | AF44: 0 | AG44: 0 | AH44: 0 | AI44: 9.333333333 | AJ44: 0 | AK44: 0 | AL44: 0 | AM44: 0 | AN44: 28.66666667 | AO44: 0 | AP44: 0 | AQ44: 0 | AR44: 14.33333333 | AS44: 0 | AT44: 0 | AU44: 0 | AV44: 0 | AW44: 0 | AX44: 0 | AY44: 0 | AZ44: 12.33333333 | BA44: 0 | BB44: 0 | BC44: 0 | BD44: 13.33333333 | BE44: 0 | BF44: 2 | BG44: 3.333333333 | BH44: 8.666666667 | BI44: 25.33333333 | BJ44: 0 | BK44: 0 | BL44: 0 | BM44: 2.666666667 | BN44: 0 | BO44: 0 | BP44: 0 | BQ44: 0 | BR44: 0 | BS44: 26.33333333 | BT44: 0 | BU44: 3.666666667 | BV44: 0 | BW44: 0 | BX44: 0 | BY44: 36 | BZ44: 0 | CA44: 0 | CB44: 0 | CC44: 0 | CD44: 0 | CE44: 0 | CF44: 0 | CG44: 0 | CH44: 0.03296703297 | CI44: 0 | CJ44: 0.3461538462 | CK44: 0 | CL44: 0 | CM44: 0 | CN44: 0 | CO44: 0.07692307692 | CP44: 0 | CQ44: 0 | CR44: 0 | CS44: 0 | CT44: 0.2362637363 | CU44: 0 | CV44: 0 | CW44: 0 | CX44: 0.1181318681 | CY44: 0 | CZ44: 0 | DA44: 0 | DB44: 0 | DC44: 0 | DD44: 0 | DE44: 0 | DF44: 0.1016483516 | DG44: 0 | DH44: 0 | DI44: 0 | DJ44: 0.1098901099 | DK44: 0 | DL44: 0.01648351648 | DM44: 0.02747252747 | DN44: 0.07142857143 | DO44: 0.2087912088 | DP44: 0 | DQ44: 0 | DR44: 0 | DS44: 0.02197802198 | DT44: 0 | DU44: 0 | DV44: 0 | DW44: 0 | DX44: 0 | DY44: 0.217032967 | DZ44: 0 | EA44: 0.03021978022 | EB44: 0 | EC44: 0 | ED44: 0 | EE44: 0.2967032967 | EF44: 0 | EG44: 0 | EH44: 0 | EI44: 144000 | EJ44: 1 | EK44: 1 | EL44: 90 | EM44: 13877.56 | EN44: 7274.47 | EO44: 14 | EP44: 1 | EQ44: 3.5 | ER44: 0 | ES44: 0 | ET44: 4.5 | EU44: 1186.813187 | EV44: 0.008241758242 | EW44: 0.008241758242 | EX44: 0.7417582418 | EY44: 114.3754945 | EZ44: 59.95442308 | FA44: 0.1153846154 | FB44: 0.008241758242 | FC44: 0.02884615385 | FD44: 0 | FE44: 0 | FF44: 0.03708791209 | FG44: 0.5241894108 | FH44: 0.6086956522 | FI44: 0.04347826087 | FJ44: 0.152173913 | FK44: 0 | FL44: 0 | FM44: 0.1956521739
A45: 144132264 | B45: Viešoji įstaiga Šiaulių darbo rinkos mokymo centras | C45: 1397.247502 | D45: 2504227.692 | E45: 1791.333333 | F45: 76 | G45: 76 | H45: 1456 | I45: 0 | J45: 0 | K45: 0 | L45: 0 | M45: 76 | N45: 0.04960835509 | O45: 0.04960835509 | P45: 0.9810333257 | Q45: 0 | R45: 0 | S45: 0 | T45: 0 | U45: 0 | V45: 0.04960835509 | W45: 0 | X45: 0 | Y45: 0 | Z45: 0 | AB45: 0 | AC45: 0 | AD45: 0 | AE45: 0 | AF45: 0 | AG45: 0 | AH45: 0 | AI45: 76 | AJ45: 0 | AK45: 0 | AL45: 232 | AM45: 68.66666667 | AN45: 200.6666667 | AO45: 0 | AP45: 5.333333333 | AQ45: 0 | AR45: 60 | AS45: 403 | AT45: 158.6666667 | AU45: 2.666666667 | AV45: 0 | AW45: 333.3333333 | AX45: 2.666666667 | AY45: 0 | AZ45: 67.66666667 | BA45: 9.333333333 | BB45: 3.333333333 | BC45: 0 | BD45: 16 | BE45: 3.333333333 | BF45: 0 | BG45: 8 | BH45: 0 | BI45: 30 | BJ45: 0 | BK45: 5.666666667 | BL45: 0 | BM45: 0 | BN45: 0 | BO45: 13 | BP45: 10.66666667 | BQ45: 98.33333333 | BR45: 142 | BS45: 0 | BT45: 16.33333333 | BU45: 22.66666667 | BV45: 8.666666667 | BW45: 56.66666667 | BX45: 41.33333333 | BY45: 1001.333333 | BZ45: 0 | CA45: 0 | CB45: 58 | CC45: 0 | CD45: 0 | CE45: 0 | CF45: 0 | CG45: 0 | CH45: 0 | CI45: 0 | CJ45: 0 | CK45: 0 | CL45: 0 | CM45: 0 | CN45: 0 | CO45: 0.04960835509 | CP45: 0 | CQ45: 0 | CR45: 0.1514360313 | CS45: 0.04482158399 | CT45: 0.1309834639 | CU45: 0 | CV45: 0.003481288077 | CW45: 0 | CX45: 0.03916449086 | CY45: 0.2630548303 | CZ45: 0.1035683203 | DA45: 0.001740644038 | DB45: 0 | DC45: 0.2175805048 | DD45: 0.001740644038 | DE45: 0 | DF45: 0.04416884247 | DG45: 0.006092254134 | DH45: 0.002175805048 | DI45: 0 | DJ45: 0.01044386423 | DK45: 0.002175805048 | DL45: 0 | DM45: 0.005221932115 | DN45: 0 | DO45: 0.01958224543 | DP45: 0 | DQ45: 0.003698868581 | DR45: 0 | DS45: 0 | DT45: 0 | DU45: 0.008485639687 | DV45: 0.006962576153 | DW45: 0.06418624891 | DX45: 0.09268929504 | DY45: 0 | DZ45: 0.01066144473 | EA45: 0.01479547433 | EB45: 0.005657093124 | EC45: 0.03698868581 | ED45: 0.02697998259 | EE45: 0.6536118364 | EF45: 0 | EG45: 0 | EH45: 0.03785900783 | EI45: 182076.36 | EJ45: 1 | EK45: 1 | EL45: 8 | EM45: 5285.91 | EN45: 3632.08 | EO45: 37 | EP45: 0 | EQ45: 0 | ER45: 0 | ES45: 0 | ET45: 0 | EU45: 118.848799 | EV45: 0.0006527415144 | EW45: 0.0006527415144 | EX45: 0.005221932115 | EY45: 3.450332898 | EZ45: 2.370809399 | FA45: 0.02415143603 | FB45: 0 | FC45: 0 | FD45: 0 | FE45: 0 | FF45: 0 | FG45: 0.6871248281 | FH45: 1 | FI45: 0 | FJ45: 0 | FK45: 0 | FL45: 0 | FM45: 0
A46: 300039668 | B46: Šiaulių profesinio rengimo centras | C46: 2568.201768 | D46: 5259628.145 | E46: 2064.5 | F46: 1591.666667 | G46: 1400 | H46: 245.3333333 | I46: 192 | J46: 105.6666667 | K46: 89.33333333 | L46: 872.3333333 | M46: 630.3333333 | N46: 0.8664489203 | O46: 0.7621121394 | P46: 0.05579708199 | Q46: 0.1045182363 | R46: 0.05752132099 | S46: 0.09117447708 | T46: 0.0486300127 | U46: 0.4748684449 | V46: 0.343131918 | W46: 0 | X46: 0 | Y46: 7.333333333 | Z46: 82 | AB46: 137.6666667 | AC46: 0 | AD46: 734.6666667 | AE46: 0 | AF46: 0 | AG46: 0 | AH46: 0 | AI46: 630.3333333 | AJ46: 0 | AK46: 0 | AL46: 14.66666667 | AM46: 5.333333333 | AN46: 17.33333333 | AO46: 0 | AP46: 0 | AQ46: 0 | AR46: 4 | AS46: 0 | AT46: 0 | AU46: 0 | AV46: 0 | AW46: 0 | AX46: 0 | AY46: 0 | AZ46: 107 | BA46: 1.666666667 | BB46: 0 | BC46: 105.6666667 | BD46: 358.3333333 | BE46: 90 | BF46: 2 | BG46: 355 | BH46: 211 | BI46: 367.6666667 | BJ46: 11 | BK46: 26 | BL46: 0 | BM46: 52 | BN46: 0 | BO46: 13.33333333 | BP46: 13.66666667 | BQ46: 12.33333333 | BR46: 86 | BS46: 0 | BT46: 26.33333333 | BU46: 42.66666667 | BV46: 11.33333333 | BW46: 0 | BX46: 11.66666667 | BY46: 41.33333333 | BZ46: 0 | CA46: 0 | CB46: 0 | CC46: 0 | CD46: 0 | CE46: 0.003992015968 | CF46: 0.04463799673 | CG46: 0 | CH46: 0.07494102704 | CI46: 0 | CJ46: 0.3999274179 | CK46: 0 | CL46: 0 | CM46: 0 | CN46: 0 | CO46: 0.343131918 | CP46: 0 | CQ46: 0 | CR46: 0.007984031936 | CS46: 0.00290328434 | CT46: 0.009435674106 | CU46: 0 | CV46: 0 | CW46: 0 | CX46: 0.002177463255 | CY46: 0 | CZ46: 0 | DA46: 0 | DB46: 0 | DC46: 0 | DD46: 0 | DE46: 0 | DF46: 0.05824714208 | DG46: 0.0009072763564 | DH46: 0 | DI46: 0.05752132099 | DJ46: 0.1950644166 | DK46: 0.04899292324 | DL46: 0.001088731628 | DM46: 0.1932498639 | DN46: 0.1148611867 | DO46: 0.2001451642 | DP46: 0.005988023952 | DQ46: 0.01415351116 | DR46: 0 | DS46: 0.02830702232 | DT46: 0 | DU46: 0.007258210851 | DV46: 0.007439666122 | DW46: 0.006713845037 | DX46: 0.04681545999 | DY46: 0 | DZ46: 0.01433496643 | EA46: 0.02322627472 | EB46: 0.006169479223 | EC46: 0 | ED46: 0.006350934495 | EE46: 0.02250045364 | EF46: 0 | EG46: 0 | EH46: 0 | EI46: 70000 | EJ46: 6 | EK46: 5 | EL46: 885 | EM46: 42377.29 | EN46: 27210.41 | EO46: 166 | EP46: 7 | EQ46: 44 | ER46: 0 | ES46: 0 | ET46: 112.5 | EU46: 38.10560697 | EV46: 0.003266194883 | EW46: 0.002721829069 | EX46: 0.4817637452 | EY46: 23.06874796 | EZ46: 14.81241698 | FA46: 0.0903647251 | FB46: 0.003810560697 | FC46: 0.02395209581 | FD46: 0 | FE46: 0 | FF46: 0.06124115406 | FG46: 0.6420988695 | FH46: 0.5037936267 | FI46: 0.02124430956 | FJ46: 0.1335356601 | FK46: 0 | FL46: 0 | FM46: 0.3414264036
A47: 190087881 | B47: Viešoji įstaiga Kuršėnų politechnikos mokykla | C47: 3383.520293 | D47: 1179408.728 | E47: 360.25 | F47: 277.3333333 | G47: 265 | H47: 20.33333333 | I47: 12.33333333 | J47: 7.666666667 | K47: 17.66666667 | L47: 188.6666667 | M47: 71 | N47: 0.9316909295 | O47: 0.8902575588 | P47: 0.01707726764 | Q47: 0.04143337066 | R47: 0.02575587906 | S47: 0.02360344029 | T47: 0.05935050392 | U47: 0.633818589 | V47: 0.2385218365 | W47: 0 | X47: 0 | Y47: 1.666666667 | Z47: 16 | AB47: 27.33333333 | AC47: 0 | AD47: 161.3333333 | AE47: 0 | AF47: 0 | AG47: 0 | AH47: 0 | AI47: 71 | AJ47: 0 | AK47: 0 | AL47: 0 | AM47: 0 | AN47: 0 | AO47: 0 | AP47: 0 | AQ47: 0 | AR47: 0 | AS47: 0 | AT47: 0 | AU47: 0 | AV47: 0 | AW47: 0 | AX47: 0 | AY47: 0 | AZ47: 20.33333333 | BA47: 0 | BB47: 0 | BC47: 8.666666667 | BD47: 62.33333333 | BE47: 6 | BF47: 0 | BG47: 52 | BH47: 52.33333333 | BI47: 78 | BJ47: 0 | BK47: 4 | BL47: 0 | BM47: 14 | BN47: 0 | BO47: 0 | BP47: 0 | BQ47: 4 | BR47: 7.333333333 | BS47: 0 | BT47: 0 | BU47: 9 | BV47: 0 | BW47: 0 | BX47: 0 | BY47: 0 | BZ47: 0 | CA47: 0 | CB47: 0 | CC47: 0 | CD47: 0 | CE47: 0.005599104143 | CF47: 0.05375139978 | CG47: 0 | CH47: 0.09182530795 | CI47: 0 | CJ47: 0.5419932811 | CK47: 0 | CL47: 0 | CM47: 0 | CN47: 0 | CO47: 0.2385218365 | CP47: 0 | CQ47: 0 | CR47: 0 | CS47: 0 | CT47: 0 | CU47: 0 | CV47: 0 | CW47: 0 | CX47: 0 | CY47: 0 | CZ47: 0 | DA47: 0 | DB47: 0 | DC47: 0 | DD47: 0 | DE47: 0 | DF47: 0.06830907055 | DG47: 0 | DH47: 0 | DI47: 0.02911534155 | DJ47: 0.209406495 | DK47: 0.02015677492 | DL47: 0 | DM47: 0.1746920493 | DN47: 0.1758118701 | DO47: 0.2620380739 | DP47: 0 | DQ47: 0.01343784994 | DR47: 0 | DS47: 0.0470324748 | DT47: 0 | DU47: 0 | DV47: 0 | DW47: 0.01343784994 | DX47: 0.02463605823 | DY47: 0 | DZ47: 0 | EA47: 0.03023516237 | EB47: 0 | EC47: 0 | ED47: 0 | EE47: 0 | EF47: 0 | EG47: 0 | EH47: 0 | EI47: 107300 | EJ47: 1 | EK47: 1 | EL47: 384 | EM47: 9059.66 | EN47: 1426 | EO47: 38 | EP47: 2 | EQ47: 9.7 | ER47: 0 | ES47: 3 | ET47: 24.6 | EU47: 360.4703247 | EV47: 0.003359462486 | EW47: 0.003359462486 | EX47: 1.290033595 | EY47: 30.43558791 | EZ47: 4.790593505 | FA47: 0.1276595745 | FB47: 0.006718924972 | FC47: 0.03258678611 | FD47: 0 | FE47: 0.01007838746 | FF47: 0.08264277716 | FG47: 0.1574010504 | FH47: 0.4915912031 | FI47: 0.02587322122 | FJ47: 0.1254851229 | FK47: 0 | FL47: 0.03880983182 | FM47: 0.318240621
A48: 190965375 | B48: Šilutės profesinio mokymo centras | C48: 2927.73354 | D48: 2075583.492 | E48: 708.6666667 | F48: 626 | G48: 581.3333333 | H48: 87 | I48: 44.66666667 | J48: 37.33333333 | K48: 95.33333333 | L48: 348 | M48: 182.6666667 | N48: 0.8779803647 | O48: 0.8153342683 | P48: 0.1672944136 | Q48: 0.06264609631 | R48: 0.05236091632 | S48: 0.0503507798 | T48: 0.1337073399 | U48: 0.4880785414 | V48: 0.2561944834 | W48: 12 | X48: 4 | Y48: 4 | Z48: 75.33333333 | AB48: 41 | AC48: 0 | AD48: 307 | AE48: 0 | AF48: 0 | AG48: 0 | AH48: 0 | AI48: 182.6666667 | AJ48: 0 | AK48: 0 | AL48: 0 | AM48: 0 | AN48: 96.33333333 | AO48: 0 | AP48: 0 | AQ48: 0 | AR48: 0 | AS48: 0 | AT48: 0 | AU48: 0 | AV48: 0 | AW48: 0 | AX48: 0 | AY48: 0 | AZ48: 14.66666667 | BA48: 0 | BB48: 0 | BC48: 38 | BD48: 102.6666667 | BE48: 36.33333333 | BF48: 63.66666667 | BG48: 97.66666667 | BH48: 68 | BI48: 138.6666667 | BJ48: 7.666666667 | BK48: 29.33333333 | BL48: 0 | BM48: 24 | BN48: 0 | BO48: 20 | BP48: 0 | BQ48: 0 | BR48: 0 | BS48: 39.33333333 | BT48: 0 | BU48: 0 | BV48: 0 | BW48: 0 | BX48: 0 | BY48: 47.66666667 | BZ48: 0 | CA48: 0 | CB48: 0 | CC48: 0.01683029453 | CD48: 0.005610098177 | CE48: 0.005610098177 | CF48: 0.105656849 | CG48: 0 | CH48: 0.05750350631 | CI48: 0 | CJ48: 0.4305750351 | CK48: 0 | CL48: 0 | CM48: 0 | CN48: 0 | CO48: 0.2561944834 | CP48: 0 | CQ48: 0 | CR48: 0 | CS48: 0 | CT48: 0.1351098644 | CU48: 0 | CV48: 0 | CW48: 0 | CX48: 0 | CY48: 0 | CZ48: 0 | DA48: 0 | DB48: 0 | DC48: 0 | DD48: 0 | DE48: 0 | DF48: 0.02057035998 | DG48: 0 | DH48: 0 | DI48: 0.05329593268 | DJ48: 0.1439925199 | DK48: 0.05095839177 | DL48: 0.08929406265 | DM48: 0.1369798971 | DN48: 0.095371669 | DO48: 0.1944834035 | DP48: 0.01075268817 | DQ48: 0.04114071996 | DR48: 0 | DS48: 0.03366058906 | DT48: 0 | DU48: 0.02805049088 | DV48: 0 | DW48: 0 | DX48: 0 | DY48: 0.0551659654 | DZ48: 0 | EA48: 0 | EB48: 0 | EC48: 0 | ED48: 0 | EE48: 0.06685366994 | EF48: 0 | EG48: 0 | EH48: 0 | EI48: 23120 | EJ48: 3 | EK48: 2 | EL48: 305 | EM48: 11866.06 | EN48: 8170.74 | EO48: 58 | EP48: 3 | EQ48: 19 | ER48: 0 | ES48: 0 | ET48: 54 | EU48: 32.42636746 | EV48: 0.004207573633 | EW48: 0.002805049088 | EX48: 0.427769986 | EY48: 16.64244039 | EZ48: 11.45966339 | FA48: 0.08134642356 | FB48: 0.004207573633 | FC48: 0.02664796634 | FD48: 0 | FE48: 0 | FF48: 0.07573632539 | FG48: 0.6885807083 | FH48: 0.4328358209 | FI48: 0.0223880597 | FJ48: 0.1417910448 | FK48: 0 | FL48: 0 | FM48: 0.4029850746
A49: 111967488 | B49: Skuodo amatų ir paslaugų mokykla | C49: 2961.222066 | D49: 431288.1775 | E49: 147.4166667 | F49: 123.6666667 | G49: 123.6666667 | H49: 4.666666667 | I49: 0 | J49: 0 | K49: 0 | L49: 104.3333333 | M49: 19.33333333 | N49: 0.9636363636 | O49: 0.9636363636 | P49: 0.009090909091 | Q49: 0 | R49: 0 | S49: 0 | T49: 0 | U49: 0.812987013 | V49: 0.1506493506 | W49: 0 | X49: 0 | Y49: 0 | Z49: 0 | AB49: 6 | AC49: 0 | AD49: 98.33333333 | AE49: 0 | AF49: 0 | AG49: 0 | AH49: 0 | AI49: 19.33333333 | AJ49: 0 | AK49: 0 | AL49: 0 | AM49: 0 | AN49: 0 | AO49: 0 | AP49: 0 | AQ49: 0 | AR49: 0 | AS49: 0 | AT49: 0 | AU49: 0 | AV49: 0 | AW49: 0 | AX49: 0 | AY49: 0 | AZ49: 4.666666667 | BA49: 0 | BB49: 0 | BC49: 0 | BD49: 28.66666667 | BE49: 0 | BF49: 0 | BG49: 39 | BH49: 51.33333333 | BI49: 4.666666667 | BJ49: 0 | BK49: 0 | BL49: 0 | BM49: 0 | BN49: 0 | BO49: 0 | BP49: 0 | BQ49: 2.333333333 | BR49: 0 | BS49: 0 | BT49: 2.333333333 | BU49: 0 | BV49: 0 | BW49: 0 | BX49: 0 | BY49: 0 | BZ49: 0 | CA49: 0 | CB49: 0 | CC49: 0 | CD49: 0 | CE49: 0 | CF49: 0 | CG49: 0 | CH49: 0.04675324675 | CI49: 0 | CJ49: 0.7662337662 | CK49: 0 | CL49: 0 | CM49: 0 | CN49: 0 | CO49: 0.1506493506 | CP49: 0 | CQ49: 0 | CR49: 0 | CS49: 0 | CT49: 0 | CU49: 0 | CV49: 0 | CW49: 0 | CX49: 0 | CY49: 0 | CZ49: 0 | DA49: 0 | DB49: 0 | DC49: 0 | DD49: 0 | DE49: 0 | DF49: 0.03636363636 | DG49: 0 | DH49: 0 | DI49: 0 | DJ49: 0.2233766234 | DK49: 0 | DL49: 0 | DM49: 0.3038961039 | DN49: 0.4 | DO49: 0.03636363636 | DP49: 0 | DQ49: 0 | DR49: 0 | DS49: 0 | DT49: 0 | DU49: 0 | DV49: 0 | DW49: 0.01818181818 | DX49: 0 | DY49: 0 | DZ49: 0.01818181818 | EA49: 0 | EB49: 0 | EC49: 0 | ED49: 0 | EE49: 0 | EF49: 0 | EG49: 0 | EH49: 0 | EI49: 23600 | EJ49: 1 | EK49: 1 | EL49: 40 | EM49: 2478.98 | EN49: 983.46 | EO49: 18 | EP49: 1 | EQ49: 6.75 | ER49: 0 | ES49: 0 | ET49: 9.75 | EU49: 183.8961039 | EV49: 0.007792207792 | EW49: 0.007792207792 | EX49: 0.3116883117 | EY49: 19.31672727 | EZ49: 7.663324675 | FA49: 0.1402597403 | FB49: 0.007792207792 | FC49: 0.0525974026 | FD49: 0 | FE49: 0 | FF49: 0.07597402597 | FG49: 0.3967196186 | FH49: 0.5070422535 | FI49: 0.02816901408 | FJ49: 0.1901408451 | FK49: 0 | FL49: 0 | FM49: 0.2746478873
A50: 111963842 | B50: Švenčionių profesinio rengimo centras | C50: 2769.797347 | D50: 1247544.555 | E50: 469.8333333 | F50: 283 | G50: 281.6666667 | H50: 78.33333333 | I50: 1.333333333 | J50: 1.333333333 | K50: 12 | L50: 99.33333333 | M50: 171.6666667 | N50: 0.7832103321 | O50: 0.7795202952 | P50: 0.1902990935 | Q50: 0.0036900369 | R50: 0.0036900369 | S50: 0.001524918864 | T50: 0.0332103321 | U50: 0.2749077491 | V50: 0.4750922509 | W50: 7.333333333 | X50: 4.666666667 | Y50: 0 | Z50: 0 | AB50: 9.666666667 | AC50: 0 | AD50: 89.66666667 | AE50: 0 | AF50: 0 | AG50: 0 | AH50: 0 | AI50: 171.6666667 | AJ50: 0 | AK50: 0 | AL50: 0 | AM50: 0.6666666667 | AN50: 47.33333333 | AO50: 0 | AP50: 0 | AQ50: 0 | AR50: 17.33333333 | AS50: 0 | AT50: 0 | AU50: 0 | AV50: 0 | AW50: 0 | AX50: 0 | AY50: 0 | AZ50: 29 | BA50: 1.666666667 | BB50: 0.3333333333 | BC50: 7.333333333 | BD50: 37.33333333 | BE50: 12.33333333 | BF50: 29.33333333 | BG50: 58 | BH50: 25 | BI50: 57.33333333 | BJ50: 16.33333333 | BK50: 0 | BL50: 7.333333333 | BM50: 0 | BN50: 0 | BO50: 32.66666667 | BP50: 0 | BQ50: 5 | BR50: 0 | BS50: 15.66666667 | BT50: 6.333333333 | BU50: 5 | BV50: 0 | BW50: 26.33333333 | BX50: 0 | BY50: 20 | BZ50: 0 | CA50: 0 | CB50: 0 | CC50: 0.02029520295 | CD50: 0.01291512915 | CE50: 0 | CF50: 0 | CG50: 0 | CH50: 0.02675276753 | CI50: 0 | CJ50: 0.2481549815 | CK50: 0 | CL50: 0 | CM50: 0 | CN50: 0 | CO50: 0.4750922509 | CP50: 0 | CQ50: 0 | CR50: 0 | CS50: 0.00184501845 | CT50: 0.13099631 | CU50: 0 | CV50: 0 | CW50: 0 | CX50: 0.0479704797 | CY50: 0 | CZ50: 0 | DA50: 0 | DB50: 0 | DC50: 0 | DD50: 0 | DE50: 0 | DF50: 0.08025830258 | DG50: 0.004612546125 | DH50: 0.0009225092251 | DI50: 0.02029520295 | DJ50: 0.1033210332 | DK50: 0.03413284133 | DL50: 0.08118081181 | DM50: 0.1605166052 | DN50: 0.06918819188 | DO50: 0.1586715867 | DP50: 0.04520295203 | DQ50: 0 | DR50: 0.02029520295 | DS50: 0 | DT50: 0 | DU50: 0.09040590406 | DV50: 0 | DW50: 0.01383763838 | DX50: 0 | DY50: 0.04335793358 | DZ50: 0.01752767528 | EA50: 0.01383763838 | EB50: 0 | EC50: 0.07287822878 | ED50: 0 | EE50: 0.05535055351 | EF50: 0 | EG50: 0 | EH50: 0 | EI50: 286270.06 | EJ50: 1 | EK50: 1 | EL50: 70 | EM50: 3330.29 | EN50: 1998.12 | EO50: 35 | EP50: 4 | EQ50: 8 | ER50: 0 | ES50: 0 | ET50: 37.5 | EU50: 792.2603137 | EV50: 0.002767527675 | EW50: 0.002767527675 | EX50: 0.1937269373 | EY50: 9.216669742 | EZ50: 5.529852399 | FA50: 0.09686346863 | FB50: 0.0110701107 | FC50: 0.0221402214 | FD50: 0 | FE50: 0 | FF50: 0.1037822878 | FG50: 0.5999837852 | FH50: 0.4142011834 | FI50: 0.04733727811 | FJ50: 0.09467455621 | FK50: 0 | FL50: 0 | FM50: 0.4437869822
A51: 190807286 | B51: Tauragės profesinio rengimo centras | C51: 2496.123687 | D51: 1619119.927 | E51: 702.1666667 | F51: 320.3333333 | G51: 320.3333333 | H51: 122.6666667 | I51: 0 | J51: 0 | K51: 0 | L51: 296.3333333 | M51: 24 | N51: 0.7231000752 | O51: 0.7231000752 | P51: 0.3837159728 | Q51: 0 | R51: 0 | S51: 0 | T51: 0 | U51: 0.668924003 | V51: 0.05417607223 | W51: 0 | X51: 0 | Y51: 0 | Z51: 0 | AB51: 44.66666667 | AC51: 0 | AD51: 251.6666667 | AE51: 0 | AF51: 0 | AG51: 0 | AH51: 0 | AI51: 24 | AJ51: 0 | AK51: 0 | AL51: 48.66666667 | AM51: 9.333333333 | AN51: 112.3333333 | AO51: 0 | AP51: 0 | AQ51: 0 | AR51: 28.33333333 | AS51: 0 | AT51: 17.33333333 | AU51: 0.6666666667 | AV51: 0 | AW51: 0 | AX51: 0 | AY51: 0 | AZ51: 6 | BA51: 4.666666667 | BB51: 0.6666666667 | BC51: 6.666666667 | BD51: 77.33333333 | BE51: 0 | BF51: 0 | BG51: 34.66666667 | BH51: 84.66666667 | BI51: 99.66666667 | BJ51: 0 | BK51: 0 | BL51: 0 | BM51: 17.33333333 | BN51: 0 | BO51: 0 | BP51: 0 | BQ51: 18 | BR51: 7.666666667 | BS51: 24.33333333 | BT51: 7.333333333 | BU51: 8.666666667 | BV51: 2.666666667 | BW51: 0 | BX51: 14.33333333 | BY51: 39.66666667 | BZ51: 0 | CA51: 0 | CB51: 0 | CC51: 0 | CD51: 0 | CE51: 0 | CF51: 0 | CG51: 0 | CH51: 0.10082769 | CI51: 0 | CJ51: 0.568096313 | CK51: 0 | CL51: 0 | CM51: 0 | CN51: 0 | CO51: 0.05417607223 | CP51: 0 | CQ51: 0 | CR51: 0.1098570354 | CS51: 0.02106847254 | CT51: 0.2535741159 | CU51: 0 | CV51: 0 | CW51: 0 | CX51: 0.06395786305 | CY51: 0 | CZ51: 0.03912716328 | DA51: 0.001504890895 | DB51: 0 | DC51: 0 | DD51: 0 | DE51: 0 | DF51: 0.01354401806 | DG51: 0.01053423627 | DH51: 0.001504890895 | DI51: 0.01504890895 | DJ51: 0.1745673439 | DK51: 0 | DL51: 0 | DM51: 0.07825432656 | DN51: 0.1911211437 | DO51: 0.2249811889 | DP51: 0 | DQ51: 0 | DR51: 0 | DS51: 0.03912716328 | DT51: 0 | DU51: 0 | DV51: 0 | DW51: 0.04063205418 | DX51: 0.0173062453 | DY51: 0.05492851768 | DZ51: 0.01655379985 | EA51: 0.01956358164 | EB51: 0.006019563582 | EC51: 0 | ED51: 0.03235515425 | EE51: 0.08954100828 | EF51: 0 | EG51: 0 | EH51: 0 | EI51: 430377 | EJ51: 1 | EK51: 1 | EL51: 150 | EM51: 12425.18 | EN51: 8461.53 | EO51: 42 | EP51: 4 | EQ51: 12 | ER51: 0 | ES51: 3.75 | ET51: 20.25 | EU51: 971.5056433 | EV51: 0.002257336343 | EW51: 0.002257336343 | EX51: 0.3386004515 | EY51: 28.04781038 | EZ51: 19.10051919 | FA51: 0.09480812641 | FB51: 0.009029345372 | FC51: 0.02708803612 | FD51: 0 | FE51: 0.008465011287 | FF51: 0.04571106095 | FG51: 0.6809985851 | FH51: 0.512195122 | FI51: 0.0487804878 | FJ51: 0.1463414634 | FK51: 0 | FL51: 0.04573170732 | FM51: 0.2469512195
A52: 190807514 | B52: Viešoji įstaiga Telšių regioninis profesinio mokymo centras | C52: 2714.06487 | D52: 1520881.292 | E52: 598.3333333 | F52: 371.3333333 | G52: 344.3333333 | H52: 56 | I52: 27 | J52: 26.33333333 | K52: 29 | L52: 249.6666667 | M52: 92.66666667 | N52: 0.8689547582 | O52: 0.8057722309 | P52: 0.1408743286 | Q52: 0.0631825273 | R52: 0.0616224649 | S52: 0.04946223155 | T52: 0.06786271451 | U52: 0.5842433697 | V52: 0.2168486739 | W52: 0 | X52: 0 | Y52: 1.666666667 | Z52: 27.33333333 | AB52: 43 | AC52: 0 | AD52: 206.6666667 | AE52: 0 | AF52: 0 | AG52: 0 | AH52: 0 | AI52: 92.66666667 | AJ52: 0 | AK52: 0 | AL52: 0 | AM52: 2 | AN52: 26 | AO52: 0 | AP52: 0 | AQ52: 0 | AR52: 0 | AS52: 0 | AT52: 0 | AU52: 7.333333333 | AV52: 0 | AW52: 0 | AX52: 0 | AY52: 0 | AZ52: 9 | BA52: 5 | BB52: 0.6666666667 | BC52: 31.66666667 | BD52: 95.66666667 | BE52: 6 | BF52: 0 | BG52: 65.66666667 | BH52: 82.33333333 | BI52: 77.33333333 | BJ52: 9.333333333 | BK52: 3.333333333 | BL52: 0 | BM52: 0 | BN52: 0 | BO52: 0 | BP52: 0 | BQ52: 11.66666667 | BR52: 2.666666667 | BS52: 0 | BT52: 13 | BU52: 2 | BV52: 4 | BW52: 0 | BX52: 22.66666667 | BY52: 0 | BZ52: 0 | CA52: 0 | CB52: 0 | CC52: 0 | CD52: 0 | CE52: 0.003900156006 | CF52: 0.0639625585 | CG52: 0 | CH52: 0.100624025 | CI52: 0 | CJ52: 0.4836193448 | CK52: 0 | CL52: 0 | CM52: 0 | CN52: 0 | CO52: 0.2168486739 | CP52: 0 | CQ52: 0 | CR52: 0 | CS52: 0.004680187207 | CT52: 0.0608424337 | CU52: 0 | CV52: 0 | CW52: 0 | CX52: 0 | CY52: 0 | CZ52: 0 | DA52: 0.01716068643 | DB52: 0 | DC52: 0 | DD52: 0 | DE52: 0 | DF52: 0.02106084243 | DG52: 0.01170046802 | DH52: 0.001560062402 | DI52: 0.07410296412 | DJ52: 0.2238689548 | DK52: 0.01404056162 | DL52: 0 | DM52: 0.1536661466 | DN52: 0.1926677067 | DO52: 0.1809672387 | DP52: 0.02184087363 | DQ52: 0.007800312012 | DR52: 0 | DS52: 0 | DT52: 0 | DU52: 0 | DV52: 0 | DW52: 0.02730109204 | DX52: 0.00624024961 | DY52: 0 | DZ52: 0.03042121685 | EA52: 0.004680187207 | EB52: 0.009360374415 | EC52: 0 | ED52: 0.05304212168 | EE52: 0 | EF52: 0 | EG52: 0 | EH52: 0 | EI52: 791182.09 | EJ52: 1 | EK52: 1 | EL52: 219 | EM52: 15913.03 | EN52: 9154.17 | EO52: 43 | EP52: 4 | EQ52: 12 | ER52: 0 | ES52: 1.5 | ET52: 32 | EU52: 1851.440148 | EV52: 0.002340093604 | EW52: 0.002340093604 | EX52: 0.5124804992 | EY52: 37.23797972 | EZ52: 21.42161466 | FA52: 0.100624025 | FB52: 0.009360374415 | FC52: 0.02808112324 | FD52: 0 | FE52: 0.003510140406 | FF52: 0.07488299532 | FG52: 0.5752625364 | FH52: 0.4648648649 | FI52: 0.04324324324 | FJ52: 0.1297297297 | FK52: 0 | FL52: 0.01621621622 | FM52: 0.3459459459
A53: 191425713 | B53: Ukmergės technologijų ir verslo mokykla | C53: 2517.101054 | D53: 2481491.4 | E53: 1026.166667 | F53: 533 | G53: 529 | H53: 294 | I53: 5 | J53: 1 | K53: 5.333333333 | L53: 318 | M53: 210.6666667 | N53: 0.6444981862 | O53: 0.6396614268 | P53: 0.299990972 | Q53: 0.006045949214 | R53: 0.001209189843 | S53: 0.007216654248 | T53: 0.006449012495 | U53: 0.38452237 | V53: 0.2547359936 | W53: 5.333333333 | X53: 0 | Y53: 0 | Z53: 0 | AB53: 22.33333333 | AC53: 0 | AD53: 295.6666667 | AE53: 0 | AF53: 0 | AG53: 0 | AH53: 0 | AI53: 210.6666667 | AJ53: 0 | AK53: 0 | AL53: 26.66666667 | AM53: 10 | AN53: 92 | AO53: 0 | AP53: 0 | AQ53: 0 | AR53: 31.66666667 | AS53: 13 | AT53: 0 | AU53: 6.666666667 | AV53: 0 | AW53: 0 | AX53: 0 | AY53: 0 | AZ53: 74.33333333 | BA53: 18.33333333 | BB53: 6 | BC53: 65.66666667 | BD53: 58 | BE53: 41.66666667 | BF53: 14 | BG53: 147 | BH53: 57 | BI53: 136.3333333 | BJ53: 0 | BK53: 3 | BL53: 11.33333333 | BM53: 0 | BN53: 0 | BO53: 0 | BP53: 4.666666667 | BQ53: 20 | BR53: 31 | BS53: 10.33333333 | BT53: 19.66666667 | BU53: 25 | BV53: 6 | BW53: 0 | BX53: 55.66666667 | BY53: 115.6666667 | BZ53: 0 | CA53: 0 | CB53: 6 | CC53: 0.006449012495 | CD53: 0 | CE53: 0 | CF53: 0 | CG53: 0 | CH53: 0.02700523982 | CI53: 0 | CJ53: 0.3575171302 | CK53: 0 | CL53: 0 | CM53: 0 | CN53: 0 | CO53: 0.2547359936 | CP53: 0 | CQ53: 0 | CR53: 0.03224506247 | CS53: 0.01209189843 | CT53: 0.1112454655 | CU53: 0 | CV53: 0 | CW53: 0 | CX53: 0.03829101169 | CY53: 0.01571946796 | CZ53: 0 | DA53: 0.008061265619 | DB53: 0 | DC53: 0 | DD53: 0 | DE53: 0 | DF53: 0.08988311165 | DG53: 0.02216848045 | DH53: 0.007255139057 | DI53: 0.07940346634 | DJ53: 0.07013301088 | DK53: 0.05038291012 | DL53: 0.0169286578 | DM53: 0.1777509069 | DN53: 0.06892382104 | DO53: 0.1648528819 | DP53: 0 | DQ53: 0.003627569528 | DR53: 0.01370415155 | DS53: 0 | DT53: 0 | DU53: 0 | DV53: 0.005642885933 | DW53: 0.02418379686 | DX53: 0.03748488513 | DY53: 0.01249496171 | DZ53: 0.02378073358 | EA53: 0.03022974607 | EB53: 0.007255139057 | EC53: 0 | ED53: 0.06731156792 | EE53: 0.1398629585 | EF53: 0 | EG53: 0 | EH53: 0.007255139057 | EI53: 135300 | EJ53: 1 | EK53: 1 | EL53: 194 | EM53: 13300.22 | EN53: 8613.18 | EO53: 65 | EP53: 5 | EQ53: 33 | ER53: 0.5 | ES53: 0 | ET53: 42 | EU53: 163.6033857 | EV53: 0.001209189843 | EW53: 0.001209189843 | EX53: 0.2345828295 | EY53: 16.08249093 | EZ53: 10.41496977 | FA53: 0.07859733978 | FB53: 0.006045949214 | FC53: 0.03990326481 | FD53: 0.0006045949214 | FE53: 0 | FF53: 0.0507859734 | FG53: 0.6475968067 | FH53: 0.4467353952 | FI53: 0.03436426117 | FJ53: 0.2268041237 | FK53: 0.003436426117 | FL53: 0 | FM53: 0.2886597938
A54: 111965099 | B54: Utenos regioninis profesinio mokymo centras | C54: 2652.996483 | D54: 1672016.03 | E54: 644.5 | F54: 316.3333333 | G54: 283.3333333 | H54: 216.6666667 | I54: 33 | J54: 20 | K54: 32.33333333 | L54: 189.6666667 | M54: 94.33333333 | N54: 0.593495935 | O54: 0.5315822389 | P54: 0.3473787809 | Q54: 0.06191369606 | R54: 0.03752345216 | S54: 0.04452472179 | T54: 0.06066291432 | U54: 0.3558474046 | V54: 0.176985616 | W54: 0 | X54: 0 | Y54: 5.666666667 | Z54: 26.66666667 | AB54: 0 | AC54: 0 | AD54: 189.6666667 | AE54: 0 | AF54: 0 | AG54: 0 | AH54: 0 | AI54: 94.33333333 | AJ54: 0 | AK54: 0 | AL54: 10 | AM54: 16 | AN54: 54 | AO54: 0 | AP54: 0 | AQ54: 0 | AR54: 38.33333333 | AS54: 0 | AT54: 0 | AU54: 1.333333333 | AV54: 0 | AW54: 0 | AX54: 0 | AY54: 0 | AZ54: 26.66666667 | BA54: 6.666666667 | BB54: 1.666666667 | BC54: 20.66666667 | BD54: 95 | BE54: 9.333333333 | BF54: 0 | BG54: 67 | BH54: 67 | BI54: 55.33333333 | BJ54: 0 | BK54: 2 | BL54: 0 | BM54: 0 | BN54: 0 | BO54: 0 | BP54: 7.333333333 | BQ54: 64 | BR54: 40.66666667 | BS54: 40.33333333 | BT54: 10.66666667 | BU54: 6 | BV54: 0 | BW54: 0 | BX54: 26.33333333 | BY54: 21.33333333 | BZ54: 0 | CA54: 0 | CB54: 0 | CC54: 0 | CD54: 0 | CE54: 0.01063164478 | CF54: 0.05003126954 | CG54: 0 | CH54: 0 | CI54: 0 | CJ54: 0.3558474046 | CK54: 0 | CL54: 0 | CM54: 0 | CN54: 0 | CO54: 0.176985616 | CP54: 0 | CQ54: 0 | CR54: 0.01876172608 | CS54: 0.03001876173 | CT54: 0.1013133208 | CU54: 0 | CV54: 0 | CW54: 0 | CX54: 0.07191994997 | CY54: 0 | CZ54: 0 | DA54: 0.002501563477 | DB54: 0 | DC54: 0 | DD54: 0 | DE54: 0 | DF54: 0.05003126954 | DG54: 0.01250781739 | DH54: 0.003126954346 | DI54: 0.0387742339 | DJ54: 0.1782363977 | DK54: 0.01751094434 | DL54: 0 | DM54: 0.1257035647 | DN54: 0.1257035647 | DO54: 0.1038148843 | DP54: 0 | DQ54: 0.003752345216 | DR54: 0 | DS54: 0 | DT54: 0 | DU54: 0 | DV54: 0.01375859912 | DW54: 0.1200750469 | DX54: 0.07629768605 | DY54: 0.07567229518 | DZ54: 0.02001250782 | EA54: 0.01125703565 | EB54: 0 | EC54: 0 | ED54: 0.04940587867 | EE54: 0.04002501563 | EF54: 0 | EG54: 0 | EH54: 0 | EI54: 25700 | EJ54: 1 | EK54: 1 | EL54: 346 | EM54: 20062.12 | EN54: 14597.74 | EO54: 43 | EP54: 5 | EQ54: 15.26 | ER54: 0 | ES54: 0 | ET54: 32.61 | EU54: 48.21763602 | EV54: 0.001876172608 | EW54: 0.001876172608 | EX54: 0.6491557223 | EY54: 37.64 | EZ54: 27.38787992 | FA54: 0.08067542214 | FB54: 0.009380863039 | FC54: 0.028630394 | FD54: 0 | FE54: 0 | FF54: 0.06118198874 | FG54: 0.7276269906 | FH54: 0.448524043 | FI54: 0.05215395849 | FJ54: 0.1591738813 | FK54: 0 | FL54: 0 | FM54: 0.3401481172
A55: 190807471 | B55: Varėnos technologijos ir verslo mokykla | C55: 3144.598775 | D55: 831673.955 | E55: 292.5833333 | F55: 137.3333333 | G55: 137.3333333 | H55: 43.33333333 | I55: 0 | J55: 0 | K55: 0 | L55: 97.66666667 | M55: 39.66666667 | N55: 0.7601476015 | O55: 0.7601476015 | P55: 0.2338805326 | Q55: 0 | R55: 0 | S55: 0 | T55: 0 | U55: 0.5405904059 | V55: 0.2195571956 | W55: 0 | X55: 0 | Y55: 0 | Z55: 0 | AB55: 0 | AC55: 0 | AD55: 97.66666667 | AE55: 0 | AF55: 0 | AG55: 0 | AH55: 0 | AI55: 39.66666667 | AJ55: 0 | AK55: 0 | AL55: 0 | AM55: 0 | AN55: 8 | AO55: 0 | AP55: 0 | AQ55: 0 | AR55: 19 | AS55: 0 | AT55: 0 | AU55: 2 | AV55: 0 | AW55: 5.333333333 | AX55: 0 | AY55: 0 | AZ55: 7.666666667 | BA55: 0 | BB55: 0 | BC55: 0 | BD55: 53.66666667 | BE55: 0 | BF55: 0 | BG55: 36.66666667 | BH55: 19.66666667 | BI55: 27.33333333 | BJ55: 0 | BK55: 0 | BL55: 0 | BM55: 0 | BN55: 0 | BO55: 0 | BP55: 0 | BQ55: 7.666666667 | BR55: 5.333333333 | BS55: 12.33333333 | BT55: 8.666666667 | BU55: 0 | BV55: 0 | BW55: 0 | BX55: 0 | BY55: 9.333333333 | BZ55: 0 | CA55: 0 | CB55: 0 | CC55: 0 | CD55: 0 | CE55: 0 | CF55: 0 | CG55: 0 | CH55: 0 | CI55: 0 | CJ55: 0.5405904059 | CK55: 0 | CL55: 0 | CM55: 0 | CN55: 0 | CO55: 0.2195571956 | CP55: 0 | CQ55: 0 | CR55: 0 | CS55: 0 | CT55: 0.0442804428 | CU55: 0 | CV55: 0 | CW55: 0 | CX55: 0.1051660517 | CY55: 0 | CZ55: 0 | DA55: 0.0110701107 | DB55: 0 | DC55: 0.0295202952 | DD55: 0 | DE55: 0 | DF55: 0.04243542435 | DG55: 0 | DH55: 0 | DI55: 0 | DJ55: 0.2970479705 | DK55: 0 | DL55: 0 | DM55: 0.2029520295 | DN55: 0.1088560886 | DO55: 0.1512915129 | DP55: 0 | DQ55: 0 | DR55: 0 | DS55: 0 | DT55: 0 | DU55: 0 | DV55: 0 | DW55: 0.04243542435 | DX55: 0.0295202952 | DY55: 0.06826568266 | DZ55: 0.0479704797 | EA55: 0 | EB55: 0 | EC55: 0 | ED55: 0 | EE55: 0.05166051661 | EF55: 0 | EG55: 0 | EH55: 0 | EI55: 525500 | EJ55: 2 | EK55: 1 | EL55: 100 | EM55: 15172 | EN55: 2230 | EO55: 18 | EP55: 2 | EQ55: 0 | ER55: 0 | ES55: 0 | ET55: 27.16 | EU55: 2908.671587 | EV55: 0.0110701107 | EW55: 0.005535055351 | EX55: 0.5535055351 | EY55: 83.97785978 | EZ55: 12.34317343 | FA55: 0.09963099631 | FB55: 0.0110701107 | FC55: 0 | FD55: 0 | FE55: 0 | FF55: 0.1503321033 | FG55: 0.1469812813 | FH55: 0.3816793893 | FI55: 0.04240882103 | FJ55: 0 | FK55: 0 | FL55: 0 | FM55: 0.5759117897
A56: 111963657 | B56: Viešoji įstaiga Vilniaus statybininkų rengimo centras | C56: 2866.634766 | D56: 2805816.28 | E56: 1002.333333 | F56: 610 | G56: 604.6666667 | H56: 230.6666667 | I56: 5.333333333 | J56: 3.333333333 | K56: 81.66666667 | L56: 281.6666667 | M56: 246.6666667 | N56: 0.7256145916 | O56: 0.7192704203 | P56: 0.1391307368 | Q56: 0.006344171293 | R56: 0.003965107058 | S56: 0.003265075419 | T56: 0.09714512292 | U56: 0.3350515464 | V56: 0.2934179223 | W56: 0 | X56: 81.66666667 | Y56: 0 | Z56: 0 | AB56: 32.66666667 | AC56: 1.666666667 | AD56: 247.3333333 | AE56: 0 | AF56: 0 | AG56: 0 | AH56: 0 | AI56: 246.6666667 | AJ56: 0 | AK56: 0 | AL56: 8 | AM56: 0 | AN56: 22.66666667 | AO56: 0 | AP56: 4 | AQ56: 0 | AR56: 0.6666666667 | AS56: 4.666666667 | AT56: 0 | AU56: 0 | AV56: 0 | AW56: 0 | AX56: 0 | AY56: 0 | AZ56: 44 | BA56: 0 | BB56: 0 | BC56: 0 | BD56: 23.33333333 | BE56: 27 | BF56: 31.33333333 | BG56: 259 | BH56: 160 | BI56: 49.33333333 | BJ56: 0 | BK56: 60 | BL56: 0 | BM56: 0 | BN56: 0 | BO56: 0 | BP56: 12.66666667 | BQ56: 0 | BR56: 0 | BS56: 30.33333333 | BT56: 135.3333333 | BU56: 31.66666667 | BV56: 4 | BW56: 0 | BX56: 13.33333333 | BY56: 0 | BZ56: 0 | CA56: 3.333333333 | CB56: 0 | CC56: 0 | CD56: 0.09714512292 | CE56: 0 | CF56: 0 | CG56: 0 | CH56: 0.03885804917 | CI56: 0.001982553529 | CJ56: 0.2942109437 | CK56: 0 | CL56: 0 | CM56: 0 | CN56: 0 | CO56: 0.2934179223 | CP56: 0 | CQ56: 0 | CR56: 0.009516256939 | CS56: 0 | CT56: 0.02696272799 | CU56: 0 | CV56: 0.004758128469 | CW56: 0 | CX56: 0.0007930214116 | CY56: 0.005551149881 | CZ56: 0 | DA56: 0 | DB56: 0 | DC56: 0 | DD56: 0 | DE56: 0 | DF56: 0.05233941316 | DG56: 0 | DH56: 0 | DI56: 0 | DJ56: 0.02775574941 | DK56: 0.03211736717 | DL56: 0.03727200634 | DM56: 0.3080888184 | DN56: 0.1903251388 | DO56: 0.05868358446 | DP56: 0 | DQ56: 0.07137192704 | DR56: 0 | DS56: 0 | DT56: 0 | DU56: 0 | DV56: 0.01506740682 | DW56: 0 | DX56: 0 | DY56: 0.03608247423 | DZ56: 0.1609833466 | EA56: 0.03766851705 | EB56: 0.004758128469 | EC56: 0 | ED56: 0.01586042823 | EE56: 0 | EF56: 0 | EG56: 0.003965107058 | EH56: 0 | EI56: 120000 | EJ56: 2 | EK56: 2 | EL56: 355 | EM56: 17196.88 | EN56: 8444.79 | EO56: 68 | EP56: 3 | EQ56: 15.8 | ER56: 0.25 | ES56: 0 | ET56: 54.75 | EU56: 142.7438541 | EV56: 0.002379064235 | EW56: 0.002379064235 | EX56: 0.4222839017 | EY56: 20.45624108 | EZ56: 10.04534893 | FA56: 0.08088818398 | FB56: 0.003568596352 | FC56: 0.01879460745 | FD56: 0.0002973830293 | FE56: 0 | FF56: 0.06512688343 | FG56: 0.4910652397 | FH56: 0.4795486601 | FI56: 0.02115655853 | FJ56: 0.1114245416 | FK56: 0.001763046544 | FL56: 0 | FM56: 0.3861071932
A57: 120091738 | B57: Vilniaus Jeruzalės darbo rinkos mokymo centras | C57: 1098.952028 | D57: 2562443.12 | E57: 2402 | F57: 41 | G57: 41 | H57: 1692.666667 | I57: 0 | J57: 0 | K57: 0 | L57: 2.666666667 | M57: 38.33333333 | N57: 0.02364929821 | O57: 0.02364929821 | P57: 0.991270904 | Q57: 0 | R57: 0 | S57: 0 | T57: 0 | U57: 0.001538165737 | V57: 0.02211113247 | W57: 0 | X57: 0 | Y57: 0 | Z57: 0 | AB57: 0 | AC57: 2.666666667 | AD57: 0 | AE57: 0 | AF57: 0 | AG57: 0 | AH57: 0 | AI57: 38.33333333 | AJ57: 0 | AK57: 0 | AL57: 16.66666667 | AM57: 9.333333333 | AN57: 337.6666667 | AO57: 132 | AP57: 0 | AQ57: 0 | AR57: 218 | AS57: 1132.666667 | AT57: 0 | AU57: 2 | AV57: 0 | AW57: 164.6666667 | AX57: 0 | AY57: 0 | AZ57: 59.33333333 | BA57: 117 | BB57: 0 | BC57: 0 | BD57: 0 | BE57: 0 | BF57: 0 | BG57: 25.33333333 | BH57: 15.66666667 | BI57: 0 | BJ57: 0 | BK57: 0 | BL57: 0 | BM57: 0 | BN57: 0 | BO57: 0 | BP57: 0 | BQ57: 0 | BR57: 0 | BS57: 0.3333333333 | BT57: 199.6666667 | BU57: 331.6666667 | BV57: 0 | BW57: 0 | BX57: 2.333333333 | BY57: 777.3333333 | BZ57: 0 | CA57: 381.3333333 | CB57: 0 | CC57: 0 | CD57: 0 | CE57: 0 | CF57: 0 | CG57: 0 | CH57: 0 | CI57: 0.001538165737 | CJ57: 0 | CK57: 0 | CL57: 0 | CM57: 0 | CN57: 0 | CO57: 0.02211113247 | CP57: 0 | CQ57: 0 | CR57: 0.009613535858 | CS57: 0.005383580081 | CT57: 0.1947702365 | CU57: 0.076139204 | CV57: 0 | CW57: 0 | CX57: 0.125745049 | CY57: 0.6533358969 | CZ57: 0 | DA57: 0.001153624303 | DB57: 0 | DC57: 0.09498173428 | DD57: 0 | DE57: 0 | DF57: 0.03422418766 | DG57: 0.06748702173 | DH57: 0 | DI57: 0 | DJ57: 0 | DK57: 0 | DL57: 0 | DM57: 0.0146125745 | DN57: 0.009036723707 | DO57: 0 | DP57: 0 | DQ57: 0 | DR57: 0 | DS57: 0 | DT57: 0 | DU57: 0 | DV57: 0 | DW57: 0 | DX57: 0 | DY57: 0.0001922707172 | DZ57: 0.1151701596 | EA57: 0.1913093636 | EB57: 0 | EC57: 0 | ED57: 0.00134589502 | EE57: 0.4483753124 | EF57: 0 | EG57: 0.2199577004 | EH57: 0 | EI57: 0 | EJ57: 1 | EK57: 1 | EL57: 72 | EM57: 3480.71 | EN57: 2447.5 | EO57: 6 | EP57: 1 | EQ57: 1.5 | ER57: 0 | ES57: 0 | ET57: 0 | EU57: 0 | EV57: 0.0005768121515 | EW57: 0.0005768121515 | EX57: 0.04153047491 | EY57: 2.007715824 | EZ57: 1.411747741 | FA57: 0.003460872909 | FB57: 0.0005768121515 | FC57: 0.0008652182273 | FD57: 0 | FE57: 0 | FF57: 0 | FG57: 0.7031611367 | FH57: 0.7058823529 | FI57: 0.1176470588 | FJ57: 0.1764705882 | FK57: 0 | FL57: 0 | FM57: 0
A58: 190798047 | B58: Vilniaus technologijų mokymo ir reabilitacijos centras | C58: 4243.642567 | D58: 607218.44 | E58: 146.5833333 | F58: 119.3333333 | G58: 4 | H58: 0 | I58: 118 | J58: 61.33333333 | K58: 117.3333333 | L58: 4.666666667 | M58: 0 | N58: 1 | O58: 0.03351955307 | P58: 0 | Q58: 0.9888268156 | R58: 0.5139664804 | S58: 0.8893967213 | T58: 0.9832402235 | U58: 0.03910614525 | V58: 0 | W58: 0 | X58: 0 | Y58: 16.66666667 | Z58: 100.6666667 | AB58: 0 | AC58: 0 | AD58: 0 | AE58: 0 | AF58: 0 | AG58: 4.666666667 | AH58: 0 | AI58: 0 | AJ58: 0 | AK58: 0 | AL58: 0 | AM58: 0 | AN58: 0 | AO58: 0 | AP58: 0 | AQ58: 0 | AR58: 0 | AS58: 0 | AT58: 0 | AU58: 0 | AV58: 0 | AW58: 0 | AX58: 0 | AY58: 0 | AZ58: 0 | BA58: 0 | BB58: 0 | BC58: 37.66666667 | BD58: 19.33333333 | BE58: 0 | BF58: 0 | BG58: 18.33333333 | BH58: 14 | BI58: 0 | BJ58: 0 | BK58: 32.66666667 | BL58: 0 | BM58: 0 | BN58: 0 | BO58: 0 | BP58: 0 | BQ58: 0 | BR58: 0 | BS58: 0 | BT58: 0 | BU58: 0 | BV58: 0 | BW58: 0 | BX58: 0 | BY58: 0 | BZ58: 0 | CA58: 0 | CB58: 0 | CC58: 0 | CD58: 0 | CE58: 0.1396648045 | CF58: 0.843575419 | CG58: 0 | CH58: 0 | CI58: 0 | CJ58: 0 | CK58: 0 | CL58: 0 | CM58: 0.03910614525 | CN58: 0 | CO58: 0 | CP58: 0 | CQ58: 0 | CR58: 0 | CS58: 0 | CT58: 0 | CU58: 0 | CV58: 0 | CW58: 0 | CX58: 0 | CY58: 0 | CZ58: 0 | DA58: 0 | DB58: 0 | DC58: 0 | DD58: 0 | DE58: 0 | DF58: 0 | DG58: 0 | DH58: 0 | DI58: 0.3156424581 | DJ58: 0.1620111732 | DK58: 0 | DL58: 0 | DM58: 0.1536312849 | DN58: 0.1173184358 | DO58: 0 | DP58: 0 | DQ58: 0.2737430168 | DR58: 0 | DS58: 0 | DT58: 0 | DU58: 0 | DV58: 0 | DW58: 0 | DX58: 0 | DY58: 0 | DZ58: 0 | EA58: 0 | EB58: 0 | EC58: 0 | ED58: 0 | EE58: 0 | EF58: 0 | EG58: 0 | EH58: 0 | EI58: 58400 | EJ58: 1 | EK58: 1 | EL58: 102 | EM58: 4127.4 | EN58: 945.75 | EO58: 19 | EP58: 2 | EQ58: 7 | ER58: 1 | ES58: 1 | ET58: 11.2 | EU58: 489.3854749 | EV58: 0.008379888268 | EW58: 0.008379888268 | EX58: 0.8547486034 | EY58: 34.58715084 | EZ58: 7.92527933 | FA58: 0.1592178771 | FB58: 0.01675977654 | FC58: 0.05865921788 | FD58: 0.008379888268 | FE58: 0.008379888268 | FF58: 0.0938547486 | FG58: 0.2291394098 | FH58: 0.4611650485 | FI58: 0.04854368932 | FJ58: 0.1699029126 | FK58: 0.02427184466 | FL58: 0.02427184466 | FM58: 0.2718446602
A59: 190971086 | B59: Vilniaus komunalinių paslaugų mokykla | C59: 2221.579135 | D59: 768736.7675 | E59: 370.3333333 | F59: 234 | G59: 234 | H59: 19 | I59: 0 | J59: 0 | K59: 169.3333333 | L59: 8 | M59: 56.66666667 | N59: 0.9249011858 | O59: 0.9249011858 | P59: 0.01877470356 | Q59: 0 | R59: 0 | S59: 0 | T59: 0.6693017128 | U59: 0.03162055336 | V59: 0.2239789196 | W59: 123 | X59: 46.33333333 | Y59: 0 | Z59: 0 | AB59: 0 | AC59: 8 | AD59: 0 | AE59: 0 | AF59: 0 | AG59: 0 | AH59: 0 | AI59: 56.66666667 | AJ59: 0 | AK59: 0 | AL59: 0 | AM59: 0 | AN59: 0 | AO59: 0 | AP59: 0 | AQ59: 0 | AR59: 0 | AS59: 0 | AT59: 0 | AU59: 0 | AV59: 0 | AW59: 0 | AX59: 0 | AY59: 0 | AZ59: 19 | BA59: 0 | BB59: 0 | BC59: 50 | BD59: 93 | BE59: 8 | BF59: 0 | BG59: 42.66666667 | BH59: 27.33333333 | BI59: 0 | BJ59: 0 | BK59: 13 | BL59: 0 | BM59: 0 | BN59: 0 | BO59: 0 | BP59: 0 | BQ59: 0 | BR59: 0 | BS59: 0 | BT59: 7.333333333 | BU59: 11.66666667 | BV59: 0 | BW59: 0 | BX59: 0 | BY59: 0 | BZ59: 0 | CA59: 0 | CB59: 0 | CC59: 0.4861660079 | CD59: 0.1831357049 | CE59: 0 | CF59: 0 | CG59: 0 | CH59: 0 | CI59: 0.03162055336 | CJ59: 0 | CK59: 0 | CL59: 0 | CM59: 0 | CN59: 0 | CO59: 0.2239789196 | CP59: 0 | CQ59: 0 | CR59: 0 | CS59: 0 | CT59: 0 | CU59: 0 | CV59: 0 | CW59: 0 | CX59: 0 | CY59: 0 | CZ59: 0 | DA59: 0 | DB59: 0 | DC59: 0 | DD59: 0 | DE59: 0 | DF59: 0.07509881423 | DG59: 0 | DH59: 0 | DI59: 0.1976284585 | DJ59: 0.3675889328 | DK59: 0.03162055336 | DL59: 0 | DM59: 0.1686429513 | DN59: 0.1080368906 | DO59: 0 | DP59: 0 | DQ59: 0.05138339921 | DR59: 0 | DS59: 0 | DT59: 0 | DU59: 0 | DV59: 0 | DW59: 0 | DX59: 0 | DY59: 0 | DZ59: 0.02898550725 | EA59: 0.04611330698 | EB59: 0 | EC59: 0 | ED59: 0 | EE59: 0 | EF59: 0 | EG59: 0 | EH59: 0 | EI59: 23000 | EJ59: 3 | EK59: 3 | EL59: 32 | EM59: 7868.7 | EN59: 1910.1 | EO59: 23 | EP59: 2 | EQ59: 8.61 | ER59: 0 | ES59: 0 | ET59: 17.4 | EU59: 90.90909091 | EV59: 0.01185770751 | EW59: 0.01185770751 | EX59: 0.1264822134 | EY59: 31.10158103 | EZ59: 7.549802372 | FA59: 0.09090909091 | FB59: 0.00790513834 | FC59: 0.03403162055 | FD59: 0 | FE59: 0 | FF59: 0.06877470356 | FG59: 0.2427465782 | FH59: 0.450891982 | FI59: 0.03920799843 | FJ59: 0.1687904332 | FK59: 0 | FL59: 0 | FM59: 0.3411095864
A60: 190971271 | B60: Vilniaus automechanikos ir verslo mokykla | C60: 2801.699573 | D60: 2734513.68 | E60: 974.5 | F60: 717.3333333 | G60: 694.6666667 | H60: 356 | I60: 22.66666667 | J60: 1.333333333 | K60: 0 | L60: 450.3333333 | M60: 267 | N60: 0.6683229814 | O60: 0.6472049689 | P60: 0.1623782009 | Q60: 0.02111801242 | R60: 0.001242236025 | S60: 0.01798851785 | T60: 0 | U60: 0.4195652174 | V60: 0.248757764 | W60: 0 | X60: 0 | Y60: 0 | Z60: 0 | AB60: 0 | AC60: 0 | AD60: 450.3333333 | AE60: 0 | AF60: 0 | AG60: 0 | AH60: 0 | AI60: 267 | AJ60: 0 | AK60: 0 | AL60: 0 | AM60: 0 | AN60: 0 | AO60: 0 | AP60: 0 | AQ60: 0 | AR60: 25.33333333 | AS60: 0 | AT60: 0 | AU60: 0 | AV60: 0 | AW60: 22 | AX60: 0 | AY60: 0 | AZ60: 73.33333333 | BA60: 19.33333333 | BB60: 0 | BC60: 0 | BD60: 0 | BE60: 0 | BF60: 0 | BG60: 171.3333333 | BH60: 244.6666667 | BI60: 301.3333333 | BJ60: 0 | BK60: 0 | BL60: 0 | BM60: 0 | BN60: 0 | BO60: 0 | BP60: 0 | BQ60: 0 | BR60: 0 | BS60: 118.6666667 | BT60: 0 | BU60: 53.66666667 | BV60: 0 | BW60: 0 | BX60: 77.66666667 | BY60: 106 | BZ60: 0 | CA60: 0 | CB60: 0 | CC60: 0 | CD60: 0 | CE60: 0 | CF60: 0 | CG60: 0 | CH60: 0 | CI60: 0 | CJ60: 0.4195652174 | CK60: 0 | CL60: 0 | CM60: 0 | CN60: 0 | CO60: 0.248757764 | CP60: 0 | CQ60: 0 | CR60: 0 | CS60: 0 | CT60: 0 | CU60: 0 | CV60: 0 | CW60: 0 | CX60: 0.02360248447 | CY60: 0 | CZ60: 0 | DA60: 0 | DB60: 0 | DC60: 0.02049689441 | DD60: 0 | DE60: 0 | DF60: 0.06832298137 | DG60: 0.01801242236 | DH60: 0 | DI60: 0 | DJ60: 0 | DK60: 0 | DL60: 0 | DM60: 0.1596273292 | DN60: 0.2279503106 | DO60: 0.2807453416 | DP60: 0 | DQ60: 0 | DR60: 0 | DS60: 0 | DT60: 0 | DU60: 0 | DV60: 0 | DW60: 0 | DX60: 0 | DY60: 0.1105590062 | DZ60: 0 | EA60: 0.05 | EB60: 0 | EC60: 0 | ED60: 0.07236024845 | EE60: 0.09875776398 | EF60: 0 | EG60: 0 | EH60: 0 | EI60: 220000 | EJ60: 2 | EK60: 1 | EL60: 160 | EM60: 17550.47 | EN60: 10773.76 | EO60: 59 | EP60: 5 | EQ60: 20.57 | ER60: 0 | ES60: 5.56 | ET60: 57.4 | EU60: 204.9689441 | EV60: 0.001863354037 | EW60: 0.0009316770186 | EX60: 0.149068323 | EY60: 16.35136957 | EZ60: 10.0376646 | FA60: 0.0549689441 | FB60: 0.004658385093 | FC60: 0.01916459627 | FD60: 0 | FE60: 0.005180124224 | FF60: 0.05347826087 | FG60: 0.6138730188 | FH60: 0.3999186606 | FI60: 0.03389141192 | FJ60: 0.1394292686 | FK60: 0 | FL60: 0.03768725005 | FM60: 0.3890734088
A61: 190971848 | B61: Vilniaus geležinkelio transporto ir verslo paslaugų mokykla | C61: 3702.078618 | D61: 1590578.185 | E61: 444.25 | F61: 296 | G61: 283.3333333 | H61: 52.66666667 | I61: 12.66666667 | J61: 0.3333333333 | K61: 0 | L61: 240.6666667 | M61: 55.33333333 | N61: 0.8489483748 | O61: 0.8126195029 | P61: 0.05219342741 | Q61: 0.03632887189 | R61: 0.0009560229446 | S61: 0.01855911331 | T61: 0 | U61: 0.690248566 | V61: 0.1586998088 | W61: 0 | X61: 0 | Y61: 0 | Z61: 0 | AB61: 56.66666667 | AC61: 0 | AD61: 184 | AE61: 0 | AF61: 0 | AG61: 0 | AH61: 0 | AI61: 55.33333333 | AJ61: 0 | AK61: 0 | AL61: 0 | AM61: 0 | AN61: 0 | AO61: 0 | AP61: 0 | AQ61: 0 | AR61: 0 | AS61: 0 | AT61: 0 | AU61: 0 | AV61: 0 | AW61: 0 | AX61: 0 | AY61: 0 | AZ61: 17.33333333 | BA61: 0 | BB61: 0 | BC61: 8 | BD61: 30 | BE61: 23.33333333 | BF61: 3.333333333 | BG61: 50.66666667 | BH61: 11 | BI61: 92 | BJ61: 40.66666667 | BK61: 26.66666667 | BL61: 10.33333333 | BM61: 0 | BN61: 0 | BO61: 0 | BP61: 0 | BQ61: 0 | BR61: 20.33333333 | BS61: 0 | BT61: 0 | BU61: 0 | BV61: 3.333333333 | BW61: 0 | BX61: 0 | BY61: 29 | BZ61: 0 | CA61: 0 | CB61: 0 | CC61: 0 | CD61: 0 | CE61: 0 | CF61: 0 | CG61: 0 | CH61: 0.1625239006 | CI61: 0 | CJ61: 0.5277246654 | CK61: 0 | CL61: 0 | CM61: 0 | CN61: 0 | CO61: 0.1586998088 | CP61: 0 | CQ61: 0 | CR61: 0 | CS61: 0 | CT61: 0 | CU61: 0 | CV61: 0 | CW61: 0 | CX61: 0 | CY61: 0 | CZ61: 0 | DA61: 0 | DB61: 0 | DC61: 0 | DD61: 0 | DE61: 0 | DF61: 0.04971319312 | DG61: 0 | DH61: 0 | DI61: 0.02294455067 | DJ61: 0.08604206501 | DK61: 0.06692160612 | DL61: 0.009560229446 | DM61: 0.1453154876 | DN61: 0.03154875717 | DO61: 0.2638623327 | DP61: 0.1166347992 | DQ61: 0.07648183556 | DR61: 0.02963671128 | DS61: 0 | DT61: 0 | DU61: 0 | DV61: 0 | DW61: 0 | DX61: 0.05831739962 | DY61: 0 | DZ61: 0 | EA61: 0 | EB61: 0.009560229446 | EC61: 0 | ED61: 0 | EE61: 0.08317399618 | EF61: 0 | EG61: 0 | EH61: 0 | EI61: 514903 | EJ61: 2 | EK61: 1 | EL61: 126 | EM61: 3882.65 | EN61: 2532.03 | EO61: 48 | EP61: 5 | EQ61: 11.79 | ER61: 0 | ES61: 1.18 | ET61: 23.56 | EU61: 1476.777247 | EV61: 0.005736137667 | EW61: 0.002868068834 | EX61: 0.361376673 | EY61: 11.13570746 | EZ61: 7.262036329 | FA61: 0.137667304 | FB61: 0.01434034417 | FC61: 0.03381453155 | FD61: 0 | FE61: 0.003384321224 | FF61: 0.06757170172 | FG61: 0.6521396469 | FH61: 0.5361331397 | FI61: 0.05584720206 | FJ61: 0.1316877024 | FK61: 0 | FL61: 0.01317993969 | FM61: 0.2631520161
A62: 291829870 | B62: Vilniaus paslaugų verslo profesinio mokymo centras | C62: 2260.45568 | D62: 2049447.883 | E62: 905.5833333 | F62: 761.3333333 | G62: 761.3333333 | H62: 164 | I62: 0 | J62: 0 | K62: 35 | L62: 290.6666667 | M62: 435.6666667 | N62: 0.8227665706 | O62: 0.8227665706 | P62: 0.06880147505 | Q62: 0 | R62: 0 | S62: 0.01101280003 | T62: 0.03782420749 | U62: 0.3141210375 | V62: 0.4708213256 | W62: 0 | X62: 0 | Y62: 31 | Z62: 4 | AB62: 97.66666667 | AC62: 4 | AD62: 189 | AE62: 0 | AF62: 0 | AG62: 0 | AH62: 0 | AI62: 435.6666667 | AJ62: 0 | AK62: 0 | AL62: 22.66666667 | AM62: 0 | AN62: 0 | AO62: 0 | AP62: 0 | AQ62: 0 | AR62: 0 | AS62: 0 | AT62: 0 | AU62: 0 | AV62: 0 | AW62: 0 | AX62: 0 | AY62: 0 | AZ62: 55.66666667 | BA62: 3 | BB62: 0 | BC62: 137.3333333 | BD62: 248.3333333 | BE62: 2.666666667 | BF62: 0 | BG62: 164.6666667 | BH62: 4 | BI62: 58.66666667 | BJ62: 19.33333333 | BK62: 7.333333333 | BL62: 0 | BM62: 56.66666667 | BN62: 0 | BO62: 62.33333333 | BP62: 70.66666667 | BQ62: 47 | BR62: 18.33333333 | BS62: 0 | BT62: 0 | BU62: 0 | BV62: 0 | BW62: 4 | BX62: 17.33333333 | BY62: 0 | BZ62: 0 | CA62: 0 | CB62: 6.666666667 | CC62: 0 | CD62: 0 | CE62: 0.03350144092 | CF62: 0.004322766571 | CG62: 0 | CH62: 0.1055475504 | CI62: 0.004322766571 | CJ62: 0.2042507205 | CK62: 0 | CL62: 0 | CM62: 0 | CN62: 0 | CO62: 0.4708213256 | CP62: 0 | CQ62: 0 | CR62: 0.02449567723 | CS62: 0 | CT62: 0 | CU62: 0 | CV62: 0 | CW62: 0 | CX62: 0 | CY62: 0 | CZ62: 0 | DA62: 0 | DB62: 0 | DC62: 0 | DD62: 0 | DE62: 0 | DF62: 0.06015850144 | DG62: 0.003242074928 | DH62: 0 | DI62: 0.1484149856 | DJ62: 0.2683717579 | DK62: 0.00288184438 | DL62: 0 | DM62: 0.1779538905 | DN62: 0.004322766571 | DO62: 0.06340057637 | DP62: 0.02089337176 | DQ62: 0.007925072046 | DR62: 0 | DS62: 0.06123919308 | DT62: 0 | DU62: 0.06736311239 | DV62: 0.07636887608 | DW62: 0.0507925072 | DX62: 0.01981268012 | DY62: 0 | DZ62: 0 | EA62: 0 | EB62: 0 | EC62: 0.004322766571 | ED62: 0.01873198847 | EE62: 0 | EF62: 0 | EG62: 0 | EH62: 0.007204610951 | EI62: 170000 | EJ62: 1 | EK62: 1 | EL62: 290 | EM62: 7211.31 | EN62: 2981.66 | EO62: 70 | EP62: 5 | EQ62: 10.5 | ER62: 0 | ES62: 0 | ET62: 44 | EU62: 183.7175793 | EV62: 0.001080691643 | EW62: 0.001080691643 | EX62: 0.3134005764 | EY62: 7.79320245 | EZ62: 3.222255043 | FA62: 0.07564841499 | FB62: 0.005403458213 | FC62: 0.01134726225 | FD62: 0 | FE62: 0 | FF62: 0.04755043228 | FG62: 0.4134699521 | FH62: 0.5405405405 | FI62: 0.03861003861 | FJ62: 0.08108108108 | FK62: 0 | FL62: 0 | FM62: 0.3397683398
A63: 300039885 | B63: Vilniaus technologijų mokymo centras | C63: 2613.602227 | D63: 2877090.853 | E63: 1146.166667 | F63: 607.3333333 | G63: 566.6666667 | H63: 276.3333333 | I63: 40.66666667 | J63: 1 | K63: 0 | L63: 239.3333333 | M63: 368 | N63: 0.6872878159 | O63: 0.6412674462 | P63: 0.1426747343 | Q63: 0.04602036967 | R63: 0.001131648435 | S63: 0.01945877877 | T63: 0 | U63: 0.270841192 | V63: 0.4164466239 | W63: 0 | X63: 0 | Y63: 0 | Z63: 0 | AB63: 74 | AC63: 7 | AD63: 158.3333333 | AE63: 0 | AF63: 0 | AG63: 0 | AH63: 0 | AI63: 368 | AJ63: 0 | AK63: 0 | AL63: 50.66666667 | AM63: 0 | AN63: 7.333333333 | AO63: 0 | AP63: 0 | AQ63: 0 | AR63: 0 | AS63: 0 | AT63: 12.66666667 | AU63: 0 | AV63: 0 | AW63: 0 | AX63: 0 | AY63: 0 | AZ63: 63.66666667 | BA63: 3.333333333 | BB63: 0 | BC63: 6.666666667 | BD63: 51.33333333 | BE63: 48.66666667 | BF63: 7.333333333 | BG63: 198 | BH63: 30.33333333 | BI63: 227 | BJ63: 31.33333333 | BK63: 6.666666667 | BL63: 0 | BM63: 0 | BN63: 0 | BO63: 0 | BP63: 9.666666667 | BQ63: 0 | BR63: 42.33333333 | BS63: 0 | BT63: 0 | BU63: 25 | BV63: 189.6666667 | BW63: 9.666666667 | BX63: 0 | BY63: 0 | BZ63: 0 | CA63: 0 | CB63: 0 | CC63: 0 | CD63: 0 | CE63: 0 | CF63: 0 | CG63: 0 | CH63: 0.08374198416 | CI63: 0.007921539042 | CJ63: 0.1791776688 | CK63: 0 | CL63: 0 | CM63: 0 | CN63: 0 | CO63: 0.4164466239 | CP63: 0 | CQ63: 0 | CR63: 0.05733685402 | CS63: 0 | CT63: 0.008298755187 | CU63: 0 | CV63: 0 | CW63: 0 | CX63: 0 | CY63: 0 | CZ63: 0.0143342135 | DA63: 0 | DB63: 0 | DC63: 0 | DD63: 0 | DE63: 0 | DF63: 0.07204828367 | DG63: 0.003772161449 | DH63: 0 | DI63: 0.007544322897 | DJ63: 0.05809128631 | DK63: 0.05507355715 | DL63: 0.008298755187 | DM63: 0.22406639 | DN63: 0.03432666918 | DO63: 0.2568841946 | DP63: 0.03545831762 | DQ63: 0.007544322897 | DR63: 0 | DS63: 0 | DT63: 0 | DU63: 0 | DV63: 0.0109392682 | DW63: 0 | DX63: 0.0479064504 | DY63: 0 | DZ63: 0 | EA63: 0.02829121086 | EB63: 0.2146359864 | EC63: 0.0109392682 | ED63: 0 | EE63: 0 | EF63: 0 | EG63: 0 | EH63: 0 | EI63: 192484 | EJ63: 4 | EK63: 3 | EL63: 27 | EM63: 20373.74 | EN63: 7920.03 | EO63: 63 | EP63: 5 | EQ63: 32.52 | ER63: 0 | ES63: 0 | ET63: 77.62 | EU63: 217.8242173 | EV63: 0.004526593738 | EW63: 0.003394945304 | EX63: 0.03055450773 | EY63: 23.05591098 | EZ63: 8.962689551 | FA63: 0.07129385138 | FB63: 0.005658242173 | FC63: 0.03680120709 | FD63: 0 | FE63: 0 | FF63: 0.08783855149 | FG63: 0.3887371685 | FH63: 0.3536544291 | FI63: 0.02806781183 | FJ63: 0.1825530482 | FK63: 0 | FL63: 0 | FM63: 0.4357247109
A64: 305239644 | B64: Profesinio mokymo centras "Žirmūnai" | C64: 6739.148331 | D64: 359982.84 | E64: 213.6666667 | F64: 213.6666667 | G64: 213.6666667 | H64: 0 | I64: 0 | J64: 0 | K64: 0 | L64: 110.3333333 | M64: 103.3333333 | N64: 1 | O64: 1 | P64: 0 | Q64: 0 | R64: 0 | S64: 0 | T64: 0 | U64: 0.5163806552 | V64: 0.4836193448 | W64: 0 | X64: 0 | Y64: 0 | Z64: 0 | AB64: 18.66666667 | AC64: 0 | AD64: 91.66666667 | AE64: 0 | AF64: 0 | AG64: 0 | AH64: 0 | AI64: 103.3333333 | AJ64: 0 | AK64: 0 | AL64: 0 | AM64: 0 | AN64: 0 | AO64: 0 | AP64: 0 | AQ64: 0 | AR64: 0 | AS64: 0 | AT64: 0 | AU64: 0 | AV64: 0 | AW64: 0 | AX64: 0 | AY64: 0 | AZ64: 0 | BA64: 0 | BB64: 0 | BC64: 0 | BD64: 139.3333333 | BE64: 41 | BF64: 0 | BG64: 0 | BH64: 2.333333333 | BI64: 3.666666667 | BJ64: 0 | BK64: 1 | BL64: 0 | BM64: 0 | BN64: 0 | BO64: 26.33333333 | BP64: 0 | BQ64: 0 | BR64: 0 | BS64: 0 | BT64: 0 | BU64: 0 | BV64: 0 | BW64: 0 | BX64: 0 | BY64: 0 | BZ64: 0 | CA64: 0 | CB64: 0 | CC64: 0 | CD64: 0 | CE64: 0 | CF64: 0 | CG64: 0 | CH64: 0.08736349454 | CI64: 0 | CJ64: 0.4290171607 | CK64: 0 | CL64: 0 | CM64: 0 | CN64: 0 | CO64: 0.4836193448 | CP64: 0 | CQ64: 0 | CR64: 0 | CS64: 0 | CT64: 0 | CU64: 0 | CV64: 0 | CW64: 0 | CX64: 0 | CY64: 0 | CZ64: 0 | DA64: 0 | DB64: 0 | DC64: 0 | DD64: 0 | DE64: 0 | DF64: 0 | DG64: 0 | DH64: 0 | DI64: 0 | DJ64: 0.6521060842 | DK64: 0.1918876755 | DL64: 0 | DM64: 0 | DN64: 0.01092043682 | DO64: 0.01716068643 | DP64: 0 | DQ64: 0.004680187207 | DR64: 0 | DS64: 0 | DT64: 0 | DU64: 0.1232449298 | DV64: 0 | DW64: 0 | DX64: 0 | DY64: 0 | DZ64: 0 | EA64: 0 | EB64: 0 | EC64: 0 | ED64: 0 | EE64: 0 | EF64: 0 | EG64: 0 | EH64: 0 | EI64: 652400 | EJ64: 2 | EK64: 2 | EL64: 135 | EM64: 21730.96 | EN64: 12537.19 | EO64: 93 | EP64: 10 | EQ64: 38.5 | ER64: 0 | ES64: 0 | ET64: 47 | EU64: 3053.354134 | EV64: 0.009360374415 | EW64: 0.009360374415 | EX64: 0.631825273 | EY64: 101.704961 | EZ64: 58.67639626 | FA64: 0.4352574103 | FB64: 0.04680187207 | FC64: 0.1801872075 | FD64: 0 | FE64: 0 | FF64: 0.2199687988 | FG64: 0.5769275725 | FH64: 0.4933687003 | FI64: 0.05305039788 | FJ64: 0.2042440318 | FK64: 0 | FL64: 0 | FM64: 0.24933687
A65: 191142619 | B65: Vilniaus technologijų, verslo ir žemės ūkio mokykla | C65: 4219.299906 | D65: 1051065.913 | E65: 264.3333333 | F65: 172.3333333 | G65: 172.3333333 | H65: 16 | I65: 0 | J65: 0 | K65: 0 | L65: 90 | M65: 82.33333333 | N65: 0.9150442478 | O65: 0.9150442478 | P65: 0.05300824051 | Q65: 0 | R65: 0 | S65: 0 | T65: 0 | U65: 0.4778761062 | V65: 0.4371681416 | W65: 0 | X65: 0 | Y65: 0 | Z65: 0 | AB65: 0 | AC65: 0 | AD65: 90 | AE65: 0 | AF65: 0 | AG65: 0 | AH65: 0 | AI65: 82.33333333 | AJ65: 0 | AK65: 0 | AL65: 0 | AM65: 0 | AN65: 0 | AO65: 0 | AP65: 0 | AQ65: 0 | AR65: 0 | AS65: 0 | AT65: 0 | AU65: 0 | AV65: 0 | AW65: 0 | AX65: 0 | AY65: 0 | AZ65: 16 | BA65: 0 | BB65: 0 | BC65: 0 | BD65: 37.33333333 | BE65: 0 | BF65: 0 | BG65: 58.66666667 | BH65: 20.33333333 | BI65: 38 | BJ65: 4 | BK65: 0 | BL65: 2 | BM65: 0 | BN65: 0 | BO65: 12 | BP65: 0 | BQ65: 0 | BR65: 0 | BS65: 0 | BT65: 0 | BU65: 8.666666667 | BV65: 0 | BW65: 4 | BX65: 0 | BY65: 3.333333333 | BZ65: 0 | CA65: 0 | CB65: 0 | CC65: 0 | CD65: 0 | CE65: 0 | CF65: 0 | CG65: 0 | CH65: 0 | CI65: 0 | CJ65: 0.4778761062 | CK65: 0 | CL65: 0 | CM65: 0 | CN65: 0 | CO65: 0.4371681416 | CP65: 0 | CQ65: 0 | CR65: 0 | CS65: 0 | CT65: 0 | CU65: 0 | CV65: 0 | CW65: 0 | CX65: 0 | CY65: 0 | CZ65: 0 | DA65: 0 | DB65: 0 | DC65: 0 | DD65: 0 | DE65: 0 | DF65: 0.08495575221 | DG65: 0 | DH65: 0 | DI65: 0 | DJ65: 0.1982300885 | DK65: 0 | DL65: 0 | DM65: 0.3115044248 | DN65: 0.1079646018 | DO65: 0.2017699115 | DP65: 0.02123893805 | DQ65: 0 | DR65: 0.01061946903 | DS65: 0 | DT65: 0 | DU65: 0.06371681416 | DV65: 0 | DW65: 0 | DX65: 0 | DY65: 0 | DZ65: 0 | EA65: 0.04601769912 | EB65: 0 | EC65: 0.02123893805 | ED65: 0 | EE65: 0.01769911504 | EF65: 0 | EG65: 0 | EH65: 0 | EI65: 40000 | EJ65: 1 | EK65: 1 | EL65: 300 | EM65: 15381.02 | EN65: 7551.34 | EO65: 20 | EP65: 1 | EQ65: 4 | ER65: 0 | ES65: 0 | ET65: 17 | EU65: 212.3893805 | EV65: 0.005309734513 | EW65: 0.005309734513 | EX65: 1.592920354 | EY65: 81.66913274 | EZ65: 40.09561062 | FA65: 0.1061946903 | FB65: 0.005309734513 | FC65: 0.02123893805 | FD65: 0 | FE65: 0 | FF65: 0.09026548673 | FG65: 0.4909518354 | FH65: 0.4761904762 | FI65: 0.02380952381 | FJ65: 0.09523809524 | FK65: 0 | FL65: 0 | FM65: 0.4047619048
A66: 190977915 | B66: Visagino technologijos ir verslo profesinio mokymo centras | C66: 3125.454813 | D66: 1784540.675 | E66: 581.5 | F66: 384.6666667 | G66: 384.6666667 | H66: 129.3333333 | I66: 0 | J66: 0 | K66: 0 | L66: 226.6666667 | M66: 158 | N66: 0.7483787289 | O66: 0.7483787289 | P66: 0.2162565808 | Q66: 0 | R66: 0 | S66: 0 | T66: 0 | U66: 0.4409857328 | V66: 0.3073929961 | W66: 0 | X66: 0 | Y66: 0 | Z66: 0 | AB66: 71.66666667 | AC66: 2.666666667 | AD66: 152.3333333 | AE66: 0 | AF66: 0 | AG66: 0 | AH66: 0 | AI66: 158 | AJ66: 0 | AK66: 0 | AL66: 4 | AM66: 17.33333333 | AN66: 19.33333333 | AO66: 0 | AP66: 0 | AQ66: 0 | AR66: 8 | AS66: 0 | AT66: 48 | AU66: 0.6666666667 | AV66: 0 | AW66: 0 | AX66: 0 | AY66: 0 | AZ66: 25.33333333 | BA66: 8.666666667 | BB66: 0 | BC66: 0 | BD66: 60.66666667 | BE66: 49.66666667 | BF66: 0 | BG66: 136.6666667 | BH66: 60.66666667 | BI66: 41.33333333 | BJ66: 9.333333333 | BK66: 0 | BL66: 0 | BM66: 0 | BN66: 0 | BO66: 26.33333333 | BP66: 0 | BQ66: 11.66666667 | BR66: 7.333333333 | BS66: 0 | BT66: 15.33333333 | BU66: 71 | BV66: 0 | BW66: 21.33333333 | BX66: 0 | BY66: 0 | BZ66: 0 | CA66: 0 | CB66: 2.666666667 | CC66: 0 | CD66: 0 | CE66: 0 | CF66: 0 | CG66: 0 | CH66: 0.1394293126 | CI66: 0.005188067445 | CJ66: 0.2963683528 | CK66: 0 | CL66: 0 | CM66: 0 | CN66: 0 | CO66: 0.3073929961 | CP66: 0 | CQ66: 0 | CR66: 0.007782101167 | CS66: 0.03372243839 | CT66: 0.03761348898 | CU66: 0 | CV66: 0 | CW66: 0 | CX66: 0.01556420233 | CY66: 0 | CZ66: 0.09338521401 | DA66: 0.001297016861 | DB66: 0 | DC66: 0 | DD66: 0 | DE66: 0 | DF66: 0.04928664073 | DG66: 0.0168612192 | DH66: 0 | DI66: 0 | DJ66: 0.1180285344 | DK66: 0.09662775616 | DL66: 0 | DM66: 0.2658884565 | DN66: 0.1180285344 | DO66: 0.0804150454 | DP66: 0.01815823606 | DQ66: 0 | DR66: 0 | DS66: 0 | DT66: 0 | DU66: 0.05123216602 | DV66: 0 | DW66: 0.02269779507 | DX66: 0.01426718547 | DY66: 0 | DZ66: 0.02983138781 | EA66: 0.1381322957 | EB66: 0 | EC66: 0.04150453956 | ED66: 0 | EE66: 0 | EF66: 0 | EG66: 0 | EH66: 0.005188067445 | EI66: 573364 | EJ66: 1 | EK66: 1 | EL66: 140 | EM66: 13169.54 | EN66: 3783.41 | EO66: 52 | EP66: 3 | EQ66: 14.75 | ER66: 0.25 | ES66: 0 | ET66: 29.35 | EU66: 1115.494163 | EV66: 0.001945525292 | EW66: 0.001945525292 | EX66: 0.2723735409 | EY66: 25.62167315 | EZ66: 7.360719844 | FA66: 0.1011673152 | FB66: 0.005836575875 | FC66: 0.02869649805 | FD66: 0.000486381323 | FE66: 0 | FF66: 0.05710116732 | FG66: 0.2872849014 | FH66: 0.5234021137 | FI66: 0.03019627579 | FJ66: 0.1484650226 | FK66: 0.002516356316 | FL66: 0 | FM66: 0.2954202315
A67: 190808954 | B67: Zarasų profesinė mokykla | C67: 2709.129207 | D67: 1346878.127 | E67: 519.25 | F67: 311.6666667 | G67: 311.6666667 | H67: 103.6666667 | I67: 0 | J67: 0 | K67: 50.33333333 | L67: 142 | M67: 119.3333333 | N67: 0.7504012841 | O67: 0.7504012841 | P67: 0.1773540518 | Q67: 0 | R67: 0 | S67: 0 | T67: 0.121187801 | U67: 0.341894061 | V67: 0.2873194222 | W67: 31 | X67: 19.33333333 | Y67: 0 | Z67: 0 | AB67: 16.66666667 | AC67: 0 | AD67: 125.3333333 | AE67: 0 | AF67: 0 | AG67: 0 | AH67: 0 | AI67: 119.3333333 | AJ67: 0 | AK67: 0 | AL67: 0.6666666667 | AM67: 0 | AN67: 14.66666667 | AO67: 0 | AP67: 0 | AQ67: 0 | AR67: 1.333333333 | AS67: 0 | AT67: 14.66666667 | AU67: 0 | AV67: 0 | AW67: 0 | AX67: 0 | AY67: 0 | AZ67: 32.66666667 | BA67: 5.666666667 | BB67: 0 | BC67: 0 | BD67: 90.33333333 | BE67: 4.666666667 | BF67: 44.66666667 | BG67: 29.33333333 | BH67: 33.33333333 | BI67: 92 | BJ67: 4.666666667 | BK67: 0 | BL67: 0 | BM67: 8.666666667 | BN67: 0 | BO67: 4 | BP67: 0 | BQ67: 27.33333333 | BR67: 1.333333333 | BS67: 25.66666667 | BT67: 0 | BU67: 2 | BV67: 0 | BW67: 0 | BX67: 9.666666667 | BY67: 4 | BZ67: 0 | CA67: 0 | CB67: 33.66666667 | CC67: 0.0746388443 | CD67: 0.04654895666 | CE67: 0 | CF67: 0 | CG67: 0 | CH67: 0.04012841091 | CI67: 0 | CJ67: 0.3017656501 | CK67: 0 | CL67: 0 | CM67: 0 | CN67: 0 | CO67: 0.2873194222 | CP67: 0 | CQ67: 0 | CR67: 0.001605136437 | CS67: 0 | CT67: 0.03531300161 | CU67: 0 | CV67: 0 | CW67: 0 | CX67: 0.003210272873 | CY67: 0 | CZ67: 0.03531300161 | DA67: 0 | DB67: 0 | DC67: 0 | DD67: 0 | DE67: 0 | DF67: 0.07865168539 | DG67: 0.01364365971 | DH67: 0 | DI67: 0 | DJ67: 0.2174959872 | DK67: 0.01123595506 | DL67: 0.1075441413 | DM67: 0.07062600321 | DN67: 0.08025682183 | DO67: 0.2215088283 | DP67: 0.01123595506 | DQ67: 0 | DR67: 0 | DS67: 0.02086677368 | DT67: 0 | DU67: 0.00963081862 | DV67: 0 | DW67: 0.0658105939 | DX67: 0.003210272873 | DY67: 0.06179775281 | DZ67: 0 | EA67: 0.00481540931 | EB67: 0 | EC67: 0 | ED67: 0.02327447833 | EE67: 0.00963081862 | EF67: 0 | EG67: 0 | EH67: 0.08105939005 | EI67: 63000 | EJ67: 2 | EK67: 1 | EL67: 240 | EM67: 15870.07 | EN67: 7447.27 | EO67: 39 | EP67: 4 | EQ67: 13.75 | ER67: 0 | ES67: 4 | ET67: 25 | EU67: 151.6853933 | EV67: 0.00481540931 | EW67: 0.002407704655 | EX67: 0.5778491172 | EY67: 38.21044141 | EZ67: 17.93082665 | FA67: 0.09390048154 | FB67: 0.00963081862 | FC67: 0.033105939 | FD67: 0 | FE67: 0.00963081862 | FF67: 0.06019261637 | FG67: 0.4692651009 | FH67: 0.4548104956 | FI67: 0.04664723032 | FJ67: 0.1603498542 | FK67: 0 | FL67: 0.04664723032 | FM67: 0.2915451895
S69: 0.2460295571
B97: Koreliacija su pagrindinės veiklos sąnaudomis 1-m mokiniui | C97: =IFERROR(CORREL($C$7:$C$67,C7:C67),0) -> 1 | D97: =IFERROR(CORREL($C$7:$C$67,D7:D67),0) -> -0.3292689327 | E97: =IFERROR(CORREL($C$7:$C$67,E7:E67),0) -> -0.5364013266 | F97: -0.2284833498 | G97: -0.2388517664 | H97: -0.5720593627 | I97: 0.04190955077 | J97: 0.006580752341 | K97: -0.1810680404 | L97: -0.1269722129 | M97: -0.227863757 | N97: 0.5943677992 | O97: =IFERROR(CORREL($C$7:$C$67,O7:O67),0) -> 0.4102754444 | P97: =IFERROR(CORREL($C$7:$C$67,P7:P67),0) -> -0.5702605959 | Q97: 0.2658343274 | R97: 0.2542196494 | S97: =IFERROR(CORREL($C$7:$C$67,S7:S67),0) -> 0.2460295571 | T97: 0.08956659948 | U97: 0.4932111329 | V97: 0.0828369305 | W97: -0.2579109767 | X97: -0.07868521498 | Y97: 0.1017666652 | Z97: 0.01026552866 | AA97: 0 | AB97: -0.03453900591 | AC97: -0.0953143618 | AD97: -0.1303049588 | AE97: 0 | AF97: -0.1166562669 | AG97: 0.1208190619 | AH97: 0.02174137715 | AI97: -0.227863757 | AJ97: =IFERROR(CORREL($C$7:$C$67,AJ7:AJ67),0) -> 0 | AK97: 0 | AL97: -0.3968322902 | AM97: -0.324004247 | AN97: -0.5129804685 | AO97: -0.2470684197 | AP97: -0.1234829219 | AQ97: 0 | AR97: -0.4896491864 | AS97: -0.4255216988 | AT97: -0.3237046761 | AU97: -0.1829247202 | AV97: 0 | AW97: -0.4526515158 | AX97: -0.2188021554 | AY97: 0 | AZ97: -0.5270465764 | BA97: -0.4198037457 | BB97: -0.2390283106 | BC97: -0.2107276225 | BD97: -0.05920332135 | BE97: -0.04815766438 | BF97: -0.07526561444 | BG97: -0.2833474015 | BH97: -0.1994723021 | BI97: -0.2436017636 | BJ97: -0.06202618386 | BK97: -0.01990071516 | BL97: 0.06105015055 | BM97: -0.047053557 | BN97: -0.08008695283 | BO97: -0.1412020808 | BP97: =IFERROR(CORREL($C$7:$C$67,BP7:BP67),0) -> -0.243559442 | BQ97: -0.310687533 | BR97: -0.2966977214 | BS97: -0.1063327066 | BT97: -0.277834993 | BU97: -0.3708862911 | BV97: -0.05549406509 | BW97: -0.2972794563 | BX97: -0.2895410947 | BY97: -0.4920954125 | BZ97: 0 | CA97: -0.2666445725 | CB97: -0.3742656103 | CC97: -0.2454694124 | CD97: -0.07219293942 | CE97: 0.2704996361 | CF97: 0.2483068236 | CG97: 0 | CH97: 0.2343762831 | CI97: 0.04354673378 | CJ97: 0.4434450134 | CK97: 0 | CL97: -0.1166562669 | CM97: 0.2018331828 | CN97: 0.02174137715 | CO97: 0.0828369305 | CP97: 0 | CQ97: 0 | CR97: -0.3522652109 | CS97: -0.1660956265 | CT97: -0.3566522224 | CU97: -0.2469761563 | CV97: =IFERROR(CORREL($C$7:$C$67,CV7:CV67),0) -> 0.01601119946 | CW97: 0 | CX97: -0.3008297701 | CY97: -0.4400501582 | CZ97: -0.2103973458 | DA97: -0.05543019304 | DB97: 0 | DC97: -0.4249839026 | DD97: -0.2231098241 | DE97: 0 | DF97: -0.2132026904 | DG97: -0.4214608192 | DH97: -0.08073836094 | DI97: 0.08475400565 | DJ97: 0.5183634217 | DK97: 0.5211588934 | DL97: 0.09274091423 | DM97: -0.006203578246 | DN97: 0.05650865837 | DO97: 0.04978025426 | DP97: 0.06742280976 | DQ97: 0.2364590972 | DR97: 0.2120689851 | DS97: 0.04834032614 | DT97: 0.03579514182 | DU97: 0.180836917 | DV97: -0.1323855909 | DW97: -0.1819289918 | DX97: -0.08529774266 | DY97: 0.02083024956 | DZ97: -0.2226821756 | EA97: -0.2666903678 | EB97: =IFERROR(CORREL($C$7:$C$67,EB7:EB67),0) -> -0.00915819494 | EC97: -0.1020651369 | ED97: -0.1620333773 | EE97: -0.5162920736 | EF97: 0 | EG97: -0.267153359 | EH97: -0.3452469384 | EI97: -0.01485193679 | EJ97: -0.03752952814 | EK97: 0.02171586168 | EL97: 0.1111628176 | EM97: 0.08735415686 | EN97: 0.00476173019 | EO97: -0.08891234509 | EP97: 0.1248269561 | EQ97: 0.2184643983 | ER97: -0.1214773834 | ES97: -0.0542092132 | ET97: 0.05975550878 | EU97: 0.3701043646 | EV97: 0.5934295177 | EW97: 0.5905834321 | EX97: 0.6146234641 | EY97: 0.6325140886 | EZ97: 0.5743137306 | FA97: 0.8485251311 | FB97: 0.7819293792 | FC97: 0.823258956 | FD97: 0.2135831489 | FE97: 0.201125541 | FF97: 0.847417901 | FG97: -0.204952754 | FH97: =IFERROR(CORREL($C$7:$C$67,FH7:FH67),0) -> -0.4517549796 | FI97: 0.04044761014 | FJ97: 0.2743070121 | FK97: 0.03339388395 | FL97: 0.01370200601 | FM97: 0.3486048364
B98: min | C98: =MIN(C7:C67) -> 1098.952028 | D98: =MIN(D7:D67) -> 359982.84 | E98: 146.5833333 | F98: 16.33333333 | G98: 4 | H98: 0 | I98: 0 | J98: =MIN(J7:J67) -> 0
B99: max | C99: =MAX(C7:C67) -> 6739.148331 | D99: =MAX(D7:D67) -> 7390964.205 | E99: 3757.166667 | F99: 2691.666667 | G99: 2689.666667 | H99: 1818.666667 | I99: 192 | J99: =MAX(J7:J67) -> 169.6666667
B100: vidurkis | C100: =+AVERAGE(C7:C67) -> 2788.261565 | D100: =+AVERAGE(D7:D67) -> 1922775.478 | E100: 825.0245902 | F100: 473.8251366 | G100: 451.2513661 | H100: 232.9289617 | I100: 22.71584699 | J100: 13.6010929

Sheet 2.KoreliacijaY
A1: 2. Atrinkti rodiklius Xi, kurių koreliacijos su Y reikšmė > 0,4 arba < -0,4 | J1: Tęstinio mokymo mokinių skaičius 2019 m. | K1: Tęstinio mokymo mokinių skaičius 2019 m. | L1: Tęstinio mokymo mokinių skaičius 2019 m. | M1: Tęstinio mokymo mokinių skaičius 2019 m. | N1: Tęstinio mokymo mokinių skaičius 2019 m. | O1: Tęstinio mokymo mokinių skaičius 2019 m. | Q1: Pirminio mokymo mokinių skaičiaus dalis 2019 m. nuo bendro mokinių sk. | R1: Tęstinio mokymo mokinių skaičiaus dalis 2019 m. nuo bendro mokinių sk. | S1: Tęstinio mokymo mokinių skaičiaus dalis 2019 m. nuo bendro mokinių sk. | T1: Tęstinio mokymo mokinių skaičiaus dalis 2019 m. nuo bendro mokinių sk.
Q2: 3
J3: Tęstinio profesinio mokymo programos suaugusiems asmenims, turintiems pagrindinį išsilavinimą, skirtos profesinei kvalifikacijai įgyti per ilgesnį nei trijų mėnesių laikotarpį | K3: Tęstinio profesinio mokymo programos suaugusiems asmenims, turintiems pagrindinį išsilavinimą, skirtos profesinei kvalifikacijai įgyti per trumpesnį nei trijų mėnesių laikotarpį | L3: Tęstinio profesinio mokymo programos suaugusiems asmenims, turintiems pagrindinį išsilavinimą, skirtos teisei atlikti darbą ar funkciją įgyti | M3: Tęstinio profesinio mokymo programos suaugusiems asmenims, turintiems pagrindinį išsilavinimą, skirtos papildomai profesinei kvalifikacijai įgyti | N3: Tęstinio profesinio modulinės mokymo programos, skirtos asmenims, turintiems vidurinį išsilavinimą | O3: Tęstinio profesinio modulinės mokymo programos, skirtos asmenims, turintiems pagrindinį išsilavinimą | Q3: Pirminio profesinio modulinės mokymo programos, skirtos asmenims, turintiems pagrindinį išsilavinimą, ir suteikiančios galimybę įgyti vidurinį išsilavinimą | R3: Tęstinio profesinio mokymo programos suaugusiems asmenims, turintiems pagrindinį išsilavinimą, skirtos teisei atlikti darbą ar funkciją įgyti | S3: Tęstinio profesinio mokymo programos suaugusiems asmenims, turintiems pagrindinį išsilavinimą, skirtos papildomai profesinei kvalifikacijai įgyti | T3: Tęstinio profesinio modulinės mokymo programos, skirtos asmenims, turintiems pagrindinį išsilavinimą
P4: Tęstinio mokymo mokinių skaičius pagal specialybes 2019 m. | Q4: Profesinio mokymo programos kartu su vidurinio ugdymo programomis | U4: Pirminio mokymo mokinių skaičiaus dalis bendrame mokinių sk. pagal specialybes 2019 m. | V4: Pirminio mokymo mokinių skaičiaus dalis bendrame mokinių sk. pagal specialybes 2019 m. | W4: Tęstinio mokymo mokinių skaičiaus dalis bendrame mokinių sk. pagal specialybes 2019 m.
C5: =+'1.Duomenys'!C5 -> Pagrindinės veiklos sąnaudos 1-m mokiniui | D5: Bendras paslaugos gavėjų skaičius (mokinių skaičius (pirminis + tęstinis)) | E5: Mokinių skaičius tęstinio mokymo) | F5: Mokinių skaičiaus dalis (pirminio mokymo) bendrame mokinių skaičiuje | G5: Be spec poreikių mok skaičiaus dalis (pirminio) bendrame mokinių sk. | H5: Mokinių skaičiaus dalis (tęstinio mokymo) bendrame mokinių sk. | I5: Pirminio mokymo (ISCED 3) mokinių skaičiaus dalis bendrame mokinių sk. | P5: Transporto paslaugos | Q5: Profesinio mokymo programos kartu su vidurinio ugdymo programomis | U5: Paslaugos asmenims | V5: Verslas ir administravimas | W5: Transporto paslaugos | X5: Institucijų skaičius (su padaliniais) 1-am mokiniui | Y5: Netuščių padalinių skaičius 1-am mokiniui | Z5: Vietų skaičius mokyklos bendrabučiuose 1-am mokiniui | AA5: Bendras patalpų plotas (kv. m.) 1-am mokiniui | AB5: Mokymo patalpų bendras plotas (kv. m) 1-am mokiniui | AC5: Pedagoginiai darbuotojai 1-am mokiniui | AD5: Administracijos darbuotojai [Direktoriaus pavaduotojas praktiniam mokymui, Direktoriaus pavaduotojas ugdymui, Direktorius, Padalinio, susijusio su ugdymu, vedėjas, Laikinasis direktorius] 1-am mokiniui | AE5: Kiti administracijos darbuotojai [Vidutinis sąlyginis darbuotojų skaičius] 1-am mokiniui | AF5: Pagalbinis personalas [Vidutinis sąlyginis darbuotojų skaičius] 1-am mokiniui | AG5: Pedagoginių darbuotojų dalis bendrame darbuotojų sk. | AH5: Pirminio mokymo mokinių su spec. poreikiais dalis
A6: Kodas | B6: Pavadinimas | C6: ='1.Duomenys'!C6 -> Y | D6: X2 | E6: X5 | F6: X11 | G6: X12 | H6: X13 | I6: X18 | J6: X37 | K6: X41 | L6: X42 | M6: X46 | N6: X49 | O6: X50 | P6: X74 | Q6: X85 | R6: X100 | S6: X104 | T6: X108 | U6: X111 | V6: X112 | W6: X132 | X6: X149 | Y6: X150 | Z6: X151 | AA6: X152 | AB6: X153 | AC6: X154 | AD6: X155 | AE6: X156 | AF6: X159 | AG6: X161 | AH6: X16
A7: 300039337 | B7: Alytaus profesinio rengimo centras | C7: ='1.Duomenys'!C7 -> 2130.336802 | D7: 2074.166667 | E7: 650 | F7: 0.6397561426 | G7: 0.6345834103 | H7: 0.3261347698 | I7: 0.3530389802 | J7: 153 | K7: 47.33333333 | L7: 101.3333333 | M7: 37.33333333 | N7: 112 | O7: 50.33333333 | P7: 154.6666667 | Q7: 0.3048217255 | R7: 0.05616109366 | S7: 0.02069092924 | T7: 0.02789580639 | U7: 0.162202106 | V7: 0.01219286902 | W7: 0.08571956401 | X7: 0.002771106595 | Y7: 0.001108442638 | Z7: 0.1695917236 | AA7: 18.18819139 | AB7: 11.82084242 | AC7: 0.07038610752 | AD7: 0.004433770552 | AE7: 0.01666543506 | AF7: 0.04987991871 | AG7: 0.4979025366 | AH7: 0.009632291518
A8: 190961010 | B8: Viešoji įstaiga Daugų technologijos ir verslo mokykla | C8: ='1.Duomenys'!C8 -> 2965.24826 | D8: 308.5833333 | E8: 79 | F8: 0.7191943128 | G8: 0.7191943128 | H8: 0.08271582522 | I8: 0.3376777251 | J8: 2 | K8: 9.666666667 | L8: 0 | M8: 0 | N8: 58.66666667 | O8: 0 | P8: 0 | Q8: 0.2239336493 | R8: 0 | S8: 0 | T8: 0 | U8: 0.08530805687 | V8: 0.01184834123 | W8: 0 | X8: 0.00355450237 | Y8: 0.00355450237 | Z8: 0.6575829384 | AA8: 22.84613744 | AB8: 9.680793839 | AC8: 0.07464454976 | AD8: 0.01421800948 | AE8: 0.03497630332 | AF8: 0.1095853081 | AG8: 0.3197807218 | AH8: 0
A9: 302643724 | B9: Biržų technologijų ir verslo mokymo centras | C9: ='1.Duomenys'!C9 -> 2422.414976 | D9: 942.25 | E9: 134 | F9: 0.8239929947 | G9: 0.7605078809 | H9: 0.2127416995 | I9: 0.4859894921 | J9: 65.33333333 | K9: 34 | L9: 0 | M9: 0 | N9: 11.33333333 | O9: 0 | P9: 57.33333333 | Q9: 0.4649737303 | R9: 0 | S9: 0 | T9: 0 | U9: 0.1007005254 | V9: 0.03415061296 | W9: 0.07530647986 | X9: 0.002626970228 | Y9: 0.002626970228 | Z9: 0.4781085814 | AA9: 23.68739054 | AB9: 17.16987741 | AC9: 0.07749562172 | AD9: 0.005253940455 | AE9: 0.02239492119 | AF9: 0.06133975482 | AG9: 0.4466651525 | AH9: 0.05313501542
A10: 190976966 | B10: Viešoji įstaiga Elektrėnų profesinio mokymo centras | C10: ='1.Duomenys'!C10 -> 2147.158551 | D10: 1069.166667 | E10: 124 | F10: 0.8595696489 | G10: 0.8584371461 | H10: 0.06039313885 | I10: 0.4265760664 | J10: 9.333333333 | K10: 0 | L10: 0 | M10: 0 | N10: 65.66666667 | O10: 0.6666666667 | P10: 5 | Q10: 0.3642884107 | R10: 0 | S10: 0 | T10: 0.0007550018875 | U10: 0.1294828237 | V10: 0.06606266516 | W10: 0.005662514156 | X10: 0.003397508494 | Y10: 0.003397508494 | Z10: 0.3272933182 | AA10: 15.60771008 | AB10: 8.251220838 | AC10: 0.100792752 | AD10: 0.004530011325 | AE10: 0.02604756512 | AF10: 0.05662514156 | AG10: 0.5361445783 | AH10: 0.0003632025816
A11: 111964563 | B11: Jonavos politechnikos mokykla | C11: ='1.Duomenys'!C11 -> 2021.762516 | D11: 574.6666667 | E11: 121 | F11: 0.7538983051 | G11: 0.7538983051 | H11: 0.1749915065 | I11: 0.4040677966 | J11: 38 | K11: 0 | L11: 0 | M11: 0 | N11: 37.66666667 | O11: 5.333333333 | P11: 0 | Q11: 0.4040677966 | R11: 0 | S11: 0 | T11: 0.01084745763 | U11: 0.1993220339 | V11: 0.00813559322 | W11: 0 | X11: 0.002033898305 | Y11: 0.002033898305 | Z11: 0 | AA11: 13.24557966 | AB11: 11.1063661 | AC11: 0.06711864407 | AD11: 0.00813559322 | AE11: 0.02847457627 | AF11: 0.03457627119 | AG11: 0.4852941176 | AH11: 0
A12: 190804219 | B12: Joniškio žemės ūkio mokykla | C12: ='1.Duomenys'!C12 -> 5038.863812 | D12: 378 | E12: 76.33333333 | F12: 0.7556029883 | G12: 0.7556029883 | H12: 0.2225420481 | I12: 0.7310565635 | J12: 12 | K12: 32 | L12: 0 | M12: 0 | N12: 11.66666667 | O12: 0 | P12: 8 | Q12: 0.6371398079 | R12: 0 | S12: 0 | T12: 0 | U12: 0.1462113127 | V12: 0.0992529349 | W12: 0.02561366062 | X12: 0.009605122732 | Y12: 0.006403415155 | Z12: 1.728922092 | AA12: 95.35370331 | AB12: 33.25127001 | AC12: 0.144076841 | AD12: 0.009605122732 | AE12: 0.08324439701 | AF12: 0.2017075774 | AG12: 0.3184713376 | AH12: 0
A13: 191425670 | B13: Smalininkų technologijų ir verslo mokykla | C13: ='1.Duomenys'!C13 -> 2983.985183 | D13: 462.5833333 | E13: 138.6666667 | F13: 0.6248872858 | G13: 0.6167718665 | H13: 0.2596477919 | I13: 0.3678990081 | J13: 58.66666667 | K13: 3.333333333 | L13: 11.33333333 | M13: 0.6666666667 | N13: 26.66666667 | O13: 10 | P13: 56.66666667 | Q13: 0.342651037 | R13: 0.03065825068 | S13: 0.00180342651 | T13: 0.02705139766 | U13: 0.08385933273 | V13: 0.02254283138 | W13: 0.1532912534 | X13: 0.005410279531 | Y13: 0.002705139766 | Z13: 1.04418395 | AA13: 71.11812444 | AB13: 33.81965735 | AC13: 0.1325518485 | AD13: 0.01352569883 | AE13: 0.04016537421 | AF13: 0.06584526601 | AG13: 0.5152156861 | AH13: 0.02234546285
A14: 190804361 | B14: Kaišiadorių technologijų ir verslo mokykla | C14: ='1.Duomenys'!C14 -> 1532.777703 | D14: 692 | E14: 340.3333333 | F14: 0.4637605042 | G14: 0.4637605042 | H14: 0.4316351792 | I14: 0.2211134454 | J14: 171 | K14: 37.66666667 | L14: 0 | M14: 0 | N14: 35.33333333 | O14: 0.6666666667 | P14: 209.6666667 | Q14: 0.1801470588 | R14: 0 | S14: 0 | T14: 0.001050420168 | U14: 0.1428571429 | V14: 0.01943277311 | W14: 0.3303571429 | X14: 0.001575630252 | Y14: 0.001575630252 | Z14: 0.1575630252 | AA14: 17.67524685 | AB14: 4.748539916 | AC14: 0.05199579832 | AD14: 0.001575630252 | AE14: 0.00905987395 | AF14: 0.02300420168 | AG14: 0.607175713 | AH14: 0
A15: 111961453 | B15: Karaliaus Mindaugo profesinio mokymo centras | C15: ='1.Duomenys'!C15 -> 1982.707339 | D15: 3757.166667 | E15: 450.6666667 | F15: 0.8565821576 | G15: 0.8559456879 | H15: 0.06637785855 | I15: 0.2257345921 | J15: 8.666666667 | K15: 0 | L15: 0 | M15: 0 | N15: 146.6666667 | O15: 16.66666667 | P15: 0 | Q15: 0.1630423252 | R15: 0 | S15: 0 | T15: 0.005303914289 | U15: 0.2057918744 | V15: 0.05537286517 | W15: 0 | X15: 0.001272939429 | Y15: 0.0006364697146 | Z15: 0.08401400233 | AA15: 4.593115519 | AB15: 2.909529012 | AC15: 0.07287578233 | AD15: 0.003818818288 | AE15: 0.01463880344 | AF15: 0.01973056115 | AG15: 0.6542857143 | AH15: 0.002322391179
A16: 111964378 | B16: Kauno buitinių paslaugų ir verslo mokykla | C16: ='1.Duomenys'!C16 -> 2484.079182 | D16: 646.0833333 | E16: 98.33333333 | F16: 0.786849711 | G16: 0.786849711 | H16: 0.07563841869 | I16: 0.2723988439 | J16: 0.6666666667 | K16: 0 | L16: 0 | M16: 2 | N16: 23 | O16: 0 | P16: 0 | Q16: 0.2723988439 | R16: 0 | S16: 0.004335260116 | T16: 0 | U16: 0.1604046243 | V16: 0.1047687861 | W16: 0 | X16: 0.002167630058 | Y16: 0.002167630058 | Z16: 0.3208092486 | AA16: 16.2984104 | AB16: 5.455924855 | AC16: 0.1170520231 | AD16: 0.01083815029 | AE16: 0.02794725434 | AF16: 0.06912572254 | AG16: 0.5111990458 | AH16: 0
A17: 190804742 | B17: Kauno maisto pramonės ir prekybos mokymo centras | C17: ='1.Duomenys'!C17 -> 3169.035009 | D17: 926.9166667 | E17: 242 | F17: 0.7059538275 | G17: 0.6318347509 | H17: 0.1681713565 | I17: 0.3612798704 | J17: 32 | K17: 0 | L17: 0 | M17: 0 | N17: 45.66666667 | O17: 14.33333333 | P17: 0 | Q17: 0.2195220737 | R17: 0 | S17: 0 | T17: 0.01741595788 | U17: 0.31672742 | V17: 0.04779262859 | W17: 0 | X17: 0.002430133657 | Y17: 0.002430133657 | Z17: 0.3353584447 | AA17: 13.47414338 | AB17: 5.754556501 | AC17: 0.08140947752 | AD17: 0.007290400972 | AE17: 0.02430133657 | AF17: 0.07776427704 | AG17: 0.4135802469 | AH17: 0.04136778953
A18: 190972373 | B18: Kauno statybos ir paslaugų mokymo centras | C18: ='1.Duomenys'!C18 -> 2031.366325 | D18: 2087.416667 | E18: 600.6666667 | F18: 0.6807794508 | G18: 0.5798051373 | H18: 0.2040387891 | I18: 0.1642161205 | J18: 45.33333333 | K18: 30 | L18: 19.66666667 | M18: 1.333333333 | N18: 151.3333333 | O18: 7.666666667 | P18: 39.66666667 | Q18: 0.1583702391 | R18: 0.01045172719 | S18: 0.000708591674 | T18: 0.004074402126 | U18: 0.02302922941 | V18: 0.03454384411 | W18: 0.0210806023 | X18: 0.003188662533 | Y18: 0.001062887511 | Z18: 0.07705934455 | AA18: 7.167459699 | AB18: 2.578565102 | AC18: 0.05633303809 | AD18: 0.003188662533 | AE18: 0.006908768822 | AF18: 0.04591674048 | AG18: 0.4620749782 | AH18: 0.0674430277
A19: 190973322 | B19: Kauno taikomosios dailės mokykla | C19: ='1.Duomenys'!C19 -> 2779.882159 | D19: 564.3333333 | E19: 129 | F19: 0.7644552648 | G19: 0.6676810712 | H19: 0.07961406387 | I19: 0.2446743761 | J19: 0.6666666667 | K19: 0 | L19: 0 | M19: 0 | N19: 44.33333333 | O19: 0 | P19: 0 | Q19: 0.1631162508 | R19: 0 | S19: 0 | T19: 0 | U19: 0.2422398052 | V19: 0.05173463177 | W19: 0 | X19: 0.00365185636 | Y19: 0.00365185636 | Z19: 0.7595861229 | AA19: 16.99369446 | AB19: 7.019306147 | AC19: 0.1186853317 | AD19: 0.01095556908 | AE19: 0.0232805843 | AF19: 0.05842970177 | AG19: 0.5531914894 | AH19: 0.07187402008
A20: 290972940 | B20: Kauno informacinių technologijų mokykla | C20: ='1.Duomenys'!C20 -> 2508.663344 | D20: 567.4166667 | E20: 157.6666667 | F20: 0.7154031288 | G20: 0.7135980746 | H20: 0.1713179936 | I20: 0.5571600481 | J20: 0 | K20: 0 | L20: 0 | M20: 0 | N20: 50.33333333 | O20: 0 | P20: 0 | Q20: 0.3953068592 | R20: 0 | S20: 0 | T20: 0 | U20: 0.1083032491 | V20: 0.01805054152 | W20: 0 | X20: 0.001805054152 | Y20: 0.001805054152 | Z20: 0 | AA20: 4.269981949 | AB20: 2.774187726 | AC20: 0.06678700361 | AD20: 0.003610108303 | AE20: 0.02027075812 | AF20: 0.01987364621 | AG20: 0.5865567533 | AH20: 0.0006013235619
A21: 304311642 | B21: Kauno technikos profesinio mokymo centras | C21: ='1.Duomenys'!C21 -> 2193.828012 | D21: 1361.916667 | E21: 274.6666667 | F21: 0.8304526749 | G21: 0.8300411523 | H21: 0.0803678894 | I21: 0.4798353909 | J21: 28 | K21: 0 | L21: 10.33333333 | M21: 0 | N21: 87.33333333 | O21: 4.333333333 | P21: 36.66666667 | Q21: 0.4740740741 | R21: 0.006378600823 | S21: 0 | T21: 0.002674897119 | U21: 0.009465020576 | V21: 0.0378600823 | W21: 0.02263374486 | X21: 0.0006172839506 | Y21: 0.0006172839506 | Z21: 0.1172839506 | AA21: 18.18069753 | AB21: 10.15252469 | AC21: 0.07407407407 | AD21: 0.004320987654 | AE21: 0.01941358025 | AF21: 0.04068518519 | AG21: 0.5148888698 | AH21: 0.0001552366794
A22: 190808616 | B22: Vilkijos žemės ūkio mokykla | C22: ='1.Duomenys'!C22 -> 1898.731937 | D22: 504.0833333 | E22: 113.3333333 | F22: 0.753801593 | G22: 0.753801593 | H22: 0.3152261876 | I22: 0.2143374366 | J22: 77.66666667 | K22: 39.33333333 | L22: 0 | M22: 0 | N22: 20.33333333 | O22: 0 | P22: 45.66666667 | Q22: 0.2143374366 | R22: 0 | S22: 0 | T22: 0 | U22: 0.1817523534 | V22: 0.007965242578 | W22: 0.09920347574 | X22: 0.002172338885 | Y22: 0.002172338885 | Z22: 0.434467777 | AA22: 37.06092686 | AB22: 3.946444605 | AC22: 0.08037653874 | AD22: 0.00434467777 | AE22: 0.03188993483 | AF22: 0.05213613324 | AG22: 0.4763130793 | AH22: 0.0002875215641
A23: 111966767 | B23: Kėdainių profesinio rengimo centras | C23: ='1.Duomenys'!C23 -> 2866.376062 | D23: 779.0833333 | E23: 161.6666667 | F23: 0.6834203655 | G23: 0.5979112272 | H23: 0.3169162295 | I23: 0.4131853786 | J23: 52.66666667 | K23: 19.33333333 | L23: 19 | M23: 10 | N23: 24.66666667 | O23: 14 | P23: 50.66666667 | Q23: 0.384464752 | R23: 0.03720626632 | S23: 0.01958224543 | T23: 0.0274151436 | U23: 0.1520887728 | V23: 0.01697127937 | W23: 0.09921671018 | X23: 0.003916449086 | Y23: 0.001958224543 | Z23: 0.3524804178 | AA23: 33.95931462 | AB23: 15.86718016 | AC23: 0.09203655352 | AD23: 0.007832898172 | AE23: 0.03720626632 | AF23: 0.06657963446 | AG23: 0.4372093023 | AH23: 0.05533702028
A24: 111964759 | B24: Viešoji įstaiga Kelmės profesinio rengimo centras | C24: ='1.Duomenys'!C24 -> 3107.804726 | D24: 503.9166667 | E24: 38.66666667 | F24: 0.9008547009 | G24: 0.9008547009 | H24: 0.1387045721 | I24: 0.6760683761 | J24: 31.33333333 | K24: 0 | L24: 0 | M24: 0 | N24: 25.66666667 | O24: 4.333333333 | P24: 0 | Q24: 0.6205128205 | R24: 0 | S24: 0 | T24: 0.01111111111 | U24: 0.1735042735 | V24: 0.01452991453 | W24: 0 | X24: 0.005128205128 | Y24: 0.005128205128 | Z24: 1.082051282 | AA24: 62.21702564 | AB24: 39.54102564 | AC24: 0.1333333333 | AD24: 0.01025641026 | AE24: 0.03461538462 | AF24: 0.09025641026 | AG24: 0.4966571156 | AH24: 0.0002853881279
A25: 111964225 | B25: Klaipėdos paslaugų ir verslo mokykla | C25: ='1.Duomenys'!C25 -> 2514.128914 | D25: 962.6666667 | E25: 10.66666667 | F25: 0.9873667588 | G25: 0.9873667588 | H25: 0.003158310304 | I25: 0.6798262929 | J25: 0 | K25: 0 | L25: 0 | M25: 0 | N25: 10.66666667 | O25: 0 | P25: 0 | Q25: 0.5854717726 | R25: 0 | S25: 0 | T25: 0 | U25: 0.2183181998 | V25: 0.01894986182 | W25: 0 | X25: 0.001184366364 | Y25: 0.001184366364 | Z25: 0.3410975128 | AA25: 17.28517568 | AB25: 10.52321358 | AC25: 0.07106198184 | AD25: 0.007106198184 | AE25: 0.02046585077 | AF25: 0.05232530596 | AG25: 0.4636068614 | AH25: 0
A26: 140199874 | B26: Klaipėdos Ernesto Galvanausko profesinio mokymo centras | C26: ='1.Duomenys'!C26 -> 1279.663973 | D26: 2116.666667 | E26: 1818.666667 | F26: 0.1826217228 | G26: 0.1499625468 | H26: 0.8043397365 | I26: 0.08224719101 | J26: 78 | K26: 168 | L26: 513.6666667 | M26: 247.3333333 | N26: 113.3333333 | O26: 213.6666667 | P26: 1321.666667 | Q26: 0.07685393258 | R26: 0.2308614232 | S26: 0.1111610487 | T26: 0.09602996255 | U26: 0.007041198502 | V26: 0.02052434457 | W26: 0.5940074906 | X26: 0.0004494382022 | Y26: 0.0004494382022 | Z26: 0.191011236 | AA26: 11.67195056 | AB26: 7.735492135 | AC26: 0.03101123596 | AD26: 0.003146067416 | AE26: 0.008898876404 | AF26: 0.01694382022 | AG26: 0.503649635 | AH26: 0.03757931337
A27: 190973856 | B27: Klaipėdos laivininkų mokykla | C27: ='1.Duomenys'!C27 -> 3700.571085 | D27: 231.1666667 | E27: 6.333333333 | F27: 0.9655172414 | G27: 0.9655172414 | H27: 0.008620689655 | I27: 0.8148820327 | J27: 0 | K27: 0 | L27: 0 | M27: 0 | N27: 6.333333333 | O27: 0 | P27: 5.333333333 | Q27: 0.8148820327 | R27: 0 | S27: 0 | T27: 0 | U27: 0 | V27: 0.04174228675 | W27: 0.02903811252 | X27: 0.005444646098 | Y27: 0.005444646098 | Z27: 0.5444646098 | AA27: 27.89030853 | AB27: 8.864591652 | AC27: 0.1306715064 | AD27: 0.0108892922 | AE27: 0.06533575318 | AF27: 0.1320326679 | AG27: 0.3855421687 | AH27: 0
A28: 190974424 | B28: Klaipėdos technologijų mokymo centras | C28: ='1.Duomenys'!C28 -> 2938.393733 | D28: 573 | E28: 78 | F28: 0.8548387097 | G28: 0.82382134 | H28: 0.0837977298 | I28: 0.5980148883 | J28: 25.33333333 | K28: 0 | L28: 0 | M28: 0 | N28: 25 | O28: 3 | P28: 0 | Q28: 0.3163771712 | R28: 0 | S28: 0 | T28: 0.005583126551 | U28: 0.1916873449 | V28: 0.01612903226 | W28: 0 | X28: 0.001861042184 | Y28: 0.001861042184 | Z28: 0.7537220844 | AA28: 10.18773573 | AB28: 5.075899504 | AC28: 0.1004962779 | AD28: 0.009305210918 | AE28: 0.02437965261 | AF28: 0.06048387097 | AG28: 0.5162523901 | AH28: 0.02865893529
A29: 190974577 | B29: Klaipėdos turizmo mokykla | C29: ='1.Duomenys'!C29 -> 3554.294694 | D29: 585.1666667 | E29: 37 | F29: 0.9296577947 | G29: 0.9296577947 | H29: 0.0719740679 | I29: 0.7357414449 | J29: 27.33333333 | K29: 0 | L29: 0 | M29: 0 | N29: 6.333333333 | O29: 2 | P29: 0 | Q29: 0.6337135615 | R29: 0 | S29: 0 | T29: 0.003802281369 | U29: 0.5 | V29: 0.08111533587 | W29: 0 | X29: 0.001901140684 | Y29: 0.001901140684 | Z29: 0.4752851711 | AA29: 17.11085551 | AB29: 6.643954373 | AC29: 0.1121673004 | AD29: 0.009505703422 | AE29: 0.04201520913 | AF29: 0.05038022814 | AG29: 0.5239786856 | AH29: 0.0006785598138
A30: 193180433 | B30: Viešoji įstaiga Klaipėdos laivų statybos ir remonto mokykla | C30: ='1.Duomenys'!C30 -> 2991.769196 | D30: 412.5 | E30: 58 | F30: 0.8372310571 | G30: 0.8372310571 | H30: 0.2088559225 | I30: 0.6800748363 | J30: 42.66666667 | K30: 20 | L30: 0 | M30: 0 | N30: 9.333333333 | O30: 0 | P30: 0 | Q30: 0.671655753 | R30: 0 | S30: 0 | T30: 0 | U30: 0 | V30: 0.03928905519 | W30: 0 | X30: 0.002806361085 | Y30: 0.002806361085 | Z30: 0.5051449953 | AA30: 21.37125351 | AB30: 15.99373246 | AC30: 0.08699719364 | AD30: 0.01122544434 | AE30: 0.04209541628 | AF30: 0.06875584659 | AG30: 0.4147157191 | AH30: 0
A31: 190804938 | B31: Viešoji įstaiga Kretingos technologijos ir verslo mokykla | C31: ='1.Duomenys'!C31 -> 3111.402373 | D31: 323.0833333 | E31: 21.33333333 | F31: 0.9057437408 | G31: 0.8262150221 | H31: 0.06904401439 | I31: 0.7717231222 | J31: 6.666666667 | K31: 0 | L31: 0 | M31: 0 | N31: 12 | O31: 0 | P31: 15.33333333 | Q31: 0.7717231222 | R31: 0 | S31: 0 | T31: 0 | U31: 0.1634756996 | V31: 0.01030927835 | W31: 0.0677466863 | X31: 0.00441826215 | Y31: 0.00441826215 | Z31: 0.9455081001 | AA31: 61.05799705 | AB31: 31.70103093 | AC31: 0.1148748159 | AD31: 0.0176730486 | AE31: 0.06318114875 | AF31: 0.1139469809 | AG31: 0.3709516336 | AH31: 0.06919807595
A32: 190805125 | B32: Kupiškio technologijos ir verslo mokykla | C32: ='1.Duomenys'!C32 -> 2881.256651 | D32: 537.3333333 | E32: 65 | F32: 0.8372287145 | G32: 0.7429048414 | H32: 0.200044274 | I32: 0.5968280467 | J32: 25.33333333 | K32: 0 | L32: 0 | M32: 0 | N32: 12.33333333 | O32: 1.333333333 | P32: 0 | Q32: 0.5525876461 | R32: 0 | S32: 0 | T32: 0.003338898164 | U32: 0.1368948247 | V32: 0.05676126878 | W32: 0 | X32: 0.002504173623 | Y32: 0.002504173623 | Z32: 0.5008347245 | AA32: 28.67278798 | AB32: 8.727045075 | AC32: 0.04507512521 | AD32: 0.01001669449 | AE32: 0.03360601002 | AF32: 0.07681803005 | AG32: 0.260998173 | AH32: 0.06910108005
A33: 190807667 | B33: Veisiejų technologijos ir verslo mokykla | C33: ='1.Duomenys'!C33 -> 2808.83231 | D33: 399.0833333 | E33: 45.33333333 | F33: 0.8537634409 | G33: 0.8537634409 | H33: 0.125351345 | I33: 0.3827956989 | J33: 3.333333333 | K33: 14 | L33: 0 | M33: 0 | N33: 23.33333333 | O33: 2 | P33: 2 | Q33: 0.3827956989 | R33: 0 | S33: 0 | T33: 0.006451612903 | U33: 0.2548387097 | V33: 0.02043010753 | W33: 0.006451612903 | X33: 0.003225806452 | Y33: 0.003225806452 | Z33: 0.3870967742 | AA33: 16.42258065 | AB33: 5.45483871 | AC33: 0.1258064516 | AD33: 0.009677419355 | AE33: 0.03870967742 | AF33: 0.06129032258 | AG33: 0.5342465753 | AH33: 0
A34: 111964944 | B34: Marijampolės profesinio rengimo centras | C34: ='1.Duomenys'!C34 -> 2507.133265 | D34: 1639.666667 | E34: 370.6666667 | F34: 0.7406716418 | G34: 0.7077891791 | H34: 0.1986828036 | I34: 0.4549906716 | J34: 87.33333333 | K34: 41.33333333 | L34: 19.66666667 | M34: 25.66666667 | N34: 58.66666667 | O34: 26 | P34: 210.6666667 | Q34: 0.4099813433 | R34: 0.01375932836 | S34: 0.01795708955 | T34: 0.01819029851 | U34: 0.2206156716 | V34: 0.01912313433 | W34: 0.1473880597 | X34: 0.003498134328 | Y34: 0.003498134328 | Z34: 0.1854011194 | AA34: 27.42222481 | AB34: 17.23402052 | AC34: 0.0958488806 | AD34: 0.00489738806 | AE34: 0.01749067164 | AF34: 0.07695895522 | AG34: 0.4888492417 | AH34: 0.02412164243
A35: 290977720 | B35: Mažeikių politechnikos mokykla | C35: ='1.Duomenys'!C35 -> 2526.117985 | D35: 902.1666667 | E35: 136.6666667 | F35: 0.8041089345 | G35: 0.7529861443 | H35: 0.1745045663 | I35: 0.6072623029 | J35: 78.66666667 | K35: 19.33333333 | L35: 0 | M35: 0 | N35: 29.33333333 | O35: 0 | P35: 80.66666667 | Q35: 0.5876731964 | R35: 0 | S35: 0 | T35: 0 | U35: 0.1352126135 | V35: 0.05685618729 | W35: 0.1156235069 | X35: 0.002866698519 | Y35: 0.002866698519 | Z35: 0.4300047778 | AA35: 32.81972766 | AB35: 19.92389871 | AC35: 0.0917343526 | AD35: 0.005733397038 | AE35: 0.02651681796 | AF35: 0.1118012422 | AG35: 0.3890579873 | AH35: 0.02872002658
A36: 191176774 | B36: Viešoji įstaiga Alantos technologijos ir verslo mokykla | C36: ='1.Duomenys'!C36 -> 3290.876855 | D36: 425.1666667 | E36: 122.6666667 | F36: 0.691533948 | G36: 0.691533948 | H36: 0.2521628109 | I36: 0.2665549036 | J36: 24 | K36: 0 | L36: 0 | M36: 0 | N36: 44 | O36: 0 | P36: 8.666666667 | Q36: 0.2523051132 | R36: 0 | S36: 0 | T36: 0 | U36: 0.2288348701 | V36: 0 | W36: 0.02179379715 | X36: 0.005029337804 | Y36: 0.005029337804 | Z36: 0.6110645432 | AA36: 58.5489606 | AB36: 25.85263202 | AC36: 0.1307627829 | AD36: 0.01005867561 | AE36: 0.07921207041 | AF36: 0.09681475272 | AG36: 0.4126984127 | AH36: 0
A37: 111963995 | B37: Viešoji įstaiga Panevėžio profesinio rengimo centras | C37: ='1.Duomenys'!C37 -> 2381.800587 | D37: 1271.25 | E37: 239.3333333 | F37: 0.761699303 | G37: 0.761699303 | H37: 0.2663951987 | I37: 0.504148689 | J37: 162.6666667 | K37: 0 | L37: 0 | M37: 0 | N37: 58.33333333 | O37: 12.33333333 | P37: 45.33333333 | Q37: 0.441088616 | R37: 0 | S37: 0 | T37: 0.01228011948 | U37: 0.1334218387 | V37: 0.021905078 | W37: 0.04513773648 | X37: 0.001991370727 | Y37: 0.0009956853634 | Z37: 1.1769001 | AA37: 50.15899436 | AB37: 23.82300697 | AC37: 0.09658148025 | AD37: 0.009956853634 | AE37: 0.01194822436 | AF37: 0.04878858281 | AG37: 0.5705882353 | AH37: 0
A38: 147178142 | B38: Panevėžio darbo rinkos mokymo centras | C38: ='1.Duomenys'!C38 -> 1142.865529 | D38: 1121.916667 | E38: 963.3333333 | F38: 0.01667233753 | G38: 0.01667233753 | H38: 0.9958319156 | I38: 0.01020755359 | J38: 94.66666667 | K38: 135.3333333 | L38: 331.3333333 | M38: 258.6666667 | N38: 105.6666667 | O38: 89 | P38: 677.3333333 | Q38: 0 | R38: 0.3382102756 | S38: 0.2640353862 | T38: 0.09084722695 | U38: 0.002041510718 | V38: 0.001701258932 | W38: 0.6913916298 | X38: 0.001020755359 | Y38: 0.001020755359 | Z38: 0 | AA38: 2.775433821 | AB38: 1.37904049 | AC38: 0.02449812862 | AD38: 0 | AE38: 0.005614154474 | AF38: 0.002041510718 | AG38: 0.7619047619 | AH38: 0
A39: 304384359 | B39: Panevėžio Margaritos Rimkevičaitės profesinio rengimo centras | C39: ='1.Duomenys'!C39 -> 4017.978771 | D39: 379.25 | E39: 17.66666667 | F39: 0.9443277311 | G39: 0.7331932773 | H39: 0.01391806723 | I39: 0.618697479 | J39: 0 | K39: 0 | L39: 0 | M39: 0 | N39: 15.66666667 | O39: 0 | P39: 0 | Q39: 0.599789916 | R39: 0 | S39: 0 | T39: 0 | U39: 0.362394958 | V39: 0.02731092437 | W39: 0 | X39: 0.003151260504 | Y39: 0.003151260504 | Z39: 1.162815126 | AA39: 57.45264706 | AB39: 33.76685924 | AC39: 0.1323529412 | AD39: 0.01260504202 | AE39: 0.06047268908 | AF39: 0.1355042017 | AG39: 0.388205934 | AH39: 0.1366509595
A40: 190805844 | B40: Plungės technologijų ir verslo mokykla | C40: ='1.Duomenys'!C40 -> 2847.837414 | D40: 781.3333333 | E40: 306.3333333 | F40: 0.5356240526 | G40: 0.5356240526 | H40: 0.3687192848 | I40: 0.5078322385 | J40: 128.6666667 | K40: 6 | L40: 31.66666667 | M40: 18.33333333 | N40: 27 | O40: 27.33333333 | P40: 111.3333333 | Q40: 0.4219302678 | R40: 0.04800404245 | S40: 0.02779181405 | T40: 0.04143506822 | U40: 0.1440121273 | V40: 0 | W40: 0.1687721071 | X40: 0.00303183426 | Y40: 0.00303183426 | Z40: 1.168772107 | AA40: 43.55843861 | AB40: 23.01465387 | AC40: 0.09398686205 | AD40: 0.007579585649 | AE40: 0.03847397676 | AF40: 0.07387064174 | AG40: 0.4266740073 | AH40: 0
A41: 190977872 | B41: Radviliškio technologijų ir verslo mokymo centras | C41: ='1.Duomenys'!C41 -> 3749.487738 | D41: 543.8333333 | E41: 35.33333333 | F41: 0.9175738725 | G41: 0.5590979782 | H41: 0.146706367 | I41: 0.3102643857 | J41: 41.33333333 | K41: 10 | L41: 0 | M41: 0 | N41: 10.66666667 | O41: 1.333333333 | P41: 0 | Q41: 0.1842923795 | R41: 0 | S41: 0 | T41: 0.003110419907 | U41: 0.0567651633 | V41: 0.1508553655 | W41: 0 | X41: 0.00466562986 | Y41: 0.00466562986 | Z41: 0.8398133748 | AA41: 45.38437792 | AB41: 16.4962675 | AC41: 0.1446345257 | AD41: 0.00933125972 | AE41: 0.05087869362 | AF41: 0.09851477449 | AG41: 0.4686673218 | AH41: 0.1947926666
A42: 190805997 | B42: Viešoji įstaiga Raseinių technologijos ir verslo mokykla | C42: ='1.Duomenys'!C42 -> 2772.112996 | D42: 425.0833333 | E42: 112 | F42: 0.6712328767 | G42: 0.6712328767 | H42: 0.2847983009 | I42: 0.542074364 | J42: 4 | K42: 0 | L42: 7.333333333 | M42: 16.33333333 | N42: 17.33333333 | O42: 10.33333333 | P42: 60.66666667 | Q42: 0.5078277886 | R42: 0.02152641879 | S42: 0.04794520548 | T42: 0.03033268102 | U42: 0.2045009785 | V42: 0.01369863014 | W42: 0.1780821918 | X42: 0.002935420744 | Y42: 0.002935420744 | Z42: 0.572407045 | AA42: 39.16144814 | AB42: 21.46285714 | AC42: 0.08512720157 | AD42: 0.008806262231 | AE42: 0.02054794521 | AF42: 0.07925636008 | AG42: 0.4393939394 | AH42: 0
A43: 190804895 | B43: Rokiškio technologijos, verslo ir žemės ūkio mokykla | C43: ='1.Duomenys'!C43 -> 1875.168273 | D43: 481.0833333 | E43: 103.6666667 | F43: 0.7463295269 | G43: 0.7340946166 | H43: 0.3393844778 | I43: 0.1737357259 | J43: 85.33333333 | K43: 24 | L43: 0 | M43: 0 | N43: 9 | O43: 0 | P43: 62.66666667 | Q43: 0.1737357259 | R43: 0 | S43: 0 | T43: 0 | U43: 0.06688417618 | V43: 0.03344208809 | W43: 0.1533442088 | X43: 0.002446982055 | Y43: 0.002446982055 | Z43: 0.1101141925 | AA43: 9.415522023 | AB43: 5.819535073 | AC43: 0.07340946166 | AD43: 0.004893964111 | AE43: 0.01468189233 | AF43: 0.04465742251 | AG43: 0.5240174672 | AH43: 0.003058727569
A44: 190804176 | B44: Dieveniškių technologijų ir verslo mokykla | C44: ='1.Duomenys'!C44 -> 2792.957016 | D44: 239.0833333 | E44: 66 | F44: 0.456043956 | G44: 0.456043956 | H44: 0.3156368845 | I44: 0.3791208791 | J44: 28.66666667 | K44: 14.33333333 | L44: 0 | M44: 0 | N44: 12.33333333 | O44: 0 | P44: 36 | Q44: 0.3461538462 | R44: 0 | S44: 0 | T44: 0 | U44: 0.1098901099 | V44: 0 | W44: 0.2967032967 | X44: 0.008241758242 | Y44: 0.008241758242 | Z44: 0.7417582418 | AA44: 114.3754945 | AB44: 59.95442308 | AC44: 0.1153846154 | AD44: 0.008241758242 | AE44: 0.02884615385 | AF44: 0.03708791209 | AG44: 0.6086956522 | AH44: 0
A45: 144132264 | B45: Viešoji įstaiga Šiaulių darbo rinkos mokymo centras | C45: ='1.Duomenys'!C45 -> 1397.247502 | D45: 1791.333333 | E45: 1456 | F45: 0.04960835509 | G45: 0.04960835509 | H45: 0.9810333257 | I45: 0 | J45: 200.6666667 | K45: 60 | L45: 403 | M45: 333.3333333 | N45: 67.66666667 | O45: 9.333333333 | P45: 1001.333333 | Q45: 0 | R45: 0.2630548303 | S45: 0.2175805048 | T45: 0.006092254134 | U45: 0.01044386423 | V45: 0.002175805048 | W45: 0.6536118364 | X45: 0.0006527415144 | Y45: 0.0006527415144 | Z45: 0.005221932115 | AA45: 3.450332898 | AB45: 2.370809399 | AC45: 0.02415143603 | AD45: 0 | AE45: 0 | AF45: 0 | AG45: 1 | AH45: 0
A46: 300039668 | B46: Šiaulių profesinio rengimo centras | C46: ='1.Duomenys'!C46 -> 2568.201768 | D46: 2064.5 | E46: 245.3333333 | F46: 0.8664489203 | G46: 0.7621121394 | H46: 0.05579708199 | I46: 0.4748684449 | J46: 17.33333333 | K46: 4 | L46: 0 | M46: 0 | N46: 107 | O46: 1.666666667 | P46: 41.33333333 | Q46: 0.3999274179 | R46: 0 | S46: 0 | T46: 0.0009072763564 | U46: 0.1950644166 | V46: 0.04899292324 | W46: 0.02250045364 | X46: 0.003266194883 | Y46: 0.002721829069 | Z46: 0.4817637452 | AA46: 23.06874796 | AB46: 14.81241698 | AC46: 0.0903647251 | AD46: 0.003810560697 | AE46: 0.02395209581 | AF46: 0.06124115406 | AG46: 0.5037936267 | AH46: 0.09117447708
A47: 190087881 | B47: Viešoji įstaiga Kuršėnų politechnikos mokykla | C47: ='1.Duomenys'!C47 -> 3383.520293 | D47: 360.25 | E47: 20.33333333 | F47: 0.9316909295 | G47: 0.8902575588 | H47: 0.01707726764 | I47: 0.633818589 | J47: 0 | K47: 0 | L47: 0 | M47: 0 | N47: 20.33333333 | O47: 0 | P47: 0 | Q47: 0.5419932811 | R47: 0 | S47: 0 | T47: 0 | U47: 0.209406495 | V47: 0.02015677492 | W47: 0 | X47: 0.003359462486 | Y47: 0.003359462486 | Z47: 1.290033595 | AA47: 30.43558791 | AB47: 4.790593505 | AC47: 0.1276595745 | AD47: 0.006718924972 | AE47: 0.03258678611 | AF47: 0.08264277716 | AG47: 0.4915912031 | AH47: 0.02360344029
A48: 190965375 | B48: Šilutės profesinio mokymo centras | C48: ='1.Duomenys'!C48 -> 2927.73354 | D48: 708.6666667 | E48: 87 | F48: 0.8779803647 | G48: 0.8153342683 | H48: 0.1672944136 | I48: 0.4880785414 | J48: 96.33333333 | K48: 0 | L48: 0 | M48: 0 | N48: 14.66666667 | O48: 0 | P48: 47.66666667 | Q48: 0.4305750351 | R48: 0 | S48: 0 | T48: 0 | U48: 0.1439925199 | V48: 0.05095839177 | W48: 0.06685366994 | X48: 0.004207573633 | Y48: 0.002805049088 | Z48: 0.427769986 | AA48: 16.64244039 | AB48: 11.45966339 | AC48: 0.08134642356 | AD48: 0.004207573633 | AE48: 0.02664796634 | AF48: 0.07573632539 | AG48: 0.4328358209 | AH48: 0.0503507798
A49: 111967488 | B49: Skuodo amatų ir paslaugų mokykla | C49: ='1.Duomenys'!C49 -> 2961.222066 | D49: 147.4166667 | E49: 4.666666667 | F49: 0.9636363636 | G49: 0.9636363636 | H49: 0.009090909091 | I49: 0.812987013 | J49: 0 | K49: 0 | L49: 0 | M49: 0 | N49: 4.666666667 | O49: 0 | P49: 0 | Q49: 0.7662337662 | R49: 0 | S49: 0 | T49: 0 | U49: 0.2233766234 | V49: 0 | W49: 0 | X49: 0.007792207792 | Y49: 0.007792207792 | Z49: 0.3116883117 | AA49: 19.31672727 | AB49: 7.663324675 | AC49: 0.1402597403 | AD49: 0.007792207792 | AE49: 0.0525974026 | AF49: 0.07597402597 | AG49: 0.5070422535 | AH49: 0
A50: 111963842 | B50: Švenčionių profesinio rengimo centras | C50: ='1.Duomenys'!C50 -> 2769.797347 | D50: 469.8333333 | E50: 78.33333333 | F50: 0.7832103321 | G50: 0.7795202952 | H50: 0.1902990935 | I50: 0.2749077491 | J50: 47.33333333 | K50: 17.33333333 | L50: 0 | M50: 0 | N50: 29 | O50: 1.666666667 | P50: 20 | Q50: 0.2481549815 | R50: 0 | S50: 0 | T50: 0.004612546125 | U50: 0.1033210332 | V50: 0.03413284133 | W50: 0.05535055351 | X50: 0.002767527675 | Y50: 0.002767527675 | Z50: 0.1937269373 | AA50: 9.216669742 | AB50: 5.529852399 | AC50: 0.09686346863 | AD50: 0.0110701107 | AE50: 0.0221402214 | AF50: 0.1037822878 | AG50: 0.4142011834 | AH50: 0.001524918864
A51: 190807286 | B51: Tauragės profesinio rengimo centras | C51: ='1.Duomenys'!C51 -> 2496.123687 | D51: 702.1666667 | E51: 122.6666667 | F51: 0.7231000752 | G51: 0.7231000752 | H51: 0.3837159728 | I51: 0.668924003 | J51: 112.3333333 | K51: 28.33333333 | L51: 0 | M51: 0 | N51: 6 | O51: 4.666666667 | P51: 39.66666667 | Q51: 0.568096313 | R51: 0 | S51: 0 | T51: 0.01053423627 | U51: 0.1745673439 | V51: 0 | W51: 0.08954100828 | X51: 0.002257336343 | Y51: 0.002257336343 | Z51: 0.3386004515 | AA51: 28.04781038 | AB51: 19.10051919 | AC51: 0.09480812641 | AD51: 0.009029345372 | AE51: 0.02708803612 | AF51: 0.04571106095 | AG51: 0.512195122 | AH51: 0
A52: 190807514 | B52: Viešoji įstaiga Telšių regioninis profesinio mokymo centras | C52: ='1.Duomenys'!C52 -> 2714.06487 | D52: 598.3333333 | E52: 56 | F52: 0.8689547582 | G52: 0.8057722309 | H52: 0.1408743286 | I52: 0.5842433697 | J52: 26 | K52: 0 | L52: 0 | M52: 0 | N52: 9 | O52: 5 | P52: 0 | Q52: 0.4836193448 | R52: 0 | S52: 0 | T52: 0.01170046802 | U52: 0.2238689548 | V52: 0.01404056162 | W52: 0 | X52: 0.002340093604 | Y52: 0.002340093604 | Z52: 0.5124804992 | AA52: 37.23797972 | AB52: 21.42161466 | AC52: 0.100624025 | AD52: 0.009360374415 | AE52: 0.02808112324 | AF52: 0.07488299532 | AG52: 0.4648648649 | AH52: 0.04946223155
A53: 191425713 | B53: Ukmergės technologijų ir verslo mokykla | C53: ='1.Duomenys'!C53 -> 2517.101054 | D53: 1026.166667 | E53: 294 | F53: 0.6444981862 | G53: 0.6396614268 | H53: 0.299990972 | I53: 0.38452237 | J53: 92 | K53: 31.66666667 | L53: 13 | M53: 0 | N53: 74.33333333 | O53: 18.33333333 | P53: 115.6666667 | Q53: 0.3575171302 | R53: 0.01571946796 | S53: 0 | T53: 0.02216848045 | U53: 0.07013301088 | V53: 0.05038291012 | W53: 0.1398629585 | X53: 0.001209189843 | Y53: 0.001209189843 | Z53: 0.2345828295 | AA53: 16.08249093 | AB53: 10.41496977 | AC53: 0.07859733978 | AD53: 0.006045949214 | AE53: 0.03990326481 | AF53: 0.0507859734 | AG53: 0.4467353952 | AH53: 0.007216654248
A54: 111965099 | B54: Utenos regioninis profesinio mokymo centras | C54: ='1.Duomenys'!C54 -> 2652.996483 | D54: 644.5 | E54: 216.6666667 | F54: 0.593495935 | G54: 0.5315822389 | H54: 0.3473787809 | I54: 0.3558474046 | J54: 54 | K54: 38.33333333 | L54: 0 | M54: 0 | N54: 26.66666667 | O54: 6.666666667 | P54: 21.33333333 | Q54: 0.3558474046 | R54: 0 | S54: 0 | T54: 0.01250781739 | U54: 0.1782363977 | V54: 0.01751094434 | W54: 0.04002501563 | X54: 0.001876172608 | Y54: 0.001876172608 | Z54: 0.6491557223 | AA54: 37.64 | AB54: 27.38787992 | AC54: 0.08067542214 | AD54: 0.009380863039 | AE54: 0.028630394 | AF54: 0.06118198874 | AG54: 0.448524043 | AH54: 0.04452472179
A55: 190807471 | B55: Varėnos technologijos ir verslo mokykla | C55: ='1.Duomenys'!C55 -> 3144.598775 | D55: 292.5833333 | E55: 43.33333333 | F55: 0.7601476015 | G55: 0.7601476015 | H55: 0.2338805326 | I55: 0.5405904059 | J55: 8 | K55: 19 | L55: 0 | M55: 5.333333333 | N55: 7.666666667 | O55: 0 | P55: 9.333333333 | Q55: 0.5405904059 | R55: 0 | S55: 0.0295202952 | T55: 0 | U55: 0.2970479705 | V55: 0 | W55: 0.05166051661 | X55: 0.0110701107 | Y55: 0.005535055351 | Z55: 0.5535055351 | AA55: 83.97785978 | AB55: 12.34317343 | AC55: 0.09963099631 | AD55: 0.0110701107 | AE55: 0 | AF55: 0.1503321033 | AG55: 0.3816793893 | AH55: 0
A56: 111963657 | B56: Viešoji įstaiga Vilniaus statybininkų rengimo centras | C56: ='1.Duomenys'!C56 -> 2866.634766 | D56: 1002.333333 | E56: 230.6666667 | F56: 0.7256145916 | G56: 0.7192704203 | H56: 0.1391307368 | I56: 0.3350515464 | J56: 22.66666667 | K56: 0.6666666667 | L56: 4.666666667 | M56: 0 | N56: 44 | O56: 0 | P56: 0 | Q56: 0.2942109437 | R56: 0.005551149881 | S56: 0 | T56: 0 | U56: 0.02775574941 | V56: 0.03211736717 | W56: 0 | X56: 0.002379064235 | Y56: 0.002379064235 | Z56: 0.4222839017 | AA56: 20.45624108 | AB56: 10.04534893 | AC56: 0.08088818398 | AD56: 0.003568596352 | AE56: 0.01879460745 | AF56: 0.06512688343 | AG56: 0.4795486601 | AH56: 0.003265075419
A57: 120091738 | B57: Vilniaus Jeruzalės darbo rinkos mokymo centras | C57: ='1.Duomenys'!C57 -> 1098.952028 | D57: 2402 | E57: 1692.666667 | F57: 0.02364929821 | G57: 0.02364929821 | H57: 0.991270904 | I57: 0.001538165737 | J57: 337.6666667 | K57: 218 | L57: 1132.666667 | M57: 164.6666667 | N57: 59.33333333 | O57: 117 | P57: 777.3333333 | Q57: 0 | R57: 0.6533358969 | S57: 0.09498173428 | T57: 0.06748702173 | U57: 0 | V57: 0 | W57: 0.4483753124 | X57: 0.0005768121515 | Y57: 0.0005768121515 | Z57: 0.04153047491 | AA57: 2.007715824 | AB57: 1.411747741 | AC57: 0.003460872909 | AD57: 0.0005768121515 | AE57: 0.0008652182273 | AF57: 0 | AG57: 0.7058823529 | AH57: 0
A58: 190798047 | B58: Vilniaus technologijų mokymo ir reabilitacijos centras | C58: ='1.Duomenys'!C58 -> 4243.642567 | D58: 146.5833333 | E58: 0 | F58: 1 | G58: 0.03351955307 | H58: 0 | I58: 0.03910614525 | J58: 0 | K58: 0 | L58: 0 | M58: 0 | N58: 0 | O58: 0 | P58: 0 | Q58: 0 | R58: 0 | S58: 0 | T58: 0 | U58: 0.1620111732 | V58: 0 | W58: 0 | X58: 0.008379888268 | Y58: 0.008379888268 | Z58: 0.8547486034 | AA58: 34.58715084 | AB58: 7.92527933 | AC58: 0.1592178771 | AD58: 0.01675977654 | AE58: 0.05865921788 | AF58: 0.0938547486 | AG58: 0.4611650485 | AH58: 0.8893967213
A59: 190971086 | B59: Vilniaus komunalinių paslaugų mokykla | C59: ='1.Duomenys'!C59 -> 2221.579135 | D59: 370.3333333 | E59: 19 | F59: 0.9249011858 | G59: 0.9249011858 | H59: 0.01877470356 | I59: 0.03162055336 | J59: 0 | K59: 0 | L59: 0 | M59: 0 | N59: 19 | O59: 0 | P59: 0 | Q59: 0 | R59: 0 | S59: 0 | T59: 0 | U59: 0.3675889328 | V59: 0.03162055336 | W59: 0 | X59: 0.01185770751 | Y59: 0.01185770751 | Z59: 0.1264822134 | AA59: 31.10158103 | AB59: 7.549802372 | AC59: 0.09090909091 | AD59: 0.00790513834 | AE59: 0.03403162055 | AF59: 0.06877470356 | AG59: 0.450891982 | AH59: 0
A60: 190971271 | B60: Vilniaus automechanikos ir verslo mokykla | C60: ='1.Duomenys'!C60 -> 2801.699573 | D60: 974.5 | E60: 356 | F60: 0.6683229814 | G60: 0.6472049689 | H60: 0.1623782009 | I60: 0.4195652174 | J60: 0 | K60: 25.33333333 | L60: 0 | M60: 22 | N60: 73.33333333 | O60: 19.33333333 | P60: 106 | Q60: 0.4195652174 | R60: 0 | S60: 0.02049689441 | T60: 0.01801242236 | U60: 0 | V60: 0 | W60: 0.09875776398 | X60: 0.001863354037 | Y60: 0.0009316770186 | Z60: 0.149068323 | AA60: 16.35136957 | AB60: 10.0376646 | AC60: 0.0549689441 | AD60: 0.004658385093 | AE60: 0.01916459627 | AF60: 0.05347826087 | AG60: 0.3999186606 | AH60: 0.01798851785
A61: 190971848 | B61: Vilniaus geležinkelio transporto ir verslo paslaugų mokykla | C61: ='1.Duomenys'!C61 -> 3702.078618 | D61: 444.25 | E61: 52.66666667 | F61: 0.8489483748 | G61: 0.8126195029 | H61: 0.05219342741 | I61: 0.690248566 | J61: 0 | K61: 0 | L61: 0 | M61: 0 | N61: 17.33333333 | O61: 0 | P61: 29 | Q61: 0.5277246654 | R61: 0 | S61: 0 | T61: 0 | U61: 0.08604206501 | V61: 0.06692160612 | W61: 0.08317399618 | X61: 0.005736137667 | Y61: 0.002868068834 | Z61: 0.361376673 | AA61: 11.13570746 | AB61: 7.262036329 | AC61: 0.137667304 | AD61: 0.01434034417 | AE61: 0.03381453155 | AF61: 0.06757170172 | AG61: 0.5361331397 | AH61: 0.01855911331
A62: 291829870 | B62: Vilniaus paslaugų verslo profesinio mokymo centras | C62: ='1.Duomenys'!C62 -> 2260.45568 | D62: 905.5833333 | E62: 164 | F62: 0.8227665706 | G62: 0.8227665706 | H62: 0.06880147505 | I62: 0.3141210375 | J62: 0 | K62: 0 | L62: 0 | M62: 0 | N62: 55.66666667 | O62: 3 | P62: 0 | Q62: 0.2042507205 | R62: 0 | S62: 0 | T62: 0.003242074928 | U62: 0.2683717579 | V62: 0.00288184438 | W62: 0 | X62: 0.001080691643 | Y62: 0.001080691643 | Z62: 0.3134005764 | AA62: 7.79320245 | AB62: 3.222255043 | AC62: 0.07564841499 | AD62: 0.005403458213 | AE62: 0.01134726225 | AF62: 0.04755043228 | AG62: 0.5405405405 | AH62: 0.01101280003
A63: 300039885 | B63: Vilniaus technologijų mokymo centras | C63: ='1.Duomenys'!C63 -> 2613.602227 | D63: 1146.166667 | E63: 276.3333333 | F63: 0.6872878159 | G63: 0.6412674462 | H63: 0.1426747343 | I63: 0.270841192 | J63: 7.333333333 | K63: 0 | L63: 0 | M63: 0 | N63: 63.66666667 | O63: 3.333333333 | P63: 0 | Q63: 0.1791776688 | R63: 0 | S63: 0 | T63: 0.003772161449 | U63: 0.05809128631 | V63: 0.05507355715 | W63: 0 | X63: 0.004526593738 | Y63: 0.003394945304 | Z63: 0.03055450773 | AA63: 23.05591098 | AB63: 8.962689551 | AC63: 0.07129385138 | AD63: 0.005658242173 | AE63: 0.03680120709 | AF63: 0.08783855149 | AG63: 0.3536544291 | AH63: 0.01945877877
A64: 305239644 | B64: Profesinio mokymo centras "Žirmūnai" | C64: ='1.Duomenys'!C64 -> 6739.148331 | D64: 213.6666667 | E64: 0 | F64: 1 | G64: 1 | H64: 0 | I64: 0.5163806552 | J64: 0 | K64: 0 | L64: 0 | M64: 0 | N64: 0 | O64: 0 | P64: 0 | Q64: 0.4290171607 | R64: 0 | S64: 0 | T64: 0 | U64: 0.6521060842 | V64: 0.1918876755 | W64: 0 | X64: 0.009360374415 | Y64: 0.009360374415 | Z64: 0.631825273 | AA64: 101.704961 | AB64: 58.67639626 | AC64: 0.4352574103 | AD64: 0.04680187207 | AE64: 0.1801872075 | AF64: 0.2199687988 | AG64: 0.4933687003 | AH64: 0
A65: 191142619 | B65: Vilniaus technologijų, verslo ir žemės ūkio mokykla | C65: ='1.Duomenys'!C65 -> 4219.299906 | D65: 264.3333333 | E65: 16 | F65: 0.9150442478 | G65: 0.9150442478 | H65: 0.05300824051 | I65: 0.4778761062 | J65: 0 | K65: 0 | L65: 0 | M65: 0 | N65: 16 | O65: 0 | P65: 3.333333333 | Q65: 0.4778761062 | R65: 0 | S65: 0 | T65: 0 | U65: 0.1982300885 | V65: 0 | W65: 0.01769911504 | X65: 0.005309734513 | Y65: 0.005309734513 | Z65: 1.592920354 | AA65: 81.66913274 | AB65: 40.09561062 | AC65: 0.1061946903 | AD65: 0.005309734513 | AE65: 0.02123893805 | AF65: 0.09026548673 | AG65: 0.4761904762 | AH65: 0
A66: 190977915 | B66: Visagino technologijos ir verslo profesinio mokymo centras | C66: ='1.Duomenys'!C66 -> 3125.454813 | D66: 581.5 | E66: 129.3333333 | F66: 0.7483787289 | G66: 0.7483787289 | H66: 0.2162565808 | I66: 0.4409857328 | J66: 19.33333333 | K66: 8 | L66: 0 | M66: 0 | N66: 25.33333333 | O66: 8.666666667 | P66: 0 | Q66: 0.2963683528 | R66: 0 | S66: 0 | T66: 0.0168612192 | U66: 0.1180285344 | V66: 0.09662775616 | W66: 0 | X66: 0.001945525292 | Y66: 0.001945525292 | Z66: 0.2723735409 | AA66: 25.62167315 | AB66: 7.360719844 | AC66: 0.1011673152 | AD66: 0.005836575875 | AE66: 0.02869649805 | AF66: 0.05710116732 | AG66: 0.5234021137 | AH66: 0
A67: 190808954 | B67: Zarasų profesinė mokykla | C67: ='1.Duomenys'!C67 -> 2709.129207 | D67: 519.25 | E67: 103.6666667 | F67: 0.7504012841 | G67: 0.7504012841 | H67: 0.1773540518 | I67: 0.341894061 | J67: 14.66666667 | K67: 1.333333333 | L67: 0 | M67: 0 | N67: 32.66666667 | O67: 5.666666667 | P67: 4 | Q67: 0.3017656501 | R67: 0 | S67: 0 | T67: 0.01364365971 | U67: 0.2174959872 | V67: 0.01123595506 | W67: 0.00963081862 | X67: 0.00481540931 | Y67: 0.002407704655 | Z67: 0.5778491172 | AA67: 38.21044141 | AB67: 17.93082665 | AC67: 0.09390048154 | AD67: 0.00963081862 | AE67: 0.033105939 | AF67: 0.06019261637 | AG67: 0.4548104956 | AH67: 0
AH69: 0.2460295571
B97: Koreliacija su pagrindinės veiklos sąnaudomis 1-m mokiniui | C97: =IFERROR(CORREL($C$7:$C$67,C7:C67),0) -> 1 | D97: -0.5364013266 | E97: -0.5720593627 | F97: 0.5943677992 | G97: 0.4102754444 | H97: -0.5702605959 | I97: 0.4932111329 | J97: -0.5129804685 | K97: -0.4896491864 | L97: -0.4255216988 | M97: -0.4526515158 | N97: -0.5270465764 | O97: -0.4198037457 | P97: -0.4920954125 | Q97: 0.4434450134 | R97: -0.4400501582 | S97: -0.4249839026 | T97: -0.4214608192 | U97: 0.5183634217 | V97: 0.5211588934 | W97: -0.5162920736 | X97: 0.5934295177 | Y97: 0.5905834321 | Z97: 0.6146234641 | AA97: 0.6325140886 | AB97: 0.5743137306 | AC97: 0.8485251311 | AD97: 0.7819293792 | AE97: 0.823258956 | AF97: 0.847417901 | AG97: -0.4517549796 | AH97: 0.2460295571
D98: 146.5833333 | E98: 0
D99: 3757.166667 | E99: 1818.666667
D100: 825.0245902 | E100: 232.9289617

Sheet 3.Tipai
A1: 3. Pasirinkti rodiklius, pagal kuriuos bus skirstomos profesinio ugdymo įstaigas į tipus. Suskirstyti profesinio ugdymo įstaigas į tipus pagal pasirinktus kriterijus.
H4: 1 tipas | I4: 2 tipas | J4: 3 tipas
C5: Pagrindinės veiklos sąnaudos 1-m mokiniui | D5: Mokinių skaičiaus dalis (pirminio mokymo) bendrame mokinių skaičiuje | E5: Mokinių skaičiaus dalis (tęstinio mokymo) bendrame mokinių sk. | F5: Pirminio mokymo (ISCED 3) mokinių skaičiaus dalis bendrame mokinių sk. | H5: 1. Pirminio mokymo mokinių dalis >=0.55; (ISCED 3) mokinių dalis >=0.5 | I5: 2. Pirminio mokymo mokinių dalis >=0.5; bet netenkina 1 tipo | J5: 3. Tęstinio mokymo mokinių dalis > 0.5 | K5: Patikra
A6: Kodas | B6: Pavadinimas | C6: Y | D6: X11 | E6: X13 | F6: X17
A7: 300039337 | B7: Alytaus profesinio rengimo centras | C7: 2130.336802 | D7: 0.6397561426 | E7: 0.3602438574 | F7: 0.3530389802 | H7: =+IF(AND(+D7>=0.55,F7>=0.5),1,0) -> 0 | I7: =IF(AND(D7>=0.5,H7=0),1,0) -> 1 | J7: =IF(E7>0.5,1,0) -> 0 | K7: =IF(SUM(H7:J7)=0,1,0) -> 0
A8: 190961010 | B8: Viešoji įstaiga Daugų technologijos ir verslo mokykla | C8: 2965.24826 | D8: 0.7191943128 | E8: 0.2808056872 | F8: 0.3376777251 | H8: =+IF(AND(+D8>=0.55,F8>=0.5),1,0) -> 0 | I8: =IF(AND(D8>=0.5,H8=0),1,0) -> 1 | J8: =IF(E8>0.5,1,0) -> 0 | K8: 0
A9: 302643724 | B9: Biržų technologijų ir verslo mokymo centras | C9: 2422.414976 | D9: 0.8239929947 | E9: 0.1760070053 | F9: 0.4859894921 | H9: 0 | I9: 1 | J9: 0 | K9: 0
A10: 190976966 | B10: Viešoji įstaiga Elektrėnų profesinio mokymo centras | C10: 2147.158551 | D10: 0.8595696489 | E10: 0.1404303511 | F10: 0.4265760664 | H10: 0 | I10: 1 | J10: 0 | K10: 0
A11: 111964563 | B11: Jonavos politechnikos mokykla | C11: 2021.762516 | D11: 0.7538983051 | E11: 0.2461016949 | F11: 0.4040677966 | H11: 0 | I11: 1 | J11: 0 | K11: 0
A12: 190804219 | B12: Joniškio žemės ūkio mokykla | C12: 5038.863812 | D12: 0.7556029883 | E12: 0.2443970117 | F12: 0.7310565635 | H12: 1 | I12: 0 | J12: 0 | K12: 0
A13: 191425670 | B13: Smalininkų technologijų ir verslo mokykla | C13: 2983.985183 | D13: 0.6248872858 | E13: 0.3751127142 | F13: 0.3678990081 | H13: 0 | I13: 1 | J13: 0 | K13: 0
A14: 190804361 | B14: Kaišiadorių technologijų ir verslo mokykla | C14: 1532.777703 | D14: 0.4637605042 | E14: 0.5362394958 | F14: 0.2211134454 | H14: 0 | I14: 0 | J14: 1 | K14: 0
A15: 111961453 | B15: Karaliaus Mindaugo profesinio mokymo centras | C15: 1982.707339 | D15: 0.8565821576 | E15: 0.1434178424 | F15: 0.2257345921 | H15: 0 | I15: 1 | J15: 0 | K15: 0
A16: 111964378 | B16: Kauno buitinių paslaugų ir verslo mokykla | C16: 2484.079182 | D16: 0.786849711 | E16: 0.213150289 | F16: 0.2723988439 | H16: 0 | I16: 1 | J16: 0 | K16: 0
A17: 190804742 | B17: Kauno maisto pramonės ir prekybos mokymo centras | C17: 3169.035009 | D17: 0.7059538275 | E17: 0.2940461725 | F17: 0.3612798704 | H17: 0 | I17: 1 | J17: 0 | K17: 0
A18: 190972373 | B18: Kauno statybos ir paslaugų mokymo centras | C18: 2031.366325 | D18: 0.6807794508 | E18: 0.3192205492 | F18: 0.1642161205 | H18: 0 | I18: 1 | J18: 0 | K18: 0
A19: 190973322 | B19: Kauno taikomosios dailės mokykla | C19: 2779.882159 | D19: 0.7644552648 | E19: 0.2355447352 | F19: 0.2446743761 | H19: 0 | I19: 1 | J19: 0 | K19: 0
A20: 290972940 | B20: Kauno informacinių technologijų mokykla | C20: 2508.663344 | D20: 0.7154031288 | E20: 0.2845968712 | F20: 0.5571600481 | H20: 1 | I20: 0 | J20: 0 | K20: 0
A21: 304311642 | B21: Kauno technikos profesinio mokymo centras | C21: 2193.828012 | D21: 0.8304526749 | E21: 0.1695473251 | F21: 0.4798353909 | H21: 0 | I21: 1 | J21: 0 | K21: 0
A22: 190808616 | B22: Vilkijos žemės ūkio mokykla | C22: 1898.731937 | D22: 0.753801593 | E22: 0.246198407 | F22: 0.2143374366 | H22: 0 | I22: 1 | J22: 0 | K22: 0
A23: 111966767 | B23: Kėdainių profesinio rengimo centras | C23: 2866.376062 | D23: 0.6834203655 | E23: 0.3165796345 | F23: 0.4131853786 | H23: 0 | I23: 1 | J23: 0 | K23: 0
A24: 111964759 | B24: Viešoji įstaiga Kelmės profesinio rengimo centras | C24: 3107.804726 | D24: 0.9008547009 | E24: 0.09914529915 | F24: 0.6760683761 | H24: 1 | I24: 0 | J24: 0 | K24: 0
A25: 111964225 | B25: Klaipėdos paslaugų ir verslo mokykla | C25: 2514.128914 | D25: 0.9873667588 | E25: 0.01263324122 | F25: 0.6798262929 | H25: 1 | I25: 0 | J25: 0 | K25: 0
A26: 140199874 | B26: Klaipėdos Ernesto Galvanausko profesinio mokymo centras | C26: 1279.663973 | D26: 0.1826217228 | E26: 0.8173782772 | F26: 0.08224719101 | H26: 0 | I26: 0 | J26: 1 | K26: 0
A27: 190973856 | B27: Klaipėdos laivininkų mokykla | C27: 3700.571085 | D27: 0.9655172414 | E27: 0.03448275862 | F27: 0.8148820327 | H27: 1 | I27: 0 | J27: 0 | K27: 0
A28: 190974424 | B28: Klaipėdos technologijų mokymo centras | C28: 2938.393733 | D28: 0.8548387097 | E28: 0.1451612903 | F28: 0.5980148883 | H28: 1 | I28: 0 | J28: 0 | K28: 0
A29: 190974577 | B29: Klaipėdos turizmo mokykla | C29: 3554.294694 | D29: 0.9296577947 | E29: 0.07034220532 | F29: 0.7357414449 | H29: 1 | I29: 0 | J29: 0 | K29: 0
A30: 193180433 | B30: Viešoji įstaiga Klaipėdos laivų statybos ir remonto mokykla | C30: 2991.769196 | D30: 0.8372310571 | E30: 0.1627689429 | F30: 0.6800748363 | H30: 1 | I30: 0 | J30: 0 | K30: 0
A31: 190804938 | B31: Viešoji įstaiga Kretingos technologijos ir verslo mokykla | C31: 3111.402373 | D31: 0.9057437408 | E31: 0.0942562592 | F31: 0.7717231222 | H31: 1 | I31: 0 | J31: 0 | K31: 0
A32: 190805125 | B32: Kupiškio technologijos ir verslo mokykla | C32: 2881.256651 | D32: 0.8372287145 | E32: 0.1627712855 | F32: 0.5968280467 | H32: 1 | I32: 0 | J32: 0 | K32: 0
A33: 190807667 | B33: Veisiejų technologijos ir verslo mokykla | C33: 2808.83231 | D33: 0.8537634409 | E33: 0.1462365591 | F33: 0.3827956989 | H33: 0 | I33: 1 | J33: 0 | K33: 0
A34: 111964944 | B34: Marijampolės profesinio rengimo centras | C34: 2507.133265 | D34: 0.7406716418 | E34: 0.2593283582 | F34: 0.4549906716 | H34: 0 | I34: 1 | J34: 0 | K34: 0
A35: 290977720 | B35: Mažeikių politechnikos mokykla | C35: 2526.117985 | D35: 0.8041089345 | E35: 0.1958910655 | F35: 0.6072623029 | H35: 1 | I35: 0 | J35: 0 | K35: 0
A36: 191176774 | B36: Viešoji įstaiga Alantos technologijos ir verslo mokykla | C36: 3290.876855 | D36: 0.691533948 | E36: 0.308466052 | F36: 0.2665549036 | H36: 0 | I36: 1 | J36: 0 | K36: 0
A37: 111963995 | B37: Viešoji įstaiga Panevėžio profesinio rengimo centras | C37: 2381.800587 | D37: 0.761699303 | E37: 0.238300697 | F37: 0.504148689 | H37: 1 | I37: 0 | J37: 0 | K37: 0
A38: 147178142 | B38: Panevėžio darbo rinkos mokymo centras | C38: 1142.865529 | D38: 0.01667233753 | E38: 0.9833276625 | F38: 0.01020755359 | H38: 0 | I38: 0 | J38: 1 | K38: 0
A39: 304384359 | B39: Panevėžio Margaritos Rimkevičaitės profesinio rengimo centras | C39: 4017.978771 | D39: 0.9443277311 | E39: 0.05567226891 | F39: 0.618697479 | H39: 1 | I39: 0 | J39: 0 | K39: =IF(SUM(H39:J39)=0,1,0) -> 0
A40: 190805844 | B40: Plungės technologijų ir verslo mokykla | C40: 2847.837414 | D40: 0.5356240526 | E40: 0.4643759474 | F40: 0.5078322385 | H40: 0 | I40: 1 | J40: 0 | K40: 0
A41: 190977872 | B41: Radviliškio technologijų ir verslo mokymo centras | C41: 3749.487738 | D41: 0.9175738725 | E41: 0.08242612753 | F41: 0.3102643857 | H41: 0 | I41: 1 | J41: 0 | K41: 0
A42: 190805997 | B42: Viešoji įstaiga Raseinių technologijos ir verslo mokykla | C42: 2772.112996 | D42: 0.6712328767 | E42: 0.3287671233 | F42: 0.542074364 | H42: 1 | I42: 0 | J42: 0 | K42: 0
A43: 190804895 | B43: Rokiškio technologijos, verslo ir žemės ūkio mokykla | C43: 1875.168273 | D43: 0.7463295269 | E43: 0.2536704731 | F43: 0.1737357259 | H43: 0 | I43: 1 | J43: 0 | K43: 0
A44: 190804176 | B44: Dieveniškių technologijų ir verslo mokykla | C44: 2792.957016 | D44: 0.456043956 | E44: 0.543956044 | F44: 0.3791208791 | H44: 0 | I44: 0 | J44: 1 | K44: 0
A45: 144132264 | B45: Viešoji įstaiga Šiaulių darbo rinkos mokymo centras | C45: 1397.247502 | D45: 0.04960835509 | E45: 0.9503916449 | F45: 0 | H45: 0 | I45: 0 | J45: 1 | K45: 0
A46: 300039668 | B46: Šiaulių profesinio rengimo centras | C46: 2568.201768 | D46: 0.8664489203 | E46: 0.1335510797 | F46: 0.4748684449 | H46: 0 | I46: 1 | J46: 0 | K46: 0
A47: 190087881 | B47: Viešoji įstaiga Kuršėnų politechnikos mokykla | C47: 3383.520293 | D47: 0.9316909295 | E47: 0.06830907055 | F47: 0.633818589 | H47: 1 | I47: 0 | J47: 0 | K47: 0
A48: 190965375 | B48: Šilutės profesinio mokymo centras | C48: 2927.73354 | D48: 0.8779803647 | E48: 0.1220196353 | F48: 0.4880785414 | H48: 0 | I48: 1 | J48: 0 | K48: 0
A49: 111967488 | B49: Skuodo amatų ir paslaugų mokykla | C49: 2961.222066 | D49: 0.9636363636 | E49: 0.03636363636 | F49: 0.812987013 | H49: 1 | I49: 0 | J49: 0 | K49: 0
A50: 111963842 | B50: Švenčionių profesinio rengimo centras | C50: 2769.797347 | D50: 0.7832103321 | E50: 0.2167896679 | F50: 0.2749077491 | H50: 0 | I50: 1 | J50: 0 | K50: 0
A51: 190807286 | B51: Tauragės profesinio rengimo centras | C51: 2496.123687 | D51: 0.7231000752 | E51: 0.2768999248 | F51: 0.668924003 | H51: 1 | I51: 0 | J51: 0 | K51: 0
A52: 190807514 | B52: Viešoji įstaiga Telšių regioninis profesinio mokymo centras | C52: 2714.06487 | D52: 0.8689547582 | E52: 0.1310452418 | F52: 0.5842433697 | H52: 1 | I52: 0 | J52: 0 | K52: 0
A53: 191425713 | B53: Ukmergės technologijų ir verslo mokykla | C53: 2517.101054 | D53: 0.6444981862 | E53: 0.3555018138 | F53: 0.38452237 | H53: 0 | I53: 1 | J53: 0 | K53: 0
A54: 111965099 | B54: Utenos regioninis profesinio mokymo centras | C54: 2652.996483 | D54: 0.593495935 | E54: 0.406504065 | F54: 0.3558474046 | H54: 0 | I54: 1 | J54: 0 | K54: 0
A55: 190807471 | B55: Varėnos technologijos ir verslo mokykla | C55: 3144.598775 | D55: 0.7601476015 | E55: 0.2398523985 | F55: 0.5405904059 | H55: 1 | I55: 0 | J55: 0 | K55: 0
A56: 111963657 | B56: Viešoji įstaiga Vilniaus statybininkų rengimo centras | C56: 2866.634766 | D56: 0.7256145916 | E56: 0.2743854084 | F56: 0.3350515464 | H56: 0 | I56: 1 | J56: 0 | K56: 0
A57: 120091738 | B57: Vilniaus Jeruzalės darbo rinkos mokymo centras | C57: 1098.952028 | D57: 0.02364929821 | E57: 0.9763507018 | F57: 0.001538165737 | H57: 0 | I57: 0 | J57: 1 | K57: 0
A58: 190798047 | B58: Vilniaus technologijų mokymo ir reabilitacijos centras | C58: 4243.642567 | D58: 1 | E58: 0 | F58: 0.03910614525 | H58: 0 | I58: 1 | J58: 0 | K58: 0
A59: 190971086 | B59: Vilniaus komunalinių paslaugų mokykla | C59: 2221.579135 | D59: 0.9249011858 | E59: 0.07509881423 | F59: 0.03162055336 | H59: 0 | I59: 1 | J59: 0 | K59: 0
A60: 190971271 | B60: Vilniaus automechanikos ir verslo mokykla | C60: 2801.699573 | D60: 0.6683229814 | E60: 0.3316770186 | F60: 0.4195652174 | H60: 0 | I60: 1 | J60: 0 | K60: 0
A61: 190971848 | B61: Vilniaus geležinkelio transporto ir verslo paslaugų mokykla | C61: 3702.078618 | D61: 0.8489483748 | E61: 0.1510516252 | F61: 0.690248566 | H61: 1 | I61: 0 | J61: 0 | K61: 0
A62: 291829870 | B62: Vilniaus paslaugų verslo profesinio mokymo centras | C62: 2260.45568 | D62: 0.8227665706 | E62: 0.1772334294 | F62: 0.3141210375 | H62: 0 | I62: 1 | J62: 0 | K62: 0
A63: 300039885 | B63: Vilniaus technologijų mokymo centras | C63: 2613.602227 | D63: 0.6872878159 | E63: 0.3127121841 | F63: 0.270841192 | H63: 0 | I63: 1 | J63: 0 | K63: 0
A64: 305239644 | B64: Profesinio mokymo centras "Žirmūnai" | C64: 6739.148331 | D64: 1 | E64: 0 | F64: 0.5163806552 | H64: 1 | I64: 0 | J64: 0 | K64: 0
A65: 191142619 | B65: Vilniaus technologijų, verslo ir žemės ūkio mokykla | C65: 4219.299906 | D65: 0.9150442478 | E65: 0.08495575221 | F65: 0.4778761062 | H65: 0 | I65: 1 | J65: 0 | K65: 0
A66: 190977915 | B66: Visagino technologijos ir verslo profesinio mokymo centras | C66: 3125.454813 | D66: 0.7483787289 | E66: 0.2516212711 | F66: 0.4409857328 | H66: 0 | I66: 1 | J66: 0 | K66: 0
A67: 190808954 | B67: Zarasų profesinė mokykla | C67: 2709.129207 | D67: 0.7504012841 | E67: 0.2495987159 | F67: 0.341894061 | H67: 0 | I67: 1 | J67: 0 | K67: 0
B69: 25 procentilis | D69: =_xlfn.PERCENTILE.EXC(D$7:D$67,0.25) -> 0.6853540907 | E69: =_xlfn.PERCENTILE.EXC(E$7:E$67,0.25) -> 0.1322981607 | F69: 0.2736532965
B70: 50 procentilis/mediana | D70: =_xlfn.PERCENTILE.EXC(D$7:D$67,0.5) -> 0.761699303 | E70: =_xlfn.PERCENTILE.EXC(E$7:E$67,0.5) -> 0.238300697 | F70: 0.4195652174
B71: 75 procentilis | D71: =_xlfn.PERCENTILE.EXC(D$7:D$67,0.75) -> 0.8677018393 | E71: =_xlfn.PERCENTILE.EXC(E$7:E$67,0.75) -> 0.3146459093 | F71: 0.5905357082 | G71: Kiekis | H71: =SUM(H7:H67) -> 21 | I71: =SUM(I7:I67) -> 34 | J71: 6 | K71: 0
B75: Koreliacija su pagrindinės veiklos sąnaudomis 1-m mokiniui | C75: =IFERROR(CORREL($C$7:$C$67,C7:C67),0) -> 1 | D75: =IFERROR(CORREL($C$7:$C$67,D7:D67),0) -> 0.5943677992 | E75: =IFERROR(CORREL($C$7:$C$67,E7:E67),0) -> -0.5943677992 | F75: =IFERROR(CORREL($C$7:$C$67,F7:F67),0) -> 0.4932111329 | H75: =IFERROR(CORREL($C$7:$C$67,H7:H67),0) -> 0.4115110554 | I75: =IFERROR(CORREL($C$7:$C$67,I7:I67),0) -> -0.1165220361 | J75: =IFERROR(CORREL($C$7:$C$67,J7:J67),0) -> -0.4621999383
B98: Koreliacija su pagrindinės veiklos sąnaudomis 1-m mokiniui | D98: -0.6014895704 | E98: 0.6014895704 | F98: -0.5254331344

Sheet 4.Korel_matrica
A1: 4. Koreliacijų matrica. Atrinkti rodiklius Xi, kurių koreliacijos su kitais Xi reikšmė iš intervalo (-0,4;0,4)
D2: Y
D3: Y | E3: X2 | F3: X5 | G3: X11 | H3: X12 | I3: X13 | J3: X18 | K3: X37 | L3: X41 | M3: X42 | N3: X46 | O3: X49 | P3: X50 | Q3: X74 | R3: X85 | S3: X100 | T3: X104 | U3: X108 | V3: X111 | W3: X112 | X3: X132 | Y3: X149 | Z3: X150 | AA3: X151 | AB3: X152 | AC3: X153 | AD3: X154 | AE3: X155 | AF3: X156 | AG3: X159 | AH3: X161 | AI3: X16
B4: X2 | C4: Y | D4: 1 | E4: -0.5364013266 | F4: -0.5720593627 | G4: 0.5943677992 | H4: 0.4102754444 | I4: -0.5702605959 | J4: 0.4932111329 | K4: -0.5129804685 | L4: -0.4896491864 | M4: -0.4255216988 | N4: -0.4526515158 | O4: -0.5270465764 | P4: -0.4198037457 | Q4: -0.4920954125 | R4: 0.4434450134 | S4: -0.4400501582 | T4: -0.4249839026 | U4: -0.4214608192 | V4: 0.5183634217 | W4: 0.5211588934 | X4: -0.5162920736 | Y4: 0.5934295177 | Z4: 0.5905834321 | AA4: 0.6146234641 | AB4: 0.6325140886 | AC4: 0.5743137306 | AD4: 0.8485251311 | AE4: 0.7819293792 | AF4: 0.823258956 | AG4: 0.847417901 | AH4: -0.4517549796 | AI4: 0.2460295571
C5: X2 | E5: 1 | F5: 0.6765846522 | G5: -0.4077944343 | H5: -0.3158322121 | I5: 0.3801999212 | J5: -0.396818789 | K5: 0.4393160947 | L5: 0.4556893572 | M5: 0.4638536453 | N5: 0.4087460274 | O5: 0.8389366535 | P5: 0.4885893005 | Q5: 0.4674026148 | R5: -0.3891581671 | S5: 0.4371109092 | T5: 0.3179216212 | U5: 0.3830634729 | V5: -0.2662744593 | W5: -0.04804924479 | X5: 0.3338944738 | Y5: -0.4735036689 | Z5: -0.5354013781 | AA5: -0.4369859314 | AB5: -0.4394136875 | AC5: -0.3291063237 | AD5: -0.4299366319 | AE5: -0.4575870208 | AF5: -0.4340142707 | AG5: -0.5004604721 | AH5: 0.4183183841 | AI5: -0.1180328528
C6: X5 | F6: 1 | G6: -0.8467181567 | H6: -0.739070473 | I6: 0.842603682 | J6: -0.5695755526 | K6: 0.674186758 | L6: 0.8701619391 | M6: 0.8653986267 | N6: 0.8738777318 | O6: 0.6031749529 | P6: 0.8390031623 | Q6: 0.93722782 | R6: -0.5283419285 | S6: 0.8451292134 | T6: 0.7468025516 | U6: 0.7440209501 | V6: -0.4123494509 | W6: -0.2130537241 | X6: 0.8109652903 | Y6: -0.419425979 | Z6: -0.4430425616 | AA6: -0.3967348986 | AB6: -0.3633383084 | AC6: -0.2946679963 | AD6: -0.4772819395 | AE6: -0.4212730089 | AF6: -0.3979317932 | AG6: -0.5228375873 | AH6: 0.5670303462 | AI6: -0.09888866587
C7: X11 | G7: 1 | H7: 0.8213822348 | I7: -0.9494512431 | J7: 0.5866695929 | K7: -0.6895905182 | L7: -0.8031988437 | M7: -0.7417229882 | N7: -0.8156562115 | O7: -0.4316190102 | P7: -0.6680704328 | Q7: -0.8202857114 | R7: 0.543423125 | S7: -0.7880770922 | T7: -0.7942127115 | U7: -0.7334601895 | V7: 0.4694823899 | W7: 0.3266479303 | X7: -0.8979227254 | Y7: 0.3609987832 | Z7: 0.4008123121 | AA7: 0.3352611207 | AB7: 0.2035718206 | AC7: 0.1620014471 | AD7: 0.5185841229 | AE7: 0.439405911 | AF7: 0.4264612622 | AG7: 0.5385127879 | AH7: -0.5743870405 | AI7: 0.205846125
C8: X12 | H8: 1 | I8: -0.8004851717 | J8: 0.6785222407 | K8: -0.5784653578 | L8: -0.7096675658 | M8: -0.6650493704 | N8: -0.7305136466 | O8: -0.3254575614 | P8: -0.5940842352 | Q8: -0.7309625292 | R8: 0.6474886219 | S8: -0.7040725768 | T8: -0.7049122302 | U8: -0.6363097332 | V8: 0.4472902348 | W8: 0.2865445072 | X8: -0.7775736601 | Y8: 0.2173645101 | Z8: 0.2239747693 | AA8: 0.209464629 | AB8: 0.1722651438 | AC8: 0.1748835054 | AD8: 0.3988256497 | AE8: 0.3160054226 | AF8: 0.3127836035 | AG8: 0.4281165101 | AH8: -0.4748017984 | AI8: -0.3818277729
C9: X13 | I9: 1 | J9: -0.5284581717 | K9: 0.7717277939 | L9: 0.8504027619 | M9: 0.7760990195 | N9: 0.8533611267 | O9: 0.3197716611 | P9: 0.6806098829 | Q9: 0.8523841781 | R9: -0.471643024 | S9: 0.8231730152 | T9: 0.8304347414 | U9: 0.7443595381 | V9: -0.4368286188 | W9: -0.2960865127 | X9: 0.9127535656 | Y9: -0.3635080278 | Z9: -0.3944699251 | AA9: -0.3046075755 | AB9: -0.1960195512 | AC9: -0.1621095288 | AD9: -0.4858372229 | AE9: -0.4119266179 | AF9: -0.3849852966 | AG9: -0.5020271588 | AH9: 0.5802116404 | AI9: -0.1649602655
C10: X18 | J10: 1 | K10: -0.3778353711 | L10: -0.4869129476 | M10: -0.4548394423 | N10: -0.4942381927 | O10: -0.4695126904 | P10: -0.4008112933 | Q10: -0.4944735614 | R10: 0.9654916743 | S10: -0.4734035927 | T10: -0.4576211012 | U10: -0.3801223229 | V10: 0.236001149 | W10: 0.1322179129 | X10: -0.4906736417 | Y10: 0.1539923022 | Z10: 0.1261575319 | AA10: 0.419763562 | AB10: 0.2972168314 | AC10: 0.3332523223 | AD10: 0.3256242946 | AE10: 0.2965261159 | AF10: 0.3274727061 | AG10: 0.4597928992 | AH10: -0.4503809789 | AI10: -0.2148250632
C11: X37 | K11: 1 | L11: 0.6878096511 | M11: 0.7057473745 | N11: 0.5274740117 | O11: 0.2250251935 | P11: 0.4554074553 | Q11: 0.59527186 | R11: -0.3374585879 | S11: 0.708592751 | T11: 0.4589417115 | U11: 0.4764085307 | V11: -0.331090577 | W11: -0.2303490281 | X11: 0.6345630035 | Y11: -0.3810404736 | Z11: -0.3961456342 | AA11: -0.2261671916 | AB11: -0.2221584475 | AC11: -0.1470699662 | AD11: -0.3995555449 | AE11: -0.361742774 | AF11: -0.3507746842 | AG11: -0.4462151469 | AH11: 0.4906432649 | AI11: -0.1267867109
C12: X41 | L12: 1 | M12: 0.9009686041 | N12: 0.7554653038 | O12: 0.3639985316 | P12: 0.8522962365 | Q12: 0.8460183121 | R12: -0.4274987657 | S12: 0.8944884245 | T12: 0.6785724227 | U12: 0.7930717363 | V12: -0.3780388433 | W12: -0.2057211446 | X12: 0.7866546693 | Y12: -0.3014526828 | Z12: -0.3153684936 | AA12: -0.3056993413 | AB12: -0.2402895141 | AC12: -0.2126550183 | AD12: -0.4089791841 | AE12: -0.3423245873 | AF12: -0.3077352798 | AG12: -0.3932991692 | AH12: 0.4054967151 | AI12: -0.0818499876
C13: X42 | M13: 1 | N13: 0.7497252979 | O13: 0.2942078203 | P13: 0.7541692227 | Q13: 0.8062757075 | R13: -0.4165554669 | S13: 0.9769819849 | T13: 0.6444824982 | U13: 0.6851126645 | V13: -0.311769659 | W13: -0.1888219807 | X13: 0.6998415391 | Y13: -0.2781551082 | Z13: -0.2694043468 | AA13: -0.264802442 | AB13: -0.2505117634 | AC13: -0.2146579074 | AD13: -0.3594393914 | AE13: -0.2811693453 | AF13: -0.268354588 | AG13: -0.3904581054 | AH13: 0.4958613749 | AI13: -0.0577571917
C14: X46 | N14: 1 | O14: 0.3817046085 | P14: 0.6975985949 | Q14: 0.9414694838 | R14: -0.4511615165 | S14: 0.7919277792 | T14: 0.9464090308 | U14: 0.6837284353 | V14: -0.3382752766 | W14: -0.2112845778 | X14: 0.8933081412 | Y14: -0.301018888 | Z14: -0.2905728274 | AA14: -0.30024589 | AB14: -0.268816608 | AC14: -0.228841674 | AD14: -0.3696271336 | AE14: -0.317279597 | AF14: -0.2968177543 | AG14: -0.4230946336 | AH14: 0.6577398268 | AI14: -0.06398263136
C15: X49 | O15: 1 | P15: 0.457499227 | Q15: 0.4041244481 | R15: -0.4610981304 | S15: 0.3030440599 | T15: 0.3453634642 | U15: 0.4010695873 | V15: -0.3415549436 | W15: -0.1206407072 | X15: 0.3099132492 | Y15: -0.4269335451 | Z15: -0.4994548851 | AA15: -0.434727216 | AB15: -0.4357694913 | AC15: -0.3475779949 | AD15: -0.4292953079 | AE15: -0.445435297 | AF15: -0.4129814027 | AG15: -0.4758530951 | AH15: 0.3253774314 | AI15: -0.1353209304
C16: X50 | P16: 1 | Q16: 0.8426919565 | R16: -0.3695879229 | S16: 0.7148870646 | T16: 0.5791879746 | U16: 0.8985656765 | V16: -0.2896445021 | W16: -0.1688805215 | X16: 0.6817468578 | Y16: -0.3053958971 | Z16: -0.3133641178 | AA16: -0.2419634935 | AB16: -0.2310002911 | AC16: -0.1716255006 | AD16: -0.33712392 | AE16: -0.2639878522 | AF16: -0.2594786074 | AG16: -0.3689761509 | AH16: 0.2585176143 | AI16: -0.05352014423
C17: X74 | Q17: 1 | R17: -0.4450414059 | S17: 0.7939868828 | T17: 0.8178017012 | U17: 0.7477772251 | V17: -0.3633701683 | W17: -0.2093875056 | X17: 0.8977836551 | Y17: -0.3328011106 | Z17: -0.3235432625 | AA17: -0.3056479867 | AB17: -0.2673843249 | AC17: -0.2143805037 | AD17: -0.3919327358 | AE17: -0.3351218477 | AF17: -0.3157941993 | AG17: -0.439114593 | AH17: 0.5582904862 | AI17: -0.06725449165
C18: X85 | R18: 1 | S18: -0.4338559776 | T18: -0.4136003674 | U18: -0.3537478649 | V18: 0.1861220249 | W18: 0.06345511274 | X18: -0.4282195923 | Y18: 0.1678115714 | Z18: 0.1369065149 | AA18: 0.4049161896 | AB18: 0.3398278066 | AC18: 0.3751340189 | AD18: 0.2898796198 | AE18: 0.2726407387 | AF18: 0.3161510749 | AG18: 0.4610957271 | AH18: -0.4627715802 | AI18: -0.2255520459
C19: X100 | S19: 1 | T19: 0.7475628151 | U19: 0.7248367922 | V19: -0.3266376673 | W19: -0.2101504597 | X19: 0.7541269859 | Y19: -0.2830395418 | Z19: -0.2771840625 | AA19: -0.2698460706 | AB19: -0.2546162687 | AC19: -0.2188880967 | AD19: -0.3694268157 | AE19: -0.2967057538 | AF19: -0.2757836763 | AG19: -0.4091978388 | AH19: 0.551816166 | AI19: -0.06675390518
C20: X104 | T20: 1 | U20: 0.6823961673 | V20: -0.3078644965 | W20: -0.2303200802 | X20: 0.8741057767 | Y20: -0.2550139643 | Z20: -0.2612923828 | AA20: -0.281974392 | AB20: -0.2334290206 | AC20: -0.2170810598 | AD20: -0.351366539 | AE20: -0.3045808147 | AF20: -0.2949774874 | AG20: -0.3841533658 | AH20: 0.6421616315 | AI20: -0.07479553475
C21: X108 | U21: 1 | V21: -0.2917297161 | W21: -0.229867067 | X21: 0.7173162182 | Y21: -0.3317898158 | Z21: -0.3532715302 | AA21: -0.205538692 | AB21: -0.203988754 | AC21: -0.1276968857 | AD21: -0.3465828896 | AE21: -0.2658943791 | AF21: -0.2674518356 | AG21: -0.393503395 | AH21: 0.28678103 | AI21: -0.08834146573
C22: X111 | V22: 1 | W22: 0.2856615241 | X22: -0.3991122771 | Y22: 0.3757429154 | Z22: 0.4254996924 | AA22: 0.2158467583 | AB22: 0.3507346562 | AC22: 0.3204847616 | AD22: 0.6241378539 | AE22: 0.5795501706 | AF22: 0.5086959104 | AG22: 0.4397861015 | AH22: -0.1507823342 | AI22: 0.004321478439
C23: X112 | W23: 1 | X23: -0.2837628824 | Y23: 0.1748925207 | Z23: 0.1922037389 | AA23: 0.06210776022 | AB23: 0.1479211108 | AC23: 0.1505633518 | AD23: 0.5860418772 | AE23: 0.4865166653 | AF23: 0.5520523005 | AG23: 0.4499434081 | AH23: -0.1442579282 | AI23: -0.02470993576
C24: X132 | X24: 1 | Y24: -0.2762512297 | Z24: -0.2729642064 | AA24: -0.2829925685 | AB24: -0.1504993057 | AC24: -0.1025312597 | AD24: -0.3944858361 | AE24: -0.3530981277 | AF24: -0.3371098096 | AG24: -0.467086954 | AH24: 0.6300363076 | AI24: -0.1118222691
C25: X149 | Y25: 1 | Z25: 0.9112111869 | AA25: 0.3829315446 | AB25: 0.6664669434 | AC25: 0.4507976286 | AD25: 0.5687916678 | AE25: 0.4987308014 | AF25: 0.5063754183 | AG25: 0.6506973988 | AH25: -0.3182784548 | AI25: 0.2218039719
C26: X150 | Z26: 1 | AA26: 0.3637018592 | AB26: 0.6081828594 | AC26: 0.4761434511 | AD26: 0.6177001238 | AE26: 0.5296267892 | AF26: 0.5914533683 | AG26: 0.6002237215 | AH26: -0.2705225838 | AI26: 0.2743851352
C27: X151 | AA27: 1 | AB27: 0.7009050794 | AC27: 0.607589393 | AD27: 0.4033360072 | AE27: 0.346324185 | AF27: 0.3739104669 | AG27: 0.5596253183 | AH27: -0.3357044917 | AI27: 0.1739361939
C28: X152 | AB28: 1 | AC28: 0.8889729819 | AD28: 0.5812012796 | AE28: 0.5310542301 | AF28: 0.5385385676 | AG28: 0.6450783006 | AH28: -0.2936923215 | AI28: 0.03064583275
C29: X153 | AC29: 1 | AD29: 0.585356945 | AE29: 0.5540518764 | AF29: 0.5566191107 | AG29: 0.5154692481 | AH29: -0.2087657692 | AI29: -0.04147899025
C30: X154 | AD30: 1 | AE30: 0.8975740851 | AF30: 0.883005747 | AG30: 0.7230395043 | AH30: -0.2043505274 | AI30: 0.1545435413
C31: X155 | AE31: 1 | AF31: 0.8451173792 | AG31: 0.7057386592 | AH31: -0.3085234423 | AI31: 0.1792567035
C32: X156 | AF32: 1 | AG32: 0.7425484456 | AH32: -0.3444819224 | AI32: 0.1496564529
C33: X159 | AG33: 1 | AH33: -0.6333263176 | AI33: 0.1202803082
C34: X161 | AH34: 1 | AI34: -0.1012911829
C35: X16 | AI35: 1

Sheet 5.Rod_regr
A1: 5. Rodikliai regresijai
C5: Pagrindinės veiklos sąnaudos 1-m mokiniui | D5: Bendras paslaugos gavėjų skaičius (mokinių skaičius (pirminis + tęstinis)) | E5: Mokinių skaičiaus dalis (tęstinio mokymo) bendrame mokinių sk. | F5: Pirminio mokymo mokinių su spec. poreikiais dalis
A6: Kodas | B6: Pavadinimas | C6: Y | D6: X2 | E6: X13 | F6: X16 | I6: Tipai
A7: 300039337 | B7: Alytaus profesinio rengimo centras | C7: 2130.336802 | D7: 2074.166667 | E7: 0.3261347698 | F7: 0.009632291518 | I7: =IF(VLOOKUP(A7,'3.Tipai'!A:J,8,FALSE)=1,1,IF(VLOOKUP(A7,'3.Tipai'!A:J,9,FALSE)=1,2,3)) -> 2
A8: 190961010 | B8: Viešoji įstaiga Daugų technologijos ir verslo mokykla | C8: 2965.24826 | D8: 308.5833333 | E8: 0.08271582522 | F8: 0 | I8: =IF(VLOOKUP(A8,'3.Tipai'!A:J,8,FALSE)=1,1,IF(VLOOKUP(A8,'3.Tipai'!A:J,9,FALSE)=1,2,3)) -> 2
A9: 302643724 | B9: Biržų technologijų ir verslo mokymo centras | C9: 2422.414976 | D9: 942.25 | E9: 0.2127416995 | F9: 0.05313501542 | I9: =IF(VLOOKUP(A9,'3.Tipai'!A:J,8,FALSE)=1,1,IF(VLOOKUP(A9,'3.Tipai'!A:J,9,FALSE)=1,2,3)) -> 2
A10: 190976966 | B10: Viešoji įstaiga Elektrėnų profesinio mokymo centras | C10: 2147.158551 | D10: 1069.166667 | E10: 0.06039313885 | F10: 0.0003632025816 | I10: =IF(VLOOKUP(A10,'3.Tipai'!A:J,8,FALSE)=1,1,IF(VLOOKUP(A10,'3.Tipai'!A:J,9,FALSE)=1,2,3)) -> 2
A11: 111964563 | B11: Jonavos politechnikos mokykla | C11: 2021.762516 | D11: 574.6666667 | E11: 0.1749915065 | F11: 0 | I11: =IF(VLOOKUP(A11,'3.Tipai'!A:J,8,FALSE)=1,1,IF(VLOOKUP(A11,'3.Tipai'!A:J,9,FALSE)=1,2,3)) -> 2
A12: 190804219 | B12: Joniškio žemės ūkio mokykla | C12: 5038.863812 | D12: 378 | E12: 0.2225420481 | F12: 0 | I12: =IF(VLOOKUP(A12,'3.Tipai'!A:J,8,FALSE)=1,1,IF(VLOOKUP(A12,'3.Tipai'!A:J,9,FALSE)=1,2,3)) -> 1
A13: 191425670 | B13: Smalininkų technologijų ir verslo mokykla | C13: 2983.985183 | D13: 462.5833333 | E13: 0.2596477919 | F13: 0.02234546285 | I13: =IF(VLOOKUP(A13,'3.Tipai'!A:J,8,FALSE)=1,1,IF(VLOOKUP(A13,'3.Tipai'!A:J,9,FALSE)=1,2,3)) -> 2
A14: 190804361 | B14: Kaišiadorių technologijų ir verslo mokykla | C14: 1532.777703 | D14: 692 | E14: 0.4316351792 | F14: 0 | I14: =IF(VLOOKUP(A14,'3.Tipai'!A:J,8,FALSE)=1,1,IF(VLOOKUP(A14,'3.Tipai'!A:J,9,FALSE)=1,2,3)) -> 3
A15: 111961453 | B15: Karaliaus Mindaugo profesinio mokymo centras | C15: 1982.707339 | D15: 3757.166667 | E15: 0.06637785855 | F15: 0.002322391179 | I15: =IF(VLOOKUP(A15,'3.Tipai'!A:J,8,FALSE)=1,1,IF(VLOOKUP(A15,'3.Tipai'!A:J,9,FALSE)=1,2,3)) -> 2
A16: 111964378 | B16: Kauno buitinių paslaugų ir verslo mokykla | C16: 2484.079182 | D16: 646.0833333 | E16: 0.07563841869 | F16: 0 | I16: =IF(VLOOKUP(A16,'3.Tipai'!A:J,8,FALSE)=1,1,IF(VLOOKUP(A16,'3.Tipai'!A:J,9,FALSE)=1,2,3)) -> 2
A17: 190804742 | B17: Kauno maisto pramonės ir prekybos mokymo centras | C17: 3169.035009 | D17: 926.9166667 | E17: 0.1681713565 | F17: 0.04136778953 | I17: =IF(VLOOKUP(A17,'3.Tipai'!A:J,8,FALSE)=1,1,IF(VLOOKUP(A17,'3.Tipai'!A:J,9,FALSE)=1,2,3)) -> 2
A18: 190972373 | B18: Kauno statybos ir paslaugų mokymo centras | C18: 2031.366325 | D18: 2087.416667 | E18: 0.2040387891 | F18: 0.0674430277 | I18: =IF(VLOOKUP(A18,'3.Tipai'!A:J,8,FALSE)=1,1,IF(VLOOKUP(A18,'3.Tipai'!A:J,9,FALSE)=1,2,3)) -> 2
A19: 190973322 | B19: Kauno taikomosios dailės mokykla | C19: 2779.882159 | D19: 564.3333333 | E19: 0.07961406387 | F19: 0.07187402008 | I19: =IF(VLOOKUP(A19,'3.Tipai'!A:J,8,FALSE)=1,1,IF(VLOOKUP(A19,'3.Tipai'!A:J,9,FALSE)=1,2,3)) -> 2
A20: 290972940 | B20: Kauno informacinių technologijų mokykla | C20: 2508.663344 | D20: 567.4166667 | E20: 0.1713179936 | F20: 0.0006013235619 | I20: =IF(VLOOKUP(A20,'3.Tipai'!A:J,8,FALSE)=1,1,IF(VLOOKUP(A20,'3.Tipai'!A:J,9,FALSE)=1,2,3)) -> 1
A21: 304311642 | B21: Kauno technikos profesinio mokymo centras | C21: 2193.828012 | D21: 1361.916667 | E21: 0.0803678894 | F21: 0.0001552366794 | I21: =IF(VLOOKUP(A21,'3.Tipai'!A:J,8,FALSE)=1,1,IF(VLOOKUP(A21,'3.Tipai'!A:J,9,FALSE)=1,2,3)) -> 2
A22: 190808616 | B22: Vilkijos žemės ūkio mokykla | C22: 1898.731937 | D22: 504.0833333 | E22: 0.3152261876 | F22: 0.0002875215641 | I22: =IF(VLOOKUP(A22,'3.Tipai'!A:J,8,FALSE)=1,1,IF(VLOOKUP(A22,'3.Tipai'!A:J,9,FALSE)=1,2,3)) -> 2
A23: 111966767 | B23: Kėdainių profesinio rengimo centras | C23: 2866.376062 | D23: 779.0833333 | E23: 0.3169162295 | F23: 0.05533702028 | I23: =IF(VLOOKUP(A23,'3.Tipai'!A:J,8,FALSE)=1,1,IF(VLOOKUP(A23,'3.Tipai'!A:J,9,FALSE)=1,2,3)) -> 2
A24: 111964759 | B24: Viešoji įstaiga Kelmės profesinio rengimo centras | C24: 3107.804726 | D24: 503.9166667 | E24: 0.1387045721 | F24: 0.0002853881279 | I24: =IF(VLOOKUP(A24,'3.Tipai'!A:J,8,FALSE)=1,1,IF(VLOOKUP(A24,'3.Tipai'!A:J,9,FALSE)=1,2,3)) -> 1
A25: 111964225 | B25: Klaipėdos paslaugų ir verslo mokykla | C25: 2514.128914 | D25: 962.6666667 | E25: 0.003158310304 | F25: 0 | I25: =IF(VLOOKUP(A25,'3.Tipai'!A:J,8,FALSE)=1,1,IF(VLOOKUP(A25,'3.Tipai'!A:J,9,FALSE)=1,2,3)) -> 1
A26: 140199874 | B26: Klaipėdos Ernesto Galvanausko profesinio mokymo centras | C26: 1279.663973 | D26: 2116.666667 | E26: 0.8043397365 | F26: 0.03757931337 | I26: =IF(VLOOKUP(A26,'3.Tipai'!A:J,8,FALSE)=1,1,IF(VLOOKUP(A26,'3.Tipai'!A:J,9,FALSE)=1,2,3)) -> 3
A27: 190973856 | B27: Klaipėdos laivininkų mokykla | C27: 3700.571085 | D27: 231.1666667 | E27: 0.008620689655 | F27: 0 | I27: =IF(VLOOKUP(A27,'3.Tipai'!A:J,8,FALSE)=1,1,IF(VLOOKUP(A27,'3.Tipai'!A:J,9,FALSE)=1,2,3)) -> 1
A28: 190974424 | B28: Klaipėdos technologijų mokymo centras | C28: 2938.393733 | D28: 573 | E28: 0.0837977298 | F28: 0.02865893529 | I28: =IF(VLOOKUP(A28,'3.Tipai'!A:J,8,FALSE)=1,1,IF(VLOOKUP(A28,'3.Tipai'!A:J,9,FALSE)=1,2,3)) -> 1
A29: 190974577 | B29: Klaipėdos turizmo mokykla | C29: 3554.294694 | D29: 585.1666667 | E29: 0.0719740679 | F29: 0.0006785598138 | I29: =IF(VLOOKUP(A29,'3.Tipai'!A:J,8,FALSE)=1,1,IF(VLOOKUP(A29,'3.Tipai'!A:J,9,FALSE)=1,2,3)) -> 1
A30: 193180433 | B30: Viešoji įstaiga Klaipėdos laivų statybos ir remonto mokykla | C30: 2991.769196 | D30: 412.5 | E30: 0.2088559225 | F30: 0 | I30: =IF(VLOOKUP(A30,'3.Tipai'!A:J,8,FALSE)=1,1,IF(VLOOKUP(A30,'3.Tipai'!A:J,9,FALSE)=1,2,3)) -> 1
A31: 190804938 | B31: Viešoji įstaiga Kretingos technologijos ir verslo mokykla | C31: 3111.402373 | D31: 323.0833333 | E31: 0.06904401439 | F31: 0.06919807595 | I31: =IF(VLOOKUP(A31,'3.Tipai'!A:J,8,FALSE)=1,1,IF(VLOOKUP(A31,'3.Tipai'!A:J,9,FALSE)=1,2,3)) -> 1
A32: 190805125 | B32: Kupiškio technologijos ir verslo mokykla | C32: 2881.256651 | D32: 537.3333333 | E32: 0.200044274 | F32: 0.06910108005 | I32: =IF(VLOOKUP(A32,'3.Tipai'!A:J,8,FALSE)=1,1,IF(VLOOKUP(A32,'3.Tipai'!A:J,9,FALSE)=1,2,3)) -> 1
A33: 190807667 | B33: Veisiejų technologijos ir verslo mokykla | C33: 2808.83231 | D33: 399.0833333 | E33: 0.125351345 | F33: 0 | I33: =IF(VLOOKUP(A33,'3.Tipai'!A:J,8,FALSE)=1,1,IF(VLOOKUP(A33,'3.Tipai'!A:J,9,FALSE)=1,2,3)) -> 2
A34: 111964944 | B34: Marijampolės profesinio rengimo centras | C34: 2507.133265 | D34: 1639.666667 | E34: 0.1986828036 | F34: 0.02412164243 | I34: =IF(VLOOKUP(A34,'3.Tipai'!A:J,8,FALSE)=1,1,IF(VLOOKUP(A34,'3.Tipai'!A:J,9,FALSE)=1,2,3)) -> 2
A35: 290977720 | B35: Mažeikių politechnikos mokykla | C35: 2526.117985 | D35: 902.1666667 | E35: 0.1745045663 | F35: 0.02872002658 | I35: =IF(VLOOKUP(A35,'3.Tipai'!A:J,8,FALSE)=1,1,IF(VLOOKUP(A35,'3.Tipai'!A:J,9,FALSE)=1,2,3)) -> 1
A36: 191176774 | B36: Viešoji įstaiga Alantos technologijos ir verslo mokykla | C36: 3290.876855 | D36: 425.1666667 | E36: 0.2521628109 | F36: 0 | I36: =IF(VLOOKUP(A36,'3.Tipai'!A:J,8,FALSE)=1,1,IF(VLOOKUP(A36,'3.Tipai'!A:J,9,FALSE)=1,2,3)) -> 2
A37: 111963995 | B37: Viešoji įstaiga Panevėžio profesinio rengimo centras | C37: 2381.800587 | D37: 1271.25 | E37: 0.2663951987 | F37: 0 | I37: =IF(VLOOKUP(A37,'3.Tipai'!A:J,8,FALSE)=1,1,IF(VLOOKUP(A37,'3.Tipai'!A:J,9,FALSE)=1,2,3)) -> 1
A38: 147178142 | B38: Panevėžio darbo rinkos mokymo centras | C38: 1142.865529 | D38: 1121.916667 | E38: 0.9958319156 | F38: 0 | I38: =IF(VLOOKUP(A38,'3.Tipai'!A:J,8,FALSE)=1,1,IF(VLOOKUP(A38,'3.Tipai'!A:J,9,FALSE)=1,2,3)) -> 3
A39: 304384359 | B39: Panevėžio Margaritos Rimkevičaitės profesinio rengimo centras | C39: 4017.978771 | D39: 379.25 | E39: 0.01391806723 | F39: 0.1366509595 | I39: =IF(VLOOKUP(A39,'3.Tipai'!A:J,8,FALSE)=1,1,IF(VLOOKUP(A39,'3.Tipai'!A:J,9,FALSE)=1,2,3)) -> 1
A40: 190805844 | B40: Plungės technologijų ir verslo mokykla | C40: 2847.837414 | D40: 781.3333333 | E40: 0.3687192848 | F40: 0 | I40: =IF(VLOOKUP(A40,'3.Tipai'!A:J,8,FALSE)=1,1,IF(VLOOKUP(A40,'3.Tipai'!A:J,9,FALSE)=1,2,3)) -> 2
A41: 190977872 | B41: Radviliškio technologijų ir verslo mokymo centras | C41: 3749.487738 | D41: 543.8333333 | E41: 0.146706367 | F41: 0.1947926666 | I41: =IF(VLOOKUP(A41,'3.Tipai'!A:J,8,FALSE)=1,1,IF(VLOOKUP(A41,'3.Tipai'!A:J,9,FALSE)=1,2,3)) -> 2
A42: 190805997 | B42: Viešoji įstaiga Raseinių technologijos ir verslo mokykla | C42: 2772.112996 | D42: 425.0833333 | E42: 0.2847983009 | F42: 0 | I42: =IF(VLOOKUP(A42,'3.Tipai'!A:J,8,FALSE)=1,1,IF(VLOOKUP(A42,'3.Tipai'!A:J,9,FALSE)=1,2,3)) -> 1
A43: 190804895 | B43: Rokiškio technologijos, verslo ir žemės ūkio mokykla | C43: 1875.168273 | D43: 481.0833333 | E43: 0.3393844778 | F43: 0.003058727569 | I43: =IF(VLOOKUP(A43,'3.Tipai'!A:J,8,FALSE)=1,1,IF(VLOOKUP(A43,'3.Tipai'!A:J,9,FALSE)=1,2,3)) -> 2
A44: 190804176 | B44: Dieveniškių technologijų ir verslo mokykla | C44: 2792.957016 | D44: 239.0833333 | E44: 0.3156368845 | F44: 0 | I44: =IF(VLOOKUP(A44,'3.Tipai'!A:J,8,FALSE)=1,1,IF(VLOOKUP(A44,'3.Tipai'!A:J,9,FALSE)=1,2,3)) -> 3
A45: 144132264 | B45: Viešoji įstaiga Šiaulių darbo rinkos mokymo centras | C45: 1397.247502 | D45: 1791.333333 | E45: 0.9810333257 | F45: 0 | I45: =IF(VLOOKUP(A45,'3.Tipai'!A:J,8,FALSE)=1,1,IF(VLOOKUP(A45,'3.Tipai'!A:J,9,FALSE)=1,2,3)) -> 3
A46: 300039668 | B46: Šiaulių profesinio rengimo centras | C46: 2568.201768 | D46: 2064.5 | E46: 0.05579708199 | F46: 0.09117447708 | I46: =IF(VLOOKUP(A46,'3.Tipai'!A:J,8,FALSE)=1,1,IF(VLOOKUP(A46,'3.Tipai'!A:J,9,FALSE)=1,2,3)) -> 2
A47: 190087881 | B47: Viešoji įstaiga Kuršėnų politechnikos mokykla | C47: 3383.520293 | D47: 360.25 | E47: 0.01707726764 | F47: 0.02360344029 | I47: =IF(VLOOKUP(A47,'3.Tipai'!A:J,8,FALSE)=1,1,IF(VLOOKUP(A47,'3.Tipai'!A:J,9,FALSE)=1,2,3)) -> 1
A48: 190965375 | B48: Šilutės profesinio mokymo centras | C48: 2927.73354 | D48: 708.6666667 | E48: 0.1672944136 | F48: 0.0503507798 | I48: =IF(VLOOKUP(A48,'3.Tipai'!A:J,8,FALSE)=1,1,IF(VLOOKUP(A48,'3.Tipai'!A:J,9,FALSE)=1,2,3)) -> 2
A49: 111967488 | B49: Skuodo amatų ir paslaugų mokykla | C49: 2961.222066 | D49: 147.4166667 | E49: 0.009090909091 | F49: 0 | I49: =IF(VLOOKUP(A49,'3.Tipai'!A:J,8,FALSE)=1,1,IF(VLOOKUP(A49,'3.Tipai'!A:J,9,FALSE)=1,2,3)) -> 1
A50: 111963842 | B50: Švenčionių profesinio rengimo centras | C50: 2769.797347 | D50: 469.8333333 | E50: 0.1902990935 | F50: 0.001524918864 | I50: =IF(VLOOKUP(A50,'3.Tipai'!A:J,8,FALSE)=1,1,IF(VLOOKUP(A50,'3.Tipai'!A:J,9,FALSE)=1,2,3)) -> 2
A51: 190807286 | B51: Tauragės profesinio rengimo centras | C51: 2496.123687 | D51: 702.1666667 | E51: 0.3837159728 | F51: 0 | I51: =IF(VLOOKUP(A51,'3.Tipai'!A:J,8,FALSE)=1,1,IF(VLOOKUP(A51,'3.Tipai'!A:J,9,FALSE)=1,2,3)) -> 1
A52: 190807514 | B52: Viešoji įstaiga Telšių regioninis profesinio mokymo centras | C52: 2714.06487 | D52: 598.3333333 | E52: 0.1408743286 | F52: 0.04946223155 | I52: =IF(VLOOKUP(A52,'3.Tipai'!A:J,8,FALSE)=1,1,IF(VLOOKUP(A52,'3.Tipai'!A:J,9,FALSE)=1,2,3)) -> 1
A53: 191425713 | B53: Ukmergės technologijų ir verslo mokykla | C53: 2517.101054 | D53: 1026.166667 | E53: 0.299990972 | F53: 0.007216654248 | I53: =IF(VLOOKUP(A53,'3.Tipai'!A:J,8,FALSE)=1,1,IF(VLOOKUP(A53,'3.Tipai'!A:J,9,FALSE)=1,2,3)) -> 2
A54: 111965099 | B54: Utenos regioninis profesinio mokymo centras | C54: 2652.996483 | D54: 644.5 | E54: 0.3473787809 | F54: 0.04452472179 | I54: =IF(VLOOKUP(A54,'3.Tipai'!A:J,8,FALSE)=1,1,IF(VLOOKUP(A54,'3.Tipai'!A:J,9,FALSE)=1,2,3)) -> 2
A55: 190807471 | B55: Varėnos technologijos ir verslo mokykla | C55: 3144.598775 | D55: 292.5833333 | E55: 0.2338805326 | F55: 0 | I55: =IF(VLOOKUP(A55,'3.Tipai'!A:J,8,FALSE)=1,1,IF(VLOOKUP(A55,'3.Tipai'!A:J,9,FALSE)=1,2,3)) -> 1
A56: 111963657 | B56: Viešoji įstaiga Vilniaus statybininkų rengimo centras | C56: 2866.634766 | D56: 1002.333333 | E56: 0.1391307368 | F56: 0.003265075419 | I56: =IF(VLOOKUP(A56,'3.Tipai'!A:J,8,FALSE)=1,1,IF(VLOOKUP(A56,'3.Tipai'!A:J,9,FALSE)=1,2,3)) -> 2
A57: 120091738 | B57: Vilniaus Jeruzalės darbo rinkos mokymo centras | C57: 1098.952028 | D57: 2402 | E57: 0.991270904 | F57: 0 | I57: =IF(VLOOKUP(A57,'3.Tipai'!A:J,8,FALSE)=1,1,IF(VLOOKUP(A57,'3.Tipai'!A:J,9,FALSE)=1,2,3)) -> 3
A58: 190798047 | B58: Vilniaus technologijų mokymo ir reabilitacijos centras | C58: 4243.642567 | D58: 146.5833333 | E58: 0 | F58: 0.8893967213 | I58: =IF(VLOOKUP(A58,'3.Tipai'!A:J,8,FALSE)=1,1,IF(VLOOKUP(A58,'3.Tipai'!A:J,9,FALSE)=1,2,3)) -> 2
A59: 190971086 | B59: Vilniaus komunalinių paslaugų mokykla | C59: 2221.579135 | D59: 370.3333333 | E59: 0.01877470356 | F59: 0 | I59: =IF(VLOOKUP(A59,'3.Tipai'!A:J,8,FALSE)=1,1,IF(VLOOKUP(A59,'3.Tipai'!A:J,9,FALSE)=1,2,3)) -> 2
A60: 190971271 | B60: Vilniaus automechanikos ir verslo mokykla | C60: 2801.699573 | D60: 974.5 | E60: 0.1623782009 | F60: 0.01798851785 | I60: =IF(VLOOKUP(A60,'3.Tipai'!A:J,8,FALSE)=1,1,IF(VLOOKUP(A60,'3.Tipai'!A:J,9,FALSE)=1,2,3)) -> 2
A61: 190971848 | B61: Vilniaus geležinkelio transporto ir verslo paslaugų mokykla | C61: 3702.078618 | D61: 444.25 | E61: 0.05219342741 | F61: 0.01855911331 | I61: =IF(VLOOKUP(A61,'3.Tipai'!A:J,8,FALSE)=1,1,IF(VLOOKUP(A61,'3.Tipai'!A:J,9,FALSE)=1,2,3)) -> 1
A62: 291829870 | B62: Vilniaus paslaugų verslo profesinio mokymo centras | C62: 2260.45568 | D62: 905.5833333 | E62: 0.06880147505 | F62: 0.01101280003 | I62: =IF(VLOOKUP(A62,'3.Tipai'!A:J,8,FALSE)=1,1,IF(VLOOKUP(A62,'3.Tipai'!A:J,9,FALSE)=1,2,3)) -> 2
A63: 300039885 | B63: Vilniaus technologijų mokymo centras | C63: 2613.602227 | D63: 1146.166667 | E63: 0.1426747343 | F63: 0.01945877877 | I63: =IF(VLOOKUP(A63,'3.Tipai'!A:J,8,FALSE)=1,1,IF(VLOOKUP(A63,'3.Tipai'!A:J,9,FALSE)=1,2,3)) -> 2
A64: 305239644 | B64: Profesinio mokymo centras "Žirmūnai" | C64: 6739.148331 | D64: 213.6666667 | E64: 0 | F64: 0 | I64: =IF(VLOOKUP(A64,'3.Tipai'!A:J,8,FALSE)=1,1,IF(VLOOKUP(A64,'3.Tipai'!A:J,9,FALSE)=1,2,3)) -> 1
A65: 191142619 | B65: Vilniaus technologijų, verslo ir žemės ūkio mokykla | C65: 4219.299906 | D65: 264.3333333 | E65: 0.05300824051 | F65: 0 | I65: =IF(VLOOKUP(A65,'3.Tipai'!A:J,8,FALSE)=1,1,IF(VLOOKUP(A65,'3.Tipai'!A:J,9,FALSE)=1,2,3)) -> 2
A66: 190977915 | B66: Visagino technologijos ir verslo profesinio mokymo centras | C66: 3125.454813 | D66: 581.5 | E66: 0.2162565808 | F66: 0 | I66: =IF(VLOOKUP(A66,'3.Tipai'!A:J,8,FALSE)=1,1,IF(VLOOKUP(A66,'3.Tipai'!A:J,9,FALSE)=1,2,3)) -> 2
A67: 190808954 | B67: Zarasų profesinė mokykla | C67: 2709.129207 | D67: 519.25 | E67: 0.1773540518 | F67: 0 | I67: =IF(VLOOKUP(A67,'3.Tipai'!A:J,8,FALSE)=1,1,IF(VLOOKUP(A67,'3.Tipai'!A:J,9,FALSE)=1,2,3)) -> 2
B97: Koreliacija su pagrindinės veiklos sąnaudomis 1-m mokiniui | C97: 1 | D97: -0.6142940544 | E97: -0.6014895704 | F97: -0.3412885029

Sheet 6.Regresija
A1: 6. Regresija
B3: SUMMARY OUTPUT
B5: Regression Statistics
B6: Multiple R | C6: 0.6799841168
B7: R Square | C7: 0.4623783991
B8: Adjusted R Square | C8: 0.4340825254
B9: Standard Error | C9: 676.202739
B10: Observations | C10: 61
B12: ANOVA
C13: df | D13: SS | E13: MS | F13: F | G13: Significance F
B14: Regression | C14: 3 | D14: 22415556.95 | E14: 7471852.316 | F14: 16.3408419 | G14: 8.809161773e-08
B15: Residual | C15: 57 | D15: 26063258.22 | E15: 457250.1442
B16: Total | C16: 60 | D16: 48478815.17
C18: Coefficients | D18: Standard Error | E18: t Stat | F18: P-value | G18: Lower 95% | H18: Upper 95% | I18: Lower 95,0% | J18: Upper 95,0%
B19: Intercept | C19: 3516.82939 | D19: 153.8373433 | E19: 22.86070023 | F19: 2.17172207e-30 | G19: 3208.775423 | H19: 3824.883356 | I19: 3208.775423 | J19: 3824.883356
B20: X Variable 1 | C20: -0.4976711837 | D20: 0.1435004364 | E20: -3.468081325 | F20: 0.001004552497 | G20: -0.785025851 | H20: -0.2103165164 | I20: -0.785025851 | J20: -0.2103165164
B21: X Variable 2 | C21: -1642.735516 | D21: 425.1821153 | E21: -3.863604457 | F21: 0.000288281741 | G21: -2494.148015 | H21: -791.3230157 | I21: -2494.148015 | J21: -791.3230157
B22: X Variable 3 | C22: 1041.339201 | D22: 758.3287128 | E22: 1.373202918 | F22: 0.1750671499 | G22: -477.1878528 | H22: 2559.866255 | I22: -477.1878528 | J22: 2559.866255
B26: R square - Šiuo atveju geriau R kvadratas iki 0,6, nes nereikia modelio, kuris labai tiksliai paaiškintų ir tada jau būtų galima galvoti apie išlaidų mažinima konkretaus kintamojo, bet dabar pasirinkti objektyvūs kintamieji, todėl ir R kvadratas toks yra pakankamas. Ieškoma labiau modelio, atspindinčio vidurkį, ne to, kuris 95% atitiktų reikšmes.
B27: p-value- kad reikšmingas statistinis ryšys, p turi būti <0,05, t.y. su 95% tikimybe kintamasis yra statistiškai reikšmingas, o ne atsitiktinis.
B28: standart error - naudinga lyginant kelis modelius, kai Y nekinta, nes standart error priklauso nuo Y dydžio.
B29: t Stat=coeficients/standart error, santykinis dydis, todėl kuo mažesnis, tuo mažesnės paklaidos
B30: lower, upper - 95% pasikliovimo inervalai, su 95% tikimybe Y bus iš šių intervalų
B31: koeficientai - regresijos lygciai sudaryti

Sheet 7.1.
A1: 1 tipo profesinio ugdymo įstaigos (Pirminio mokymo mokinių dalis >=0.55; (ISCED 3) mokinių dalis >=0.5)
C5: Pagrindinės veiklos sąnaudos 1-m mokiniui | D5: Bendras paslaugos gavėjų skaičius (mokinių skaičius (pirminis + tęstinis)) | E5: Mokinių skaičiaus dalis (tęstinio mokymo) bendrame mokinių sk. | F5: Pirminio mokymo mokinių su spec. poreikiais dalis | H5: Pagrindinės veiklos sąnaudos 1-m mokiniui (prognozė) | I5: Toleruotinos išlaidos, lyginant su esamomis | K5: Rekomenduojamas metinių išlaidų sumažinimas, Eur | L5: Rekomenduojamas išlaidų sumažinimas lyginant su esamomis, %
A6: Kodas | B6: Pavadinimas | C6: Y | D6: X2 | E6: X13 | F6: X16 | H6: Y`
A7: 190804219 | B7: Joniškio žemės ūkio mokykla | C7: 5038.863812 | D7: 378 | E7: 0.2225420481 | F7: 0 | H7: ='6.Regresija'!$C$19+'6.Regresija'!$C$20*D7+'6.Regresija'!$C$21*E7+'6.Regresija'!$C$22*F7 -> 2963.131956 | I7: =H7/C7 -> 0.588055575 | K7: =+IF(I7<1,(C7-H7)*D7,0) -> 784626.6414 | L7: =+IF(I7<1,1-I7,0) -> 0.411944425
A8: 290972940 | B8: Kauno informacinių technologijų mokykla | C8: 2508.663344 | D8: 567.4166667 | E8: 0.1713179936 | F8: 0.0006013235619 | H8: ='6.Regresija'!$C$19+'6.Regresija'!$C$20*D8+'6.Regresija'!$C$21*E8+'6.Regresija'!$C$22*F8 -> 2953.638495 | I8: =H8/C8 -> 1.177375395 | K8: =+IF(I8<1,(C8-H8)*D8,0) -> 0 | L8: =+IF(I8<1,1-I8,0) -> 0
A9: 111964759 | B9: Viešoji įstaiga Kelmės profesinio rengimo centras | C9: 3107.804726 | D9: 503.9166667 | E9: 0.1387045721 | F9: 0.0002853881279 | H9: ='6.Regresija'!$C$19+'6.Regresija'!$C$20*D9+'6.Regresija'!$C$21*E9+'6.Regresija'!$C$22*F9 -> 3038.486845 | I9: 0.9776955482 | K9: =+IF(I9<1,(C9-H9)*D9,0) -> 34930.43546 | L9: 0.02230445185
A10: 111964225 | B10: Klaipėdos paslaugų ir verslo mokykla | C10: 2514.128914 | D10: 962.6666667 | E10: 0.003158310304 | F10: 0 | H10: ='6.Regresija'!$C$19+'6.Regresija'!$C$20*D10+'6.Regresija'!$C$21*E10+'6.Regresija'!$C$22*F10 -> 3032.549661 | I10: 1.20620293 | K10: 0 | L10: 0
A11: 190973856 | B11: Klaipėdos laivininkų mokykla | C11: 3700.571085 | D11: 231.1666667 | E11: 0.008620689655 | F11: 0 | H11: ='6.Regresija'!$C$19+'6.Regresija'!$C$20*D11+'6.Regresija'!$C$21*E11+'6.Regresija'!$C$22*F11 -> 3387.622888 | I11: 0.9154324589 | K11: 72343.19159 | L11: 0.08456754107
A12: 190974424 | B12: Klaipėdos technologijų mokymo centras | C12: 2938.393733 | D12: 573 | E12: 0.0837977298 | F12: 0.02865893529 | H12: ='6.Regresija'!$C$19+'6.Regresija'!$C$20*D12+'6.Regresija'!$C$21*E12+'6.Regresija'!$C$22*F12 -> 3123.849967 | I12: 1.063114834 | K12: 0 | L12: 0
A13: 190974577 | B13: Klaipėdos turizmo mokykla | C13: 3554.294694 | D13: 585.1666667 | E13: 0.0719740679 | F13: 0.0006785598138 | H13: ='6.Regresija'!$C$19+'6.Regresija'!$C$20*D13+'6.Regresija'!$C$21*E13+'6.Regresija'!$C$22*F13 -> 3108.081055 | I13: 0.8744578947 | K13: 261109.3475 | L13: 0.1255421053
A14: 193180433 | B14: Viešoji įstaiga Klaipėdos laivų statybos ir remonto mokykla | C14: 2991.769196 | D14: 412.5 | E14: 0.2088559225 | F14: 0 | H14: ='6.Regresija'!$C$19+'6.Regresija'!$C$20*D14+'6.Regresija'!$C$21*E14+'6.Regresija'!$C$22*F14 -> 2968.444985 | I14: 0.9922038733 | K14: 9621.237299 | L14: 0.007796126674
A15: 190804938 | B15: Viešoji įstaiga Kretingos technologijos ir verslo mokykla | C15: 3111.402373 | D15: 323.0833333 | E15: 0.06904401439 | F15: 0.06919807595 | H15: ='6.Regresija'!$C$19+'6.Regresija'!$C$20*D15+'6.Regresija'!$C$21*E15+'6.Regresija'!$C$22*F15 -> 3314.677739 | I15: 1.065332394 | K15: 0 | L15: 0
A16: 190805125 | B16: Kupiškio technologijos ir verslo mokykla | C16: 2881.256651 | D16: 537.3333333 | E16: 0.200044274 | F16: 0.06910108005 | H16: ='6.Regresija'!$C$19+'6.Regresija'!$C$20*D16+'6.Regresija'!$C$21*E16+'6.Regresija'!$C$22*F16 -> 2992.751903 | I16: 1.038696745 | K16: 0 | L16: 0
A17: 290977720 | B17: Mažeikių politechnikos mokykla | C17: 2526.117985 | D17: 902.1666667 | E17: 0.1745045663 | F17: 0.02872002658 | H17: ='6.Regresija'!$C$19+'6.Regresija'!$C$20*D17+'6.Regresija'!$C$21*E17+'6.Regresija'!$C$22*F17 -> 2811.089477 | I17: 1.112810049 | K17: 0 | L17: 0
A18: 111963995 | B18: Viešoji įstaiga Panevėžio profesinio rengimo centras | C18: 2381.800587 | D18: 1271.25 | E18: 0.2663951987 | F18: 0 | H18: ='6.Regresija'!$C$19+'6.Regresija'!$C$20*D18+'6.Regresija'!$C$21*E18+'6.Regresija'!$C$22*F18 -> 2446.548043 | I18: 1.027184247 | K18: 0 | L18: 0
A19: 304384359 | B19: Panevėžio Margaritos Rimkevičaitės profesinio rengimo centras | C19: 4017.978771 | D19: 379.25 | E19: 0.01391806723 | F19: 0.1366509595 | H19: ='6.Regresija'!$C$19+'6.Regresija'!$C$20*D19+'6.Regresija'!$C$21*E19+'6.Regresija'!$C$22*F19 -> 3447.523891 | I19: 0.8580244166 | K19: 216345.0132 | L19: 0.1419755834
A20: 190805997 | B20: Viešoji įstaiga Raseinių technologijos ir verslo mokykla | C20: 2772.112996 | D20: 425.0833333 | E20: 0.2847983009 | F20: 0 | H20: ='6.Regresija'!$C$19+'6.Regresija'!$C$20*D20+'6.Regresija'!$C$21*E20+'6.Regresija'!$C$22*F20 -> 2837.42938 | I20: 1.023561949 | K20: 0 | L20: 0
A21: 190087881 | B21: Viešoji įstaiga Kuršėnų politechnikos mokykla | C21: 3383.520293 | D21: 360.25 | E21: 0.01707726764 | F21: 0.02360344029 | H21: ='6.Regresija'!$C$19+'6.Regresija'!$C$20*D21+'6.Regresija'!$C$21*E21+'6.Regresija'!$C$22*F21 -> 3334.069099 | I21: 0.9853846911 | K21: 17814.79272 | L21: 0.01461530889
A22: 111967488 | B22: Skuodo amatų ir paslaugų mokykla | C22: 2961.222066 | D22: 147.4166667 | E22: 0.009090909091 | F22: 0 | H22: ='6.Regresija'!$C$19+'6.Regresija'!$C$20*D22+'6.Regresija'!$C$21*E22+'6.Regresija'!$C$22*F22 -> 3428.530403 | I22: 1.157809285 | K22: 0 | L22: 0
A23: 190807286 | B23: Tauragės profesinio rengimo centras | C23: 2496.123687 | D23: 702.1666667 | E23: 0.3837159728 | F23: 0 | H23: ='6.Regresija'!$C$19+'6.Regresija'!$C$20*D23+'6.Regresija'!$C$21*E23+'6.Regresija'!$C$22*F23 -> 2537.037417 | I23: 1.016390907 | K23: 0 | L23: 0
A24: 190807514 | B24: Viešoji įstaiga Telšių regioninis profesinio mokymo centras | C24: 2714.06487 | D24: 598.3333333 | E24: 0.1408743286 | F24: 0.04946223155 | H24: ='6.Regresija'!$C$19+'6.Regresija'!$C$20*D24+'6.Regresija'!$C$21*E24+'6.Regresija'!$C$22*F24 -> 3039.143829 | I24: 1.119775678 | K24: 0 | L24: 0
A25: 190807471 | B25: Varėnos technologijos ir verslo mokykla | C25: 3144.598775 | D25: 292.5833333 | E25: 0.2338805326 | F25: 0 | H25: ='6.Regresija'!$C$19+'6.Regresija'!$C$20*D25+'6.Regresija'!$C$21*E25+'6.Regresija'!$C$22*F25 -> 2987.015238 | I25: 0.9498875538 | K25: 46106.31649 | L25: 0.05011244617
A26: 190971848 | B26: Vilniaus geležinkelio transporto ir verslo paslaugų mokykla | C26: 3702.078618 | D26: 444.25 | E26: 0.05219342741 | F26: 0.01855911331 | H26: ='6.Regresija'!$C$19+'6.Regresija'!$C$20*D26+'6.Regresija'!$C$21*E26+'6.Regresija'!$C$22*F26 -> 3229.325301 | I26: 0.8723005735 | K26: 210020.6608 | L26: 0.1276994265
A27: 305239644 | B27: Profesinio mokymo centras "Žirmūnai" | C27: 6739.148331 | D27: 213.6666667 | E27: 0 | F27: 0 | H27: ='6.Regresija'!$C$19+'6.Regresija'!$C$20*D27+'6.Regresija'!$C$21*E27+'6.Regresija'!$C$22*F27 -> 3410.493647 | I27: 0.5060719069 | K27: 711222.5508 | L27: 0.4939280931
B28: vidurkis | C28: =AVERAGE(C7:C27) -> 3294.567405 | H28: =AVERAGE(H7:H27) -> 3066.259106
K30: =MAX(K7:K27) -> 784626.6414 | L30: Maksimalus rekomenduojamas metinių išlaidų sumažinimas, Eur
K31: =SUM(K7:K27) -> 2364140.187 | L31: Bendras rekomenduojamas metinių išlaidų sumažinimas, Eur
K32: =SUMPRODUCT(C7:C27,D7:D27) -> 32766770.86 | L32: Bendros esamos išlaidos, Eur
K33: =K31/K32 -> 0.07215053925 | L33: Bendras rekomenduojamas metinių išlaidų sumažinimas, proc. nuo bendrų esamų išlaidų

Sheet 7.2.
A1: 2 tipo profesinio ugdymo įstaigos (Pirminio mokymo mokinių dalis >=0.5; bet netenkina 1 tipo)
C5: Pagrindinės veiklos sąnaudos 1-m mokiniui | D5: Bendras paslaugos gavėjų skaičius (mokinių skaičius (pirminis + tęstinis)) | E5: Mokinių skaičiaus dalis (tęstinio mokymo) bendrame mokinių sk. | F5: Pirminio mokymo mokinių su spec. poreikiais dalis | H5: Pagrindinės veiklos sąnaudos 1-m mokiniui (prognozė) | I5: Toleruotinos išlaidos, lyginant su esamomis | K5: Rekomenduojamas metinių išlaidų sumažinimas, Eur | L5: Rekomenduojamas išlaidų sumažinimas lyginant su esamomis, %
A6: Kodas | B6: Pavadinimas | C6: Y | D6: X2 | E6: X13 | F6: X16
A7: 300039337 | B7: Alytaus profesinio rengimo centras | C7: 2130.336802 | D7: 2074.166667 | E7: 0.3261347698 | F7: 0.009632291518 | H7: ='6.Regresija'!$C$19+'6.Regresija'!$C$20*D7+'6.Regresija'!$C$21*E7+'6.Regresija'!$C$22*F7 -> 1958.853723 | I7: =H7/C7 -> 0.9195042403 | K7: =+IF(I7<1,(C7-H7)*D7,0) -> 355684.4869 | L7: =+IF(I7<1,1-I7,0) -> 0.08049575968
A8: 190961010 | B8: Viešoji įstaiga Daugų technologijos ir verslo mokykla | C8: 2965.24826 | D8: 308.5833333 | E8: 0.08271582522 | F8: 0 | H8: ='6.Regresija'!$C$19+'6.Regresija'!$C$20*D8+'6.Regresija'!$C$21*E8+'6.Regresija'!$C$22*F8 -> 3227.376133 | I8: =H8/C8 -> 1.088399975 | K8: =+IF(I8<1,(C8-H8)*D8,0) -> 0 | L8: =+IF(I8<1,1-I8,0) -> 0
A9: 302643724 | B9: Biržų technologijų ir verslo mokymo centras | C9: 2422.414976 | D9: 942.25 | E9: 0.2127416995 | F9: 0.05313501542 | H9: ='6.Regresija'!$C$19+'6.Regresija'!$C$20*D9+'6.Regresija'!$C$21*E9+'6.Regresija'!$C$22*F9 -> 2753.751946 | I9: 1.136779608 | K9: 0 | L9: 0
A10: 190976966 | B10: Viešoji įstaiga Elektrėnų profesinio mokymo centras | C10: 2147.158551 | D10: 1069.166667 | E10: 0.06039313885 | F10: 0.0003632025816 | H10: ='6.Regresija'!$C$19+'6.Regresija'!$C$20*D10+'6.Regresija'!$C$21*E10+'6.Regresija'!$C$22*F10 -> 2885.904212 | I10: 1.344057341 | K10: 0 | L10: 0
A11: 111964563 | B11: Jonavos politechnikos mokykla | C11: 2021.762516 | D11: 574.6666667 | E11: 0.1749915065 | F11: 0 | H11: ='6.Regresija'!$C$19+'6.Regresija'!$C$20*D11+'6.Regresija'!$C$21*E11+'6.Regresija'!$C$22*F11 -> 2943.369587 | I11: 1.455843386 | K11: 0 | L11: 0
A12: 191425670 | B12: Smalininkų technologijų ir verslo mokykla | C12: 2983.985183 | D12: 462.5833333 | E12: 0.2596477919 | F12: 0.02234546285 | H12: ='6.Regresija'!$C$19+'6.Regresija'!$C$20*D12+'6.Regresija'!$C$21*E12+'6.Regresija'!$C$22*F12 -> 2883.351552 | I12: 0.9662754251 | K12: 46551.44085 | L12: 0.0337245749
A13: 111961453 | B13: Karaliaus Mindaugo profesinio mokymo centras | C13: 1982.707339 | D13: 3757.166667 | E13: 0.06637785855 | F13: 0.002322391179 | H13: ='6.Regresija'!$C$19+'6.Regresija'!$C$20*D13+'6.Regresija'!$C$21*E13+'6.Regresija'!$C$22*F13 -> 1540.372938 | I13: 0.7769038367 | K13: 1661924.064 | L13: 0.2230961633
A14: 111964378 | B14: Kauno buitinių paslaugų ir verslo mokykla | C14: 2484.079182 | D14: 646.0833333 | E14: 0.07563841869 | F14: 0 | H14: ='6.Regresija'!$C$19+'6.Regresija'!$C$20*D14+'6.Regresija'!$C$21*E14+'6.Regresija'!$C$22*F14 -> 3071.038416 | I14: 1.236288456 | K14: 0 | L14: 0
A15: 190804742 | B15: Kauno maisto pramonės ir prekybos mokymo centras | C15: 3169.035009 | D15: 926.9166667 | E15: 0.1681713565 | F15: 0.04136778953 | H15: ='6.Regresija'!$C$19+'6.Regresija'!$C$20*D15+'6.Regresija'!$C$21*E15+'6.Regresija'!$C$22*F15 -> 2822.346516 | I15: 0.8906012424 | K15: 321351.3422 | L15: 0.1093987576
A16: 190972373 | B16: Kauno statybos ir paslaugų mokymo centras | C16: 2031.366325 | D16: 2087.416667 | E16: 0.2040387891 | F16: 0.0674430277 | H16: ='6.Regresija'!$C$19+'6.Regresija'!$C$20*D16+'6.Regresija'!$C$21*E16+'6.Regresija'!$C$22*F16 -> 2213.031569 | I16: 1.089430076 | K16: 0 | L16: 0
A17: 190973322 | B17: Kauno taikomosios dailės mokykla | C17: 2779.882159 | D17: 564.3333333 | E17: 0.07961406387 | F17: 0.07187402008 | H17: ='6.Regresija'!$C$19+'6.Regresija'!$C$20*D17+'6.Regresija'!$C$21*E17+'6.Regresija'!$C$22*F17 -> 3180.037336 | I17: 1.143946813 | K17: 0 | L17: 0
A18: 304311642 | B18: Kauno technikos profesinio mokymo centras | C18: 2193.828012 | D18: 1361.916667 | E18: 0.0803678894 | F18: 0.0001552366794 | H18: ='6.Regresija'!$C$19+'6.Regresija'!$C$20*D18+'6.Regresija'!$C$21*E18+'6.Regresija'!$C$22*F18 -> 2707.181178 | I18: 1.23399882 | K18: 0 | L18: 0
A19: 190808616 | B19: Vilkijos žemės ūkio mokykla | C19: 1898.731937 | D19: 504.0833333 | E19: 0.3152261876 | F19: 0.0002875215641 | H19: ='6.Regresija'!$C$19+'6.Regresija'!$C$20*D19+'6.Regresija'!$C$21*E19+'6.Regresija'!$C$22*F19 -> 2748.427794 | I19: 1.447507013 | K19: 0 | L19: 0
A20: 111966767 | B20: Kėdainių profesinio rengimo centras | C20: 2866.376062 | D20: 779.0833333 | E20: 0.3169162295 | F20: 0.05533702028 | H20: ='6.Regresija'!$C$19+'6.Regresija'!$C$20*D20+'6.Regresija'!$C$21*E20+'6.Regresija'!$C$22*F20 -> 2666.117128 | I20: 0.9301351497 | K20: 156018.3981 | L20: 0.06986485026
A21: 190807667 | B21: Veisiejų technologijos ir verslo mokykla | C21: 2808.83231 | D21: 399.0833333 | E21: 0.125351345 | F21: 0 | H21: ='6.Regresija'!$C$19+'6.Regresija'!$C$20*D21+'6.Regresija'!$C$21*E21+'6.Regresija'!$C$22*F21 -> 3112.298008 | I21: 1.108039806 | K21: 0 | L21: 0
A22: 111964944 | B22: Marijampolės profesinio rengimo centras | C22: 2507.133265 | D22: 1639.666667 | E22: 0.1986828036 | F22: 0.02412164243 | H22: ='6.Regresija'!$C$19+'6.Regresija'!$C$20*D22+'6.Regresija'!$C$21*E22+'6.Regresija'!$C$22*F22 -> 2399.550053 | I22: 0.9570891528 | K22: 176400.6074 | L22: 0.04291084721
A23: 191176774 | B23: Viešoji įstaiga Alantos technologijos ir verslo mokykla | C23: 3290.876855 | D23: 425.1666667 | E23: 0.2521628109 | F23: 0 | H23: ='6.Regresija'!$C$19+'6.Regresija'!$C$20*D23+'6.Regresija'!$C$21*E23+'6.Regresija'!$C$22*F23 -> 2890.999386 | I23: 0.8784890817 | K23: 170014.5704 | L23: 0.1215109183
A24: 190805844 | B24: Plungės technologijų ir verslo mokykla | C24: 2847.837414 | D24: 781.3333333 | E24: 0.3687192848 | F24: 0 | H24: ='6.Regresija'!$C$19+'6.Regresija'!$C$20*D24+'6.Regresija'!$C$21*E24+'6.Regresija'!$C$22*F24 -> 2522.27404 | I24: 0.8856804914 | K24: 254373.5159 | L24: 0.1143195086
A25: 190977872 | B25: Radviliškio technologijų ir verslo mokymo centras | C25: 3749.487738 | D25: 543.8333333 | E25: 0.146706367 | F25: 0.1947926666 | H25: ='6.Regresija'!$C$19+'6.Regresija'!$C$20*D25+'6.Regresija'!$C$21*E25+'6.Regresija'!$C$22*F25 -> 3208.024691 | I25: 0.8555901274 | K25: 294465.6534 | L25: 0.1444098726
A26: 190804895 | B26: Rokiškio technologijos, verslo ir žemės ūkio mokykla | C26: 1875.168273 | D26: 481.0833333 | E26: 0.3393844778 | F26: 0.003058727569 | H26: ='6.Regresija'!$C$19+'6.Regresija'!$C$20*D26+'6.Regresija'!$C$21*E26+'6.Regresija'!$C$22*F26 -> 2723.074315 | I26: 1.452175975 | K26: 0 | L26: 0
A27: 300039668 | B27: Šiaulių profesinio rengimo centras | C27: 2568.201768 | D27: 2064.5 | E27: 0.05579708199 | F27: 0.09117447708 | H27: ='6.Regresija'!$C$19+'6.Regresija'!$C$20*D27+'6.Regresija'!$C$21*E27+'6.Regresija'!$C$22*F27 -> 2492.67094 | I27: 0.9705899943 | K27: 155933.3955 | L27: 0.02941000565
A28: 190965375 | B28: Šilutės profesinio mokymo centras | C28: 2927.73354 | D28: 708.6666667 | E28: 0.1672944136 | F28: 0.0503507798 | H28: ='6.Regresija'!$C$19+'6.Regresija'!$C$20*D28+'6.Regresija'!$C$21*E28+'6.Regresija'!$C$22*F28 -> 2941.758177 | I28: 1.004790271 | K28: 0 | L28: 0
A29: 111963842 | B29: Švenčionių profesinio rengimo centras | C29: 2769.797347 | D29: 469.8333333 | E29: 0.1902990935 | F29: 0.001524918864 | H29: ='6.Regresija'!$C$19+'6.Regresija'!$C$20*D29+'6.Regresija'!$C$21*E29+'6.Regresija'!$C$22*F29 -> 2971.983757 | I29: 1.072996824 | K29: 0 | L29: 0
A30: 191425713 | B30: Ukmergės technologijų ir verslo mokykla | C30: 2517.101054 | D30: 1026.166667 | E30: 0.299990972 | F30: 0.007216654248 | H30: ='6.Regresija'!$C$19+'6.Regresija'!$C$20*D30+'6.Regresija'!$C$21*E30+'6.Regresija'!$C$22*F30 -> 2520.844971 | I30: 1.001487392 | K30: 0 | L30: 0
A31: 111965099 | B31: Utenos regioninis profesinio mokymo centras | C31: 2652.996483 | D31: 644.5 | E31: 0.3473787809 | F31: 0.04452472179 | H31: ='6.Regresija'!$C$19+'6.Regresija'!$C$20*D31+'6.Regresija'!$C$21*E31+'6.Regresija'!$C$22*F31 -> 2671.794189 | I31: 1.007085462 | K31: 0 | L31: 0
A32: 111963657 | B32: Viešoji įstaiga Vilniaus statybininkų rengimo centras | C32: 2866.634766 | D32: 1002.333333 | E32: 0.1391307368 | F32: 0.003265075419 | H32: ='6.Regresija'!$C$19+'6.Regresija'!$C$20*D32+'6.Regresija'!$C$21*E32+'6.Regresija'!$C$22*F32 -> 2792.842021 | I32: 0.9742580586 | K32: 73964.92735 | L32: 0.02574194144
A33: 190798047 | B33: Vilniaus technologijų mokymo ir reabilitacijos centras | C33: 4243.642567 | D33: 146.5833333 | E33: 0 | F33: 0.8893967213 | H33: ='6.Regresija'!$C$19+'6.Regresija'!$C$20*D33+'6.Regresija'!$C$21*E33+'6.Regresija'!$C$22*F33 -> 4370.04276 | I33: 1.029785777 | K33: 0 | L33: 0
A34: 190971086 | B34: Vilniaus komunalinių paslaugų mokykla | C34: 2221.579135 | D34: 370.3333333 | E34: 0.01877470356 | F34: 0 | H34: ='6.Regresija'!$C$19+'6.Regresija'!$C$20*D34+'6.Regresija'!$C$21*E34+'6.Regresija'!$C$22*F34 -> 3301.683289 | I34: 1.486187567 | K34: 0 | L34: 0
A35: 190971271 | B35: Vilniaus automechanikos ir verslo mokykla | C35: 2801.699573 | D35: 974.5 | E35: 0.1623782009 | F35: 0.01798851785 | H35: ='6.Regresija'!$C$19+'6.Regresija'!$C$20*D35+'6.Regresija'!$C$21*E35+'6.Regresija'!$C$22*F35 -> 2783.836532 | I35: 0.9936242127 | K35: 17407.53289 | L35: 0.006375787253
A36: 291829870 | B36: Vilniaus paslaugų verslo profesinio mokymo centras | C36: 2260.45568 | D36: 905.5833333 | E36: 0.06880147505 | F36: 0.01101280003 | H36: ='6.Regresija'!$C$19+'6.Regresija'!$C$20*D36+'6.Regresija'!$C$21*E36+'6.Regresija'!$C$22*F36 -> 2964.592094 | I36: 1.311501977 | K36: 0 | L36: 0
A37: 300039885 | B37: Vilniaus technologijų mokymo centras | C37: 2613.602227 | D37: 1146.166667 | E37: 0.1426747343 | F37: 0.01945877877 | H37: ='6.Regresija'!$C$19+'6.Regresija'!$C$20*D37+'6.Regresija'!$C$21*E37+'6.Regresija'!$C$22*F37 -> 2732.301604 | I37: 1.045416007 | K37: 0 | L37: 0
A38: 191142619 | B38: Vilniaus technologijų, verslo ir žemės ūkio mokykla | C38: 4219.299906 | D38: 264.3333333 | E38: 0.05300824051 | F38: 0 | H38: ='6.Regresija'!$C$19+'6.Regresija'!$C$20*D38+'6.Regresija'!$C$21*E38+'6.Regresija'!$C$22*F38 -> 3298.199787 | I38: 0.7816936129 | K38: 243477.4647 | L38: 0.2183063871
A39: 190977915 | B39: Visagino technologijos ir verslo profesinio mokymo centras | C39: 3125.454813 | D39: 581.5 | E39: 0.2162565808 | F39: 0 | H39: ='6.Regresija'!$C$19+'6.Regresija'!$C$20*D39+'6.Regresija'!$C$21*E39+'6.Regresija'!$C$22*F39 -> 2872.18123 | I39: 0.9189642476 | K39: 147278.5882 | L39: 0.08103575243
